{"text_format":"1","workbook":"xlsx","n_sheets":16,"sheets":["Introduction","Part 1 - About","Part 2 - Disclosure checklist","Part 3 - Reporting entities","Part 4 - Government revenues","Part 5 - Company data","2.1 Sources","2.2 Sources","2.3 Sources","3.1 Sources","3.2 Sources","5.1 Sources","5.2 Sources","5.3 Sources","6.3 Sources","Lists"],"not_rendered":{"charts":0,"images":2,"macros":1,"external_links":1,"defined_names":27,"comments":0,"pivot_tables":0},"unopened":[],"bounds":{"document_bytes":16777216,"sheet_cells":100000,"rows_first":2000,"rows_last":500,"rows_between":2000,"halvings":0,"cell_chars":16384,"cell_head_chars":4096},"cells_cut":0,"cells_raw":0,"read":"whole","date_system":"1900"}

{"sheet":"Introduction","index":0,"n_rows":51,"n_cols":7,"rows_kept":51,"cut":false,"hidden":false,"merged":[[49,2,49,6],[32,2,32,6],[46,2,46,6],[19,2,19,4],[13,2,13,4],[45,2,45,6],[18,2,18,4]]}
[]
[]
[]
[null,null,null,null,"Completed on:",null,"2023-09-16"]
[]
[]
[]
[]
[]
[null,null,"Summary data template for EITI disclosures"]
[null,null,"Version 2.0 as of 1 July 2019"]
[]
[null,null,"Filling in this summary data template with EITI Report data will make your EITI Report data accessible in a machine-readable format. (requirement 7.2.d) "]
[null,null,"“Make the EITI Report available in an open data format (xlsx or csv) online and publicise its availability.” \n- EITI Requirement 7.1.c"]
[]
[null,null,"How publishing EITI Report data works:"]
[null,null,"1. Use one excel workbook per fiscal year covered. If you are reporting on both oil & gas and mining, both can fit into one workbook."]
[null,null,"2. Fill in the entire workbook - parts 1-5."]
[null,null,"3. This Data sheet should be submitted alongside the EITI Report. Send it to the International Secretariat: data@eiti.org "]
[null,null,"4. The data will be used to populate the global EITI data repository, available on the international EITI website: https://eiti.org/data. You will receive the file back which will be fit for publication via the channels of your choice. "]
[]
[null,null,"This template should be completed in full and submitted to the EITI International Secretariat for each fiscal year covered under EITI Reporting."]
[]
[]
[null,null,"This workbook has five parts. Insert the data starting with part 1 and work your way through to part 5"]
[]
[null,null,"Part 1 (About): Insert country and data characteristics."]
[null,null,"Part 2 (Disclosure checklist): Fill in contextual and aggregate financial data for EITI Requirements 2, 3, 4, 5, and 6."]
[null,null,"Part 3 (Reporting entities): Enter reporting entities (Government agencies, companies and projects) and related information. "]
[null,null,"Part 4 (Government revenues): Enter data on government revenues per revenue stream, according to GFS classification."]
[null,null,"Part 5 (Company data): Enter company- and project-level data per revenue stream."]
[]
[null,null,"The International Secretariat can provide advice and support on request. Please contact data@eiti.org"]
[]
[null,null,"Cells in orange must be completed before submission",null,"Cells in light blue are for supplying sources and/or comments",null,"White cells require no action"]
[]
[null,null,"Cells in grey are for your information: You will receive immediate feedback on many of the data entries and some cells will fill in automatically."]
[]
[]
[null,null,"Terminology: Disclosure",null,"Terminology: Simple options"]
[null,null,"Yes, systematically disclosed: If data is regularly and publicly disclosed by government agencies or companies, and the data is reliable, please select Yes, systematically disclosed",null,"Yes: All the aspects of the question are answered/covered."]
[null,null,"Yes, through EITI reporting: If the EITI Report covers certain data gaps in government or corporate disclosures, please select \"Yes, in EITI Report\".",null,"Partially:Aspects of the question have been answered/covered."]
[null,null,"Not available: The data is applicable in the country, but no data or information is available.",null,"No: No information is covered."]
[null,null,"Not applicable: If a requirement is not relevant, please select \"Not applicable\". Refer to any evidence documented as part of the EITI Report, or through minutes of a multi-stakeholder meeting. ",null,"Not applicable: The question is not relevant for the case, When it is required, please refer to evidence of non-applicability."]
[]
[null,null,"For the latest version of Summary data templates, see https://eiti.org/summary-data-template"]
[null,null,"Give us your feedback or report a conflict in the data! Write to us at  data@eiti.org"]
[]
[null,null,"EITI International Secretariat"]
[null,null,"Phone: +47 222 00 800      E-mail: secretariat@eiti.org      Twitter: @EITIorg      www.eiti.org"]
[null,"Country or area","Address: Rådhusgata 26, 0151 Oslo, Norway      P.O. Box: Postboks 340 Sentrum, 0101 Oslo, Norway"]

{"sheet":"Part 1 - About","index":1,"n_rows":68,"n_cols":7,"rows_kept":68,"cut":false,"hidden":false,"merged":[[77,2,77,4],[71,2,71,6],[72,2,72,6],[73,2,73,6],[74,2,74,6],[76,2,76,4],[67,2,67,6],[1,2,1,6],[2,2,2,6],[3,2,3,6],[4,2,4,6],[5,2,5,6],[63,2,63,6],[66,2,66,6],[62,2,62,6],[61,2,61,6],[64,2,64,6],[65,2,65,6],[6,2,6,6]]}
[]
[null,null,"Part 1 (About) covers country and data characteristics."]
[null,null,"How to complete this sheet:"]
[null,null,"1. Starting from the top, select your responses in the grey column. Guidance is provided in yellow boxes once the cell is selected. "]
[null,null,"2. Once certain questions are answered, further guidance and questions may appear. Please respond to each of these, until completed. "]
[null,null,"3. Include any additional information or comments as needed in the Source/Comments\" column."]
[null,null,"If you have any questions, please contact data@eiti.org"]
[]
[null,null,"Cells in orange must be completed",null,"Cells in light blue are for voluntary input",null,"White cells require no action"]
[]
[null,null,"Part 1 - About "]
[null,null,"Description",null,"Enter data in this column",null,"Source / Comments"]
[null,null,"Country or area"]
[null,"Country or area","Country or area name",null,"United Kingdom"]
[null,"Country or area","ISO Alpha-3 Code",null,{"$f":"IFERROR(VLOOKUP($E$14,Table1_Country_codes_and_currencies[],3,FALSE),\"\")","v":"GBR"}]
[null,"Country or area","National currency name",null,{"$f":"IFERROR(VLOOKUP($E$14,Table1_Country_codes_and_currencies[],7,FALSE),\"\")","v":"Pound sterling"}]
[null,"Country or area","National currency ISO-4217",null,{"$f":"IFERROR(VLOOKUP($E$14,Table1_Country_codes_and_currencies[],5,FALSE),\"\")","v":"GBP"}]
[null,null,"Fiscal year covered by this data file"]
[null,"Fiscal year covered by this data file","Start Date",null,"2022-01-01"]
[null,"Fiscal year covered by this data file","End Date",null,"2022-12-31"]
[null,null,"Data source"]
[null,"Data source","Has an EITI Report been prepared by an Independent Administrator?",null,"Partially",null,"The UK EITI report is divided to several chapters:\n- Approach and methodology ;\n- UK EITI Payments Report 2020 (including payments) ;\n- Sector Introduction (Overview of the extractive sectors in the UK) ;\n- Sector Data ;\n- Oil & Gas in the UK ; \n- Mining & Quarrying in the UK ;\n- Energy Transition ; and\n- Revenue allocations.\nOnly the first chapter is prepared by the Independant Administrator. The IA also reconciles the payments data disclosed in the UK EITI Payments Report. \nThe other chapters are prepared by the MSG."]
[null,"Data source","What is the name of the company?",null,"BDO UK LLP"]
[null,"Data source","Date that the EITI Report was made public",null,"2023-07-18"]
[null,"Data source","URL, EITI Report",null,"https://www.ukeiti.org/news-item/uk-eiti-payments-report-2022-published",null,"Select \"UK EITI Reports\" filter"]
[null,"Data source","Does the government systematically disclose EITI data at a single location?",null,"Yes"]
[null,"Data source","Publication date of the EITI data",null,"2023-07-18"]
[null,"Data source","Website link (URL) to EITI data",null,"https://www.ukeiti.org/"]
[null,"Data source","Are there other files of relevance?",null,"Yes"]
[null,"Data source","Date that other file was made public",null,null,null,"The UK EITI MSG systematically publishes the information related to its activity through the same website (Minutes of MSG Meetings, MSG ToR, Annual Progress Reports, Communication Strategy, Mainstreaming Feasibility Study, Annual Workplans...)."]
[null,"Data source","URL",null,"https://www.ukeiti.org/publications-reports"]
[null,null,"EITI Requirement 7.2: Data accessibility and open data"]
[null,null,"Does the government have an open data policy?",null,"Yes, systematically disclosed"]
[null,"Data coverage / scope","Open data portal / files",null,"NSTA's Open Data: https://www.nstauthority.co.uk/data-centre/nsta-open-data/\nUK EITI open data policy: https://www.ukeiti.org/publications-reports",null,"Open Data policy: https://www.ukeiti.org/index.php/publication/uk-eiti-open-data-policy-0"]
[null,"Data coverage / scope","Data coverage / scope"]
[null,"Data coverage / scope","Sector coverage"]
[null,"Data coverage / scope","Oil",null,"Yes"]
[null,"Data coverage / scope","Gas",null,"Yes"]
[null,"Data coverage / scope","Mining (incl. Quarrying)",null,"Yes"]
[null,"Data coverage / scope","Other, non-upstream sectors",null,"Not applicable"]
[null,"Data coverage / scope","If yes, please specify name (insert new rows if multiple)",null,"Not applicable"]
[null,"Data coverage / scope","Number of reporting government entities (incl SOEs if recipient)",null,4]
[null,"Data coverage / scope","Number of reporting companies (incl SOEs if payer)",null,47]
[null,"Data coverage / scope","Reporting currency (ISO-4217 currency codes)",null,"GBP"]
[null,"Data coverage / scope","Exchange rate used: 1 USD = ",null,0.81200000000000006,null,"All payments were made in GBP. The average annual exchange rate GBP/USD for 2022 is for reference only."]
[null,"Data coverage / scope","Exchange rate source (URL,…)",null,"https://www.bankofengland.co.uk/",null,"Based on the Monthly average Spot exchange rate, US$ into Sterling published by the Bank of England (series XUMAUSS)."]
[null,"Data coverage / scope","EITI Requirement 4.7: Disaggregation"]
[null,"Data coverage / scope","… by revenue stream",null,"Yes"]
[null,null,"… by government agency",null,"Yes"]
[null,null,"… by company",null,"Yes"]
[null,null,"… by project",null,"Yes",null,"The following payments levied by license/project level, were disaggregated: \n- Payments collected by TCE ;\n- Payments collected by CES ;\n- Petroleum License Fees collected by NSTA ; and\n- Petroleum Revenue Tax collected by HMRC."]
[null,null,"Data overview / requirement",null,{"$f":"SUM(E53:E56)","v":0.99999999999999989}]
[null,null,"Systematically disclosed",null,{"$f":"COUNTIF('Part 2 - Disclosure checklist'!$D:$D,Lists!$K$4)/SUM(COUNTIF('Part 2 - Disclosure checklist'!$D:$D,\"*EITI Reporting or systematically disclosed?*\"),COUNTIF('Part 2 - Disclosure checklist'!$D:$D,Lists!$K$4),COUNTIF('Part 2 - Disclosure checklist'!$D:$D,Lists!$K$5),COUNTIF('Part 2 - Disclosure checklist'!$D:$D,Lists!$K$6),COUNTIF('Part 2 - Disclosure checklist'!$D:$D,Lists!$K$7))","v":0.52631578947368418},null,"Calculated using the Disclosure checklist"]
[null,null,"Through EITI Reporting",null,{"$f":"COUNTIF('Part 2 - Disclosure checklist'!$D:$D,Lists!$K$5)/SUM(COUNTIF('Part 2 - Disclosure checklist'!$D:$D,\"*EITI Reporting or systematically disclosed?*\"),COUNTIF('Part 2 - Disclosure checklist'!$D:$D,Lists!$K$4),COUNTIF('Part 2 - Disclosure checklist'!$D:$D,Lists!$K$5),COUNTIF('Part 2 - Disclosure checklist'!$D:$D,Lists!$K$6),COUNTIF('Part 2 - Disclosure checklist'!$D:$D,Lists!$K$7))","v":8.771929824561403E-2},null,"Calculated using the Disclosure checklist"]
[null,"Contact details: data submission","Not applicable",null,{"$f":"COUNTIF('Part 2 - Disclosure checklist'!$D:$D,Lists!$K$6)/SUM(COUNTIF('Part 2 - Disclosure checklist'!$D:$D,\"*EITI Reporting or systematically disclosed?*\"),COUNTIF('Part 2 - Disclosure checklist'!$D:$D,Lists!$K$4),COUNTIF('Part 2 - Disclosure checklist'!$D:$D,Lists!$K$5),COUNTIF('Part 2 - Disclosure checklist'!$D:$D,Lists!$K$6),COUNTIF('Part 2 - Disclosure checklist'!$D:$D,Lists!$K$7))","v":0.24561403508771928},null,"Calculated using the Disclosure checklist"]
[null,"Contact details: data submission","Not available",null,{"$f":"COUNTIF('Part 2 - Disclosure checklist'!$D:$D,Lists!$K$7)/SUM(COUNTIF('Part 2 - Disclosure checklist'!$D:$D,\"*EITI Reporting or systematically disclosed?*\"),COUNTIF('Part 2 - Disclosure checklist'!$D:$D,Lists!$K$4),COUNTIF('Part 2 - Disclosure checklist'!$D:$D,Lists!$K$5),COUNTIF('Part 2 - Disclosure checklist'!$D:$D,Lists!$K$6),COUNTIF('Part 2 - Disclosure checklist'!$D:$D,Lists!$K$7))","v":0.14035087719298245},null,"Calculated using the Disclosure checklist"]
[null,"Contact details: data submission","Name and contact information of the person submitting this file"]
[null,"Contact details: data submission","Name",null,"Helmi Ben Rhouma"]
[null,null,"Organisation",null,"BDO UK LLP"]
[null,null,"Email address",null,"Helmi.benrhouma@bdo.co.uk"]
[]
[]
[null,null,"For the latest version of Summary data templates, see https://eiti.org/summary-data-template"]
[null,null,"Give us your feedback or report a conflict in the data! Write to us at  data@eiti.org"]
[]
[null,null,"EITI International Secretariat"]
[null,null,"Phone: +47 222 00 800      E-mail: secretariat@eiti.org      Twitter: @EITIorg      www.eiti.org"]
[null,"Country or area","Address: Rådhusgata 26, 0151 Oslo, Norway      P.O. Box: Postboks 340 Sentrum, 0101 Oslo, Norway"]

{"sheet":"Part 2 - Disclosure checklist","index":2,"n_rows":172,"n_cols":8,"rows_kept":172,"cut":false,"hidden":false,"merged":[[171,1,171,7],[2,1,2,7],[3,1,3,7],[4,1,4,7],[5,1,5,7],[6,1,6,7],[7,1,7,7],[166,1,166,7],[167,1,167,7],[169,1,169,7],[170,1,170,7],[8,1,8,7]]}
[]
[null,"Part 2 (Disclosure checklist) covers contextual and aggregate financial data for EITI Requirements 2, 3, 4, 5, and 6."]
[null,"How to complete this sheet:"]
[null,"For each row, please complete the following steps"]
[null,"1.Starting from the top, begin by responding to questions in the first column (Inclusion). Guidance will be provided in yellow boxes once the cell is highlighted. Click the cells of each EITI Requirement for the precise language of the EITI Standard."]
[null,"2.More guidance will appear as you fill the cells. Please fill out as directed, completing every column for each row before beginning the next."]
[null,"For example, when choosing \"Yes, in the EITI Report\" \"please include the section in the EITI Report\" appears in the Source / units box."]
[null,"3. Include any additional information or comments as needed in the Comments / Notes\" column."]
[null,"If you have any questions, please contact data@eiti.org"]
[]
[null,"Cells in orange must be completed",null,"Cells in light blue are for voluntary input",null,"White cells require no action"]
[]
[null,"Part 2 - Disclosure checklist"]
[null,"Please fill in answers to all the questions posed below. "]
[]
[null,"Requirement",null,"Inclusion",null,"Source / units",null,"Comments / Notes"]
[null,"EITI Requirement 2.1: Legal framework and fiscal regime",null,null,null,null,null,"UK EITI commissioned the Business Frameworks Analysis team in the (DESNZ) to conduct a feasibility study into the UK’s readiness to mainstream EITI implementation via routine online disclosures. The final version of the study was approved by the MSG in January 2019 and is available, along with the final mapping tool. "]
[null,"Does the government publish information about",null,null,null,null,null,"The publicly available sources presented below are extracted from the Mainstreaming Mapping Tool. For more information please visit the below URL:\nhttps://www.ukeiti.org/publications-reports and select \"Mainstreaming Feasibility Study\" filter"]
[null,"Laws and regulations?",null,"Yes, systematically disclosed",null,"Guidance: Minerals (MHCLG) : https://www.gov.uk/guidance/minerals;\nInvesting on the UKCS: Fiscal (Oil & Gas Authority): https://www.nstauthority.co.uk/about-us/investing-on-the-ukcs/;\nMinerals Planning Policy (Welsh Government) : https://gov.wales/topics/planning/policy/minerals/?lang=en;\nMinerals UK: Planning : http://www.bgs.ac.uk/mineralsuk/planning/home.html;\nNational Planning Framework 3 (Scottish Government) : https://beta.gov.scot/publications/national-planning-framework-3/;\nNational Planning Policy Framework (MHCLG) : https://www.gov.uk/government/uploads/system/uploads/attachment_data/file/6077/2116950.pdf;\nOnshore oil and gas exploration and Northern Ireland: Regulation and Best Practice (NI Government): https://www.economy-ni.gov.uk/publications/onshore-oil-and-gas-exploration-northern-ireland-regulation-and-best-practice;\nPetroleum (Production) Act (Northern Ireland) 1964: http://www.legislation.gov.uk/apni/1964/28/contents;\n",null,"2) Through EITI Reporting: \n- For Oil & Gas sector: https://www.ukeiti.org/oil-gas\n- For Mining and Quarrying sector: https://www.ukeiti.org/mining-quarrying"]
[null,"Overview of government agencies' roles?",null,"Yes, systematically disclosed",null,"Guidance: Minerals (MHCLG) : https://www.gov.uk/guidance/minerals;\nInvesting on the UKCS: Fiscal (Oil & Gas Authority): https://www.nstauthority.co.uk/about-us/investing-on-the-ukcs/;\nMinerals Planning Policy (Welsh Government) : https://gov.wales/topics/planning/policy/minerals/?lang=en;\nMinerals UK: Planning : http://www.bgs.ac.uk/mineralsuk/planning/home.html;\nNational Planning Framework 3 (Scottish Government) : https://beta.gov.scot/publications/national-planning-framework-3/;\nNational Planning Policy Framework (MHCLG) : https://www.gov.uk/government/uploads/system/uploads/attachment_data/file/6077/2116950.pdf;\nOnshore oil and gas exploration and Northern Ireland: Regulation and Best Practice (NI Government): https://www.economy-ni.gov.uk/publications/onshore-oil-and-gas-exploration-northern-ireland-regulation-and-best-practice;\nPetroleum (Production) Act (Northern Ireland) 1964: http://www.legislation.gov.uk/apni/1964/28/contents;\n",null,"2) Through EITI Reporting: \n- For Oil & Gas sector: https://www.ukeiti.org/oil-gas\n- For Mining and Quarrying sector: https://www.ukeiti.org/mining-quarrying"]
[null,"Mineral and petroleum rights' regime?",null,"Yes, systematically disclosed",null,"Guidance: Minerals (MHCLG) : https://www.gov.uk/guidance/minerals;\nInvesting on the UKCS: Fiscal (Oil & Gas Authority): https://www.nstauthority.co.uk/about-us/investing-on-the-ukcs/;\nMinerals Planning Policy (Welsh Government) : https://gov.wales/topics/planning/policy/minerals/?lang=en;\nMinerals UK: Planning : http://www.bgs.ac.uk/mineralsuk/planning/home.html;\nNational Planning Framework 3 (Scottish Government) : https://beta.gov.scot/publications/national-planning-framework-3/;\nNational Planning Policy Framework (MHCLG) : https://www.gov.uk/government/uploads/system/uploads/attachment_data/file/6077/2116950.pdf;\nOnshore oil and gas exploration and Northern Ireland: Regulation and Best Practice (NI Government): https://www.economy-ni.gov.uk/publications/onshore-oil-and-gas-exploration-northern-ireland-regulation-and-best-practice;\nPetroleum (Production) Act (Northern Ireland) 1964: http://www.legislation.gov.uk/apni/1964/28/contents;\n",null,"2) Through EITI Reporting: \n- For Oil & Gas sector: https://www.ukeiti.org/oil-gas\n- For Mining and Quarrying sector: https://www.ukeiti.org/mining-quarrying"]
[null,"Fiscal regime?",null,"Yes, systematically disclosed",null,"Business Income Manual (HMRC) : https://www.gov.uk/government/collections/business-income-manual-bim;\nCompany Taxation Manual (HMRC) : https://www.gov.uk/government/collections/company-taxation-manual;\nExploration & Production Taxation Overview (Oil & Gas Authority): https://www.nstauthority.co.uk/exploration-production/taxation/overview;\nOil Taxation Manual (HMRC): https://www.gov.uk/hmrc-internal-manuals/oil-taxation-manual;",null,"2) Through EITI Reporting: \n- For Oil & Gas sector: https://www.ukeiti.org/oil-gas\n- For Mining and Quarrying sector: https://www.ukeiti.org/mining-quarrying"]
[]
[null,"EITI Requirement 2.2: Contract and license allocations",null,null,null,null,null,"The UK EITI Secretariat have been working closely with government agencies and devolved administrations to ensure that information under requirement 2.3 is publicly disclosed for all government agencies in scope of EITI and hopes to achieve full compliance with this requirement in early 2021."]
[null,"Does the government publish information about"]
[null,"the award process(es)?",null,"Yes, systematically disclosed",null,"UK extractive licence and contract structure: https://www.ukeiti.org/index.php/publication/uk-extractive-licence-and-contract-structure;\nCoal mining licence applications (Coal Authority): https://www.gov.uk/government/collections/coal-mining-licence-applications;\nCrown Estate, The: http://www.thecrownestate.co.uk/;\nGet a permit to deal with coal or coal mines (Coal Authority): https://www.gov.uk/get-a-permit-to-deal-with-a-coal-mine-on-your-property;\nLicensing & Consents (Oil & Gas Authority): https://www.nstauthority.co.uk/licensing-consents/;\nLicensing and regulation (British Marine Aggregate Producers Association): http://www.bmapa.org/regulation_and_management/licensing_and_regulation.php;\nMinerals Licensing (NI government): http://www.economy-ni.gov.uk/articles/minerals-licensing;\nPetroleum Licensing (NI government): http://www.economy-ni.gov.uk/articles/petroleum-licensing;\n",null,"2) Through EITI Reporting: \n- For Oil & Gas sector: https://www.ukeiti.org/oil-gas\n- For Mining and Quarrying sector: https://www.ukeiti.org/mining-quarrying"]
[null,"and the technical and financial criteria used?",null,"Yes, systematically disclosed",null,"UK extractive licence and contract structure: https://www.ukeiti.org/index.php/publication/uk-extractive-licence-and-contract-structure;\nCoal mining licence applications (Coal Authority): https://www.gov.uk/government/collections/coal-mining-licence-applications;\nCrown Estate, The: http://www.thecrownestate.co.uk/;\nGet a permit to deal with coal or coal mines (Coal Authority): https://www.gov.uk/get-a-permit-to-deal-with-a-coal-mine-on-your-property;\nLicensing & Consents (Oil & Gas Authority): https://www.nstauthority.co.uk/licensing-consents/;\nLicensing and regulation (British Marine Aggregate Producers Association): http://www.bmapa.org/regulation_and_management/licensing_and_regulation.php;\nMinerals Licensing (NI government): http://www.economy-ni.gov.uk/articles/minerals-licensing;\nPetroleum Licensing (NI government): http://www.economy-ni.gov.uk/articles/petroleum-licensing;\n",null,"The study noted that the technical and financial criteria were not published by mining and quarrying regulators."]
[null,"the transfer process(es)?",null,"Yes, systematically disclosed",null,"UK extractive licence and contract structure: https://www.ukeiti.org/index.php/publication/uk-extractive-licence-and-contract-structure;"]
[null,"and the technical and financial criteria used?",null,"Yes, systematically disclosed",null,"UK extractive licence and contract structure: https://www.ukeiti.org/index.php/publication/uk-extractive-licence-and-contract-structure;"]
[null,"bidding rounds/process(es)?",null,"Yes, systematically disclosed",null,"UK extractive licence and contract structure: https://www.ukeiti.org/index.php/publication/uk-extractive-licence-and-contract-structure;\nLicensing & Consents (Oil & Gas Authority): https://www.nstauthority.co.uk/licensing-consents/;\nMinerals Licensing (NI government): http://www.economy-ni.gov.uk/articles/minerals-licensing;\nPetroleum Licensing (NI government): http://www.economy-ni.gov.uk/articles/petroleum-licensing;\n"]
[null,"No. of license awards and transfers for the covered year",null,"Not available"]
[]
[null,"EITI Requirement 2.3: Register of licenses"]
[null,"License register for mining sector",null,"Yes, systematically disclosed",null,"UK extractive licence and contract structure: https://www.ukeiti.org/index.php/publication/uk-extractive-licence-and-contract-structure;\nCoal Authority: https://www.gov.uk/government/organisations/the-coal-authority;\nCoal Authority metadata: https://www.gov.uk/government/collections/coal-mining-data;\nMarine Licensing Applications received and determined (Welsh Government): https://naturalresources.wales/permits-and-permissions/marine-licensing/applications-received-and-determined/?lang=en;\nMarine Licensing Information (Scottish Government): http://www.gov.scot/Topics/marine/Licensing/marine/register;\nNorthern Ireland Environment Agency: https://www.daera-ni.gov.uk/northern-ireland-environment-agency;\nProduction Licences (British Marine Aggregate Producers Association): https://www.bmapa.org/resources_and_operations/production_licences.php;\nPublic register (Marine Management Organisation): https://marinelicensing.marinemanagement.org.uk/mmo/fox/live/MMO_PUBLIC_REGISTER;",null,"Sources updated frequently, often once awards are granted (in near real-time in the case of oil & gas awards)"]
[null,"License register for petroleum sector",null,"Yes, systematically disclosed",null,"UK extractive licence and contract structure: https://www.ukeiti.org/index.php/publication/uk-extractive-licence-and-contract-structure;\nInteractive maps and tools (Oil & Gas Authority): https://www.nstauthority.co.uk/data-centre/interactive-maps-and-tools/;\nLicence Data (Oil & Gas Authority): https://www.nstauthority.co.uk/data-centre/data-downloads-and-publications/licence-data;\nPetroleum licence map (NI Government): https://www.daera-ni.gov.uk/northern-ireland-environment-agency;\nPetroleum licensing (NI Government): http://www.economy-ni.gov.uk/articles/petroleum-licensing;",null,"Sources updated frequently, often once awards are granted (in near real-time in the case of oil & gas awards)"]
[null,"License register for other sector(s) - add rows if several",null,"Not applicable",null,"No other sector"]
[]
[null,"EITI Requirement 2.4: Contract disclosure"]
[null,"Government policy on contract disclosure",null,"Yes, systematically disclosed",null,"https://www.ukeiti.org/contract-and-licence-transparency"]
[null,"Are contracts or full license texts disclosed?",null,"Not available"]
[null,"Contract register for mining sector",null,"Not available"]
[null,"Contract register for petroleum sector",null,"Not available"]
[]
[null,"EITI Requirement 2.5: Beneficial ownership"]
[null,"Government policy on beneficial ownership",null,"Yes, systematically disclosed",null,"PSC requirements for companies and limited liability partnerships (Companies House/DESNZ)"]
[null,"Is beneficial ownership data disclosed?",null,"Yes, systematically disclosed",null,"https://beta.companieshouse.gov.uk/",null,"Companies House hosts and maintains the People with Significant Control (PSC) Register, which records company beneficial ownership information for ALL UK companies"]
[null,"Beneficial ownership registry",null,"Companies House (PSC Register)",null,"https://beta.companieshouse.gov.uk/",null,"Search for the company you are interested in and use the 'people' tab to access information about 'People With Significant Control' (PSC)"]
[]
[null,"EITI Requirement 2.6: State participation"]
[null,"Does the government report how it participates in the extractive sector?",null,"Not applicable",null,"https://eiti.org/united-kingdom#validation",null,"All of the UK’s EITI Reports confirm that there is no state participation in the extractive industries and that Requirement 2.6 is not applicable in the UK context. The NSTA does not hold equity in the extractive industries and is not entitled to participate in or retain revenues from the extractive industries it regulates."]
[null,"References to state-owned enterprises portals or company website(s), for example as stated in the Report (Add rows if several SOEs)",null,"Not applicable"]
[null,"References to state-owned enterprises or company Audited Financial Statement (Add rows if several SOEs)",null,"Not applicable"]
[]
[null,"EITI Requirement 3.1: Exploration"]
[null,"Overview of the extractive industries, including any significant exploration activities",null,"Yes, systematically disclosed",null,"Business Outlook 2022 (Offshore Energies UK): https://oeuk.org.uk/wp-content/uploads/woocommerce_uploads/2022/03/Business-Outlook-2022-OEUK-axxiz6.pdf;\nExploration (North Sea Transition Authority): https://www.nstauthority.co.uk/exploration-production/exploration/;\nExploration: Current Activities (Minerals UK): http://www.bgs.ac.uk/mineralsuk/exploration/current.html;\nMineral Products Association: https://mineralproducts.org/;\nOil & Gas Authority Annual Report and Accounts 2021-22: https://www.nstauthority.co.uk/media/8255/nsta-ara_final_accessible_2022.pdf;\nUnited Kingdom Minerals Yearbook 2021 (British Geological Survey): https://www.bgs.ac.uk/news/uk-minerals-yearbook-2021/",null,"1) Generally, industry (and sector) overviews are prepared annually. \nExploration data is updated at varying times on different sources, but at no less that an annual frequency.\n\n2) Through EITI Reporting: \n- For Oil & Gas sector: https://www.ukeiti.org/oil-gas\n- For Mining and Quarrying sector: https://www.ukeiti.org/mining-quarrying"]
[]
[null,"EITI Requirement 3.2: Production by commodity"]
[null,"(Harmonised System Codes)"]
[null,"Disclosure of production volumes",null,"Yes, systematically disclosed",null,"Digest of UK Energy Statistics (DESNZ): https://www.gov.uk/government/collections/digest-of-uk-energy-statistics-dukes",null,"1) Sources updated with varying frequency: DESNZ data on aggregate coal and oil & gas production updated montly; DUKES is updated annually; some NSTA data produced in step with DESNZ monthly data but with a lag; gov.uk Energy Trends data updated at least quarterly; Scottish production data updated annually; other reports and summaries prepared on an annual basis.\n\n2) Through EITI Reporting: \n- For Oil & Gas sector: https://www.ukeiti.org/oil-gas\n- For Mining and Quarrying sector: https://www.ukeiti.org/mining-quarrying\n"]
[null,"Disclosure of production values",null,"Yes, systematically disclosed",null,"Digest of UK Energy Statistics (DESNZ): https://www.gov.uk/government/collections/digest-of-uk-energy-statistics-dukes",null,"3) For Mining and Quarrying sector: \nComprehensive and timely disaggregated data on production and trade volumes and values are lacking for extractives except fossil fuels. The Office for National Statistics (ONS) publishes poor quality data on the volume of production and trade of metal ores and non-metallic minerals in its material flows account for the UK while they also report on the value of imports and exports. These data are not included in the EITI 2022 report to avoid giving a misleading impression of the scale of the sector."]
[null,"Crude oil (2709), volume",null,34934930,null,"Tonnes",null,"DESNZ - Energy Trends 3.10"]
[null,{"$f":"LEFT(B61,SEARCH(\",\",B61))&\" value\"","v":"Crude oil (2709), value"},null,24090816149.773209,null,"GBP",null,"Source: NSTA - Income from and Expenditure on UK Upstream Oil and Gas Exploration, Development, Operating and Decommissioning Activities."]
[null,"Natural gas (2711), volume",null,33884670000,null,"Sm3",null,"Source: DESNZ - Energy Trends 4.2"]
[null,{"$f":"LEFT(B63,SEARCH(\",\",B63))&\" value\"","v":"Natural gas (2711), value"},null,26484986579.502792,null,"GBP",null,"Source: NSTA - Income from and Expenditure on UK Upstream Oil and Gas Exploration, Development, Operating and Decommissioning Activities"]
[null,"Coal (2701), volume",null,650920.00000000012,null,"Tonnes",null,"Source: DESNZ - Energy Trends 2.5"]
[null,{"$f":"LEFT(B65,SEARCH(\",\",B65))&\" value\"","v":"Coal (2701), value"},null,155000000,null,"GBP",null,"Source: DESNZ - DUKES 1.2"]
[]
[null,"EITI Requirement 3.3: Exports"]
[null,"Disclosure of export volumes",null,"Yes, systematically disclosed",null,"Digest of UK Energy Statistics (DESNZ): https://www.gov.uk/government/collections/digest-of-uk-energy-statistics-dukes",null,"1) Sources updated with varying frequency: (DESNZ data on aggregate coal and oil & gas production updated montly; DUKES is updated annually; some NSTA data produced in step with DESNZ monthly data but with a lag; gov.uk energy trend data updated quarterly; Scottish production data updated annually; other reports and summaries prepared on an annual basis.\n\n\n2) Through EITI Reporting: \n- For Oil & Gas sector: https://www.ukeiti.org/oil-gas\n- For Mining and Quarrying sector: https://www.ukeiti.org/mining-quarrying"]
[null,"Disclosure of export values",null,"Yes, systematically disclosed",null,"Digest of UK Energy Statistics (DESNZ): https://www.gov.uk/government/collections/digest-of-uk-energy-statistics-dukes",null,"3) For Mining and Quarrying sector: \nComprehensive and timely disaggregated data on production and trade volumes and values are lacking for extractives except fossil fuels. The Office for National Statistics (ONS) publishes poor quality data on the volume of production and trade of metal ores and non-metallic minerals in its material flows account for the UK while they also report on the value of imports and exports. These data are not included in the EITI 2022 report to avoid giving a misleading impression of the scale of the sector."]
[null,"Crude oil (2709), volume",null,28603890,null,"Tonnes",null,"Source: DESNZ - Energy Trends 3.10"]
[null,{"$f":"LEFT(B71,SEARCH(\",\",B71))&\" value\"","v":"Crude oil (2709), value"},null,23026767343.889526,null,"GBP",null,"Source: DESNZ - DUKES G.2"]
[null,"Natural gas (2711), volume",null,23454229999.999996,null,"Sm3",null,"Source: DESNZ - Energy Trends 4.2"]
[null,{"$f":"LEFT(B73,SEARCH(\",\",B73))&\" value\"","v":"Natural gas (2711), value"},null,18385372918.589565,null,"GBP",null,"Source: DESNZ - DUKES G.2"]
[null,"Coal (2701), volume",null,590510.00000000012,null,"Tonnes",null,"Source: DESNZ - Energy Trends 2.5"]
[null,{"$f":"LEFT(B75,SEARCH(\",\",B75))&\" value\"","v":"Coal (2701), value"},null,171947500.29818389,null,"GBP",null,"Source: DESNZ - DUKES G.2"]
[]
[null,"EITI Requirement 4.1: Comprehensiveness",null,null,null,null,null,"Disclosure of details of applicable tax frameworks for both sectors (EXCLUDING TCE and CES REVENUE STREAMS) is available in public online sources. Coverage of other revenue streams (licence fees, rents, etc.) is also available.\nData published at most sources annually (HMT Whole Government Accounts, NSTA Annual Report and Accounts); Some sources are updated monthly (HMRC accounts (cash basis) and ONS data (accruals basis))."]
[null,"Does the government fully disclose extractive sector revenues by revenue stream?",null,"Yes, through EITI reporting",null,"https://www.ukeiti.org/publications-reports"]
[null,"Are MSG decisions on materiality thresholds publicly available?",null,"Yes, through EITI reporting",null,"https://www.ukeiti.org/publications-reports",null,"1) Through the MSG minutes published on the UK EITI website.\n2) Through EITI reporting : \"2022 Approach and Methodogy\""]
[null,"Reconciliation coverage",null,{"$f":"SUM('Part 5 - Company data'!J354/'Part 4 - Government revenues'!J33)","v":0.98752901359446732},null,"Calculated using total of government revenues (part 4), and total per-company data (part 5)"]
[]
[null,"EITI Requirement 4.2: In-kind revenues"]
[null,"Does the government disclose data on in-kind revenues and sales of state share of production?",null,"Not applicable",null,"See \"2022 Approach and Methodogy chapter\"\nhttps://www.ukeiti.org/sites/default/files/payment-data/Approach%20and%20methodology%20for%202022%20Payments%20Report%20-%20Final.pdf"]
[null,"If yes, what was the volume received?"]
[null,"If yes, what was the total revenue transferred to the state from the proceeds of oil, gas and minerals sold?",null,"Not applicable",null,"See \"2022 Approach and Methodogy chapter\"\nhttps://www.ukeiti.org/sites/default/files/payment-data/Approach%20and%20methodology%20for%202022%20Payments%20Report%20-%20Final.pdf"]
[]
[null,"EITI Requirement 4.3: Barter agreements"]
[null,"Does the government disclose information on barter and infrastructure agreements?",null,"Not applicable",null,"See \"2022 Approach and Methodogy chapter\"\nhttps://www.ukeiti.org/sites/default/files/payment-data/Approach%20and%20methodology%20for%202022%20Payments%20Report%20-%20Final.pdf"]
[null,"If yes, what was the total revenues received from barter and infrastructure agreements?"]
[]
[null,"EITI Requirement 4.4: Transportation revenues"]
[null,"Does the government disclose information on transportation revenues?",null,"Not applicable",null,"See \"2022 Approach and Methodogy chapter\"\nhttps://www.ukeiti.org/sites/default/files/payment-data/Approach%20and%20methodology%20for%202022%20Payments%20Report%20-%20Final.pdf"]
[null,"If yes, what was the total revenues received from transportation of commodities?"]
[]
[null,"EITI Requirement 4.5: SOE transactions"]
[null,"Does the government disclose information on SOE transactions?",null,"Not applicable",null,"See \"2022 Approach and Methodogy chapter\"\nhttps://www.ukeiti.org/sites/default/files/payment-data/Approach%20and%20methodology%20for%202022%20Payments%20Report%20-%20Final.pdf"]
[null,"If yes, what was the total revenues received by SOEs?"]
[]
[null,"EITI Requirement 4.6: Direct subnational payments"]
[null,{"$f":"\"Does the government disclose information on\"&RIGHT(B100,LEN(B100)-SEARCH(\":\",B100,1))&\"?\"","v":"Does the government disclose information on Direct subnational payments?"},null,"Not applicable",null,"See \"2022 Approach and Methodogy chapter\"\nhttps://www.ukeiti.org/sites/default/files/payment-data/Approach%20and%20methodology%20for%202022%20Payments%20Report%20-%20Final.pdf"]
[null,"If yes, what was the total sub-national revenues received?"]
[]
[null,"EITI Requirement 4.8: Data timeliness"]
[null,"Data timeliness (no. of years from fiscal year end to publication)",null,{"$f":"IFERROR(IF(_xlfn.DAYS('Part 1 - About'!$E$24,'Part 1 - About'!$E$20)/365>0,_xlfn.DAYS('Part 1 - About'!$E$24,'Part 1 - About'!$E$20)/365,_xlfn.DAYS('Part 1 - About'!$E$27,'Part 1 - About'!$E$20)/365),\"Automatically completed using the 1. About sheet\")","v":0.54520547945205478}]
[]
[null,"EITI Requirement 4.9: Data quality"]
[null,"Does government routinely disclose financial data from requirement 4.1 (full disclosure of revenue streams for both government and companies) of the the EITI Standard?",null,"Yes, through EITI reporting",null,"https://www.ukeiti.org/publications-reports"]
[null,"Is the data subject to credible, independent audits, applying international standards?",null,"Yes, systematically disclosed",null,"https://www.nao.org.uk/",null,"Government statistics audited by National Audit Office (NAO) and scrutinised by the Public Accounts Committee. \nNAO report on HMT WGA published in annually in May for the preceeding financial year."]
[null,"Are government agencies subject to credible, independent audits?",null,"Yes, systematically disclosed",null,"https://www.nao.org.uk/"]
[null,"Government audits database",null,"Yes, systematically disclosed",null,"https://www.nao.org.uk/"]
[null,"Are companies subject to credible, independent audits?",null,"Yes, systematically disclosed",null,"https://beta.companieshouse.gov.uk/",null,"Companies are required to publish their audited financial statements in the Companies House."]
[null,"Company audits database",null,"Yes, systematically disclosed",null,"https://beta.companieshouse.gov.uk/",null,"Search for the company you are interested in and use the 'Filling histroy' tab to access information about 'Accounts' "]
[]
[null,"EITI Requirement 5.1: Distribution of extractive industry revenues"]
[null,"Does the government clarify whether all extractive sector revenues are recorded in the national budget (i.e. enter the government's consolidated / single-treasury account)?",null,"Yes, systematically disclosed",null,"https://obr.uk/docs/dlm_uploads/June-PSF-commentary-Accessible-PDF.pdf",null,"1) Coverage of the distribution of extractives revenue is provided only through UK national budget statements and OBR economic and fiscal outlook releases.  The UK government statistics used in the formulation of these are timely and of high quality.\n\n2) Through EITI reporting : https://www.ukeiti.org/revenue-allocations\n"]
[null,"Does the government disclose what value of revenues are not recorded in the budget?",null,{"$f":"'Part 3 - Reporting entities'!E16+'Part 3 - Reporting entities'!E17","v":30609674.399999999},null,"GBP",null,"Revenues collected by TCE and CES."]
[]
[null,"EITI Requirement 5.2: Subnational transfers"]
[null,"Does the government disclose information on Subnational transfers?",null,"Yes, systematically disclosed",null,"Oil & Gas Authority Annual Report and Accounts: https://assets.publishing.service.gov.uk/government/uploads/system/uploads/attachment_data/file/1170945/oil-and-gas-authority-annual-report-and-accounts-2022-23-accessible.pdf;\nPublic Income and Expenditure Accounts (NI Government): https://www.finance-ni.gov.uk/publications/public-income-and-expenditure-accounts;\n",null,"Only one sub-national transfer applies in the UK - the transfer of the Northern Ireland share of continental shelf income. The amount of the transfer and the method of calculation are available in public online disclosures."]
[null,"If yes, how much should the government have transferred according to the revenue sharing formula?",null,{"$f":"1559*1000","v":1559000},null,"GBP",null,"As per the NSTA annual report for the year ended 31 March 2023 (please see note 3 to the trust statement \"Expenditure and disbursements\")"]
[null,"If yes, what amount of transfers could the government account for?",null,{"$f":" 2046*1000","v":2046000},null,"GBP",null,"The balance not yet transferred by NSTA for the year ended 31 March 2023 is £ 1,559k (please see note 6 to the trust statement \"Payables\")"]
[]
[null,"EITI Requirement 5.3: Revenue management and expenditures"]
[null,"Does the government disclose whether any extractive sector revenues are earmarked (i.e. pinned to specific uses, programmes, geographical zones)?",null,"Not applicable",null,"With very few exceptions, central government receipts are not hypothecated to specific items or types of expenditure. The principal central government extractive revenues currently earmarked for specific UK programmes or geographic regions involve the allocation of a population-based share of income from seaward petroleum licences to the Northern Ireland Government, as required by section 2 of the Miscellaneous Financial Provisions Act 1968."]
[null,"Does the government disclose a description of the country’s budget and audit processes?",null,"Yes, systematically disclosed",null,"https://obr.uk/docs/dlm_uploads/June-PSF-commentary-Accessible-PDF.pdf",null,"2) Through EITI reporting : https://www.ukeiti.org/revenue-allocations"]
[null,"Does the government disclose publicly available information about budgets and \nexpenditures? - add rows if several",null,"Yes, systematically disclosed",null,"https://obr.uk/docs/dlm_uploads/June-PSF-commentary-Accessible-PDF.pdf",null,"2) Through EITI reporting : https://www.ukeiti.org/revenue-allocations"]
[]
[null,"EITI Requirement 6.1: Social expenditures"]
[null,"Does the government disclose information on Social expenditures?",null,"Not available"]
[null,"If yes, what was the total mandatory social expenditures received?",null,"Not available"]
[null,"If yes, what was the total voluntary social expenditures received?"]
[null,"Do companies disclose information on Social expenditures?",null,"Yes, through EITI reporting",null,"Please see the Section 106 (Town and Country Planning Act 1990) Payments of the UK EITI Payments Report 2021."]
[null,"If yes, what was the total mandatory social expenditures paid?",null,112470,null,"GBP"]
[null,"If yes, what was the total voluntary social expenditures paid?"]
[null,"Does the government disclose information on environmental payments?",null,"Yes, systematically disclosed",null,"https://www.ons.gov.uk/economy/environmentalaccounts/datasets/ukenvironmentalaccountsenvironmentaltaxes/current",null,"2) Through EITI Reporting: \nhttps://www.ukeiti.org/sector-data"]
[null,"If yes, what was the total mandatory environmental payments?",null,{"$f":"375*1000000","v":375000000},null,"GBP",null,"Aggregates Levy paid during 2022. Source: Environmental taxes in the United Kingdom (ONS, 4 May 2023)\nhttps://www.ons.gov.uk/economy/environmentalaccounts/datasets/ukenvironmentalaccountsenvironmentaltaxes"]
[null,"If yes, what was the total voluntary environmental payments?"]
[]
[null,"EITI Requirement 6.2: Quasi-fiscal expenditures"]
[null,"Does the government or SOEs disclose information on Quasi-fiscal expenditures?",null,"Not applicable",null,"https://eiti.org/united-kingdom#validation",null,"All of the UK’s EITI Reports confirm that there is no quasi-fiscal expenditures in the extractive industries and that Requirement 6.2 is not applicable in the UK context."]
[null,"If yes, what was the total quasi-fiscal expenditures performed by SOEs?"]
[]
[null,"EITI Requirement 6.3: Economic contribution"]
[null,"Does the government disclose information on economic contribution?",null,"Yes, systematically disclosed",null,"Business services (ONS): https://www.ons.gov.uk/businessindustryandtrade/business/businessservices;\nDigest of UK Energy Statistics (DESNZ): https://www.gov.uk/government/collections/digest-of-uk-energy-statistics-dukes;\nEconomic and fiscal outlook – March 2020 (OBR): http://www.obr.uk/efo/;\nGDP output approach – low-level aggregates (ONS): https://www.ons.gov.uk/economy/grossdomesticproductgdp/datasets/ukgdpolowlevelaggregates;\nRegional gross value added (income approach) (ONS): https://www.ons.gov.uk/economy/grossvalueaddedgva/datasets/regionalgrossvalueaddedincomeapproach;\nLabour market in the regions of the UK: September 2020/ https://www.ons.gov.uk/employmentandlabourmarket/peopleinwork/employmentandemployeetypes/bulletins/regionallabourmarket/october2021;\nUKCS companies gross operating surplus (ONS): https://www.ons.gov.uk/economy/nationalaccounts/uksectoraccounts/timeseries/lrwx/prof;\nUnited Kingdom mineral statistics (Minerals UK): http://www.bgs.ac.uk/mineralsUK/statistics/ukStatistics.html;\nPublications & Resources (Offshore Energies UK): https://oeuk.org.uk/product/clean-and-secure-energy-plan-offshore-energies-uk-oeuk-may-2022/;",null,"Through EITI Reporting: \nhttps://www.ukeiti.org/sector-data"]
[null,"Gross Domestic Product - SNA 2008 C. Mining and quarrying, including oil and gas",null,26458000000,null,"GBP",null,"Source: ONS - GDP output approach, low level aggregates, UK"]
[null,"Gross Domestic Product ASM and informal sector",null,0,null,"GBP"]
[null,"Gross Domestic Product - all sectors",null,2491238000000,null,"GBP",null,"Source: ONS - Real-time database for GDP Current Price (YBHA)\nhttps://www.ons.gov.uk/economy/grossdomesticproductgdp/timeseries/abmi/qna"]
[null,"Government revenue - extractive industries",null,{"$f":"'Part 4 - Government revenues'!J35+D137","v":7255563022.8199987},null,"GBP",null,"Note: This includes the total of payment flows (taxes) included in the reconciliation scope as reported by the Government Agencies in \"Part 4 - Government Revenues\" and the environmental taxes paid by the mining and quarrying companies (including oil & gas) which were not included in the reconciliation scope."]
[null,"Government revenue - all sectors",null,765229000000,null,"GBP",null,"Total HMRC Receipts by month (HMRC tax receipts and National Insurance contributions for the UK)"]
[null,"Exports - extractive industries",null,36009000000,null,"GBP",null,"Source: ONS - Trade in goods: CPA (08) exports and imports"]
[null,"Exports - all sectors",null,815199000000,null,"GBP",null,"Source: ONS - UK trade time series"]
[null,"Employment - extractive sector - male",null,41500,null,"person",null,"Source: ONS - Workforce Jobs data"]
[null,"Employment - extractive sector - female",null,9000,null,"person",null,"Source: ONS - Workforce Jobs data"]
[null,"Employment - extractive sector",null,50000,null,"person",null,"Source: ONS - Workforce Jobs data"]
[null,"Employment - all sectors",null,36155250,null,"person",null,"Source: ONS - Workforce Jobs data"]
[null,"Investment - extractive sector",null,"Not available",null,null,null,"Information not available"]
[null,"Investment - all sectors",null,"Not available",null,null,null,"Information not available"]
[]
[null,"EITI Requirement 6.4: Environmental impact"]
[null,"Does the government publish information about"]
[null,"the relevant legal and administrative rules for environmental management?",null,"Yes, through EITI reporting",null,"https://www.ukeiti.org/energy-transition"]
[null,"databases containing environmental impact assessments, certification schemes or similar documentation of environmental management?",null,"Not applicable"]
[null,"other relevant information on environmental monitoring procedures and administration?",null,"Not applicable"]
[]
[]
[null,"For the latest version of Summary data templates, see https://eiti.org/summary-data-template"]
[null,"Give us your feedback or report a conflict in the data! Write to us at  data@eiti.org"]
[]
[null,"EITI International Secretariat"]
[null,"Phone: +47 222 00 800      E-mail: secretariat@eiti.org      Twitter: @EITIorg      www.eiti.org"]
[null,"Address: Rådhusgata 26, 0151 Oslo, Norway      P.O. Box: Postboks 340 Sentrum, 0101 Oslo, Norway"]

{"sheet":"Part 3 - Reporting entities","index":3,"n_rows":804,"n_cols":10,"rows_kept":804,"cut":false,"hidden":false,"merged":[[1,1,1,9],[2,1,2,9],[3,1,3,9],[4,1,4,9],[5,1,5,9],[803,1,803,9],[804,1,804,9],[6,1,6,9],[7,1,7,9],[9,1,9,9],[10,1,10,9],[11,1,11,9],[72,1,72,9],[798,1,798,9],[799,1,799,9],[12,1,12,9],[19,1,19,9],[20,1,20,3],[801,1,801,9],[802,1,802,9]]}
[]
[null,"Part 3 (Reporting entities) covers lists reporting entities (Government agencies, companies and projects) and related information. "]
[null,"How to complete this sheet:"]
[null,"1.Please begin  with the first box (Reporting government entities list), with the name of each government reporting agency"]
[null,"2.Fill the Company ID row. Guidance will be provided in yellow boxes once the cell is highlighted."]
[null,"3.Fill the Reporting Companies' list, beginning with first column \"Full Company name\". Please fill out as directed, completing every column for each row before beginning the next."]
[null,"4.Fill the Reporting projects' list, beginning with first column \"Full project name\""]
[null,"If you have any questions, please contact data@eiti.org"]
[]
[null,"Part 3 - Reporting entities"]
[null,"Please provide a list of all reporting entities, alongside relevant information"]
[]
[null,"Reporting government entities list"]
[null,"Full name of agency","Agency type","ID number (if applicable)","Total reported"]
[null,"His Majesty’s Revenue and Customs (HMRC)","Central goverment","Not applicable",{"$f":"SUMIF(Government_revenues_table[Government entity],Government_agencies[[#This Row],[Full name of agency]],Government_revenues_table[Revenue value])","v":6769987368.1799994}]
[null,"The Crown Estate (TCE)","State government","Not applicable",{"$f":"SUMIF(Government_revenues_table[Government entity],Government_agencies[[#This Row],[Full name of agency]],Government_revenues_table[Revenue value])","v":28692997.399999999}]
[null,"Crown Estate Scotland (CES)","State government","Not applicable",{"$f":"SUMIF(Government_revenues_table[Government entity],Government_agencies[[#This Row],[Full name of agency]],Government_revenues_table[Revenue value])","v":1916677}]
[null,"North Sea Transition Authority (NSTA)","State government","Not applicable",{"$f":"SUMIF(Government_revenues_table[Government entity],Government_agencies[[#This Row],[Full name of agency]],Government_revenues_table[Revenue value])","v":79965980.24000001}]
[]
[null,"Reporting companies' list"]
[null,"Company ID references"]
[null,"Company number","Companies House","https://beta.companieshouse.gov.uk/"]
[]
[null,"Full company name","Company type","Company ID number","Sector","Commodities (comma-seperated)","Stock exchange listing or company website ","Audited financial statement (or balance sheet, cash flows, profit/loss statement if unavailable)","Payments to Governments Report"]
[null,"Aggregate Industries UK Ltd","Publicly listed or wholly owned subsidiaries of publicly listed companies",245717,"Mining","Cement, Aggregates","https://www.six-group.com/en/products-services/the-swiss-stock-exchange.html","https://find-and-update.company-information.service.gov.uk/company/00245717/filing-history",{"$f":"SUMIF(Table10[Full company name],Companies[[#This Row],[Full company name]],Table10[Revenue value])","v":3713973}]
[null,"Anasuria Hibiscus UK Ltd","Publicly listed or wholly owned subsidiaries of publicly listed companies",9696268,"Oil & Gas","Oil, Gas","https://www.bursamalaysia.com/bm/trade/trading_resources/listing_directory/company-profile?stock_code=5199","https://find-and-update.company-information.service.gov.uk/company/09696268/filing-history",{"$f":"SUMIF(Table10[Full company name],Companies[[#This Row],[Full company name]],Table10[Revenue value])","v":8563334}]
[null,"Apache Corporation","Publicly listed or wholly owned subsidiaries of publicly listed companies","7720972\n4614761\nFC005975","Oil & Gas","Oil, Gas","https://www.nasdaq.com/market-activity/stocks/apa","https://find-and-update.company-information.service.gov.uk/company/07720972/filing-history\n\nhttps://find-and-update.company-information.service.gov.uk/company/04614761/filing-history\n\nhttps://find-and-update.company-information.service.gov.uk/company/FC005975/filing-history",{"$f":"SUMIF(Table10[Full company name],Companies[[#This Row],[Full company name]],Table10[Revenue value])","v":265200000}]
[null,"Boskalis Westminster Holdings Ltd","Publicly listed or wholly owned subsidiaries of publicly listed companies","338917\n2380267","Mining","Marine Aggregates","https://live.euronext.com/en/product/equities/NL0000852580-XAMS/company-information","https://find-and-update.company-information.service.gov.uk/company/00338917/filing-history\n\nhttps://find-and-update.company-information.service.gov.uk/company/02380267/filing-history",{"$f":"SUMIF(Table10[Full company name],Companies[[#This Row],[Full company name]],Table10[Revenue value])","v":4348166.33}]
[null,"BP Plc","Publicly listed or wholly owned subsidiaries of publicly listed companies",102498,"Oil & Gas","Oil, Gas","https://www.londonstockexchange.com/stock/BP./bp-plc/company-page","https://find-and-update.company-information.service.gov.uk/company/00102498/filing-history",{"$f":"SUMIF(Table10[Full company name],Companies[[#This Row],[Full company name]],Table10[Revenue value])","v":1072639079}]
[null,"Breedon Group plc","Publicly listed or wholly owned subsidiaries of publicly listed companies","Jersey 98465","Mining","Construction Materials","https://www.londonstockexchange.com/stock/BREE/breedon-group-plc/company-page","https://www.jerseyfsc.org/registry/registry-entities/entity/282770",{"$f":"SUMIF(Table10[Full company name],Companies[[#This Row],[Full company name]],Table10[Revenue value])","v":20153026.93}]
[null,"Cemex UK Materials Ltd","Publicly listed or wholly owned subsidiaries of publicly listed companies",658390,"Mining","Construction Materials","https://www.bmv.com.mx/en/issuers/statistics/CEMEX-5203\n\nhttps://www.nasdaq.com/market-activity/stocks/cx","https://find-and-update.company-information.service.gov.uk/company/00658390/filing-history",{"$f":"SUMIF(Table10[Full company name],Companies[[#This Row],[Full company name]],Table10[Revenue value])","v":7818294}]
[null,"Centrica plc","Publicly listed or wholly owned subsidiaries of publicly listed companies",3033654,"Oil & Gas","Oil, Gas","https://www.londonstockexchange.com/stock/CNA/centrica-plc/company-page","https://find-and-update.company-information.service.gov.uk/company/03033654/filing-history",{"$f":"SUMIF(Table10[Full company name],Companies[[#This Row],[Full company name]],Table10[Revenue value])","v":78788778}]
[null,"Chevron","Publicly listed or wholly owned subsidiaries of publicly listed companies",1006065,"Oil & Gas","Oil, Gas","https://www.nasdaq.com/market-activity/stocks/cvx","https://find-and-update.company-information.service.gov.uk/company/01006065/filing-history",{"$f":"SUMIF(Table10[Full company name],Companies[[#This Row],[Full company name]],Table10[Revenue value])","v":153169894}]
[null,"Cleveland Potash Ltd","Publicly listed or wholly owned subsidiaries of publicly listed companies",915392,"Mining","Potash, Salt ","https://www.nyse.com/quote/XNYS:ICL","https://find-and-update.company-information.service.gov.uk/company/00915392/filing-history",{"$f":"SUMIF(Table10[Full company name],Companies[[#This Row],[Full company name]],Table10[Revenue value])","v":2182769}]
[null,"CNOOC Petroleum Europe Ltd","Publicly listed or wholly owned subsidiaries of publicly listed companies",1051137,"Oil & Gas","Oil, Gas","https://www.tsx.com/news/new-company-listings?id=223","https://find-and-update.company-information.service.gov.uk/company/01051137/filing-history",{"$f":"SUMIF(Table10[Full company name],Companies[[#This Row],[Full company name]],Table10[Revenue value])","v":406477679}]
[null,"CNR International UK Investments Ltd","Publicly listed or wholly owned subsidiaries of publicly listed companies",813187,"Oil & Gas","Oil, Gas","https://money.tmx.com/en/quote/CNQ","https://find-and-update.company-information.service.gov.uk/company/00813187/filing-history",{"$f":"SUMIF(Table10[Full company name],Companies[[#This Row],[Full company name]],Table10[Revenue value])","v":-24961652}]
[null,"DEME Building Materials Ltd","Publicly listed or wholly owned subsidiaries of publicly listed companies",4590759,"Mining","Sand, Gravel","https://live.euronext.com/nl/product/equities/be0003883031-xbru/cfe/cfeb","https://find-and-update.company-information.service.gov.uk/company/04590759/filing-history",{"$f":"SUMIF(Table10[Full company name],Companies[[#This Row],[Full company name]],Table10[Revenue value])","v":3069009.55}]
[null,"ENI UK Ltd","Publicly listed or wholly owned subsidiaries of publicly listed companies",862823,"Oil & Gas","Oil, Gas","https://www.borsaitaliana.it/borsa/azioni/scheda/IT0003132476.html?lang=en","https://find-and-update.company-information.service.gov.uk/company/00862823/filing-history",{"$f":"SUMIF(Table10[Full company name],Companies[[#This Row],[Full company name]],Table10[Revenue value])","v":459931921}]
[null,"EnQuest Plc","Publicly listed or wholly owned subsidiaries of publicly listed companies",7140891,"Oil & Gas","Oil, Gas","https://www.londonstockexchange.com/stock/ENQ/enquest-plc/company-page","https://find-and-update.company-information.service.gov.uk/company/07140891/filing-history",{"$f":"SUMIF(Table10[Full company name],Companies[[#This Row],[Full company name]],Table10[Revenue value])","v":31011077}]
[null,"ExxonMobil International Ltd","Publicly listed or wholly owned subsidiaries of publicly listed companies","05458042\n00207426","Oil & Gas","Oil, Gas","https://www.nyse.com/quote/XNYS:XOM/QUOTE","https://find-and-update.company-information.service.gov.uk/company/05458042/filing-history",{"$f":"SUMIF(Table10[Full company name],Companies[[#This Row],[Full company name]],Table10[Revenue value])","v":48468051}]
[null,"Hanson Ltd","Publicly listed or wholly owned subsidiaries of publicly listed companies",4626078,"Mining","Cement, Aggregates","https://www.boerse-frankfurt.de/equity/heidelbergcement-ag","https://find-and-update.company-information.service.gov.uk/company/04626078/filing-history",{"$f":"SUMIF(Table10[Full company name],Companies[[#This Row],[Full company name]],Table10[Revenue value])","v":3483934}]
[null,"Harbour Energy Plc","Publicly listed or wholly owned subsidiaries of publicly listed companies","SC234781","Oil & Gas","Oil, Gas","https://www.londonstockexchange.com/stock/HBR/harbour-energy-plc/company-page","https://find-and-update.company-information.service.gov.uk/company/SC234781/filing-history",{"$f":"SUMIF(Table10[Full company name],Companies[[#This Row],[Full company name]],Table10[Revenue value])","v":439148473}]
[null,"HESS Ltd","Publicly listed or wholly owned subsidiaries of publicly listed companies",807346,"Oil & Gas","Oil, Gas","https://www.nasdaq.com/market-activity/stocks/hes","https://find-and-update.company-information.service.gov.uk/company/00807346/filing-history",{"$f":"SUMIF(Table10[Full company name],Companies[[#This Row],[Full company name]],Table10[Revenue value])","v":209423}]
[null,"Hurricane Energy Plc","Publicly listed or wholly owned subsidiaries of publicly listed companies",5245689,"Oil & Gas","Oil, Gas","https://www.londonstockexchange.com/stock/HUR/hurricane-energy-plc/company-page","https://find-and-update.company-information.service.gov.uk/company/05245689/filing-history",{"$f":"SUMIF(Table10[Full company name],Companies[[#This Row],[Full company name]],Table10[Revenue value])","v":2100000}]
[null,"Ithaca Energy UK","Publicly listed or wholly owned subsidiaries of publicly listed companies","SC272009","Oil & Gas","Oil, Gas","https://www.tase.co.il/en/market_data/company/001095/about","https://find-and-update.company-information.service.gov.uk/company/SC272009/filing-history",{"$f":"SUMIF(Table10[Full company name],Companies[[#This Row],[Full company name]],Table10[Revenue value])","v":73468289}]
[null,"JX Nippon Exploration and Production (U.K.) Ltd","Publicly listed or wholly owned subsidiaries of publicly listed companies",3288689,"Oil & Gas","Oil, Gas","https://www2.jpx.co.jp/tseHpFront/StockSearch.do?callJorEFlg=1&method=&topSearchStr=ENEOS+Holdings","https://find-and-update.company-information.service.gov.uk/company/03288689/filing-history",{"$f":"SUMIF(Table10[Full company name],Companies[[#This Row],[Full company name]],Table10[Revenue value])","v":-686041}]
[null,"Repsol Sinopec Resources UK Ltd","Publicly listed or wholly owned subsidiaries of publicly listed companies",825828,"Oil & Gas","Oil, Gas","https://www.bolsamadrid.es/ing/aspx/Empresas/FichaValor.aspx?ISIN=ES0173516115","https://find-and-update.company-information.service.gov.uk/company/00825828/filing-history",{"$f":"SUMIF(Table10[Full company name],Companies[[#This Row],[Full company name]],Table10[Revenue value])","v":-147746674}]
[null,"Royal Dutch Shell Plc","Publicly listed or wholly owned subsidiaries of publicly listed companies",4366849,"Oil & Gas","Oil, Gas","https://www.londonstockexchange.com/live-markets/market-data-dashboard/price-explorer","https://find-and-update.company-information.service.gov.uk/company/04366849/filing-history",{"$f":"SUMIF(Table10[Full company name],Companies[[#This Row],[Full company name]],Table10[Revenue value])","v":-8238724}]
[null,"Saint-Gobain Ltd","Publicly listed or wholly owned subsidiaries of publicly listed companies",3291592,"Mining","Construction Materials","https://live.euronext.com/en/product/equities/FR0000125007-XPAR/saint-gobain/sgo/quotes","https://find-and-update.company-information.service.gov.uk/company/03291592/filing-history",{"$f":"SUMIF(Table10[Full company name],Companies[[#This Row],[Full company name]],Table10[Revenue value])","v":-4589938.51}]
[null,"Serica Energy Plc","Publicly listed or wholly owned subsidiaries of publicly listed companies",4073712,"Oil & Gas","Oil & Gas","London Stock Exchange (LSE)","https://find-and-update.company-information.service.gov.uk/company/04073712/filing-history",{"$f":"SUMIF(Table10[Full company name],Companies[[#This Row],[Full company name]],Table10[Revenue value])","v":143500000}]
[null,"Suncor Energy UK Ltd","Publicly listed or wholly owned subsidiaries of publicly listed companies",972618,"Oil & Gas","Oil, Gas","https://www.nasdaq.com/market-activity/stocks/su\n\nhttps://money.tmx.com/en/quote/SU","https://find-and-update.company-information.service.gov.uk/company/00972618/filing-history",{"$f":"SUMIF(Table10[Full company name],Companies[[#This Row],[Full company name]],Table10[Revenue value])","v":197236942}]
[null,"TAQA","Publicly listed or wholly owned subsidiaries of publicly listed companies",5975475,"Oil & Gas","Oil & Gas","Abu Dhabi Securities Exchange (ADX)","https://find-and-update.company-information.service.gov.uk/company/05975475/filing-history",{"$f":"SUMIF(Table10[Full company name],Companies[[#This Row],[Full company name]],Table10[Revenue value])","v":195055517}]
[null,"Tarmac Holdings Ltd","Publicly listed or wholly owned subsidiaries of publicly listed companies",7533961,"Mining","Construction Materials","London Stock Exchange (LSE)","https://find-and-update.company-information.service.gov.uk/company/07533961/filing-history",{"$f":"SUMIF(Table10[Full company name],Companies[[#This Row],[Full company name]],Table10[Revenue value])","v":3903739}]
[null,"TotalEnergies Holdings UK Ltd","Publicly listed or wholly owned subsidiaries of publicly listed companies",1722136,"Oil & Gas","Oil, Gas","Euronext Paris","https://find-and-update.company-information.service.gov.uk/company/01722136/filing-history",{"$f":"SUMIF(Table10[Full company name],Companies[[#This Row],[Full company name]],Table10[Revenue value])","v":2489479296}]
[null,"Tullow Oil Plc","Publicly listed or wholly owned subsidiaries of publicly listed companies",3919249,"Oil & Gas","Oil, Gas","London Stock Exchange (LSE)","https://find-and-update.company-information.service.gov.uk/company/03919249/filing-history",{"$f":"SUMIF(Table10[Full company name],Companies[[#This Row],[Full company name]],Table10[Revenue value])","v":-15141807}]
[null,"Albion Stone","Private",1767530,"Mining","Quarrying of ornamental and building stone, limestone, gypsum, chalk and slate","Privately held company","https://find-and-update.company-information.service.gov.uk/company/01767530/filing-history",{"$f":"SUMIF(Table10[Full company name],Companies[[#This Row],[Full company name]],Table10[Revenue value])","v":284978}]
[null,"Britannia Aggregates Ltd","Private",2304376,"Mining","Extraction of aggregates","Privately held company","https://find-and-update.company-information.service.gov.uk/company/02304376/filing-history",{"$f":"SUMIF(Table10[Full company name],Companies[[#This Row],[Full company name]],Table10[Revenue value])","v":862323}]
[null,"Dana Petroleum Ltd","Private",3456891,"Oil & Gas","Oil, Gas","Privately held company","https://find-and-update.company-information.service.gov.uk/company/03456891/filing-history",{"$f":"SUMIF(Table10[Full company name],Companies[[#This Row],[Full company name]],Table10[Revenue value])","v":73121214}]
[null,"INEOS Industries","Private","SC200459 \n10660338 \n09121775","Oil & Gas","Oil, Gas","Privately held company","https://find-and-update.company-information.service.gov.uk/company/SC200459/filing-history",{"$f":"SUMIF(Table10[Full company name],Companies[[#This Row],[Full company name]],Table10[Revenue value])","v":-727149}]
[null,"Iranian Oil Company (U.K.) Ltd","Private",1019769,"Oil & Gas","Oil, Gas","Privately held company","https://find-and-update.company-information.service.gov.uk/company/01019769/filing-history",{"$f":"SUMIF(Table10[Full company name],Companies[[#This Row],[Full company name]],Table10[Revenue value])","v":236690820}]
[null,"Irish Salt Mining & Exploration Co. Ltd","Private","NI006389","Mining","Salt Rock","Privately held company","https://find-and-update.company-information.service.gov.uk/company/NI006389/filing-history",{"$f":"SUMIF(Table10[Full company name],Companies[[#This Row],[Full company name]],Table10[Revenue value])","v":1429863.91}]
[null,"NEO ENERGY","Private","12086835 \nSC291165 ","Oil & Gas","Oil, Gas","Privately held company","https://find-and-update.company-information.service.gov.uk/company/12086835/filing-history",{"$f":"SUMIF(Table10[Full company name],Companies[[#This Row],[Full company name]],Table10[Revenue value])","v":66254777.199999996}]
[null,"Neptune Energy Group Ltd","Private",10647707,"Oil & Gas","Oil, Gas","Privately held company","https://find-and-update.company-information.service.gov.uk/company/10647707/filing-history",{"$f":"SUMIF(Table10[Full company name],Companies[[#This Row],[Full company name]],Table10[Revenue value])","v":-3687655}]
[null,"NSMP Operations Ltd ","Private",9711370,"Oil & Gas","Oil, Gas","Privately held company","https://find-and-update.company-information.service.gov.uk/company/09711370/filing-history",{"$f":"SUMIF(Table10[Full company name],Companies[[#This Row],[Full company name]],Table10[Revenue value])","v":207012}]
[null,"ONE-Dyas UK Ltd","Private",3531783,"Oil & Gas","Oil, Gas","Privately held company","https://find-and-update.company-information.service.gov.uk/company/03531783/filing-history",{"$f":"SUMIF(Table10[Full company name],Companies[[#This Row],[Full company name]],Table10[Revenue value])","v":46629963}]
[null,"Perenco UK Ltd","Private",4653066,"Oil & Gas","Oil, Gas","Privately held company","https://find-and-update.company-information.service.gov.uk/company/04653066/filing-history",{"$f":"SUMIF(Table10[Full company name],Companies[[#This Row],[Full company name]],Table10[Revenue value])","v":364547257}]
[null,"RockRose Energy Ltd","Private",9665181,"Oil & Gas","Oil, Gas","Privately held company","https://find-and-update.company-information.service.gov.uk/company/09665181/filing-history",{"$f":"SUMIF(Table10[Full company name],Companies[[#This Row],[Full company name]],Table10[Revenue value])","v":74274000}]
[null,"SAGE North Sea Ltd","Private","BR019059","Oil & Gas","Oil, Gas","Privately held company","https://find-and-update.company-information.service.gov.uk/company/FC033971/filing-history",{"$f":"SUMIF(Table10[Full company name],Companies[[#This Row],[Full company name]],Table10[Revenue value])","v":207000}]
[null,"Van Oord UK Ltd","Private",1805156,"Mining","Marine Aggregate Dredging","Privately held company","https://find-and-update.company-information.service.gov.uk/company/01805156/filing-history",{"$f":"SUMIF(Table10[Full company name],Companies[[#This Row],[Full company name]],Table10[Revenue value])","v":3253457.4899999998}]
[null,"Volker Dredging Ltd","Private",1179300,"Mining","Marine Aggregate Dredging","Privately held company","https://find-and-update.company-information.service.gov.uk/company/01179300/filing-history",{"$f":"SUMIF(Table10[Full company name],Companies[[#This Row],[Full company name]],Table10[Revenue value])","v":2651925}]
[null,"Wintershall Noordzee B.V.","Private","BR009394","Oil & Gas","Oil & Gas","Privately held company","https://find-and-update.company-information.service.gov.uk/company/BR009394/filing-history",{"$f":"SUMIF(Table10[Full company name],Companies[[#This Row],[Full company name]],Table10[Revenue value])","v":17000000}]
[]
[null,"Reporting projects' list"]
[null,"Full project name","Legal agreement reference number(s): contract, licence, lease, concession, …","Affiliated companies, start with Operator","Commodities (one commodity/row)","Status","Production (volume)","Unit","Production (value)","Currency"]
[null,106,"Licence","Hanson Limited","Not available","Not applicable","Not applicable","Not applicable","Not applicable","Not applicable"]
[null,240,"Licence","Hanson Limited","Not available","Not applicable","Not applicable","Not applicable","Not applicable","Not applicable"]
[null,435,"Licence","Hanson Limited","Not available","Not applicable","Not applicable","Not applicable","Not applicable","Not applicable"]
[null,460,"Licence","Hanson Limited","Not available","Not applicable","Not applicable","Not applicable","Not applicable","Not applicable"]
[null,465,"Licence","Hanson Limited","Not available","Not applicable","Not applicable","Not applicable","Not applicable","Not applicable"]
[null,473,"Licence","Hanson Limited","Not available","Not applicable","Not applicable","Not applicable","Not applicable","Not applicable"]
[null,526,"Licence","Hanson Limited","Not available","Not applicable","Not applicable","Not applicable","Not applicable","Not applicable"]
[null,1081,"Licence","Breedon Group PLC","Not available","Not applicable","Not applicable","Not applicable","Not applicable","Not applicable"]
[null,1082,"Licence","Breedon Group PLC","Not available","Not applicable","Not applicable","Not applicable","Not applicable","Not applicable"]
[null,1520,"Licence","Volker Dredging Ltd","Not available","Not applicable","Not applicable","Not applicable","Not applicable","Not applicable"]
[null,1601,"Licence","Hanson Limited","Not available","Not applicable","Not applicable","Not applicable","Not applicable","Not applicable"]
[null,1602,"Licence","Hanson Limited","Not available","Not applicable","Not applicable","Not applicable","Not applicable","Not applicable"]
[null,8775,"Licence","Britannia Aggregates Ltd","Not available","Not applicable","Not applicable","Not applicable","Not applicable","Not applicable"]
[null,8777,"Licence","Volker Dredging Ltd","Not available","Not applicable","Not applicable","Not applicable","Not applicable","Not applicable"]
[null,8795,"Licence","Britannia Aggregates Ltd","Not available","Not applicable","Not applicable","Not applicable","Not applicable","Not applicable"]
[null,1015618,"Licence","Volker Dredging Ltd","Not available","Not applicable","Not applicable","Not applicable","Not applicable","Not applicable"]
[null,1015725,"Licence","Volker Dredging Ltd","Not available","Not applicable","Not applicable","Not applicable","Not applicable","Not applicable"]
[null,1015726,"Licence","Volker Dredging Ltd","Not available","Not applicable","Not applicable","Not applicable","Not applicable","Not applicable"]
[null,2025257,"Licence","Breedon Group PLC","Not available","Not applicable","Not applicable","Not applicable","Not applicable","Not applicable"]
[null,2031957,"Licence","Breedon Group PLC","Not available","Not applicable","Not applicable","Not applicable","Not applicable","Not applicable"]
[null,3031958,"Licence","Breedon Group PLC","Not available","Not applicable","Not applicable","Not applicable","Not applicable","Not applicable"]
[null,3031963,"Licence","Breedon Group PLC","Not available","Not applicable","Not applicable","Not applicable","Not applicable","Not applicable"]
[null,4032180,"Licence","Breedon Group PLC","Not available","Not applicable","Not applicable","Not applicable","Not applicable","Not applicable"]
[null,"242-361","Licence","Hanson Limited","Not available","Not applicable","Not applicable","Not applicable","Not applicable","Not applicable"]
[null,"401-2","Licence","Hanson Limited","Not available","Not applicable","Not applicable","Not applicable","Not applicable","Not applicable"]
[null,"Aker BP ASA","E448","Aker BP ASA","Oil & Gas","For further field data, please check NSTA website: https://www.nstauthority.co.uk/data-centre/data-downloads-and-publications/field-data/","For further field data, please check NSTA website: https://www.nstauthority.co.uk/data-centre/data-downloads-and-publications/field-data/","For further field data, please check NSTA website: https://www.nstauthority.co.uk/data-centre/data-downloads-and-publications/field-data/","Not available","Not available"]
[null,"Alkane Energy (UK) Ltd","AL10","Alkane Energy (UK) Ltd","Oil & Gas","For further field data, please check NSTA website: https://www.nstauthority.co.uk/data-centre/data-downloads-and-publications/field-data/","For further field data, please check NSTA website: https://www.nstauthority.co.uk/data-centre/data-downloads-and-publications/field-data/","For further field data, please check NSTA website: https://www.nstauthority.co.uk/data-centre/data-downloads-and-publications/field-data/","Not available","Not available"]
[null,"Alkane Energy (UK) Ltd","EXL253","Alkane Energy (UK) Ltd","Oil & Gas","For further field data, please check NSTA website: https://www.nstauthority.co.uk/data-centre/data-downloads-and-publications/field-data/","For further field data, please check NSTA website: https://www.nstauthority.co.uk/data-centre/data-downloads-and-publications/field-data/","For further field data, please check NSTA website: https://www.nstauthority.co.uk/data-centre/data-downloads-and-publications/field-data/","Not available","Not available"]
[null,"Alkane Energy (UK) Ltd","PEDL1","Alkane Energy (UK) Ltd","Oil & Gas","For further field data, please check NSTA website: https://www.nstauthority.co.uk/data-centre/data-downloads-and-publications/field-data/","For further field data, please check NSTA website: https://www.nstauthority.co.uk/data-centre/data-downloads-and-publications/field-data/","For further field data, please check NSTA website: https://www.nstauthority.co.uk/data-centre/data-downloads-and-publications/field-data/","Not available","Not available"]
[null,"Alkane Energy (UK) Ltd","PEDL14","Alkane Energy (UK) Ltd","Oil & Gas","For further field data, please check NSTA website: https://www.nstauthority.co.uk/data-centre/data-downloads-and-publications/field-data/","For further field data, please check NSTA website: https://www.nstauthority.co.uk/data-centre/data-downloads-and-publications/field-data/","For further field data, please check NSTA website: https://www.nstauthority.co.uk/data-centre/data-downloads-and-publications/field-data/","Not available","Not available"]
[null,"Alkane Energy (UK) Ltd","PEDL202","Alkane Energy (UK) Ltd","Oil & Gas","For further field data, please check NSTA website: https://www.nstauthority.co.uk/data-centre/data-downloads-and-publications/field-data/","For further field data, please check NSTA website: https://www.nstauthority.co.uk/data-centre/data-downloads-and-publications/field-data/","For further field data, please check NSTA website: https://www.nstauthority.co.uk/data-centre/data-downloads-and-publications/field-data/","Not available","Not available"]
[null,"Alkane Energy (UK) Ltd","PEDL255","Alkane Energy (UK) Ltd","Oil & Gas","For further field data, please check NSTA website: https://www.nstauthority.co.uk/data-centre/data-downloads-and-publications/field-data/","For further field data, please check NSTA website: https://www.nstauthority.co.uk/data-centre/data-downloads-and-publications/field-data/","For further field data, please check NSTA website: https://www.nstauthority.co.uk/data-centre/data-downloads-and-publications/field-data/","Not available","Not available"]
[null,"Alkane Energy (UK) Ltd","PEDL265","Alkane Energy (UK) Ltd","Oil & Gas","For further field data, please check NSTA website: https://www.nstauthority.co.uk/data-centre/data-downloads-and-publications/field-data/","For further field data, please check NSTA website: https://www.nstauthority.co.uk/data-centre/data-downloads-and-publications/field-data/","For further field data, please check NSTA website: https://www.nstauthority.co.uk/data-centre/data-downloads-and-publications/field-data/","Not available","Not available"]
[null,"Alkane Energy (UK) Ltd","PEDL274","Alkane Energy (UK) Ltd","Oil & Gas","For further field data, please check NSTA website: https://www.nstauthority.co.uk/data-centre/data-downloads-and-publications/field-data/","For further field data, please check NSTA website: https://www.nstauthority.co.uk/data-centre/data-downloads-and-publications/field-data/","For further field data, please check NSTA website: https://www.nstauthority.co.uk/data-centre/data-downloads-and-publications/field-data/","Not available","Not available"]
[null,"Alkane Energy (UK) Ltd","PEDL277","Alkane Energy (UK) Ltd","Oil & Gas","For further field data, please check NSTA website: https://www.nstauthority.co.uk/data-centre/data-downloads-and-publications/field-data/","For further field data, please check NSTA website: https://www.nstauthority.co.uk/data-centre/data-downloads-and-publications/field-data/","For further field data, please check NSTA website: https://www.nstauthority.co.uk/data-centre/data-downloads-and-publications/field-data/","Not available","Not available"]
[null,"Alkane Energy (UK) Ltd","PEDL279","Alkane Energy (UK) Ltd","Oil & Gas","For further field data, please check NSTA website: https://www.nstauthority.co.uk/data-centre/data-downloads-and-publications/field-data/","For further field data, please check NSTA website: https://www.nstauthority.co.uk/data-centre/data-downloads-and-publications/field-data/","For further field data, please check NSTA website: https://www.nstauthority.co.uk/data-centre/data-downloads-and-publications/field-data/","Not available","Not available"]
[null,"Alkane Energy (UK) Ltd","PEDL281","Alkane Energy (UK) Ltd","Oil & Gas","For further field data, please check NSTA website: https://www.nstauthority.co.uk/data-centre/data-downloads-and-publications/field-data/","For further field data, please check NSTA website: https://www.nstauthority.co.uk/data-centre/data-downloads-and-publications/field-data/","For further field data, please check NSTA website: https://www.nstauthority.co.uk/data-centre/data-downloads-and-publications/field-data/","Not available","Not available"]
[null,"Alkane Energy (UK) Ltd","PEDL310","Alkane Energy (UK) Ltd","Oil & Gas","For further field data, please check NSTA website: https://www.nstauthority.co.uk/data-centre/data-downloads-and-publications/field-data/","For further field data, please check NSTA website: https://www.nstauthority.co.uk/data-centre/data-downloads-and-publications/field-data/","For further field data, please check NSTA website: https://www.nstauthority.co.uk/data-centre/data-downloads-and-publications/field-data/","Not available","Not available"]
[null,"ALPHA PETROLEUM RESOURCES LIMITED","P1034","ALPHA PETROLEUM RESOURCES LIMITED","Oil & Gas","For further field data, please check NSTA website: https://www.nstauthority.co.uk/data-centre/data-downloads-and-publications/field-data/","For further field data, please check NSTA website: https://www.nstauthority.co.uk/data-centre/data-downloads-and-publications/field-data/","For further field data, please check NSTA website: https://www.nstauthority.co.uk/data-centre/data-downloads-and-publications/field-data/","Not available","Not available"]
[null,"Alpha Petroleum Resources Ltd","P1062","Alpha Petroleum Resources Ltd","Oil & Gas","For further field data, please check NSTA website: https://www.nstauthority.co.uk/data-centre/data-downloads-and-publications/field-data/","For further field data, please check NSTA website: https://www.nstauthority.co.uk/data-centre/data-downloads-and-publications/field-data/","For further field data, please check NSTA website: https://www.nstauthority.co.uk/data-centre/data-downloads-and-publications/field-data/","Not available","Not available"]
[null,"Alpha Petroleum Resources Ltd","P1070","Alpha Petroleum Resources Ltd","Oil & Gas","For further field data, please check NSTA website: https://www.nstauthority.co.uk/data-centre/data-downloads-and-publications/field-data/","For further field data, please check NSTA website: https://www.nstauthority.co.uk/data-centre/data-downloads-and-publications/field-data/","For further field data, please check NSTA website: https://www.nstauthority.co.uk/data-centre/data-downloads-and-publications/field-data/","Not available","Not available"]
[null,"Alpha Petroleum Resources Ltd","P683","Alpha Petroleum Resources Ltd","Oil & Gas","For further field data, please check NSTA website: https://www.nstauthority.co.uk/data-centre/data-downloads-and-publications/field-data/","For further field data, please check NSTA website: https://www.nstauthority.co.uk/data-centre/data-downloads-and-publications/field-data/","For further field data, please check NSTA website: https://www.nstauthority.co.uk/data-centre/data-downloads-and-publications/field-data/","Not available","Not available"]
[null,"Altaquest Energy Corporation (UK) Ltd","EXL141","Altaquest Energy Corporation (UK) Ltd","Oil & Gas","For further field data, please check NSTA website: https://www.nstauthority.co.uk/data-centre/data-downloads-and-publications/field-data/","For further field data, please check NSTA website: https://www.nstauthority.co.uk/data-centre/data-downloads-and-publications/field-data/","For further field data, please check NSTA website: https://www.nstauthority.co.uk/data-centre/data-downloads-and-publications/field-data/","Not available","Not available"]
[null,"Anasuria Hibiscus UK Limited","P2518","Anasuria Hibiscus UK Limited","Oil & Gas","For further field data, please check NSTA website: https://www.nstauthority.co.uk/data-centre/data-downloads-and-publications/field-data/","For further field data, please check NSTA website: https://www.nstauthority.co.uk/data-centre/data-downloads-and-publications/field-data/","For further field data, please check NSTA website: https://www.nstauthority.co.uk/data-centre/data-downloads-and-publications/field-data/","Not available","Not available"]
[null,"Anasuria Hibiscus UK Limited","P2535","Anasuria Hibiscus UK Limited","Oil & Gas","For further field data, please check NSTA website: https://www.nstauthority.co.uk/data-centre/data-downloads-and-publications/field-data/","For further field data, please check NSTA website: https://www.nstauthority.co.uk/data-centre/data-downloads-and-publications/field-data/","For further field data, please check NSTA website: https://www.nstauthority.co.uk/data-centre/data-downloads-and-publications/field-data/","Not available","Not available"]
[null,"Angus Energy Weald Basin No.3 Ltd","PEDL244","Angus Energy Weald Basin No.3 Ltd","Oil & Gas","For further field data, please check NSTA website: https://www.nstauthority.co.uk/data-centre/data-downloads-and-publications/field-data/","For further field data, please check NSTA website: https://www.nstauthority.co.uk/data-centre/data-downloads-and-publications/field-data/","For further field data, please check NSTA website: https://www.nstauthority.co.uk/data-centre/data-downloads-and-publications/field-data/","Not available","Not available"]
[null,"Angus Energy Weald Basin No.3 Ltd","PEDL5","Angus Energy Weald Basin No.3 Ltd","Oil & Gas","For further field data, please check NSTA website: https://www.nstauthority.co.uk/data-centre/data-downloads-and-publications/field-data/","For further field data, please check NSTA website: https://www.nstauthority.co.uk/data-centre/data-downloads-and-publications/field-data/","For further field data, please check NSTA website: https://www.nstauthority.co.uk/data-centre/data-downloads-and-publications/field-data/","Not available","Not available"]
[null,"Angus Energy Weald Basin No.3 Ltd","PL235","Angus Energy Weald Basin No.3 Ltd","Oil & Gas","For further field data, please check NSTA website: https://www.nstauthority.co.uk/data-centre/data-downloads-and-publications/field-data/","For further field data, please check NSTA website: https://www.nstauthority.co.uk/data-centre/data-downloads-and-publications/field-data/","For further field data, please check NSTA website: https://www.nstauthority.co.uk/data-centre/data-downloads-and-publications/field-data/","Not available","Not available"]
[null,"Apache Beryl 1 Ltd","P139","Apache Beryl 1 Ltd","Oil & Gas","For further field data, please check NSTA website: https://www.nstauthority.co.uk/data-centre/data-downloads-and-publications/field-data/","For further field data, please check NSTA website: https://www.nstauthority.co.uk/data-centre/data-downloads-and-publications/field-data/","For further field data, please check NSTA website: https://www.nstauthority.co.uk/data-centre/data-downloads-and-publications/field-data/","Not available","Not available"]
[null,"Apache Beryl 1 Ltd","P1764","Apache Beryl 1 Ltd","Oil & Gas","For further field data, please check NSTA website: https://www.nstauthority.co.uk/data-centre/data-downloads-and-publications/field-data/","For further field data, please check NSTA website: https://www.nstauthority.co.uk/data-centre/data-downloads-and-publications/field-data/","For further field data, please check NSTA website: https://www.nstauthority.co.uk/data-centre/data-downloads-and-publications/field-data/","Not available","Not available"]
[null,"Apache Beryl 1 Ltd","P1985","Apache Beryl 1 Ltd","Oil & Gas","For further field data, please check NSTA website: https://www.nstauthority.co.uk/data-centre/data-downloads-and-publications/field-data/","For further field data, please check NSTA website: https://www.nstauthority.co.uk/data-centre/data-downloads-and-publications/field-data/","For further field data, please check NSTA website: https://www.nstauthority.co.uk/data-centre/data-downloads-and-publications/field-data/","Not available","Not available"]
[null,"Apache Beryl 1 Ltd","P1986","Apache Beryl 1 Ltd","Oil & Gas","For further field data, please check NSTA website: https://www.nstauthority.co.uk/data-centre/data-downloads-and-publications/field-data/","For further field data, please check NSTA website: https://www.nstauthority.co.uk/data-centre/data-downloads-and-publications/field-data/","For further field data, please check NSTA website: https://www.nstauthority.co.uk/data-centre/data-downloads-and-publications/field-data/","Not available","Not available"]
[null,"Apache Beryl 1 Ltd","P2335","Apache Beryl 1 Ltd","Oil & Gas","For further field data, please check NSTA website: https://www.nstauthority.co.uk/data-centre/data-downloads-and-publications/field-data/","For further field data, please check NSTA website: https://www.nstauthority.co.uk/data-centre/data-downloads-and-publications/field-data/","For further field data, please check NSTA website: https://www.nstauthority.co.uk/data-centre/data-downloads-and-publications/field-data/","Not available","Not available"]
[null,"Apache Beryl 1 Ltd","P2509","Apache Beryl 1 Ltd","Oil & Gas","For further field data, please check NSTA website: https://www.nstauthority.co.uk/data-centre/data-downloads-and-publications/field-data/","For further field data, please check NSTA website: https://www.nstauthority.co.uk/data-centre/data-downloads-and-publications/field-data/","For further field data, please check NSTA website: https://www.nstauthority.co.uk/data-centre/data-downloads-and-publications/field-data/","Not available","Not available"]
[null,"Apache Beryl 1 Ltd","P2510","Apache Beryl 1 Ltd","Oil & Gas","For further field data, please check NSTA website: https://www.nstauthority.co.uk/data-centre/data-downloads-and-publications/field-data/","For further field data, please check NSTA website: https://www.nstauthority.co.uk/data-centre/data-downloads-and-publications/field-data/","For further field data, please check NSTA website: https://www.nstauthority.co.uk/data-centre/data-downloads-and-publications/field-data/","Not available","Not available"]
[null,"Apache Beryl 1 Ltd","P337","Apache Beryl 1 Ltd","Oil & Gas","For further field data, please check NSTA website: https://www.nstauthority.co.uk/data-centre/data-downloads-and-publications/field-data/","For further field data, please check NSTA website: https://www.nstauthority.co.uk/data-centre/data-downloads-and-publications/field-data/","For further field data, please check NSTA website: https://www.nstauthority.co.uk/data-centre/data-downloads-and-publications/field-data/","Not available","Not available"]
[null,"Apache Beryl 1 Ltd","P87","Apache Beryl 1 Ltd","Oil & Gas","For further field data, please check NSTA website: https://www.nstauthority.co.uk/data-centre/data-downloads-and-publications/field-data/","For further field data, please check NSTA website: https://www.nstauthority.co.uk/data-centre/data-downloads-and-publications/field-data/","For further field data, please check NSTA website: https://www.nstauthority.co.uk/data-centre/data-downloads-and-publications/field-data/","Not available","Not available"]
[null,"APACHE BERYL I LIMITED","P2353","APACHE BERYL I LIMITED","Oil & Gas","For further field data, please check NSTA website: https://www.nstauthority.co.uk/data-centre/data-downloads-and-publications/field-data/","For further field data, please check NSTA website: https://www.nstauthority.co.uk/data-centre/data-downloads-and-publications/field-data/","For further field data, please check NSTA website: https://www.nstauthority.co.uk/data-centre/data-downloads-and-publications/field-data/","Not available","Not available"]
[null,"APACHE BERYL I LIMITED","P2354","APACHE BERYL I LIMITED","Oil & Gas","For further field data, please check NSTA website: https://www.nstauthority.co.uk/data-centre/data-downloads-and-publications/field-data/","For further field data, please check NSTA website: https://www.nstauthority.co.uk/data-centre/data-downloads-and-publications/field-data/","For further field data, please check NSTA website: https://www.nstauthority.co.uk/data-centre/data-downloads-and-publications/field-data/","Not available","Not available"]
[null,"APACHE BERYL I LIMITED","P2355","APACHE BERYL I LIMITED","Oil & Gas","For further field data, please check NSTA website: https://www.nstauthority.co.uk/data-centre/data-downloads-and-publications/field-data/","For further field data, please check NSTA website: https://www.nstauthority.co.uk/data-centre/data-downloads-and-publications/field-data/","For further field data, please check NSTA website: https://www.nstauthority.co.uk/data-centre/data-downloads-and-publications/field-data/","Not available","Not available"]
[null,"APACHE BERYL I LIMITED","P254","APACHE BERYL I LIMITED","Oil & Gas","For further field data, please check NSTA website: https://www.nstauthority.co.uk/data-centre/data-downloads-and-publications/field-data/","For further field data, please check NSTA website: https://www.nstauthority.co.uk/data-centre/data-downloads-and-publications/field-data/","For further field data, please check NSTA website: https://www.nstauthority.co.uk/data-centre/data-downloads-and-publications/field-data/","Not available","Not available"]
[null,"APACHE NORTH SEA LIMITED","P2346","APACHE NORTH SEA LIMITED","Oil & Gas","For further field data, please check NSTA website: https://www.nstauthority.co.uk/data-centre/data-downloads-and-publications/field-data/","For further field data, please check NSTA website: https://www.nstauthority.co.uk/data-centre/data-downloads-and-publications/field-data/","For further field data, please check NSTA website: https://www.nstauthority.co.uk/data-centre/data-downloads-and-publications/field-data/","Not available","Not available"]
[null,"APACHE NORTH SEA LIMITED","P2375","APACHE NORTH SEA LIMITED","Oil & Gas","For further field data, please check NSTA website: https://www.nstauthority.co.uk/data-centre/data-downloads-and-publications/field-data/","For further field data, please check NSTA website: https://www.nstauthority.co.uk/data-centre/data-downloads-and-publications/field-data/","For further field data, please check NSTA website: https://www.nstauthority.co.uk/data-centre/data-downloads-and-publications/field-data/","Not available","Not available"]
[null,"Apache North Sea Ltd","P246","Apache North Sea Ltd","Oil & Gas","For further field data, please check NSTA website: https://www.nstauthority.co.uk/data-centre/data-downloads-and-publications/field-data/","For further field data, please check NSTA website: https://www.nstauthority.co.uk/data-centre/data-downloads-and-publications/field-data/","For further field data, please check NSTA website: https://www.nstauthority.co.uk/data-centre/data-downloads-and-publications/field-data/","Not available","Not available"]
[null,"Apache North Sea Ltd","P2529","Apache North Sea Ltd","Oil & Gas","For further field data, please check NSTA website: https://www.nstauthority.co.uk/data-centre/data-downloads-and-publications/field-data/","For further field data, please check NSTA website: https://www.nstauthority.co.uk/data-centre/data-downloads-and-publications/field-data/","For further field data, please check NSTA website: https://www.nstauthority.co.uk/data-centre/data-downloads-and-publications/field-data/","Not available","Not available"]
[null,"Apache North Sea Ltd","P2539","Apache North Sea Ltd","Oil & Gas","For further field data, please check NSTA website: https://www.nstauthority.co.uk/data-centre/data-downloads-and-publications/field-data/","For further field data, please check NSTA website: https://www.nstauthority.co.uk/data-centre/data-downloads-and-publications/field-data/","For further field data, please check NSTA website: https://www.nstauthority.co.uk/data-centre/data-downloads-and-publications/field-data/","Not available","Not available"]
[null,"ARCO BRITISH LIMITED, LLC","P1937","ARCO BRITISH LIMITED, LLC","Oil & Gas","For further field data, please check NSTA website: https://www.nstauthority.co.uk/data-centre/data-downloads-and-publications/field-data/","For further field data, please check NSTA website: https://www.nstauthority.co.uk/data-centre/data-downloads-and-publications/field-data/","For further field data, please check NSTA website: https://www.nstauthority.co.uk/data-centre/data-downloads-and-publications/field-data/","Not available","Not available"]
[null,"Area 137 Area A 0010099","Licence","CEMEX UK MARINE LTD","Not available","Not applicable","Not applicable","Not applicable","Not applicable","Not applicable"]
[null,"Area 340 Nab 0010093","Licence","CEMEX UK MARINE LTD","Not available","Not applicable","Not applicable","Not applicable","Not applicable","Not applicable"]
[null,"Area 395/1-2, 750,000 tpa","Licence","AIUK (Kendalls)","Not available","Not applicable","Not applicable","Not applicable","Not applicable","Not applicable"]
[null,"Area 407 St Catherine's 0010105","Licence","CEMEX UK MARINE LTD","Not available","Not applicable","Not applicable","Not applicable","Not applicable","Not applicable"]
[null,"Area 430 Southwold East 0010051","Licence","CEMEX UK MARINE LTD","Not available","Not applicable","Not applicable","Not applicable","Not applicable","Not applicable"]
[null,"Area 451, 1,250,000 tpa (mix)","Licence","Westminster Gravels Ltd","Not available","Not applicable","Not applicable","Not applicable","Not applicable","Not applicable"]
[null,"Area 453 Owers Extension 0016243","Licence","CEMEX UK MARINE LTD","Not available","Not applicable","Not applicable","Not applicable","Not applicable","Not applicable"]
[null,"Area 458/464 West Bassurelle 0013234","Licence","CEMEX UK MARINE LTD","Not available","Not applicable","Not applicable","Not applicable","Not applicable","Not applicable"]
[null,"Area 460 South Hastings 0016246","Licence","CEMEX UK MARINE LTD","Not available","Not applicable","Not applicable","Not applicable","Not applicable","Not applicable"]
[null,"Area 473 Greenwich Light East 0013027","Licence","CEMEX UK MARINE LTD","Not available","Not applicable","Not applicable","Not applicable","Not applicable","Not applicable"]
[null,"Area 478, 1,000,000 tpa","Licence","DEME Building Materials Ltd","Not available","Not applicable","Not applicable","Not applicable","Not applicable","Not applicable"]
[null,"Area 483, 600,000 tpa","Licence","DEME Building Materials Ltd","Not available","Not applicable","Not applicable","Not applicable","Not applicable","Not applicable"]
[null,"Area 484, 600,000 tpa","Licence","DEME Building Materials Ltd","Not available","Not applicable","Not applicable","Not applicable","Not applicable","Not applicable"]
[null,"Area 506, 800,000 tpa","Licence","DEME Building Materials Ltd","Not available","Not applicable","Not applicable","Not applicable","Not applicable","Not applicable"]
[null,"Area 507/1- Shipwash 0016273","Licence","CEMEX UK MARINE LTD","Not available","Not applicable","Not applicable","Not applicable","Not applicable","Not applicable"]
[null,"Area 510/1-2 Longsand 0016276","Licence","CEMEX UK MARINE LTD","Not available","Not applicable","Not applicable","Not applicable","Not applicable","Not applicable"]
[null,"Area 511 Lowestoft 0018726","Licence","CEMEX UK MARINE LTD","Not available","Not applicable","Not applicable","Not applicable","Not applicable","Not applicable"]
[null,"Area 512 ex 251/454 0016244","Licence","CEMEX UK MARINE LTD","Not available","Not applicable","Not applicable","Not applicable","Not applicable","Not applicable"]
[null,"Area 513 Lowestoft 0018727","Licence","CEMEX UK MARINE LTD","Not available","Not applicable","Not applicable","Not applicable","Not applicable","Not applicable"]
[null,"Area 514/1-4 Humber 0016242","Licence","CEMEX UK MARINE LTD","Not available","Not applicable","Not applicable","Not applicable","Not applicable","Not applicable"]
[null,"Area 522 West Wight 0019141","Licence","CEMEX UK MARINE LTD","Not available","Not applicable","Not applicable","Not applicable","Not applicable","Not applicable"]
[null,"Area 524, 550,000 tpa, PA","Licence","DEME Building Materials Ltd","Not available","Not applicable","Not applicable","Not applicable","Not applicable","Not applicable"]
[null,"Area 526 Culver Extension 0019145","Licence","CEMEX UK MARINE LTD","Not available","Not applicable","Not applicable","Not applicable","Not applicable","Not applicable"]
[null,"Area481","Licence","Van Oord UK Ltd","Not available","Not applicable","Not applicable","Not applicable","Not applicable","Not applicable"]
[null,"Athena Exploration Limited","P2417","Athena Exploration Limited","Oil & Gas","For further field data, please check NSTA website: https://www.nstauthority.co.uk/data-centre/data-downloads-and-publications/field-data/","For further field data, please check NSTA website: https://www.nstauthority.co.uk/data-centre/data-downloads-and-publications/field-data/","For further field data, please check NSTA website: https://www.nstauthority.co.uk/data-centre/data-downloads-and-publications/field-data/","Not available","Not available"]
[null,"Athena Exploration Limited","P2595","Athena Exploration Limited","Oil & Gas","For further field data, please check NSTA website: https://www.nstauthority.co.uk/data-centre/data-downloads-and-publications/field-data/","For further field data, please check NSTA website: https://www.nstauthority.co.uk/data-centre/data-downloads-and-publications/field-data/","For further field data, please check NSTA website: https://www.nstauthority.co.uk/data-centre/data-downloads-and-publications/field-data/","Not available","Not available"]
[null,"Athena Exploration Limited","P2597","Athena Exploration Limited","Oil & Gas","For further field data, please check NSTA website: https://www.nstauthority.co.uk/data-centre/data-downloads-and-publications/field-data/","For further field data, please check NSTA website: https://www.nstauthority.co.uk/data-centre/data-downloads-and-publications/field-data/","For further field data, please check NSTA website: https://www.nstauthority.co.uk/data-centre/data-downloads-and-publications/field-data/","Not available","Not available"]
[null,"Athena Exploration Limited","P2603","Athena Exploration Limited","Oil & Gas","For further field data, please check NSTA website: https://www.nstauthority.co.uk/data-centre/data-downloads-and-publications/field-data/","For further field data, please check NSTA website: https://www.nstauthority.co.uk/data-centre/data-downloads-and-publications/field-data/","For further field data, please check NSTA website: https://www.nstauthority.co.uk/data-centre/data-downloads-and-publications/field-data/","Not available","Not available"]
[null,"Aurora Energy Resources Ltd","PEDL164","Aurora Energy Resources Ltd","Oil & Gas","For further field data, please check NSTA website: https://www.nstauthority.co.uk/data-centre/data-downloads-and-publications/field-data/","For further field data, please check NSTA website: https://www.nstauthority.co.uk/data-centre/data-downloads-and-publications/field-data/","For further field data, please check NSTA website: https://www.nstauthority.co.uk/data-centre/data-downloads-and-publications/field-data/","Not available","Not available"]
[null,"Aurora Energy Resources Ltd","PEDL252","Aurora Energy Resources Ltd","Oil & Gas","For further field data, please check NSTA website: https://www.nstauthority.co.uk/data-centre/data-downloads-and-publications/field-data/","For further field data, please check NSTA website: https://www.nstauthority.co.uk/data-centre/data-downloads-and-publications/field-data/","For further field data, please check NSTA website: https://www.nstauthority.co.uk/data-centre/data-downloads-and-publications/field-data/","Not available","Not available"]
[null,"Aurora Energy Resources Ltd","PEDL261","Aurora Energy Resources Ltd","Oil & Gas","For further field data, please check NSTA website: https://www.nstauthority.co.uk/data-centre/data-downloads-and-publications/field-data/","For further field data, please check NSTA website: https://www.nstauthority.co.uk/data-centre/data-downloads-and-publications/field-data/","For further field data, please check NSTA website: https://www.nstauthority.co.uk/data-centre/data-downloads-and-publications/field-data/","Not available","Not available"]
[null,"Aurora Energy Resources Ltd","PEDL267","Aurora Energy Resources Ltd","Oil & Gas","For further field data, please check NSTA website: https://www.nstauthority.co.uk/data-centre/data-downloads-and-publications/field-data/","For further field data, please check NSTA website: https://www.nstauthority.co.uk/data-centre/data-downloads-and-publications/field-data/","For further field data, please check NSTA website: https://www.nstauthority.co.uk/data-centre/data-downloads-and-publications/field-data/","Not available","Not available"]
[null,"AXXIS GEO SOLUTIONS AS","E456","AXXIS GEO SOLUTIONS AS","Oil & Gas","For further field data, please check NSTA website: https://www.nstauthority.co.uk/data-centre/data-downloads-and-publications/field-data/","For further field data, please check NSTA website: https://www.nstauthority.co.uk/data-centre/data-downloads-and-publications/field-data/","For further field data, please check NSTA website: https://www.nstauthority.co.uk/data-centre/data-downloads-and-publications/field-data/","Not available","Not available"]
[null,"BG International Ltd","P98","BG International Ltd","Oil & Gas","For further field data, please check NSTA website: https://www.nstauthority.co.uk/data-centre/data-downloads-and-publications/field-data/","For further field data, please check NSTA website: https://www.nstauthority.co.uk/data-centre/data-downloads-and-publications/field-data/","For further field data, please check NSTA website: https://www.nstauthority.co.uk/data-centre/data-downloads-and-publications/field-data/","Not available","Not available"]
[null,"Biogas Technology (Sawtry) Ltd","EXL276","Biogas Technology (Sawtry) Ltd","Oil & Gas","For further field data, please check NSTA website: https://www.nstauthority.co.uk/data-centre/data-downloads-and-publications/field-data/","For further field data, please check NSTA website: https://www.nstauthority.co.uk/data-centre/data-downloads-and-publications/field-data/","For further field data, please check NSTA website: https://www.nstauthority.co.uk/data-centre/data-downloads-and-publications/field-data/","Not available","Not available"]
[null,"BLACKLAND PARK EXPLORATION LIMITED","PL199","BLACKLAND PARK EXPLORATION LIMITED","Oil & Gas","For further field data, please check NSTA website: https://www.nstauthority.co.uk/data-centre/data-downloads-and-publications/field-data/","For further field data, please check NSTA website: https://www.nstauthority.co.uk/data-centre/data-downloads-and-publications/field-data/","For further field data, please check NSTA website: https://www.nstauthority.co.uk/data-centre/data-downloads-and-publications/field-data/","Not available","Not available"]
[null,"Boulby Mine","Licence","Cleveland Potash Ltd","Not available","Not applicable","Not applicable","Not applicable","Not applicable","Not applicable"]
[null,"BP Exploration Operating Co Limited","E470","BP Exploration Operating Co Limited","Oil & Gas","For further field data, please check NSTA website: https://www.nstauthority.co.uk/data-centre/data-downloads-and-publications/field-data/","For further field data, please check NSTA website: https://www.nstauthority.co.uk/data-centre/data-downloads-and-publications/field-data/","For further field data, please check NSTA website: https://www.nstauthority.co.uk/data-centre/data-downloads-and-publications/field-data/","Not available","Not available"]
[null,"BP EXPLORATION OPERATING COMPANY LIMITED","E442","BP EXPLORATION OPERATING COMPANY LIMITED","Oil & Gas","For further field data, please check NSTA website: https://www.nstauthority.co.uk/data-centre/data-downloads-and-publications/field-data/","For further field data, please check NSTA website: https://www.nstauthority.co.uk/data-centre/data-downloads-and-publications/field-data/","For further field data, please check NSTA website: https://www.nstauthority.co.uk/data-centre/data-downloads-and-publications/field-data/","Not available","Not available"]
[null,"BP Exploration Operating Company Limited","P1570","BP Exploration Operating Company Limited","Oil & Gas","For further field data, please check NSTA website: https://www.nstauthority.co.uk/data-centre/data-downloads-and-publications/field-data/","For further field data, please check NSTA website: https://www.nstauthority.co.uk/data-centre/data-downloads-and-publications/field-data/","For further field data, please check NSTA website: https://www.nstauthority.co.uk/data-centre/data-downloads-and-publications/field-data/","Not available","Not available"]
[null,"BP Exploration Operating Company Limited","P165","BP Exploration Operating Company Limited","Oil & Gas","For further field data, please check NSTA website: https://www.nstauthority.co.uk/data-centre/data-downloads-and-publications/field-data/","For further field data, please check NSTA website: https://www.nstauthority.co.uk/data-centre/data-downloads-and-publications/field-data/","For further field data, please check NSTA website: https://www.nstauthority.co.uk/data-centre/data-downloads-and-publications/field-data/","Not available","Not available"]
[null,"BP Exploration Operating Company Limited","P168","BP Exploration Operating Company Limited","Oil & Gas","For further field data, please check NSTA website: https://www.nstauthority.co.uk/data-centre/data-downloads-and-publications/field-data/","For further field data, please check NSTA website: https://www.nstauthority.co.uk/data-centre/data-downloads-and-publications/field-data/","For further field data, please check NSTA website: https://www.nstauthority.co.uk/data-centre/data-downloads-and-publications/field-data/","Not available","Not available"]
[null,"BP Exploration Operating Company Limited","P1777","BP Exploration Operating Company Limited","Oil & Gas","For further field data, please check NSTA website: https://www.nstauthority.co.uk/data-centre/data-downloads-and-publications/field-data/","For further field data, please check NSTA website: https://www.nstauthority.co.uk/data-centre/data-downloads-and-publications/field-data/","For further field data, please check NSTA website: https://www.nstauthority.co.uk/data-centre/data-downloads-and-publications/field-data/","Not available","Not available"]
[null,"BP Exploration Operating Company Limited","P2189","BP Exploration Operating Company Limited","Oil & Gas","For further field data, please check NSTA website: https://www.nstauthority.co.uk/data-centre/data-downloads-and-publications/field-data/","For further field data, please check NSTA website: https://www.nstauthority.co.uk/data-centre/data-downloads-and-publications/field-data/","For further field data, please check NSTA website: https://www.nstauthority.co.uk/data-centre/data-downloads-and-publications/field-data/","Not available","Not available"]
[null,"BP Exploration Operating Company Limited","P2293","BP Exploration Operating Company Limited","Oil & Gas","For further field data, please check NSTA website: https://www.nstauthority.co.uk/data-centre/data-downloads-and-publications/field-data/","For further field data, please check NSTA website: https://www.nstauthority.co.uk/data-centre/data-downloads-and-publications/field-data/","For further field data, please check NSTA website: https://www.nstauthority.co.uk/data-centre/data-downloads-and-publications/field-data/","Not available","Not available"]
[null,"BP EXPLORATION OPERATING COMPANY LIMITED","P2347","BP EXPLORATION OPERATING COMPANY LIMITED","Oil & Gas","For further field data, please check NSTA website: https://www.nstauthority.co.uk/data-centre/data-downloads-and-publications/field-data/","For further field data, please check NSTA website: https://www.nstauthority.co.uk/data-centre/data-downloads-and-publications/field-data/","For further field data, please check NSTA website: https://www.nstauthority.co.uk/data-centre/data-downloads-and-publications/field-data/","Not available","Not available"]
[null,"BP EXPLORATION OPERATING COMPANY LIMITED","P2410","BP EXPLORATION OPERATING COMPANY LIMITED","Oil & Gas","For further field data, please check NSTA website: https://www.nstauthority.co.uk/data-centre/data-downloads-and-publications/field-data/","For further field data, please check NSTA website: https://www.nstauthority.co.uk/data-centre/data-downloads-and-publications/field-data/","For further field data, please check NSTA website: https://www.nstauthority.co.uk/data-centre/data-downloads-and-publications/field-data/","Not available","Not available"]
[null,"BP EXPLORATION OPERATING COMPANY LIMITED","P2413","BP EXPLORATION OPERATING COMPANY LIMITED","Oil & Gas","For further field data, please check NSTA website: https://www.nstauthority.co.uk/data-centre/data-downloads-and-publications/field-data/","For further field data, please check NSTA website: https://www.nstauthority.co.uk/data-centre/data-downloads-and-publications/field-data/","For further field data, please check NSTA website: https://www.nstauthority.co.uk/data-centre/data-downloads-and-publications/field-data/","Not available","Not available"]
[null,"BP Exploration Operating Company Limited","P2452","BP Exploration Operating Company Limited","Oil & Gas","For further field data, please check NSTA website: https://www.nstauthority.co.uk/data-centre/data-downloads-and-publications/field-data/","For further field data, please check NSTA website: https://www.nstauthority.co.uk/data-centre/data-downloads-and-publications/field-data/","For further field data, please check NSTA website: https://www.nstauthority.co.uk/data-centre/data-downloads-and-publications/field-data/","Not available","Not available"]
[null,"BP EXPLORATION OPERATING COMPANY LIMITED","P2491","BP EXPLORATION OPERATING COMPANY LIMITED","Oil & Gas","For further field data, please check NSTA website: https://www.nstauthority.co.uk/data-centre/data-downloads-and-publications/field-data/","For further field data, please check NSTA website: https://www.nstauthority.co.uk/data-centre/data-downloads-and-publications/field-data/","For further field data, please check NSTA website: https://www.nstauthority.co.uk/data-centre/data-downloads-and-publications/field-data/","Not available","Not available"]
[null,"BP Exploration Operating Company Limited","P2541","BP Exploration Operating Company Limited","Oil & Gas","For further field data, please check NSTA website: https://www.nstauthority.co.uk/data-centre/data-downloads-and-publications/field-data/","For further field data, please check NSTA website: https://www.nstauthority.co.uk/data-centre/data-downloads-and-publications/field-data/","For further field data, please check NSTA website: https://www.nstauthority.co.uk/data-centre/data-downloads-and-publications/field-data/","Not available","Not available"]
[null,"BP Exploration Operating Company Limited","P2590","BP Exploration Operating Company Limited","Oil & Gas","For further field data, please check NSTA website: https://www.nstauthority.co.uk/data-centre/data-downloads-and-publications/field-data/","For further field data, please check NSTA website: https://www.nstauthority.co.uk/data-centre/data-downloads-and-publications/field-data/","For further field data, please check NSTA website: https://www.nstauthority.co.uk/data-centre/data-downloads-and-publications/field-data/","Not available","Not available"]
[null,"BP Exploration Operating Company Limited","P358","BP Exploration Operating Company Limited","Oil & Gas","For further field data, please check NSTA website: https://www.nstauthority.co.uk/data-centre/data-downloads-and-publications/field-data/","For further field data, please check NSTA website: https://www.nstauthority.co.uk/data-centre/data-downloads-and-publications/field-data/","For further field data, please check NSTA website: https://www.nstauthority.co.uk/data-centre/data-downloads-and-publications/field-data/","Not available","Not available"]
[null,"BP Exploration Operating Company Limited","P363","BP Exploration Operating Company Limited","Oil & Gas","For further field data, please check NSTA website: https://www.nstauthority.co.uk/data-centre/data-downloads-and-publications/field-data/","For further field data, please check NSTA website: https://www.nstauthority.co.uk/data-centre/data-downloads-and-publications/field-data/","For further field data, please check NSTA website: https://www.nstauthority.co.uk/data-centre/data-downloads-and-publications/field-data/","Not available","Not available"]
[null,"BP Exploration Operating Company Limited","P57","BP Exploration Operating Company Limited","Oil & Gas","For further field data, please check NSTA website: https://www.nstauthority.co.uk/data-centre/data-downloads-and-publications/field-data/","For further field data, please check NSTA website: https://www.nstauthority.co.uk/data-centre/data-downloads-and-publications/field-data/","For further field data, please check NSTA website: https://www.nstauthority.co.uk/data-centre/data-downloads-and-publications/field-data/","Not available","Not available"]
[null,"BP Exploration Operating Company Limited","P803","BP Exploration Operating Company Limited","Oil & Gas","For further field data, please check NSTA website: https://www.nstauthority.co.uk/data-centre/data-downloads-and-publications/field-data/","For further field data, please check NSTA website: https://www.nstauthority.co.uk/data-centre/data-downloads-and-publications/field-data/","For further field data, please check NSTA website: https://www.nstauthority.co.uk/data-centre/data-downloads-and-publications/field-data/","Not available","Not available"]
[null,"BP Exploration Operating Company Limited","P92","BP Exploration Operating Company Limited","Oil & Gas","For further field data, please check NSTA website: https://www.nstauthority.co.uk/data-centre/data-downloads-and-publications/field-data/","For further field data, please check NSTA website: https://www.nstauthority.co.uk/data-centre/data-downloads-and-publications/field-data/","For further field data, please check NSTA website: https://www.nstauthority.co.uk/data-centre/data-downloads-and-publications/field-data/","Not available","Not available"]
[null,"BRIDGE PETROLEUM 1 LIMITED","P96","BRIDGE PETROLEUM 1 LIMITED","Oil & Gas","For further field data, please check NSTA website: https://www.nstauthority.co.uk/data-centre/data-downloads-and-publications/field-data/","For further field data, please check NSTA website: https://www.nstauthority.co.uk/data-centre/data-downloads-and-publications/field-data/","For further field data, please check NSTA website: https://www.nstauthority.co.uk/data-centre/data-downloads-and-publications/field-data/","Not available","Not available"]
[null,"BRIDGE PETROLEUM 3 LIMITED","P184","BRIDGE PETROLEUM 3 LIMITED","Oil & Gas","For further field data, please check NSTA website: https://www.nstauthority.co.uk/data-centre/data-downloads-and-publications/field-data/","For further field data, please check NSTA website: https://www.nstauthority.co.uk/data-centre/data-downloads-and-publications/field-data/","For further field data, please check NSTA website: https://www.nstauthority.co.uk/data-centre/data-downloads-and-publications/field-data/","Not available","Not available"]
[null,"BRIDGE PETROLEUM 3 LIMITED","P474","BRIDGE PETROLEUM 3 LIMITED","Oil & Gas","For further field data, please check NSTA website: https://www.nstauthority.co.uk/data-centre/data-downloads-and-publications/field-data/","For further field data, please check NSTA website: https://www.nstauthority.co.uk/data-centre/data-downloads-and-publications/field-data/","For further field data, please check NSTA website: https://www.nstauthority.co.uk/data-centre/data-downloads-and-publications/field-data/","Not available","Not available"]
[null,"BRIDGE PETROLEUM LIMITED","P2420","BRIDGE PETROLEUM LIMITED","Oil & Gas","For further field data, please check NSTA website: https://www.nstauthority.co.uk/data-centre/data-downloads-and-publications/field-data/","For further field data, please check NSTA website: https://www.nstauthority.co.uk/data-centre/data-downloads-and-publications/field-data/","For further field data, please check NSTA website: https://www.nstauthority.co.uk/data-centre/data-downloads-and-publications/field-data/","Not available","Not available"]
[null,"BRIDGE PETROLEUM LIMITED","P2426","BRIDGE PETROLEUM LIMITED","Oil & Gas","For further field data, please check NSTA website: https://www.nstauthority.co.uk/data-centre/data-downloads-and-publications/field-data/","For further field data, please check NSTA website: https://www.nstauthority.co.uk/data-centre/data-downloads-and-publications/field-data/","For further field data, please check NSTA website: https://www.nstauthority.co.uk/data-centre/data-downloads-and-publications/field-data/","Not available","Not available"]
[null,"Britoil Ltd","P111","Britoil Ltd","Oil & Gas","For further field data, please check NSTA website: https://www.nstauthority.co.uk/data-centre/data-downloads-and-publications/field-data/","For further field data, please check NSTA website: https://www.nstauthority.co.uk/data-centre/data-downloads-and-publications/field-data/","For further field data, please check NSTA website: https://www.nstauthority.co.uk/data-centre/data-downloads-and-publications/field-data/","Not available","Not available"]
[null,"Britoil Ltd","P236","Britoil Ltd","Oil & Gas","For further field data, please check NSTA website: https://www.nstauthority.co.uk/data-centre/data-downloads-and-publications/field-data/","For further field data, please check NSTA website: https://www.nstauthority.co.uk/data-centre/data-downloads-and-publications/field-data/","For further field data, please check NSTA website: https://www.nstauthority.co.uk/data-centre/data-downloads-and-publications/field-data/","Not available","Not available"]
[null,"Britoil Ltd","P475","Britoil Ltd","Oil & Gas","For further field data, please check NSTA website: https://www.nstauthority.co.uk/data-centre/data-downloads-and-publications/field-data/","For further field data, please check NSTA website: https://www.nstauthority.co.uk/data-centre/data-downloads-and-publications/field-data/","For further field data, please check NSTA website: https://www.nstauthority.co.uk/data-centre/data-downloads-and-publications/field-data/","Not available","Not available"]
[null,"Britoil Ltd","P556","Britoil Ltd","Oil & Gas","For further field data, please check NSTA website: https://www.nstauthority.co.uk/data-centre/data-downloads-and-publications/field-data/","For further field data, please check NSTA website: https://www.nstauthority.co.uk/data-centre/data-downloads-and-publications/field-data/","For further field data, please check NSTA website: https://www.nstauthority.co.uk/data-centre/data-downloads-and-publications/field-data/","Not available","Not available"]
[null,"Britoil Ltd","P558","Britoil Ltd","Oil & Gas","For further field data, please check NSTA website: https://www.nstauthority.co.uk/data-centre/data-downloads-and-publications/field-data/","For further field data, please check NSTA website: https://www.nstauthority.co.uk/data-centre/data-downloads-and-publications/field-data/","For further field data, please check NSTA website: https://www.nstauthority.co.uk/data-centre/data-downloads-and-publications/field-data/","Not available","Not available"]
[null,"Britoil Ltd","P59","Britoil Ltd","Oil & Gas","For further field data, please check NSTA website: https://www.nstauthority.co.uk/data-centre/data-downloads-and-publications/field-data/","For further field data, please check NSTA website: https://www.nstauthority.co.uk/data-centre/data-downloads-and-publications/field-data/","For further field data, please check NSTA website: https://www.nstauthority.co.uk/data-centre/data-downloads-and-publications/field-data/","Not available","Not available"]
[null,"BURGATE EXPLORATION & PRODUCTION LTD","P2434","BURGATE EXPLORATION & PRODUCTION LTD","Oil & Gas","For further field data, please check NSTA website: https://www.nstauthority.co.uk/data-centre/data-downloads-and-publications/field-data/","For further field data, please check NSTA website: https://www.nstauthority.co.uk/data-centre/data-downloads-and-publications/field-data/","For further field data, please check NSTA website: https://www.nstauthority.co.uk/data-centre/data-downloads-and-publications/field-data/","Not available","Not available"]
[null,"BURGATE EXPLORATION & PRODUCTION LTD","P2583","BURGATE EXPLORATION & PRODUCTION LTD","Oil & Gas","For further field data, please check NSTA website: https://www.nstauthority.co.uk/data-centre/data-downloads-and-publications/field-data/","For further field data, please check NSTA website: https://www.nstauthority.co.uk/data-centre/data-downloads-and-publications/field-data/","For further field data, please check NSTA website: https://www.nstauthority.co.uk/data-centre/data-downloads-and-publications/field-data/","Not available","Not available"]
[null,"CAPRICORN ENERGY UK LIMITED","E468","CAPRICORN ENERGY UK LIMITED","Oil & Gas","For further field data, please check NSTA website: https://www.nstauthority.co.uk/data-centre/data-downloads-and-publications/field-data/","For further field data, please check NSTA website: https://www.nstauthority.co.uk/data-centre/data-downloads-and-publications/field-data/","For further field data, please check NSTA website: https://www.nstauthority.co.uk/data-centre/data-downloads-and-publications/field-data/","Not available","Not available"]
[null,"CAPRICORN ENERGY UK LIMITED","P2379","CAPRICORN ENERGY UK LIMITED","Oil & Gas","For further field data, please check NSTA website: https://www.nstauthority.co.uk/data-centre/data-downloads-and-publications/field-data/","For further field data, please check NSTA website: https://www.nstauthority.co.uk/data-centre/data-downloads-and-publications/field-data/","For further field data, please check NSTA website: https://www.nstauthority.co.uk/data-centre/data-downloads-and-publications/field-data/","Not available","Not available"]
[null,"CAPRICORN ENERGY UK LIMITED","P2428","CAPRICORN ENERGY UK LIMITED","Oil & Gas","For further field data, please check NSTA website: https://www.nstauthority.co.uk/data-centre/data-downloads-and-publications/field-data/","For further field data, please check NSTA website: https://www.nstauthority.co.uk/data-centre/data-downloads-and-publications/field-data/","For further field data, please check NSTA website: https://www.nstauthority.co.uk/data-centre/data-downloads-and-publications/field-data/","Not available","Not available"]
[null,"Centrica Offshore (UK) Ltd","P323","Centrica Offshore (UK) Ltd","Oil & Gas","For further field data, please check NSTA website: https://www.nstauthority.co.uk/data-centre/data-downloads-and-publications/field-data/","For further field data, please check NSTA website: https://www.nstauthority.co.uk/data-centre/data-downloads-and-publications/field-data/","For further field data, please check NSTA website: https://www.nstauthority.co.uk/data-centre/data-downloads-and-publications/field-data/","Not available","Not available"]
[null,"CGG Services (Uk) Ltd","E454","CGG Services (Uk) Ltd","Oil & Gas","For further field data, please check NSTA website: https://www.nstauthority.co.uk/data-centre/data-downloads-and-publications/field-data/","For further field data, please check NSTA website: https://www.nstauthority.co.uk/data-centre/data-downloads-and-publications/field-data/","For further field data, please check NSTA website: https://www.nstauthority.co.uk/data-centre/data-downloads-and-publications/field-data/","Not available","Not available"]
[null,"CHRYSAOR LIMITED","P2330","CHRYSAOR LIMITED","Oil & Gas","For further field data, please check NSTA website: https://www.nstauthority.co.uk/data-centre/data-downloads-and-publications/field-data/","For further field data, please check NSTA website: https://www.nstauthority.co.uk/data-centre/data-downloads-and-publications/field-data/","For further field data, please check NSTA website: https://www.nstauthority.co.uk/data-centre/data-downloads-and-publications/field-data/","Not available","Not available"]
[null,"CHRYSAOR LIMITED","P66","CHRYSAOR LIMITED","Oil & Gas","For further field data, please check NSTA website: https://www.nstauthority.co.uk/data-centre/data-downloads-and-publications/field-data/","For further field data, please check NSTA website: https://www.nstauthority.co.uk/data-centre/data-downloads-and-publications/field-data/","For further field data, please check NSTA website: https://www.nstauthority.co.uk/data-centre/data-downloads-and-publications/field-data/","Not available","Not available"]
[null,"Chrysaor Ltd","P101","Chrysaor Ltd","Oil & Gas","For further field data, please check NSTA website: https://www.nstauthority.co.uk/data-centre/data-downloads-and-publications/field-data/","For further field data, please check NSTA website: https://www.nstauthority.co.uk/data-centre/data-downloads-and-publications/field-data/","For further field data, please check NSTA website: https://www.nstauthority.co.uk/data-centre/data-downloads-and-publications/field-data/","Not available","Not available"]
[null,"Chrysaor Ltd","P2538","Chrysaor Ltd","Oil & Gas","For further field data, please check NSTA website: https://www.nstauthority.co.uk/data-centre/data-downloads-and-publications/field-data/","For further field data, please check NSTA website: https://www.nstauthority.co.uk/data-centre/data-downloads-and-publications/field-data/","For further field data, please check NSTA website: https://www.nstauthority.co.uk/data-centre/data-downloads-and-publications/field-data/","Not available","Not available"]
[null,"Chrysaor Ltd","P2547","Chrysaor Ltd","Oil & Gas","For further field data, please check NSTA website: https://www.nstauthority.co.uk/data-centre/data-downloads-and-publications/field-data/","For further field data, please check NSTA website: https://www.nstauthority.co.uk/data-centre/data-downloads-and-publications/field-data/","For further field data, please check NSTA website: https://www.nstauthority.co.uk/data-centre/data-downloads-and-publications/field-data/","Not available","Not available"]
[null,"CHRYSAOR NORTH SEA LIMITED","P2371","CHRYSAOR NORTH SEA LIMITED","Oil & Gas","For further field data, please check NSTA website: https://www.nstauthority.co.uk/data-centre/data-downloads-and-publications/field-data/","For further field data, please check NSTA website: https://www.nstauthority.co.uk/data-centre/data-downloads-and-publications/field-data/","For further field data, please check NSTA website: https://www.nstauthority.co.uk/data-centre/data-downloads-and-publications/field-data/","Not available","Not available"]
[null,"CHRYSAOR NORTH SEA LIMITED","P2374","CHRYSAOR NORTH SEA LIMITED","Oil & Gas","For further field data, please check NSTA website: https://www.nstauthority.co.uk/data-centre/data-downloads-and-publications/field-data/","For further field data, please check NSTA website: https://www.nstauthority.co.uk/data-centre/data-downloads-and-publications/field-data/","For further field data, please check NSTA website: https://www.nstauthority.co.uk/data-centre/data-downloads-and-publications/field-data/","Not available","Not available"]
[null,"CHRYSAOR NORTH SEA LIMITED","P2389","CHRYSAOR NORTH SEA LIMITED","Oil & Gas","For further field data, please check NSTA website: https://www.nstauthority.co.uk/data-centre/data-downloads-and-publications/field-data/","For further field data, please check NSTA website: https://www.nstauthority.co.uk/data-centre/data-downloads-and-publications/field-data/","For further field data, please check NSTA website: https://www.nstauthority.co.uk/data-centre/data-downloads-and-publications/field-data/","Not available","Not available"]
[null,"CHRYSAOR NORTH SEA LIMITED","P2408","CHRYSAOR NORTH SEA LIMITED","Oil & Gas","For further field data, please check NSTA website: https://www.nstauthority.co.uk/data-centre/data-downloads-and-publications/field-data/","For further field data, please check NSTA website: https://www.nstauthority.co.uk/data-centre/data-downloads-and-publications/field-data/","For further field data, please check NSTA website: https://www.nstauthority.co.uk/data-centre/data-downloads-and-publications/field-data/","Not available","Not available"]
[null,"CHRYSAOR NORTH SEA LIMITED","P2455","CHRYSAOR NORTH SEA LIMITED","Oil & Gas","For further field data, please check NSTA website: https://www.nstauthority.co.uk/data-centre/data-downloads-and-publications/field-data/","For further field data, please check NSTA website: https://www.nstauthority.co.uk/data-centre/data-downloads-and-publications/field-data/","For further field data, please check NSTA website: https://www.nstauthority.co.uk/data-centre/data-downloads-and-publications/field-data/","Not available","Not available"]
[null,"CHRYSAOR NORTH SEA LIMITED","P2485","CHRYSAOR NORTH SEA LIMITED","Oil & Gas","For further field data, please check NSTA website: https://www.nstauthority.co.uk/data-centre/data-downloads-and-publications/field-data/","For further field data, please check NSTA website: https://www.nstauthority.co.uk/data-centre/data-downloads-and-publications/field-data/","For further field data, please check NSTA website: https://www.nstauthority.co.uk/data-centre/data-downloads-and-publications/field-data/","Not available","Not available"]
[null,"CHRYSAOR NORTH SEA LIMITED","P2489","CHRYSAOR NORTH SEA LIMITED","Oil & Gas","For further field data, please check NSTA website: https://www.nstauthority.co.uk/data-centre/data-downloads-and-publications/field-data/","For further field data, please check NSTA website: https://www.nstauthority.co.uk/data-centre/data-downloads-and-publications/field-data/","For further field data, please check NSTA website: https://www.nstauthority.co.uk/data-centre/data-downloads-and-publications/field-data/","Not available","Not available"]
[null,"Chrysaor North Sea Ltd","P110","Chrysaor North Sea Ltd","Oil & Gas","For further field data, please check NSTA website: https://www.nstauthority.co.uk/data-centre/data-downloads-and-publications/field-data/","For further field data, please check NSTA website: https://www.nstauthority.co.uk/data-centre/data-downloads-and-publications/field-data/","For further field data, please check NSTA website: https://www.nstauthority.co.uk/data-centre/data-downloads-and-publications/field-data/","Not available","Not available"]
[null,"Chrysaor North Sea Ltd","P355","Chrysaor North Sea Ltd","Oil & Gas","For further field data, please check NSTA website: https://www.nstauthority.co.uk/data-centre/data-downloads-and-publications/field-data/","For further field data, please check NSTA website: https://www.nstauthority.co.uk/data-centre/data-downloads-and-publications/field-data/","For further field data, please check NSTA website: https://www.nstauthority.co.uk/data-centre/data-downloads-and-publications/field-data/","Not available","Not available"]
[null,"Chrysaor North Sea Ltd","P356","Chrysaor North Sea Ltd","Oil & Gas","For further field data, please check NSTA website: https://www.nstauthority.co.uk/data-centre/data-downloads-and-publications/field-data/","For further field data, please check NSTA website: https://www.nstauthority.co.uk/data-centre/data-downloads-and-publications/field-data/","For further field data, please check NSTA website: https://www.nstauthority.co.uk/data-centre/data-downloads-and-publications/field-data/","Not available","Not available"]
[null,"Chrysaor North Sea Ltd","P591","Chrysaor North Sea Ltd","Oil & Gas","For further field data, please check NSTA website: https://www.nstauthority.co.uk/data-centre/data-downloads-and-publications/field-data/","For further field data, please check NSTA website: https://www.nstauthority.co.uk/data-centre/data-downloads-and-publications/field-data/","For further field data, please check NSTA website: https://www.nstauthority.co.uk/data-centre/data-downloads-and-publications/field-data/","Not available","Not available"]
[null,"Chrysaor Petroleum Company U.K. Limited","P1589","Chrysaor Petroleum Company U.K. Limited","Oil & Gas","For further field data, please check NSTA website: https://www.nstauthority.co.uk/data-centre/data-downloads-and-publications/field-data/","For further field data, please check NSTA website: https://www.nstauthority.co.uk/data-centre/data-downloads-and-publications/field-data/","For further field data, please check NSTA website: https://www.nstauthority.co.uk/data-centre/data-downloads-and-publications/field-data/","Not available","Not available"]
[null,"Chrysaor Petroleum Company U.K. Limited","P2221","Chrysaor Petroleum Company U.K. Limited","Oil & Gas","For further field data, please check NSTA website: https://www.nstauthority.co.uk/data-centre/data-downloads-and-publications/field-data/","For further field data, please check NSTA website: https://www.nstauthority.co.uk/data-centre/data-downloads-and-publications/field-data/","For further field data, please check NSTA website: https://www.nstauthority.co.uk/data-centre/data-downloads-and-publications/field-data/","Not available","Not available"]
[null,"CHRYSAOR PETROLEUM COMPANY U.K. LIMITED","P225","CHRYSAOR PETROLEUM COMPANY U.K. LIMITED","Oil & Gas","For further field data, please check NSTA website: https://www.nstauthority.co.uk/data-centre/data-downloads-and-publications/field-data/","For further field data, please check NSTA website: https://www.nstauthority.co.uk/data-centre/data-downloads-and-publications/field-data/","For further field data, please check NSTA website: https://www.nstauthority.co.uk/data-centre/data-downloads-and-publications/field-data/","Not available","Not available"]
[null,"CHRYSAOR PETROLEUM COMPANY U.K. LIMITED","P2399","CHRYSAOR PETROLEUM COMPANY U.K. LIMITED","Oil & Gas","For further field data, please check NSTA website: https://www.nstauthority.co.uk/data-centre/data-downloads-and-publications/field-data/","For further field data, please check NSTA website: https://www.nstauthority.co.uk/data-centre/data-downloads-and-publications/field-data/","For further field data, please check NSTA website: https://www.nstauthority.co.uk/data-centre/data-downloads-and-publications/field-data/","Not available","Not available"]
[null,"Chrysaor Petroleum Company U.K. Limited","P2456","Chrysaor Petroleum Company U.K. Limited","Oil & Gas","For further field data, please check NSTA website: https://www.nstauthority.co.uk/data-centre/data-downloads-and-publications/field-data/","For further field data, please check NSTA website: https://www.nstauthority.co.uk/data-centre/data-downloads-and-publications/field-data/","For further field data, please check NSTA website: https://www.nstauthority.co.uk/data-centre/data-downloads-and-publications/field-data/","Not available","Not available"]
[null,"Chrysaor Petroleum Company U.K. Limited","P2552","Chrysaor Petroleum Company U.K. Limited","Oil & Gas","For further field data, please check NSTA website: https://www.nstauthority.co.uk/data-centre/data-downloads-and-publications/field-data/","For further field data, please check NSTA website: https://www.nstauthority.co.uk/data-centre/data-downloads-and-publications/field-data/","For further field data, please check NSTA website: https://www.nstauthority.co.uk/data-centre/data-downloads-and-publications/field-data/","Not available","Not available"]
[null,"Chrysaor Petroleum Company U.K. Limited","P2555","Chrysaor Petroleum Company U.K. Limited","Oil & Gas","For further field data, please check NSTA website: https://www.nstauthority.co.uk/data-centre/data-downloads-and-publications/field-data/","For further field data, please check NSTA website: https://www.nstauthority.co.uk/data-centre/data-downloads-and-publications/field-data/","For further field data, please check NSTA website: https://www.nstauthority.co.uk/data-centre/data-downloads-and-publications/field-data/","Not available","Not available"]
[null,"Chrysaor Petroleum Company U.K. Limited","P28","Chrysaor Petroleum Company U.K. Limited","Oil & Gas","For further field data, please check NSTA website: https://www.nstauthority.co.uk/data-centre/data-downloads-and-publications/field-data/","For further field data, please check NSTA website: https://www.nstauthority.co.uk/data-centre/data-downloads-and-publications/field-data/","For further field data, please check NSTA website: https://www.nstauthority.co.uk/data-centre/data-downloads-and-publications/field-data/","Not available","Not available"]
[null,"Chrysaor Petroleum Company U.K. Limited","P32","Chrysaor Petroleum Company U.K. Limited","Oil & Gas","For further field data, please check NSTA website: https://www.nstauthority.co.uk/data-centre/data-downloads-and-publications/field-data/","For further field data, please check NSTA website: https://www.nstauthority.co.uk/data-centre/data-downloads-and-publications/field-data/","For further field data, please check NSTA website: https://www.nstauthority.co.uk/data-centre/data-downloads-and-publications/field-data/","Not available","Not available"]
[null,"Chrysaor Petroleum Company U.K. Limited","P672","Chrysaor Petroleum Company U.K. Limited","Oil & Gas","For further field data, please check NSTA website: https://www.nstauthority.co.uk/data-centre/data-downloads-and-publications/field-data/","For further field data, please check NSTA website: https://www.nstauthority.co.uk/data-centre/data-downloads-and-publications/field-data/","For further field data, please check NSTA website: https://www.nstauthority.co.uk/data-centre/data-downloads-and-publications/field-data/","Not available","Not available"]
[null,"CHRYSAOR PETROLEUM COMPANY U.K. LIMITED","P79","CHRYSAOR PETROLEUM COMPANY U.K. LIMITED","Oil & Gas","For further field data, please check NSTA website: https://www.nstauthority.co.uk/data-centre/data-downloads-and-publications/field-data/","For further field data, please check NSTA website: https://www.nstauthority.co.uk/data-centre/data-downloads-and-publications/field-data/","For further field data, please check NSTA website: https://www.nstauthority.co.uk/data-centre/data-downloads-and-publications/field-data/","Not available","Not available"]
[null,"Chrysaor Production (U.K) Limited","P103","Chrysaor Production (U.K) Limited","Oil & Gas","For further field data, please check NSTA website: https://www.nstauthority.co.uk/data-centre/data-downloads-and-publications/field-data/","For further field data, please check NSTA website: https://www.nstauthority.co.uk/data-centre/data-downloads-and-publications/field-data/","For further field data, please check NSTA website: https://www.nstauthority.co.uk/data-centre/data-downloads-and-publications/field-data/","Not available","Not available"]
[null,"Chrysaor Production (U.K) Limited","P130","Chrysaor Production (U.K) Limited","Oil & Gas","For further field data, please check NSTA website: https://www.nstauthority.co.uk/data-centre/data-downloads-and-publications/field-data/","For further field data, please check NSTA website: https://www.nstauthority.co.uk/data-centre/data-downloads-and-publications/field-data/","For further field data, please check NSTA website: https://www.nstauthority.co.uk/data-centre/data-downloads-and-publications/field-data/","Not available","Not available"]
[null,"Chrysaor Production (U.K) Limited","P2522","Chrysaor Production (U.K) Limited","Oil & Gas","For further field data, please check NSTA website: https://www.nstauthority.co.uk/data-centre/data-downloads-and-publications/field-data/","For further field data, please check NSTA website: https://www.nstauthority.co.uk/data-centre/data-downloads-and-publications/field-data/","For further field data, please check NSTA website: https://www.nstauthority.co.uk/data-centre/data-downloads-and-publications/field-data/","Not available","Not available"]
[null,"Chrysaor Production (U.K) Limited","P2523","Chrysaor Production (U.K) Limited","Oil & Gas","For further field data, please check NSTA website: https://www.nstauthority.co.uk/data-centre/data-downloads-and-publications/field-data/","For further field data, please check NSTA website: https://www.nstauthority.co.uk/data-centre/data-downloads-and-publications/field-data/","For further field data, please check NSTA website: https://www.nstauthority.co.uk/data-centre/data-downloads-and-publications/field-data/","Not available","Not available"]
[null,"Chrysaor Production (U.K) Limited","P2525","Chrysaor Production (U.K) Limited","Oil & Gas","For further field data, please check NSTA website: https://www.nstauthority.co.uk/data-centre/data-downloads-and-publications/field-data/","For further field data, please check NSTA website: https://www.nstauthority.co.uk/data-centre/data-downloads-and-publications/field-data/","For further field data, please check NSTA website: https://www.nstauthority.co.uk/data-centre/data-downloads-and-publications/field-data/","Not available","Not available"]
[null,"Chrysaor Production (U.K) Limited","P2537","Chrysaor Production (U.K) Limited","Oil & Gas","For further field data, please check NSTA website: https://www.nstauthority.co.uk/data-centre/data-downloads-and-publications/field-data/","For further field data, please check NSTA website: https://www.nstauthority.co.uk/data-centre/data-downloads-and-publications/field-data/","For further field data, please check NSTA website: https://www.nstauthority.co.uk/data-centre/data-downloads-and-publications/field-data/","Not available","Not available"]
[null,"Chrysaor Production (U.K) Limited","P33","Chrysaor Production (U.K) Limited","Oil & Gas","For further field data, please check NSTA website: https://www.nstauthority.co.uk/data-centre/data-downloads-and-publications/field-data/","For further field data, please check NSTA website: https://www.nstauthority.co.uk/data-centre/data-downloads-and-publications/field-data/","For further field data, please check NSTA website: https://www.nstauthority.co.uk/data-centre/data-downloads-and-publications/field-data/","Not available","Not available"]
[null,"Chrysaor Production (U.K) Limited","P347","Chrysaor Production (U.K) Limited","Oil & Gas","For further field data, please check NSTA website: https://www.nstauthority.co.uk/data-centre/data-downloads-and-publications/field-data/","For further field data, please check NSTA website: https://www.nstauthority.co.uk/data-centre/data-downloads-and-publications/field-data/","For further field data, please check NSTA website: https://www.nstauthority.co.uk/data-centre/data-downloads-and-publications/field-data/","Not available","Not available"]
[null,"Chrysaor Production (U.K) Limited","P590","Chrysaor Production (U.K) Limited","Oil & Gas","For further field data, please check NSTA website: https://www.nstauthority.co.uk/data-centre/data-downloads-and-publications/field-data/","For further field data, please check NSTA website: https://www.nstauthority.co.uk/data-centre/data-downloads-and-publications/field-data/","For further field data, please check NSTA website: https://www.nstauthority.co.uk/data-centre/data-downloads-and-publications/field-data/","Not available","Not available"]
[null,"Chrysaor Production (U.K) Limited","P741","Chrysaor Production (U.K) Limited","Oil & Gas","For further field data, please check NSTA website: https://www.nstauthority.co.uk/data-centre/data-downloads-and-publications/field-data/","For further field data, please check NSTA website: https://www.nstauthority.co.uk/data-centre/data-downloads-and-publications/field-data/","For further field data, please check NSTA website: https://www.nstauthority.co.uk/data-centre/data-downloads-and-publications/field-data/","Not available","Not available"]
[null,"Chrysaor Resources ( Irish Sea) Limited","P251","Chrysaor Resources ( Irish Sea) Limited","Oil & Gas","For further field data, please check NSTA website: https://www.nstauthority.co.uk/data-centre/data-downloads-and-publications/field-data/","For further field data, please check NSTA website: https://www.nstauthority.co.uk/data-centre/data-downloads-and-publications/field-data/","For further field data, please check NSTA website: https://www.nstauthority.co.uk/data-centre/data-downloads-and-publications/field-data/","Not available","Not available"]
[null,"Chrysaor Resources ( Irish Sea) Limited","P287","Chrysaor Resources ( Irish Sea) Limited","Oil & Gas","For further field data, please check NSTA website: https://www.nstauthority.co.uk/data-centre/data-downloads-and-publications/field-data/","For further field data, please check NSTA website: https://www.nstauthority.co.uk/data-centre/data-downloads-and-publications/field-data/","For further field data, please check NSTA website: https://www.nstauthority.co.uk/data-centre/data-downloads-and-publications/field-data/","Not available","Not available"]
[null,"Chrysaor Resources ( Irish Sea) Limited","P547","Chrysaor Resources ( Irish Sea) Limited","Oil & Gas","For further field data, please check NSTA website: https://www.nstauthority.co.uk/data-centre/data-downloads-and-publications/field-data/","For further field data, please check NSTA website: https://www.nstauthority.co.uk/data-centre/data-downloads-and-publications/field-data/","For further field data, please check NSTA website: https://www.nstauthority.co.uk/data-centre/data-downloads-and-publications/field-data/","Not available","Not available"]
[null,"Chrysaor Resources ( Irish Sea) Limited","P706","Chrysaor Resources ( Irish Sea) Limited","Oil & Gas","For further field data, please check NSTA website: https://www.nstauthority.co.uk/data-centre/data-downloads-and-publications/field-data/","For further field data, please check NSTA website: https://www.nstauthority.co.uk/data-centre/data-downloads-and-publications/field-data/","For further field data, please check NSTA website: https://www.nstauthority.co.uk/data-centre/data-downloads-and-publications/field-data/","Not available","Not available"]
[null,"Chrysaor Resources ( Irish Sea) Limited","P99","Chrysaor Resources ( Irish Sea) Limited","Oil & Gas","For further field data, please check NSTA website: https://www.nstauthority.co.uk/data-centre/data-downloads-and-publications/field-data/","For further field data, please check NSTA website: https://www.nstauthority.co.uk/data-centre/data-downloads-and-publications/field-data/","For further field data, please check NSTA website: https://www.nstauthority.co.uk/data-centre/data-downloads-and-publications/field-data/","Not available","Not available"]
[null,"CNOOC PETROLEUM EUROPE LIMITED","P2279","CNOOC PETROLEUM EUROPE LIMITED","Oil & Gas","For further field data, please check NSTA website: https://www.nstauthority.co.uk/data-centre/data-downloads-and-publications/field-data/","For further field data, please check NSTA website: https://www.nstauthority.co.uk/data-centre/data-downloads-and-publications/field-data/","For further field data, please check NSTA website: https://www.nstauthority.co.uk/data-centre/data-downloads-and-publications/field-data/","Not available","Not available"]
[null,"Cnooc Petroleum Europe Ltd","P1298","Cnooc Petroleum Europe Ltd","Oil & Gas","For further field data, please check NSTA website: https://www.nstauthority.co.uk/data-centre/data-downloads-and-publications/field-data/","For further field data, please check NSTA website: https://www.nstauthority.co.uk/data-centre/data-downloads-and-publications/field-data/","For further field data, please check NSTA website: https://www.nstauthority.co.uk/data-centre/data-downloads-and-publications/field-data/","Not available","Not available"]
[null,"Cnooc Petroleum Europe Ltd","P218","Cnooc Petroleum Europe Ltd","Oil & Gas","For further field data, please check NSTA website: https://www.nstauthority.co.uk/data-centre/data-downloads-and-publications/field-data/","For further field data, please check NSTA website: https://www.nstauthority.co.uk/data-centre/data-downloads-and-publications/field-data/","For further field data, please check NSTA website: https://www.nstauthority.co.uk/data-centre/data-downloads-and-publications/field-data/","Not available","Not available"]
[null,"Cnooc Petroleum Europe Ltd","P2215","Cnooc Petroleum Europe Ltd","Oil & Gas","For further field data, please check NSTA website: https://www.nstauthority.co.uk/data-centre/data-downloads-and-publications/field-data/","For further field data, please check NSTA website: https://www.nstauthority.co.uk/data-centre/data-downloads-and-publications/field-data/","For further field data, please check NSTA website: https://www.nstauthority.co.uk/data-centre/data-downloads-and-publications/field-data/","Not available","Not available"]
[null,"Cnooc Petroleum Europe Ltd","P226","Cnooc Petroleum Europe Ltd","Oil & Gas","For further field data, please check NSTA website: https://www.nstauthority.co.uk/data-centre/data-downloads-and-publications/field-data/","For further field data, please check NSTA website: https://www.nstauthority.co.uk/data-centre/data-downloads-and-publications/field-data/","For further field data, please check NSTA website: https://www.nstauthority.co.uk/data-centre/data-downloads-and-publications/field-data/","Not available","Not available"]
[null,"Cnooc Petroleum Europe Ltd","P300","Cnooc Petroleum Europe Ltd","Oil & Gas","For further field data, please check NSTA website: https://www.nstauthority.co.uk/data-centre/data-downloads-and-publications/field-data/","For further field data, please check NSTA website: https://www.nstauthority.co.uk/data-centre/data-downloads-and-publications/field-data/","For further field data, please check NSTA website: https://www.nstauthority.co.uk/data-centre/data-downloads-and-publications/field-data/","Not available","Not available"]
[null,"Cnooc Petroleum Europe Ltd","P928","Cnooc Petroleum Europe Ltd","Oil & Gas","For further field data, please check NSTA website: https://www.nstauthority.co.uk/data-centre/data-downloads-and-publications/field-data/","For further field data, please check NSTA website: https://www.nstauthority.co.uk/data-centre/data-downloads-and-publications/field-data/","For further field data, please check NSTA website: https://www.nstauthority.co.uk/data-centre/data-downloads-and-publications/field-data/","Not available","Not available"]
[null,"Cnooc Petroleum Europe Ltd","P986","Cnooc Petroleum Europe Ltd","Oil & Gas","For further field data, please check NSTA website: https://www.nstauthority.co.uk/data-centre/data-downloads-and-publications/field-data/","For further field data, please check NSTA website: https://www.nstauthority.co.uk/data-centre/data-downloads-and-publications/field-data/","For further field data, please check NSTA website: https://www.nstauthority.co.uk/data-centre/data-downloads-and-publications/field-data/","Not available","Not available"]
[null,"CNR International (UK) Ltd","P199","CNR International (UK) Ltd","Oil & Gas","For further field data, please check NSTA website: https://www.nstauthority.co.uk/data-centre/data-downloads-and-publications/field-data/","For further field data, please check NSTA website: https://www.nstauthority.co.uk/data-centre/data-downloads-and-publications/field-data/","For further field data, please check NSTA website: https://www.nstauthority.co.uk/data-centre/data-downloads-and-publications/field-data/","Not available","Not available"]
[null,"CNR International (UK) Ltd","P202","CNR International (UK) Ltd","Oil & Gas","For further field data, please check NSTA website: https://www.nstauthority.co.uk/data-centre/data-downloads-and-publications/field-data/","For further field data, please check NSTA website: https://www.nstauthority.co.uk/data-centre/data-downloads-and-publications/field-data/","For further field data, please check NSTA website: https://www.nstauthority.co.uk/data-centre/data-downloads-and-publications/field-data/","Not available","Not available"]
[null,"CNR International (UK) Ltd","P203","CNR International (UK) Ltd","Oil & Gas","For further field data, please check NSTA website: https://www.nstauthority.co.uk/data-centre/data-downloads-and-publications/field-data/","For further field data, please check NSTA website: https://www.nstauthority.co.uk/data-centre/data-downloads-and-publications/field-data/","For further field data, please check NSTA website: https://www.nstauthority.co.uk/data-centre/data-downloads-and-publications/field-data/","Not available","Not available"]
[null,"CNR International (UK) Ltd","P204","CNR International (UK) Ltd","Oil & Gas","For further field data, please check NSTA website: https://www.nstauthority.co.uk/data-centre/data-downloads-and-publications/field-data/","For further field data, please check NSTA website: https://www.nstauthority.co.uk/data-centre/data-downloads-and-publications/field-data/","For further field data, please check NSTA website: https://www.nstauthority.co.uk/data-centre/data-downloads-and-publications/field-data/","Not available","Not available"]
[null,"CNR International (UK) Ltd","P329","CNR International (UK) Ltd","Oil & Gas","For further field data, please check NSTA website: https://www.nstauthority.co.uk/data-centre/data-downloads-and-publications/field-data/","For further field data, please check NSTA website: https://www.nstauthority.co.uk/data-centre/data-downloads-and-publications/field-data/","For further field data, please check NSTA website: https://www.nstauthority.co.uk/data-centre/data-downloads-and-publications/field-data/","Not available","Not available"]
[null,"CONOCOPHILLIPS (U.K.) HOLDINGS LIMITED","P2220","CONOCOPHILLIPS (U.K.) HOLDINGS LIMITED","Oil & Gas","For further field data, please check NSTA website: https://www.nstauthority.co.uk/data-centre/data-downloads-and-publications/field-data/","For further field data, please check NSTA website: https://www.nstauthority.co.uk/data-centre/data-downloads-and-publications/field-data/","For further field data, please check NSTA website: https://www.nstauthority.co.uk/data-centre/data-downloads-and-publications/field-data/","Not available","Not available"]
[null,"CORALLIAN ENERGY LIMITED","P2396","CORALLIAN ENERGY LIMITED","Oil & Gas","For further field data, please check NSTA website: https://www.nstauthority.co.uk/data-centre/data-downloads-and-publications/field-data/","For further field data, please check NSTA website: https://www.nstauthority.co.uk/data-centre/data-downloads-and-publications/field-data/","For further field data, please check NSTA website: https://www.nstauthority.co.uk/data-centre/data-downloads-and-publications/field-data/","Not available","Not available"]
[null,"CORALLIAN ENERGY LIMITED","P2504","CORALLIAN ENERGY LIMITED","Oil & Gas","For further field data, please check NSTA website: https://www.nstauthority.co.uk/data-centre/data-downloads-and-publications/field-data/","For further field data, please check NSTA website: https://www.nstauthority.co.uk/data-centre/data-downloads-and-publications/field-data/","For further field data, please check NSTA website: https://www.nstauthority.co.uk/data-centre/data-downloads-and-publications/field-data/","Not available","Not available"]
[null,"CORALLIAN ENERGY LIMITED","P2596","CORALLIAN ENERGY LIMITED","Oil & Gas","For further field data, please check NSTA website: https://www.nstauthority.co.uk/data-centre/data-downloads-and-publications/field-data/","For further field data, please check NSTA website: https://www.nstauthority.co.uk/data-centre/data-downloads-and-publications/field-data/","For further field data, please check NSTA website: https://www.nstauthority.co.uk/data-centre/data-downloads-and-publications/field-data/","Not available","Not available"]
[null,"CORALLIAN ENERGY LIMITED","P2605","CORALLIAN ENERGY LIMITED","Oil & Gas","For further field data, please check NSTA website: https://www.nstauthority.co.uk/data-centre/data-downloads-and-publications/field-data/","For further field data, please check NSTA website: https://www.nstauthority.co.uk/data-centre/data-downloads-and-publications/field-data/","For further field data, please check NSTA website: https://www.nstauthority.co.uk/data-centre/data-downloads-and-publications/field-data/","Not available","Not available"]
[null,"Corallian Energy Ltd","P2464","Corallian Energy Ltd","Oil & Gas","For further field data, please check NSTA website: https://www.nstauthority.co.uk/data-centre/data-downloads-and-publications/field-data/","For further field data, please check NSTA website: https://www.nstauthority.co.uk/data-centre/data-downloads-and-publications/field-data/","For further field data, please check NSTA website: https://www.nstauthority.co.uk/data-centre/data-downloads-and-publications/field-data/","Not available","Not available"]
[null,"Corallian Energy Ltd","P2478","Corallian Energy Ltd","Oil & Gas","For further field data, please check NSTA website: https://www.nstauthority.co.uk/data-centre/data-downloads-and-publications/field-data/","For further field data, please check NSTA website: https://www.nstauthority.co.uk/data-centre/data-downloads-and-publications/field-data/","For further field data, please check NSTA website: https://www.nstauthority.co.uk/data-centre/data-downloads-and-publications/field-data/","Not available","Not available"]
[null,"Corallian Energy Ltd","P2493","Corallian Energy Ltd","Oil & Gas","For further field data, please check NSTA website: https://www.nstauthority.co.uk/data-centre/data-downloads-and-publications/field-data/","For further field data, please check NSTA website: https://www.nstauthority.co.uk/data-centre/data-downloads-and-publications/field-data/","For further field data, please check NSTA website: https://www.nstauthority.co.uk/data-centre/data-downloads-and-publications/field-data/","Not available","Not available"]
[null,"CORNERSTONE NORTH SEA LTD","P2433","CORNERSTONE NORTH SEA LTD","Oil & Gas","For further field data, please check NSTA website: https://www.nstauthority.co.uk/data-centre/data-downloads-and-publications/field-data/","For further field data, please check NSTA website: https://www.nstauthority.co.uk/data-centre/data-downloads-and-publications/field-data/","For further field data, please check NSTA website: https://www.nstauthority.co.uk/data-centre/data-downloads-and-publications/field-data/","Not available","Not available"]
[null,"CORNERSTONE OIL AND GAS LTD","P2582","CORNERSTONE OIL AND GAS LTD","Oil & Gas","For further field data, please check NSTA website: https://www.nstauthority.co.uk/data-centre/data-downloads-and-publications/field-data/","For further field data, please check NSTA website: https://www.nstauthority.co.uk/data-centre/data-downloads-and-publications/field-data/","For further field data, please check NSTA website: https://www.nstauthority.co.uk/data-centre/data-downloads-and-publications/field-data/","Not available","Not available"]
[null,"CORNERSTONE OIL AND GAS LTD","P2598","CORNERSTONE OIL AND GAS LTD","Oil & Gas","For further field data, please check NSTA website: https://www.nstauthority.co.uk/data-centre/data-downloads-and-publications/field-data/","For further field data, please check NSTA website: https://www.nstauthority.co.uk/data-centre/data-downloads-and-publications/field-data/","For further field data, please check NSTA website: https://www.nstauthority.co.uk/data-centre/data-downloads-and-publications/field-data/","Not available","Not available"]
[null,"COURAGE ENERGY (U.K.) LIMITED","PEDL90","COURAGE ENERGY (U.K.) LIMITED","Oil & Gas","For further field data, please check NSTA website: https://www.nstauthority.co.uk/data-centre/data-downloads-and-publications/field-data/","For further field data, please check NSTA website: https://www.nstauthority.co.uk/data-centre/data-downloads-and-publications/field-data/","For further field data, please check NSTA website: https://www.nstauthority.co.uk/data-centre/data-downloads-and-publications/field-data/","Not available","Not available"]
[null,"Crogga (UK) Ltd","E458","Crogga (UK) Ltd","Oil & Gas","For further field data, please check NSTA website: https://www.nstauthority.co.uk/data-centre/data-downloads-and-publications/field-data/","For further field data, please check NSTA website: https://www.nstauthority.co.uk/data-centre/data-downloads-and-publications/field-data/","For further field data, please check NSTA website: https://www.nstauthority.co.uk/data-centre/data-downloads-and-publications/field-data/","Not available","Not available"]
[null,"Crogga (UK) Ltd","E472","Crogga (UK) Ltd","Oil & Gas","For further field data, please check NSTA website: https://www.nstauthority.co.uk/data-centre/data-downloads-and-publications/field-data/","For further field data, please check NSTA website: https://www.nstauthority.co.uk/data-centre/data-downloads-and-publications/field-data/","For further field data, please check NSTA website: https://www.nstauthority.co.uk/data-centre/data-downloads-and-publications/field-data/","Not available","Not available"]
[null,"Crown Farm Quarry","Licence","Tarmac Holdings Limited","Not available","Not applicable","Not applicable","Not applicable","Not applicable","Not applicable"]
[null,"DANA PETROLEUM (E&P) LIMITED","P1242","DANA PETROLEUM (E&P) LIMITED","Oil & Gas","For further field data, please check NSTA website: https://www.nstauthority.co.uk/data-centre/data-downloads-and-publications/field-data/","For further field data, please check NSTA website: https://www.nstauthority.co.uk/data-centre/data-downloads-and-publications/field-data/","For further field data, please check NSTA website: https://www.nstauthority.co.uk/data-centre/data-downloads-and-publications/field-data/","Not available","Not available"]
[null,"Dana Petroleum (E&P) Ltd","P21","Dana Petroleum (E&P) Ltd","Oil & Gas","For further field data, please check NSTA website: https://www.nstauthority.co.uk/data-centre/data-downloads-and-publications/field-data/","For further field data, please check NSTA website: https://www.nstauthority.co.uk/data-centre/data-downloads-and-publications/field-data/","For further field data, please check NSTA website: https://www.nstauthority.co.uk/data-centre/data-downloads-and-publications/field-data/","Not available","Not available"]
[null,"Dana Petroleum (E&P) Ltd","P215","Dana Petroleum (E&P) Ltd","Oil & Gas","For further field data, please check NSTA website: https://www.nstauthority.co.uk/data-centre/data-downloads-and-publications/field-data/","For further field data, please check NSTA website: https://www.nstauthority.co.uk/data-centre/data-downloads-and-publications/field-data/","For further field data, please check NSTA website: https://www.nstauthority.co.uk/data-centre/data-downloads-and-publications/field-data/","Not available","Not available"]
[null,"Dana Petroleum (E&P) Ltd","P2349","Dana Petroleum (E&P) Ltd","Oil & Gas","For further field data, please check NSTA website: https://www.nstauthority.co.uk/data-centre/data-downloads-and-publications/field-data/","For further field data, please check NSTA website: https://www.nstauthority.co.uk/data-centre/data-downloads-and-publications/field-data/","For further field data, please check NSTA website: https://www.nstauthority.co.uk/data-centre/data-downloads-and-publications/field-data/","Not available","Not available"]
[null,"Dana Petroleum (E&P) Ltd","P2563","Dana Petroleum (E&P) Ltd","Oil & Gas","For further field data, please check NSTA website: https://www.nstauthority.co.uk/data-centre/data-downloads-and-publications/field-data/","For further field data, please check NSTA website: https://www.nstauthority.co.uk/data-centre/data-downloads-and-publications/field-data/","For further field data, please check NSTA website: https://www.nstauthority.co.uk/data-centre/data-downloads-and-publications/field-data/","Not available","Not available"]
[null,"Dana Petroleum (E&P) Ltd","P353","Dana Petroleum (E&P) Ltd","Oil & Gas","For further field data, please check NSTA website: https://www.nstauthority.co.uk/data-centre/data-downloads-and-publications/field-data/","For further field data, please check NSTA website: https://www.nstauthority.co.uk/data-centre/data-downloads-and-publications/field-data/","For further field data, please check NSTA website: https://www.nstauthority.co.uk/data-centre/data-downloads-and-publications/field-data/","Not available","Not available"]
[null,"Dana Petroleum (E&P) Ltd","P361","Dana Petroleum (E&P) Ltd","Oil & Gas","For further field data, please check NSTA website: https://www.nstauthority.co.uk/data-centre/data-downloads-and-publications/field-data/","For further field data, please check NSTA website: https://www.nstauthority.co.uk/data-centre/data-downloads-and-publications/field-data/","For further field data, please check NSTA website: https://www.nstauthority.co.uk/data-centre/data-downloads-and-publications/field-data/","Not available","Not available"]
[null,"Dana Petroleum (E&P) Ltd","P472","Dana Petroleum (E&P) Ltd","Oil & Gas","For further field data, please check NSTA website: https://www.nstauthority.co.uk/data-centre/data-downloads-and-publications/field-data/","For further field data, please check NSTA website: https://www.nstauthority.co.uk/data-centre/data-downloads-and-publications/field-data/","For further field data, please check NSTA website: https://www.nstauthority.co.uk/data-centre/data-downloads-and-publications/field-data/","Not available","Not available"]
[null,"DECIPHER DEVELOPMENTS LIMITED","P2311","DECIPHER DEVELOPMENTS LIMITED","Oil & Gas","For further field data, please check NSTA website: https://www.nstauthority.co.uk/data-centre/data-downloads-and-publications/field-data/","For further field data, please check NSTA website: https://www.nstauthority.co.uk/data-centre/data-downloads-and-publications/field-data/","For further field data, please check NSTA website: https://www.nstauthority.co.uk/data-centre/data-downloads-and-publications/field-data/","Not available","Not available"]
[null,"DELTIC ENERGY PLC","P2352","DELTIC ENERGY PLC","Oil & Gas","For further field data, please check NSTA website: https://www.nstauthority.co.uk/data-centre/data-downloads-and-publications/field-data/","For further field data, please check NSTA website: https://www.nstauthority.co.uk/data-centre/data-downloads-and-publications/field-data/","For further field data, please check NSTA website: https://www.nstauthority.co.uk/data-centre/data-downloads-and-publications/field-data/","Not available","Not available"]
[null,"DELTIC ENERGY PLC","P2384","DELTIC ENERGY PLC","Oil & Gas","For further field data, please check NSTA website: https://www.nstauthority.co.uk/data-centre/data-downloads-and-publications/field-data/","For further field data, please check NSTA website: https://www.nstauthority.co.uk/data-centre/data-downloads-and-publications/field-data/","For further field data, please check NSTA website: https://www.nstauthority.co.uk/data-centre/data-downloads-and-publications/field-data/","Not available","Not available"]
[null,"DELTIC ENERGY PLC","P2424","DELTIC ENERGY PLC","Oil & Gas","For further field data, please check NSTA website: https://www.nstauthority.co.uk/data-centre/data-downloads-and-publications/field-data/","For further field data, please check NSTA website: https://www.nstauthority.co.uk/data-centre/data-downloads-and-publications/field-data/","For further field data, please check NSTA website: https://www.nstauthority.co.uk/data-centre/data-downloads-and-publications/field-data/","Not available","Not available"]
[null,"DELTIC ENERGY PLC","P2542","DELTIC ENERGY PLC","Oil & Gas","For further field data, please check NSTA website: https://www.nstauthority.co.uk/data-centre/data-downloads-and-publications/field-data/","For further field data, please check NSTA website: https://www.nstauthority.co.uk/data-centre/data-downloads-and-publications/field-data/","For further field data, please check NSTA website: https://www.nstauthority.co.uk/data-centre/data-downloads-and-publications/field-data/","Not available","Not available"]
[null,"DELTIC ENERGY PLC","P2558","DELTIC ENERGY PLC","Oil & Gas","For further field data, please check NSTA website: https://www.nstauthority.co.uk/data-centre/data-downloads-and-publications/field-data/","For further field data, please check NSTA website: https://www.nstauthority.co.uk/data-centre/data-downloads-and-publications/field-data/","For further field data, please check NSTA website: https://www.nstauthority.co.uk/data-centre/data-downloads-and-publications/field-data/","Not available","Not available"]
[null,"DNO NORTH SEA (U.K.) LIMITED","P2472","DNO NORTH SEA (U.K.) LIMITED","Oil & Gas","For further field data, please check NSTA website: https://www.nstauthority.co.uk/data-centre/data-downloads-and-publications/field-data/","For further field data, please check NSTA website: https://www.nstauthority.co.uk/data-centre/data-downloads-and-publications/field-data/","For further field data, please check NSTA website: https://www.nstauthority.co.uk/data-centre/data-downloads-and-publications/field-data/","Not available","Not available"]
[null,"DNO North Sea (U.K.) Limited","P2548","DNO North Sea (U.K.) Limited","Oil & Gas","For further field data, please check NSTA website: https://www.nstauthority.co.uk/data-centre/data-downloads-and-publications/field-data/","For further field data, please check NSTA website: https://www.nstauthority.co.uk/data-centre/data-downloads-and-publications/field-data/","For further field data, please check NSTA website: https://www.nstauthority.co.uk/data-centre/data-downloads-and-publications/field-data/","Not available","Not available"]
[null,"DNO North Sea (U.K.) Limited","P2551","DNO North Sea (U.K.) Limited","Oil & Gas","For further field data, please check NSTA website: https://www.nstauthority.co.uk/data-centre/data-downloads-and-publications/field-data/","For further field data, please check NSTA website: https://www.nstauthority.co.uk/data-centre/data-downloads-and-publications/field-data/","For further field data, please check NSTA website: https://www.nstauthority.co.uk/data-centre/data-downloads-and-publications/field-data/","Not available","Not available"]
[null,"Draupner Energy Ltd","P2331","Draupner Energy Ltd","Oil & Gas","For further field data, please check NSTA website: https://www.nstauthority.co.uk/data-centre/data-downloads-and-publications/field-data/","For further field data, please check NSTA website: https://www.nstauthority.co.uk/data-centre/data-downloads-and-publications/field-data/","For further field data, please check NSTA website: https://www.nstauthority.co.uk/data-centre/data-downloads-and-publications/field-data/","Not available","Not available"]
[null,"Draupner Energy Ltd","P2487","Draupner Energy Ltd","Oil & Gas","For further field data, please check NSTA website: https://www.nstauthority.co.uk/data-centre/data-downloads-and-publications/field-data/","For further field data, please check NSTA website: https://www.nstauthority.co.uk/data-centre/data-downloads-and-publications/field-data/","For further field data, please check NSTA website: https://www.nstauthority.co.uk/data-centre/data-downloads-and-publications/field-data/","Not available","Not available"]
[null,"Egdon Resources (UK) Ltd","EXL294","Egdon Resources (UK) Ltd","Oil & Gas","For further field data, please check NSTA website: https://www.nstauthority.co.uk/data-centre/data-downloads-and-publications/field-data/","For further field data, please check NSTA website: https://www.nstauthority.co.uk/data-centre/data-downloads-and-publications/field-data/","For further field data, please check NSTA website: https://www.nstauthority.co.uk/data-centre/data-downloads-and-publications/field-data/","Not available","Not available"]
[null,"Egdon Resources (UK) Ltd","PEDL118","Egdon Resources (UK) Ltd","Oil & Gas","For further field data, please check NSTA website: https://www.nstauthority.co.uk/data-centre/data-downloads-and-publications/field-data/","For further field data, please check NSTA website: https://www.nstauthority.co.uk/data-centre/data-downloads-and-publications/field-data/","For further field data, please check NSTA website: https://www.nstauthority.co.uk/data-centre/data-downloads-and-publications/field-data/","Not available","Not available"]
[null,"Egdon Resources (UK) Ltd","PEDL130","Egdon Resources (UK) Ltd","Oil & Gas","For further field data, please check NSTA website: https://www.nstauthority.co.uk/data-centre/data-downloads-and-publications/field-data/","For further field data, please check NSTA website: https://www.nstauthority.co.uk/data-centre/data-downloads-and-publications/field-data/","For further field data, please check NSTA website: https://www.nstauthority.co.uk/data-centre/data-downloads-and-publications/field-data/","Not available","Not available"]
[null,"Egdon Resources (UK) Ltd","PEDL141","Egdon Resources (UK) Ltd","Oil & Gas","For further field data, please check NSTA website: https://www.nstauthority.co.uk/data-centre/data-downloads-and-publications/field-data/","For further field data, please check NSTA website: https://www.nstauthority.co.uk/data-centre/data-downloads-and-publications/field-data/","For further field data, please check NSTA website: https://www.nstauthority.co.uk/data-centre/data-downloads-and-publications/field-data/","Not available","Not available"]
[null,"Egdon Resources (UK) Ltd","PEDL182","Egdon Resources (UK) Ltd","Oil & Gas","For further field data, please check NSTA website: https://www.nstauthority.co.uk/data-centre/data-downloads-and-publications/field-data/","For further field data, please check NSTA website: https://www.nstauthority.co.uk/data-centre/data-downloads-and-publications/field-data/","For further field data, please check NSTA website: https://www.nstauthority.co.uk/data-centre/data-downloads-and-publications/field-data/","Not available","Not available"]
[null,"Egdon Resources (UK) Ltd","PEDL191","Egdon Resources (UK) Ltd","Oil & Gas","For further field data, please check NSTA website: https://www.nstauthority.co.uk/data-centre/data-downloads-and-publications/field-data/","For further field data, please check NSTA website: https://www.nstauthority.co.uk/data-centre/data-downloads-and-publications/field-data/","For further field data, please check NSTA website: https://www.nstauthority.co.uk/data-centre/data-downloads-and-publications/field-data/","Not available","Not available"]
[null,"Egdon Resources (UK) Ltd","PEDL201","Egdon Resources (UK) Ltd","Oil & Gas","For further field data, please check NSTA website: https://www.nstauthority.co.uk/data-centre/data-downloads-and-publications/field-data/","For further field data, please check NSTA website: https://www.nstauthority.co.uk/data-centre/data-downloads-and-publications/field-data/","For further field data, please check NSTA website: https://www.nstauthority.co.uk/data-centre/data-downloads-and-publications/field-data/","Not available","Not available"]
[null,"Egdon Resources (UK) Ltd","PEDL203","Egdon Resources (UK) Ltd","Oil & Gas","For further field data, please check NSTA website: https://www.nstauthority.co.uk/data-centre/data-downloads-and-publications/field-data/","For further field data, please check NSTA website: https://www.nstauthority.co.uk/data-centre/data-downloads-and-publications/field-data/","For further field data, please check NSTA website: https://www.nstauthority.co.uk/data-centre/data-downloads-and-publications/field-data/","Not available","Not available"]
[null,"Egdon Resources (UK) Ltd","PEDL241","Egdon Resources (UK) Ltd","Oil & Gas","For further field data, please check NSTA website: https://www.nstauthority.co.uk/data-centre/data-downloads-and-publications/field-data/","For further field data, please check NSTA website: https://www.nstauthority.co.uk/data-centre/data-downloads-and-publications/field-data/","For further field data, please check NSTA website: https://www.nstauthority.co.uk/data-centre/data-downloads-and-publications/field-data/","Not available","Not available"]
[null,"Egdon Resources (UK) Ltd","PEDL253","Egdon Resources (UK) Ltd","Oil & Gas","For further field data, please check NSTA website: https://www.nstauthority.co.uk/data-centre/data-downloads-and-publications/field-data/","For further field data, please check NSTA website: https://www.nstauthority.co.uk/data-centre/data-downloads-and-publications/field-data/","For further field data, please check NSTA website: https://www.nstauthority.co.uk/data-centre/data-downloads-and-publications/field-data/","Not available","Not available"]
[null,"Egdon Resources (UK) Ltd","PEDL306","Egdon Resources (UK) Ltd","Oil & Gas","For further field data, please check NSTA website: https://www.nstauthority.co.uk/data-centre/data-downloads-and-publications/field-data/","For further field data, please check NSTA website: https://www.nstauthority.co.uk/data-centre/data-downloads-and-publications/field-data/","For further field data, please check NSTA website: https://www.nstauthority.co.uk/data-centre/data-downloads-and-publications/field-data/","Not available","Not available"]
[null,"Egdon Resources (UK) Ltd","PEDL334","Egdon Resources (UK) Ltd","Oil & Gas","For further field data, please check NSTA website: https://www.nstauthority.co.uk/data-centre/data-downloads-and-publications/field-data/","For further field data, please check NSTA website: https://www.nstauthority.co.uk/data-centre/data-downloads-and-publications/field-data/","For further field data, please check NSTA website: https://www.nstauthority.co.uk/data-centre/data-downloads-and-publications/field-data/","Not available","Not available"]
[null,"Egdon Resources (UK) Ltd","PEDL343","Egdon Resources (UK) Ltd","Oil & Gas","For further field data, please check NSTA website: https://www.nstauthority.co.uk/data-centre/data-downloads-and-publications/field-data/","For further field data, please check NSTA website: https://www.nstauthority.co.uk/data-centre/data-downloads-and-publications/field-data/","For further field data, please check NSTA website: https://www.nstauthority.co.uk/data-centre/data-downloads-and-publications/field-data/","Not available","Not available"]
[null,"Egdon Resources (UK) Ltd","PEDL68","Egdon Resources (UK) Ltd","Oil & Gas","For further field data, please check NSTA website: https://www.nstauthority.co.uk/data-centre/data-downloads-and-publications/field-data/","For further field data, please check NSTA website: https://www.nstauthority.co.uk/data-centre/data-downloads-and-publications/field-data/","For further field data, please check NSTA website: https://www.nstauthority.co.uk/data-centre/data-downloads-and-publications/field-data/","Not available","Not available"]
[null,"Egdon Resources (UK) Ltd","PL90","Egdon Resources (UK) Ltd","Oil & Gas","For further field data, please check NSTA website: https://www.nstauthority.co.uk/data-centre/data-downloads-and-publications/field-data/","For further field data, please check NSTA website: https://www.nstauthority.co.uk/data-centre/data-downloads-and-publications/field-data/","For further field data, please check NSTA website: https://www.nstauthority.co.uk/data-centre/data-downloads-and-publications/field-data/","Not available","Not available"]
[null,"Electromagnetic Geoservices ASA","E462","Electromagnetic Geoservices ASA","Oil & Gas","For further field data, please check NSTA website: https://www.nstauthority.co.uk/data-centre/data-downloads-and-publications/field-data/","For further field data, please check NSTA website: https://www.nstauthority.co.uk/data-centre/data-downloads-and-publications/field-data/","For further field data, please check NSTA website: https://www.nstauthority.co.uk/data-centre/data-downloads-and-publications/field-data/","Not available","Not available"]
[null,"ENCOUNTER OIL LIMITED","P2363","ENCOUNTER OIL LIMITED","Oil & Gas","For further field data, please check NSTA website: https://www.nstauthority.co.uk/data-centre/data-downloads-and-publications/field-data/","For further field data, please check NSTA website: https://www.nstauthority.co.uk/data-centre/data-downloads-and-publications/field-data/","For further field data, please check NSTA website: https://www.nstauthority.co.uk/data-centre/data-downloads-and-publications/field-data/","Not available","Not available"]
[null,"ENCOUNTER OIL LIMITED","P2392","ENCOUNTER OIL LIMITED","Oil & Gas","For further field data, please check NSTA website: https://www.nstauthority.co.uk/data-centre/data-downloads-and-publications/field-data/","For further field data, please check NSTA website: https://www.nstauthority.co.uk/data-centre/data-downloads-and-publications/field-data/","For further field data, please check NSTA website: https://www.nstauthority.co.uk/data-centre/data-downloads-and-publications/field-data/","Not available","Not available"]
[null,"ENERGYPATHWAYS IRISH SEA LIMITED","P2490","ENERGYPATHWAYS IRISH SEA LIMITED","Oil & Gas","For further field data, please check NSTA website: https://www.nstauthority.co.uk/data-centre/data-downloads-and-publications/field-data/","For further field data, please check NSTA website: https://www.nstauthority.co.uk/data-centre/data-downloads-and-publications/field-data/","For further field data, please check NSTA website: https://www.nstauthority.co.uk/data-centre/data-downloads-and-publications/field-data/","Not available","Not available"]
[null,"ENI (UK) Ltd","E469","ENI (UK) Ltd","Oil & Gas","For further field data, please check NSTA website: https://www.nstauthority.co.uk/data-centre/data-downloads-and-publications/field-data/","For further field data, please check NSTA website: https://www.nstauthority.co.uk/data-centre/data-downloads-and-publications/field-data/","For further field data, please check NSTA website: https://www.nstauthority.co.uk/data-centre/data-downloads-and-publications/field-data/","Not available","Not available"]
[null,"ENI (UK) Ltd","P112","ENI (UK) Ltd","Oil & Gas","For further field data, please check NSTA website: https://www.nstauthority.co.uk/data-centre/data-downloads-and-publications/field-data/","For further field data, please check NSTA website: https://www.nstauthority.co.uk/data-centre/data-downloads-and-publications/field-data/","For further field data, please check NSTA website: https://www.nstauthority.co.uk/data-centre/data-downloads-and-publications/field-data/","Not available","Not available"]
[null,"ENI (UK) Ltd","P1476","ENI (UK) Ltd","Oil & Gas","For further field data, please check NSTA website: https://www.nstauthority.co.uk/data-centre/data-downloads-and-publications/field-data/","For further field data, please check NSTA website: https://www.nstauthority.co.uk/data-centre/data-downloads-and-publications/field-data/","For further field data, please check NSTA website: https://www.nstauthority.co.uk/data-centre/data-downloads-and-publications/field-data/","Not available","Not available"]
[null,"ENI (UK) Ltd","P2511","ENI (UK) Ltd","Oil & Gas","For further field data, please check NSTA website: https://www.nstauthority.co.uk/data-centre/data-downloads-and-publications/field-data/","For further field data, please check NSTA website: https://www.nstauthority.co.uk/data-centre/data-downloads-and-publications/field-data/","For further field data, please check NSTA website: https://www.nstauthority.co.uk/data-centre/data-downloads-and-publications/field-data/","Not available","Not available"]
[null,"ENI (UK) Ltd","P710","ENI (UK) Ltd","Oil & Gas","For further field data, please check NSTA website: https://www.nstauthority.co.uk/data-centre/data-downloads-and-publications/field-data/","For further field data, please check NSTA website: https://www.nstauthority.co.uk/data-centre/data-downloads-and-publications/field-data/","For further field data, please check NSTA website: https://www.nstauthority.co.uk/data-centre/data-downloads-and-publications/field-data/","Not available","Not available"]
[null,"ENI (UK) Ltd","P791","ENI (UK) Ltd","Oil & Gas","For further field data, please check NSTA website: https://www.nstauthority.co.uk/data-centre/data-downloads-and-publications/field-data/","For further field data, please check NSTA website: https://www.nstauthority.co.uk/data-centre/data-downloads-and-publications/field-data/","For further field data, please check NSTA website: https://www.nstauthority.co.uk/data-centre/data-downloads-and-publications/field-data/","Not available","Not available"]
[null,"ENNECO LTD","P2370","ENNECO LTD","Oil & Gas","For further field data, please check NSTA website: https://www.nstauthority.co.uk/data-centre/data-downloads-and-publications/field-data/","For further field data, please check NSTA website: https://www.nstauthority.co.uk/data-centre/data-downloads-and-publications/field-data/","For further field data, please check NSTA website: https://www.nstauthority.co.uk/data-centre/data-downloads-and-publications/field-data/","Not available","Not available"]
[null,"ENQUEST HEATHER LIMITED","P2334","ENQUEST HEATHER LIMITED","Oil & Gas","For further field data, please check NSTA website: https://www.nstauthority.co.uk/data-centre/data-downloads-and-publications/field-data/","For further field data, please check NSTA website: https://www.nstauthority.co.uk/data-centre/data-downloads-and-publications/field-data/","For further field data, please check NSTA website: https://www.nstauthority.co.uk/data-centre/data-downloads-and-publications/field-data/","Not available","Not available"]
[null,"ENQUEST HEATHER LIMITED","P242","ENQUEST HEATHER LIMITED","Oil & Gas","For further field data, please check NSTA website: https://www.nstauthority.co.uk/data-centre/data-downloads-and-publications/field-data/","For further field data, please check NSTA website: https://www.nstauthority.co.uk/data-centre/data-downloads-and-publications/field-data/","For further field data, please check NSTA website: https://www.nstauthority.co.uk/data-centre/data-downloads-and-publications/field-data/","Not available","Not available"]
[null,"ENQUEST HEATHER LIMITED","P2601","ENQUEST HEATHER LIMITED","Oil & Gas","For further field data, please check NSTA website: https://www.nstauthority.co.uk/data-centre/data-downloads-and-publications/field-data/","For further field data, please check NSTA website: https://www.nstauthority.co.uk/data-centre/data-downloads-and-publications/field-data/","For further field data, please check NSTA website: https://www.nstauthority.co.uk/data-centre/data-downloads-and-publications/field-data/","Not available","Not available"]
[null,"ENQUEST HEATHER LIMITED","P902","ENQUEST HEATHER LIMITED","Oil & Gas","For further field data, please check NSTA website: https://www.nstauthority.co.uk/data-centre/data-downloads-and-publications/field-data/","For further field data, please check NSTA website: https://www.nstauthority.co.uk/data-centre/data-downloads-and-publications/field-data/","For further field data, please check NSTA website: https://www.nstauthority.co.uk/data-centre/data-downloads-and-publications/field-data/","Not available","Not available"]
[null,"EnQuest Heather Ltd","P1077","EnQuest Heather Ltd","Oil & Gas","For further field data, please check NSTA website: https://www.nstauthority.co.uk/data-centre/data-downloads-and-publications/field-data/","For further field data, please check NSTA website: https://www.nstauthority.co.uk/data-centre/data-downloads-and-publications/field-data/","For further field data, please check NSTA website: https://www.nstauthority.co.uk/data-centre/data-downloads-and-publications/field-data/","Not available","Not available"]
[null,"EnQuest Heather Ltd","P1107","EnQuest Heather Ltd","Oil & Gas","For further field data, please check NSTA website: https://www.nstauthority.co.uk/data-centre/data-downloads-and-publications/field-data/","For further field data, please check NSTA website: https://www.nstauthority.co.uk/data-centre/data-downloads-and-publications/field-data/","For further field data, please check NSTA website: https://www.nstauthority.co.uk/data-centre/data-downloads-and-publications/field-data/","Not available","Not available"]
[null,"EnQuest Heather Ltd","P1617","EnQuest Heather Ltd","Oil & Gas","For further field data, please check NSTA website: https://www.nstauthority.co.uk/data-centre/data-downloads-and-publications/field-data/","For further field data, please check NSTA website: https://www.nstauthority.co.uk/data-centre/data-downloads-and-publications/field-data/","For further field data, please check NSTA website: https://www.nstauthority.co.uk/data-centre/data-downloads-and-publications/field-data/","Not available","Not available"]
[null,"EnQuest Heather Ltd","P193","EnQuest Heather Ltd","Oil & Gas","For further field data, please check NSTA website: https://www.nstauthority.co.uk/data-centre/data-downloads-and-publications/field-data/","For further field data, please check NSTA website: https://www.nstauthority.co.uk/data-centre/data-downloads-and-publications/field-data/","For further field data, please check NSTA website: https://www.nstauthority.co.uk/data-centre/data-downloads-and-publications/field-data/","Not available","Not available"]
[null,"EnQuest Heather Ltd","P234","EnQuest Heather Ltd","Oil & Gas","For further field data, please check NSTA website: https://www.nstauthority.co.uk/data-centre/data-downloads-and-publications/field-data/","For further field data, please check NSTA website: https://www.nstauthority.co.uk/data-centre/data-downloads-and-publications/field-data/","For further field data, please check NSTA website: https://www.nstauthority.co.uk/data-centre/data-downloads-and-publications/field-data/","Not available","Not available"]
[null,"EnQuest Heather Ltd","P238","EnQuest Heather Ltd","Oil & Gas","For further field data, please check NSTA website: https://www.nstauthority.co.uk/data-centre/data-downloads-and-publications/field-data/","For further field data, please check NSTA website: https://www.nstauthority.co.uk/data-centre/data-downloads-and-publications/field-data/","For further field data, please check NSTA website: https://www.nstauthority.co.uk/data-centre/data-downloads-and-publications/field-data/","Not available","Not available"]
[null,"EnQuest Heather Ltd","P2531","EnQuest Heather Ltd","Oil & Gas","For further field data, please check NSTA website: https://www.nstauthority.co.uk/data-centre/data-downloads-and-publications/field-data/","For further field data, please check NSTA website: https://www.nstauthority.co.uk/data-centre/data-downloads-and-publications/field-data/","For further field data, please check NSTA website: https://www.nstauthority.co.uk/data-centre/data-downloads-and-publications/field-data/","Not available","Not available"]
[null,"EnQuest Heather Ltd","P2599","EnQuest Heather Ltd","Oil & Gas","For further field data, please check NSTA website: https://www.nstauthority.co.uk/data-centre/data-downloads-and-publications/field-data/","For further field data, please check NSTA website: https://www.nstauthority.co.uk/data-centre/data-downloads-and-publications/field-data/","For further field data, please check NSTA website: https://www.nstauthority.co.uk/data-centre/data-downloads-and-publications/field-data/","Not available","Not available"]
[null,"EnQuest Heather Ltd","P493","EnQuest Heather Ltd","Oil & Gas","For further field data, please check NSTA website: https://www.nstauthority.co.uk/data-centre/data-downloads-and-publications/field-data/","For further field data, please check NSTA website: https://www.nstauthority.co.uk/data-centre/data-downloads-and-publications/field-data/","For further field data, please check NSTA website: https://www.nstauthority.co.uk/data-centre/data-downloads-and-publications/field-data/","Not available","Not available"]
[null,"EnQuest Heather Ltd","P920","EnQuest Heather Ltd","Oil & Gas","For further field data, please check NSTA website: https://www.nstauthority.co.uk/data-centre/data-downloads-and-publications/field-data/","For further field data, please check NSTA website: https://www.nstauthority.co.uk/data-centre/data-downloads-and-publications/field-data/","For further field data, please check NSTA website: https://www.nstauthority.co.uk/data-centre/data-downloads-and-publications/field-data/","Not available","Not available"]
[null,"EnQuest Heather Ltd","P977","EnQuest Heather Ltd","Oil & Gas","For further field data, please check NSTA website: https://www.nstauthority.co.uk/data-centre/data-downloads-and-publications/field-data/","For further field data, please check NSTA website: https://www.nstauthority.co.uk/data-centre/data-downloads-and-publications/field-data/","For further field data, please check NSTA website: https://www.nstauthority.co.uk/data-centre/data-downloads-and-publications/field-data/","Not available","Not available"]
[null,"ENQUEST PROGRESS LIMITED","P1078","ENQUEST PROGRESS LIMITED","Oil & Gas","For further field data, please check NSTA website: https://www.nstauthority.co.uk/data-centre/data-downloads-and-publications/field-data/","For further field data, please check NSTA website: https://www.nstauthority.co.uk/data-centre/data-downloads-and-publications/field-data/","For further field data, please check NSTA website: https://www.nstauthority.co.uk/data-centre/data-downloads-and-publications/field-data/","Not available","Not available"]
[null,"Enterprise Oil Ltd","P114","Enterprise Oil Ltd","Oil & Gas","For further field data, please check NSTA website: https://www.nstauthority.co.uk/data-centre/data-downloads-and-publications/field-data/","For further field data, please check NSTA website: https://www.nstauthority.co.uk/data-centre/data-downloads-and-publications/field-data/","For further field data, please check NSTA website: https://www.nstauthority.co.uk/data-centre/data-downloads-and-publications/field-data/","Not available","Not available"]
[null,"Enterprise Oil Ltd","P69","Enterprise Oil Ltd","Oil & Gas","For further field data, please check NSTA website: https://www.nstauthority.co.uk/data-centre/data-downloads-and-publications/field-data/","For further field data, please check NSTA website: https://www.nstauthority.co.uk/data-centre/data-downloads-and-publications/field-data/","For further field data, please check NSTA website: https://www.nstauthority.co.uk/data-centre/data-downloads-and-publications/field-data/","Not available","Not available"]
[null,"Enterprise Oil Ltd","P77","Enterprise Oil Ltd","Oil & Gas","For further field data, please check NSTA website: https://www.nstauthority.co.uk/data-centre/data-downloads-and-publications/field-data/","For further field data, please check NSTA website: https://www.nstauthority.co.uk/data-centre/data-downloads-and-publications/field-data/","For further field data, please check NSTA website: https://www.nstauthority.co.uk/data-centre/data-downloads-and-publications/field-data/","Not available","Not available"]
[null,"Equinor (UK) Ltd","P1026","Equinor (UK) Ltd","Oil & Gas","For further field data, please check NSTA website: https://www.nstauthority.co.uk/data-centre/data-downloads-and-publications/field-data/","For further field data, please check NSTA website: https://www.nstauthority.co.uk/data-centre/data-downloads-and-publications/field-data/","For further field data, please check NSTA website: https://www.nstauthority.co.uk/data-centre/data-downloads-and-publications/field-data/","Not available","Not available"]
[null,"Equinor (UK) Ltd","P104","Equinor (UK) Ltd","Oil & Gas","For further field data, please check NSTA website: https://www.nstauthority.co.uk/data-centre/data-downloads-and-publications/field-data/","For further field data, please check NSTA website: https://www.nstauthority.co.uk/data-centre/data-downloads-and-publications/field-data/","For further field data, please check NSTA website: https://www.nstauthority.co.uk/data-centre/data-downloads-and-publications/field-data/","Not available","Not available"]
[null,"Equinor (UK) Ltd","P1191","Equinor (UK) Ltd","Oil & Gas","For further field data, please check NSTA website: https://www.nstauthority.co.uk/data-centre/data-downloads-and-publications/field-data/","For further field data, please check NSTA website: https://www.nstauthority.co.uk/data-centre/data-downloads-and-publications/field-data/","For further field data, please check NSTA website: https://www.nstauthority.co.uk/data-centre/data-downloads-and-publications/field-data/","Not available","Not available"]
[null,"Equinor (UK) Ltd","P1272","Equinor (UK) Ltd","Oil & Gas","For further field data, please check NSTA website: https://www.nstauthority.co.uk/data-centre/data-downloads-and-publications/field-data/","For further field data, please check NSTA website: https://www.nstauthority.co.uk/data-centre/data-downloads-and-publications/field-data/","For further field data, please check NSTA website: https://www.nstauthority.co.uk/data-centre/data-downloads-and-publications/field-data/","Not available","Not available"]
[null,"Equinor (UK) Ltd","P1758","Equinor (UK) Ltd","Oil & Gas","For further field data, please check NSTA website: https://www.nstauthority.co.uk/data-centre/data-downloads-and-publications/field-data/","For further field data, please check NSTA website: https://www.nstauthority.co.uk/data-centre/data-downloads-and-publications/field-data/","For further field data, please check NSTA website: https://www.nstauthority.co.uk/data-centre/data-downloads-and-publications/field-data/","Not available","Not available"]
[null,"Equinor (UK) Ltd","P2151","Equinor (UK) Ltd","Oil & Gas","For further field data, please check NSTA website: https://www.nstauthority.co.uk/data-centre/data-downloads-and-publications/field-data/","For further field data, please check NSTA website: https://www.nstauthority.co.uk/data-centre/data-downloads-and-publications/field-data/","For further field data, please check NSTA website: https://www.nstauthority.co.uk/data-centre/data-downloads-and-publications/field-data/","Not available","Not available"]
[null,"Equinor (UK) Ltd","P2343","Equinor (UK) Ltd","Oil & Gas","For further field data, please check NSTA website: https://www.nstauthority.co.uk/data-centre/data-downloads-and-publications/field-data/","For further field data, please check NSTA website: https://www.nstauthority.co.uk/data-centre/data-downloads-and-publications/field-data/","For further field data, please check NSTA website: https://www.nstauthority.co.uk/data-centre/data-downloads-and-publications/field-data/","Not available","Not available"]
[null,"Equinor (UK) Ltd","P2449","Equinor (UK) Ltd","Oil & Gas","For further field data, please check NSTA website: https://www.nstauthority.co.uk/data-centre/data-downloads-and-publications/field-data/","For further field data, please check NSTA website: https://www.nstauthority.co.uk/data-centre/data-downloads-and-publications/field-data/","For further field data, please check NSTA website: https://www.nstauthority.co.uk/data-centre/data-downloads-and-publications/field-data/","Not available","Not available"]
[null,"Equinor (UK) Ltd","P2460","Equinor (UK) Ltd","Oil & Gas","For further field data, please check NSTA website: https://www.nstauthority.co.uk/data-centre/data-downloads-and-publications/field-data/","For further field data, please check NSTA website: https://www.nstauthority.co.uk/data-centre/data-downloads-and-publications/field-data/","For further field data, please check NSTA website: https://www.nstauthority.co.uk/data-centre/data-downloads-and-publications/field-data/","Not available","Not available"]
[null,"Equinor (UK) Ltd","P2492","Equinor (UK) Ltd","Oil & Gas","For further field data, please check NSTA website: https://www.nstauthority.co.uk/data-centre/data-downloads-and-publications/field-data/","For further field data, please check NSTA website: https://www.nstauthority.co.uk/data-centre/data-downloads-and-publications/field-data/","For further field data, please check NSTA website: https://www.nstauthority.co.uk/data-centre/data-downloads-and-publications/field-data/","Not available","Not available"]
[null,"Equinor (UK) Ltd","P2505","Equinor (UK) Ltd","Oil & Gas","For further field data, please check NSTA website: https://www.nstauthority.co.uk/data-centre/data-downloads-and-publications/field-data/","For further field data, please check NSTA website: https://www.nstauthority.co.uk/data-centre/data-downloads-and-publications/field-data/","For further field data, please check NSTA website: https://www.nstauthority.co.uk/data-centre/data-downloads-and-publications/field-data/","Not available","Not available"]
[null,"Equinor (UK) Ltd","P2508","Equinor (UK) Ltd","Oil & Gas","For further field data, please check NSTA website: https://www.nstauthority.co.uk/data-centre/data-downloads-and-publications/field-data/","For further field data, please check NSTA website: https://www.nstauthority.co.uk/data-centre/data-downloads-and-publications/field-data/","For further field data, please check NSTA website: https://www.nstauthority.co.uk/data-centre/data-downloads-and-publications/field-data/","Not available","Not available"]
[null,"Equinor (UK) Ltd","P312","Equinor (UK) Ltd","Oil & Gas","For further field data, please check NSTA website: https://www.nstauthority.co.uk/data-centre/data-downloads-and-publications/field-data/","For further field data, please check NSTA website: https://www.nstauthority.co.uk/data-centre/data-downloads-and-publications/field-data/","For further field data, please check NSTA website: https://www.nstauthority.co.uk/data-centre/data-downloads-and-publications/field-data/","Not available","Not available"]
[null,"Equinor (UK) Ltd","P335","Equinor (UK) Ltd","Oil & Gas","For further field data, please check NSTA website: https://www.nstauthority.co.uk/data-centre/data-downloads-and-publications/field-data/","For further field data, please check NSTA website: https://www.nstauthority.co.uk/data-centre/data-downloads-and-publications/field-data/","For further field data, please check NSTA website: https://www.nstauthority.co.uk/data-centre/data-downloads-and-publications/field-data/","Not available","Not available"]
[null,"Equinor (UK) Ltd","P726","Equinor (UK) Ltd","Oil & Gas","For further field data, please check NSTA website: https://www.nstauthority.co.uk/data-centre/data-downloads-and-publications/field-data/","For further field data, please check NSTA website: https://www.nstauthority.co.uk/data-centre/data-downloads-and-publications/field-data/","For further field data, please check NSTA website: https://www.nstauthority.co.uk/data-centre/data-downloads-and-publications/field-data/","Not available","Not available"]
[null,"Equinor (UK) Ltd","P979","Equinor (UK) Ltd","Oil & Gas","For further field data, please check NSTA website: https://www.nstauthority.co.uk/data-centre/data-downloads-and-publications/field-data/","For further field data, please check NSTA website: https://www.nstauthority.co.uk/data-centre/data-downloads-and-publications/field-data/","For further field data, please check NSTA website: https://www.nstauthority.co.uk/data-centre/data-downloads-and-publications/field-data/","Not available","Not available"]
[null,"EQUINOR UK LIMITED","E445","EQUINOR UK LIMITED","Oil & Gas","For further field data, please check NSTA website: https://www.nstauthority.co.uk/data-centre/data-downloads-and-publications/field-data/","For further field data, please check NSTA website: https://www.nstauthority.co.uk/data-centre/data-downloads-and-publications/field-data/","For further field data, please check NSTA website: https://www.nstauthority.co.uk/data-centre/data-downloads-and-publications/field-data/","Not available","Not available"]
[null,"EQUINOR UK LIMITED","P2318","EQUINOR UK LIMITED","Oil & Gas","For further field data, please check NSTA website: https://www.nstauthority.co.uk/data-centre/data-downloads-and-publications/field-data/","For further field data, please check NSTA website: https://www.nstauthority.co.uk/data-centre/data-downloads-and-publications/field-data/","For further field data, please check NSTA website: https://www.nstauthority.co.uk/data-centre/data-downloads-and-publications/field-data/","Not available","Not available"]
[null,"EQUINOR UK LIMITED","P2319","EQUINOR UK LIMITED","Oil & Gas","For further field data, please check NSTA website: https://www.nstauthority.co.uk/data-centre/data-downloads-and-publications/field-data/","For further field data, please check NSTA website: https://www.nstauthority.co.uk/data-centre/data-downloads-and-publications/field-data/","For further field data, please check NSTA website: https://www.nstauthority.co.uk/data-centre/data-downloads-and-publications/field-data/","Not available","Not available"]
[null,"EQUINOR UK LIMITED","P2365","EQUINOR UK LIMITED","Oil & Gas","For further field data, please check NSTA website: https://www.nstauthority.co.uk/data-centre/data-downloads-and-publications/field-data/","For further field data, please check NSTA website: https://www.nstauthority.co.uk/data-centre/data-downloads-and-publications/field-data/","For further field data, please check NSTA website: https://www.nstauthority.co.uk/data-centre/data-downloads-and-publications/field-data/","Not available","Not available"]
[null,"EQUINOR UK LIMITED","P2387","EQUINOR UK LIMITED","Oil & Gas","For further field data, please check NSTA website: https://www.nstauthority.co.uk/data-centre/data-downloads-and-publications/field-data/","For further field data, please check NSTA website: https://www.nstauthority.co.uk/data-centre/data-downloads-and-publications/field-data/","For further field data, please check NSTA website: https://www.nstauthority.co.uk/data-centre/data-downloads-and-publications/field-data/","Not available","Not available"]
[null,"EQUINOR UK LIMITED","P2419","EQUINOR UK LIMITED","Oil & Gas","For further field data, please check NSTA website: https://www.nstauthority.co.uk/data-centre/data-downloads-and-publications/field-data/","For further field data, please check NSTA website: https://www.nstauthority.co.uk/data-centre/data-downloads-and-publications/field-data/","For further field data, please check NSTA website: https://www.nstauthority.co.uk/data-centre/data-downloads-and-publications/field-data/","Not available","Not available"]
[null,"EQUINOR UK LIMITED","P2473","EQUINOR UK LIMITED","Oil & Gas","For further field data, please check NSTA website: https://www.nstauthority.co.uk/data-centre/data-downloads-and-publications/field-data/","For further field data, please check NSTA website: https://www.nstauthority.co.uk/data-centre/data-downloads-and-publications/field-data/","For further field data, please check NSTA website: https://www.nstauthority.co.uk/data-centre/data-downloads-and-publications/field-data/","Not available","Not available"]
[null,"EQUINOR UK LIMITED","P2479","EQUINOR UK LIMITED","Oil & Gas","For further field data, please check NSTA website: https://www.nstauthority.co.uk/data-centre/data-downloads-and-publications/field-data/","For further field data, please check NSTA website: https://www.nstauthority.co.uk/data-centre/data-downloads-and-publications/field-data/","For further field data, please check NSTA website: https://www.nstauthority.co.uk/data-centre/data-downloads-and-publications/field-data/","Not available","Not available"]
[null,"Europa Oil & Gas Ltd","PEDL 181","Europa Oil & Gas Ltd","Oil & Gas","For further field data, please check NSTA website: https://www.nstauthority.co.uk/data-centre/data-downloads-and-publications/field-data/","For further field data, please check NSTA website: https://www.nstauthority.co.uk/data-centre/data-downloads-and-publications/field-data/","For further field data, please check NSTA website: https://www.nstauthority.co.uk/data-centre/data-downloads-and-publications/field-data/","Not available","Not available"]
[null,"Europa Oil & Gas Ltd","PEDL180","Europa Oil & Gas Ltd","Oil & Gas","For further field data, please check NSTA website: https://www.nstauthority.co.uk/data-centre/data-downloads-and-publications/field-data/","For further field data, please check NSTA website: https://www.nstauthority.co.uk/data-centre/data-downloads-and-publications/field-data/","For further field data, please check NSTA website: https://www.nstauthority.co.uk/data-centre/data-downloads-and-publications/field-data/","Not available","Not available"]
[null,"Europa Oil & Gas Ltd","PEDL181","Europa Oil & Gas Ltd","Oil & Gas","For further field data, please check NSTA website: https://www.nstauthority.co.uk/data-centre/data-downloads-and-publications/field-data/","For further field data, please check NSTA website: https://www.nstauthority.co.uk/data-centre/data-downloads-and-publications/field-data/","For further field data, please check NSTA website: https://www.nstauthority.co.uk/data-centre/data-downloads-and-publications/field-data/","Not available","Not available"]
[null,"FAIRFIELD FAGUS LIMITED","P721","FAIRFIELD FAGUS LIMITED","Oil & Gas","For further field data, please check NSTA website: https://www.nstauthority.co.uk/data-centre/data-downloads-and-publications/field-data/","For further field data, please check NSTA website: https://www.nstauthority.co.uk/data-centre/data-downloads-and-publications/field-data/","For further field data, please check NSTA website: https://www.nstauthority.co.uk/data-centre/data-downloads-and-publications/field-data/","Not available","Not available"]
[null,"FINDER ENERGY UK LIMITED","P2317","FINDER ENERGY UK LIMITED","Oil & Gas","For further field data, please check NSTA website: https://www.nstauthority.co.uk/data-centre/data-downloads-and-publications/field-data/","For further field data, please check NSTA website: https://www.nstauthority.co.uk/data-centre/data-downloads-and-publications/field-data/","For further field data, please check NSTA website: https://www.nstauthority.co.uk/data-centre/data-downloads-and-publications/field-data/","Not available","Not available"]
[null,"FINDER ENERGY UK LIMITED","P2502","FINDER ENERGY UK LIMITED","Oil & Gas","For further field data, please check NSTA website: https://www.nstauthority.co.uk/data-centre/data-downloads-and-publications/field-data/","For further field data, please check NSTA website: https://www.nstauthority.co.uk/data-centre/data-downloads-and-publications/field-data/","For further field data, please check NSTA website: https://www.nstauthority.co.uk/data-centre/data-downloads-and-publications/field-data/","Not available","Not available"]
[null,"FINDER ENERGY UK LIMITED","P2524","FINDER ENERGY UK LIMITED","Oil & Gas","For further field data, please check NSTA website: https://www.nstauthority.co.uk/data-centre/data-downloads-and-publications/field-data/","For further field data, please check NSTA website: https://www.nstauthority.co.uk/data-centre/data-downloads-and-publications/field-data/","For further field data, please check NSTA website: https://www.nstauthority.co.uk/data-centre/data-downloads-and-publications/field-data/","Not available","Not available"]
[null,"FINDER ENERGY UK LIMITED","P2527","FINDER ENERGY UK LIMITED","Oil & Gas","For further field data, please check NSTA website: https://www.nstauthority.co.uk/data-centre/data-downloads-and-publications/field-data/","For further field data, please check NSTA website: https://www.nstauthority.co.uk/data-centre/data-downloads-and-publications/field-data/","For further field data, please check NSTA website: https://www.nstauthority.co.uk/data-centre/data-downloads-and-publications/field-data/","Not available","Not available"]
[null,"FINDER ENERGY UK LIMITED","P2528","FINDER ENERGY UK LIMITED","Oil & Gas","For further field data, please check NSTA website: https://www.nstauthority.co.uk/data-centre/data-downloads-and-publications/field-data/","For further field data, please check NSTA website: https://www.nstauthority.co.uk/data-centre/data-downloads-and-publications/field-data/","For further field data, please check NSTA website: https://www.nstauthority.co.uk/data-centre/data-downloads-and-publications/field-data/","Not available","Not available"]
[null,"FINDER ENERGY UK LIMITED","P2530","FINDER ENERGY UK LIMITED","Oil & Gas","For further field data, please check NSTA website: https://www.nstauthority.co.uk/data-centre/data-downloads-and-publications/field-data/","For further field data, please check NSTA website: https://www.nstauthority.co.uk/data-centre/data-downloads-and-publications/field-data/","For further field data, please check NSTA website: https://www.nstauthority.co.uk/data-centre/data-downloads-and-publications/field-data/","Not available","Not available"]
[null,"GEOEX MCG LTD","E466","GEOEX MCG LTD","Oil & Gas","For further field data, please check NSTA website: https://www.nstauthority.co.uk/data-centre/data-downloads-and-publications/field-data/","For further field data, please check NSTA website: https://www.nstauthority.co.uk/data-centre/data-downloads-and-publications/field-data/","For further field data, please check NSTA website: https://www.nstauthority.co.uk/data-centre/data-downloads-and-publications/field-data/","Not available","Not available"]
[null,"GX Technology Corp and GX Technology EAME Ltd","E464","GX Technology Corp and GX Technology EAME Ltd","Oil & Gas","For further field data, please check NSTA website: https://www.nstauthority.co.uk/data-centre/data-downloads-and-publications/field-data/","For further field data, please check NSTA website: https://www.nstauthority.co.uk/data-centre/data-downloads-and-publications/field-data/","For further field data, please check NSTA website: https://www.nstauthority.co.uk/data-centre/data-downloads-and-publications/field-data/","Not available","Not available"]
[null,"HARTSHEAD RESOURCES LTD","P2607","HARTSHEAD RESOURCES LTD","Oil & Gas","For further field data, please check NSTA website: https://www.nstauthority.co.uk/data-centre/data-downloads-and-publications/field-data/","For further field data, please check NSTA website: https://www.nstauthority.co.uk/data-centre/data-downloads-and-publications/field-data/","For further field data, please check NSTA website: https://www.nstauthority.co.uk/data-centre/data-downloads-and-publications/field-data/","Not available","Not available"]
[null,"Harworth Power (Generation) Ltd","EXL250","Harworth Power (Generation) Ltd","Oil & Gas","For further field data, please check NSTA website: https://www.nstauthority.co.uk/data-centre/data-downloads-and-publications/field-data/","For further field data, please check NSTA website: https://www.nstauthority.co.uk/data-centre/data-downloads-and-publications/field-data/","For further field data, please check NSTA website: https://www.nstauthority.co.uk/data-centre/data-downloads-and-publications/field-data/","Not available","Not available"]
[null,"HORIZON ENERGY PARTNERS LIMITED","P2329","HORIZON ENERGY PARTNERS LIMITED","Oil & Gas","For further field data, please check NSTA website: https://www.nstauthority.co.uk/data-centre/data-downloads-and-publications/field-data/","For further field data, please check NSTA website: https://www.nstauthority.co.uk/data-centre/data-downloads-and-publications/field-data/","For further field data, please check NSTA website: https://www.nstauthority.co.uk/data-centre/data-downloads-and-publications/field-data/","Not available","Not available"]
[null,"HORIZON ENERGY PARTNERS LIMITED","P2427","HORIZON ENERGY PARTNERS LIMITED","Oil & Gas","For further field data, please check NSTA website: https://www.nstauthority.co.uk/data-centre/data-downloads-and-publications/field-data/","For further field data, please check NSTA website: https://www.nstauthority.co.uk/data-centre/data-downloads-and-publications/field-data/","For further field data, please check NSTA website: https://www.nstauthority.co.uk/data-centre/data-downloads-and-publications/field-data/","Not available","Not available"]
[null,"HORIZON ENERGY PARTNERS LIMITED","P2486","HORIZON ENERGY PARTNERS LIMITED","Oil & Gas","For further field data, please check NSTA website: https://www.nstauthority.co.uk/data-centre/data-downloads-and-publications/field-data/","For further field data, please check NSTA website: https://www.nstauthority.co.uk/data-centre/data-downloads-and-publications/field-data/","For further field data, please check NSTA website: https://www.nstauthority.co.uk/data-centre/data-downloads-and-publications/field-data/","Not available","Not available"]
[null,"HORIZON ENERGY PARTNERS LIMITED","P2557","HORIZON ENERGY PARTNERS LIMITED","Oil & Gas","For further field data, please check NSTA website: https://www.nstauthority.co.uk/data-centre/data-downloads-and-publications/field-data/","For further field data, please check NSTA website: https://www.nstauthority.co.uk/data-centre/data-downloads-and-publications/field-data/","For further field data, please check NSTA website: https://www.nstauthority.co.uk/data-centre/data-downloads-and-publications/field-data/","Not available","Not available"]
[null,"Humbly Grove Energy Ltd","PL116","Humbly Grove Energy Ltd","Oil & Gas","For further field data, please check NSTA website: https://www.nstauthority.co.uk/data-centre/data-downloads-and-publications/field-data/","For further field data, please check NSTA website: https://www.nstauthority.co.uk/data-centre/data-downloads-and-publications/field-data/","For further field data, please check NSTA website: https://www.nstauthority.co.uk/data-centre/data-downloads-and-publications/field-data/","Not available","Not available"]
[null,"Hurricane Energy Plc","P1368","Hurricane Energy Plc","Oil & Gas","For further field data, please check NSTA website: https://www.nstauthority.co.uk/data-centre/data-downloads-and-publications/field-data/","For further field data, please check NSTA website: https://www.nstauthority.co.uk/data-centre/data-downloads-and-publications/field-data/","For further field data, please check NSTA website: https://www.nstauthority.co.uk/data-centre/data-downloads-and-publications/field-data/","Not available","Not available"]
[null,"HURRICANE ENERGY PLC","P2294","HURRICANE ENERGY PLC","Oil & Gas","For further field data, please check NSTA website: https://www.nstauthority.co.uk/data-centre/data-downloads-and-publications/field-data/","For further field data, please check NSTA website: https://www.nstauthority.co.uk/data-centre/data-downloads-and-publications/field-data/","For further field data, please check NSTA website: https://www.nstauthority.co.uk/data-centre/data-downloads-and-publications/field-data/","Not available","Not available"]
[null,"HURRICANE ENERGY PLC","P2308","HURRICANE ENERGY PLC","Oil & Gas","For further field data, please check NSTA website: https://www.nstauthority.co.uk/data-centre/data-downloads-and-publications/field-data/","For further field data, please check NSTA website: https://www.nstauthority.co.uk/data-centre/data-downloads-and-publications/field-data/","For further field data, please check NSTA website: https://www.nstauthority.co.uk/data-centre/data-downloads-and-publications/field-data/","Not available","Not available"]
[null,"I3 Energy North Sea Ltd","P2358","I3 Energy North Sea Ltd","Oil & Gas","For further field data, please check NSTA website: https://www.nstauthority.co.uk/data-centre/data-downloads-and-publications/field-data/","For further field data, please check NSTA website: https://www.nstauthority.co.uk/data-centre/data-downloads-and-publications/field-data/","For further field data, please check NSTA website: https://www.nstauthority.co.uk/data-centre/data-downloads-and-publications/field-data/","Not available","Not available"]
[null,"Igas Energy Development Ltd","DL2","Igas Energy Development Ltd","Oil & Gas","For further field data, please check NSTA website: https://www.nstauthority.co.uk/data-centre/data-downloads-and-publications/field-data/","For further field data, please check NSTA website: https://www.nstauthority.co.uk/data-centre/data-downloads-and-publications/field-data/","For further field data, please check NSTA website: https://www.nstauthority.co.uk/data-centre/data-downloads-and-publications/field-data/","Not available","Not available"]
[null,"Igas Energy Development Ltd","PL233","Igas Energy Development Ltd","Oil & Gas","For further field data, please check NSTA website: https://www.nstauthority.co.uk/data-centre/data-downloads-and-publications/field-data/","For further field data, please check NSTA website: https://www.nstauthority.co.uk/data-centre/data-downloads-and-publications/field-data/","For further field data, please check NSTA website: https://www.nstauthority.co.uk/data-centre/data-downloads-and-publications/field-data/","Not available","Not available"]
[null,"Igas Energy Development Ltd","PL249","Igas Energy Development Ltd","Oil & Gas","For further field data, please check NSTA website: https://www.nstauthority.co.uk/data-centre/data-downloads-and-publications/field-data/","For further field data, please check NSTA website: https://www.nstauthority.co.uk/data-centre/data-downloads-and-publications/field-data/","For further field data, please check NSTA website: https://www.nstauthority.co.uk/data-centre/data-downloads-and-publications/field-data/","Not available","Not available"]
[null,"Igas Energy Enterprise Ltd","P1270","Igas Energy Enterprise Ltd","Oil & Gas","For further field data, please check NSTA website: https://www.nstauthority.co.uk/data-centre/data-downloads-and-publications/field-data/","For further field data, please check NSTA website: https://www.nstauthority.co.uk/data-centre/data-downloads-and-publications/field-data/","For further field data, please check NSTA website: https://www.nstauthority.co.uk/data-centre/data-downloads-and-publications/field-data/","Not available","Not available"]
[null,"Igas Energy Enterprise Ltd","PEDL158","Igas Energy Enterprise Ltd","Oil & Gas","For further field data, please check NSTA website: https://www.nstauthority.co.uk/data-centre/data-downloads-and-publications/field-data/","For further field data, please check NSTA website: https://www.nstauthority.co.uk/data-centre/data-downloads-and-publications/field-data/","For further field data, please check NSTA website: https://www.nstauthority.co.uk/data-centre/data-downloads-and-publications/field-data/","Not available","Not available"]
[null,"Igas Energy Enterprise Ltd","PL240","Igas Energy Enterprise Ltd","Oil & Gas","For further field data, please check NSTA website: https://www.nstauthority.co.uk/data-centre/data-downloads-and-publications/field-data/","For further field data, please check NSTA website: https://www.nstauthority.co.uk/data-centre/data-downloads-and-publications/field-data/","For further field data, please check NSTA website: https://www.nstauthority.co.uk/data-centre/data-downloads-and-publications/field-data/","Not available","Not available"]
[null,"Igas Energy Production Ltd","ML4","Igas Energy Production Ltd","Oil & Gas","For further field data, please check NSTA website: https://www.nstauthority.co.uk/data-centre/data-downloads-and-publications/field-data/","For further field data, please check NSTA website: https://www.nstauthority.co.uk/data-centre/data-downloads-and-publications/field-data/","For further field data, please check NSTA website: https://www.nstauthority.co.uk/data-centre/data-downloads-and-publications/field-data/","Not available","Not available"]
[null,"Igas Energy Production Ltd","PEDL6","Igas Energy Production Ltd","Oil & Gas","For further field data, please check NSTA website: https://www.nstauthority.co.uk/data-centre/data-downloads-and-publications/field-data/","For further field data, please check NSTA website: https://www.nstauthority.co.uk/data-centre/data-downloads-and-publications/field-data/","For further field data, please check NSTA website: https://www.nstauthority.co.uk/data-centre/data-downloads-and-publications/field-data/","Not available","Not available"]
[null,"Igas Energy Production Ltd","PL178","Igas Energy Production Ltd","Oil & Gas","For further field data, please check NSTA website: https://www.nstauthority.co.uk/data-centre/data-downloads-and-publications/field-data/","For further field data, please check NSTA website: https://www.nstauthority.co.uk/data-centre/data-downloads-and-publications/field-data/","For further field data, please check NSTA website: https://www.nstauthority.co.uk/data-centre/data-downloads-and-publications/field-data/","Not available","Not available"]
[null,"Igas Energy Production Ltd","PL182","Igas Energy Production Ltd","Oil & Gas","For further field data, please check NSTA website: https://www.nstauthority.co.uk/data-centre/data-downloads-and-publications/field-data/","For further field data, please check NSTA website: https://www.nstauthority.co.uk/data-centre/data-downloads-and-publications/field-data/","For further field data, please check NSTA website: https://www.nstauthority.co.uk/data-centre/data-downloads-and-publications/field-data/","Not available","Not available"]
[null,"INEOS FPS Ltd","P2333","INEOS FPS Ltd","Oil & Gas","For further field data, please check NSTA website: https://www.nstauthority.co.uk/data-centre/data-downloads-and-publications/field-data/","For further field data, please check NSTA website: https://www.nstauthority.co.uk/data-centre/data-downloads-and-publications/field-data/","For further field data, please check NSTA website: https://www.nstauthority.co.uk/data-centre/data-downloads-and-publications/field-data/","Not available","Not available"]
[null,"INEOS UK SNS LIMITED","P1230","INEOS UK SNS LIMITED","Oil & Gas","For further field data, please check NSTA website: https://www.nstauthority.co.uk/data-centre/data-downloads-and-publications/field-data/","For further field data, please check NSTA website: https://www.nstauthority.co.uk/data-centre/data-downloads-and-publications/field-data/","For further field data, please check NSTA website: https://www.nstauthority.co.uk/data-centre/data-downloads-and-publications/field-data/","Not available","Not available"]
[null,"INEOS UK SNS LIMITED","P1328","INEOS UK SNS LIMITED","Oil & Gas","For further field data, please check NSTA website: https://www.nstauthority.co.uk/data-centre/data-downloads-and-publications/field-data/","For further field data, please check NSTA website: https://www.nstauthority.co.uk/data-centre/data-downloads-and-publications/field-data/","For further field data, please check NSTA website: https://www.nstauthority.co.uk/data-centre/data-downloads-and-publications/field-data/","Not available","Not available"]
[null,"INEOS UK SNS LIMITED","P1909","INEOS UK SNS LIMITED","Oil & Gas","For further field data, please check NSTA website: https://www.nstauthority.co.uk/data-centre/data-downloads-and-publications/field-data/","For further field data, please check NSTA website: https://www.nstauthority.co.uk/data-centre/data-downloads-and-publications/field-data/","For further field data, please check NSTA website: https://www.nstauthority.co.uk/data-centre/data-downloads-and-publications/field-data/","Not available","Not available"]
[null,"INEOS Upstream Ltd","PEDL145","INEOS Upstream Ltd","Oil & Gas","For further field data, please check NSTA website: https://www.nstauthority.co.uk/data-centre/data-downloads-and-publications/field-data/","For further field data, please check NSTA website: https://www.nstauthority.co.uk/data-centre/data-downloads-and-publications/field-data/","For further field data, please check NSTA website: https://www.nstauthority.co.uk/data-centre/data-downloads-and-publications/field-data/","Not available","Not available"]
[null,"INEOS Upstream Ltd","PEDL299","INEOS Upstream Ltd","Oil & Gas","For further field data, please check NSTA website: https://www.nstauthority.co.uk/data-centre/data-downloads-and-publications/field-data/","For further field data, please check NSTA website: https://www.nstauthority.co.uk/data-centre/data-downloads-and-publications/field-data/","For further field data, please check NSTA website: https://www.nstauthority.co.uk/data-centre/data-downloads-and-publications/field-data/","Not available","Not available"]
[null,"IOG (UK) Ltd","P2342","IOG (UK) Ltd","Oil & Gas","For further field data, please check NSTA website: https://www.nstauthority.co.uk/data-centre/data-downloads-and-publications/field-data/","For further field data, please check NSTA website: https://www.nstauthority.co.uk/data-centre/data-downloads-and-publications/field-data/","For further field data, please check NSTA website: https://www.nstauthority.co.uk/data-centre/data-downloads-and-publications/field-data/","Not available","Not available"]
[null,"IOG (UK) Ltd","P39","IOG (UK) Ltd","Oil & Gas","For further field data, please check NSTA website: https://www.nstauthority.co.uk/data-centre/data-downloads-and-publications/field-data/","For further field data, please check NSTA website: https://www.nstauthority.co.uk/data-centre/data-downloads-and-publications/field-data/","For further field data, please check NSTA website: https://www.nstauthority.co.uk/data-centre/data-downloads-and-publications/field-data/","Not available","Not available"]
[null,"IOG NORTH SEA LIMITED","P2085","IOG NORTH SEA LIMITED","Oil & Gas","For further field data, please check NSTA website: https://www.nstauthority.co.uk/data-centre/data-downloads-and-publications/field-data/","For further field data, please check NSTA website: https://www.nstauthority.co.uk/data-centre/data-downloads-and-publications/field-data/","For further field data, please check NSTA website: https://www.nstauthority.co.uk/data-centre/data-downloads-and-publications/field-data/","Not available","Not available"]
[null,"IOG North Sea Ltd","P1736","IOG North Sea Ltd","Oil & Gas","For further field data, please check NSTA website: https://www.nstauthority.co.uk/data-centre/data-downloads-and-publications/field-data/","For further field data, please check NSTA website: https://www.nstauthority.co.uk/data-centre/data-downloads-and-publications/field-data/","For further field data, please check NSTA website: https://www.nstauthority.co.uk/data-centre/data-downloads-and-publications/field-data/","Not available","Not available"]
[null,"IOG North Sea Ltd","P2260","IOG North Sea Ltd","Oil & Gas","For further field data, please check NSTA website: https://www.nstauthority.co.uk/data-centre/data-downloads-and-publications/field-data/","For further field data, please check NSTA website: https://www.nstauthority.co.uk/data-centre/data-downloads-and-publications/field-data/","For further field data, please check NSTA website: https://www.nstauthority.co.uk/data-centre/data-downloads-and-publications/field-data/","Not available","Not available"]
[null,"IOG North Sea Ltd","P2438","IOG North Sea Ltd","Oil & Gas","For further field data, please check NSTA website: https://www.nstauthority.co.uk/data-centre/data-downloads-and-publications/field-data/","For further field data, please check NSTA website: https://www.nstauthority.co.uk/data-centre/data-downloads-and-publications/field-data/","For further field data, please check NSTA website: https://www.nstauthority.co.uk/data-centre/data-downloads-and-publications/field-data/","Not available","Not available"]
[null,"IOG North Sea Ltd","P2442","IOG North Sea Ltd","Oil & Gas","For further field data, please check NSTA website: https://www.nstauthority.co.uk/data-centre/data-downloads-and-publications/field-data/","For further field data, please check NSTA website: https://www.nstauthority.co.uk/data-centre/data-downloads-and-publications/field-data/","For further field data, please check NSTA website: https://www.nstauthority.co.uk/data-centre/data-downloads-and-publications/field-data/","Not available","Not available"]
[null,"IOG North Sea Ltd","P2589","IOG North Sea Ltd","Oil & Gas","For further field data, please check NSTA website: https://www.nstauthority.co.uk/data-centre/data-downloads-and-publications/field-data/","For further field data, please check NSTA website: https://www.nstauthority.co.uk/data-centre/data-downloads-and-publications/field-data/","For further field data, please check NSTA website: https://www.nstauthority.co.uk/data-centre/data-downloads-and-publications/field-data/","Not available","Not available"]
[null,"IOG UK LTD","P1915","IOG UK LTD","Oil & Gas","For further field data, please check NSTA website: https://www.nstauthority.co.uk/data-centre/data-downloads-and-publications/field-data/","For further field data, please check NSTA website: https://www.nstauthority.co.uk/data-centre/data-downloads-and-publications/field-data/","For further field data, please check NSTA website: https://www.nstauthority.co.uk/data-centre/data-downloads-and-publications/field-data/","Not available","Not available"]
[null,"Irish Sea","Licence","Tarmac Holdings Limited","Not available","Not applicable","Not applicable","Not applicable","Not applicable","Not applicable"]
[null,"Island Gas Ltd","AL9","Island Gas Ltd","Oil & Gas","For further field data, please check NSTA website: https://www.nstauthority.co.uk/data-centre/data-downloads-and-publications/field-data/","For further field data, please check NSTA website: https://www.nstauthority.co.uk/data-centre/data-downloads-and-publications/field-data/","For further field data, please check NSTA website: https://www.nstauthority.co.uk/data-centre/data-downloads-and-publications/field-data/","Not available","Not available"]
[null,"Island Gas Ltd","DL4","Island Gas Ltd","Oil & Gas","For further field data, please check NSTA website: https://www.nstauthority.co.uk/data-centre/data-downloads-and-publications/field-data/","For further field data, please check NSTA website: https://www.nstauthority.co.uk/data-centre/data-downloads-and-publications/field-data/","For further field data, please check NSTA website: https://www.nstauthority.co.uk/data-centre/data-downloads-and-publications/field-data/","Not available","Not available"]
[null,"Island Gas Ltd","ML18","Island Gas Ltd","Oil & Gas","For further field data, please check NSTA website: https://www.nstauthority.co.uk/data-centre/data-downloads-and-publications/field-data/","For further field data, please check NSTA website: https://www.nstauthority.co.uk/data-centre/data-downloads-and-publications/field-data/","For further field data, please check NSTA website: https://www.nstauthority.co.uk/data-centre/data-downloads-and-publications/field-data/","Not available","Not available"]
[null,"Island Gas Ltd","ML21","Island Gas Ltd","Oil & Gas","For further field data, please check NSTA website: https://www.nstauthority.co.uk/data-centre/data-downloads-and-publications/field-data/","For further field data, please check NSTA website: https://www.nstauthority.co.uk/data-centre/data-downloads-and-publications/field-data/","For further field data, please check NSTA website: https://www.nstauthority.co.uk/data-centre/data-downloads-and-publications/field-data/","Not available","Not available"]
[null,"Island Gas Ltd","ML3","Island Gas Ltd","Oil & Gas","For further field data, please check NSTA website: https://www.nstauthority.co.uk/data-centre/data-downloads-and-publications/field-data/","For further field data, please check NSTA website: https://www.nstauthority.co.uk/data-centre/data-downloads-and-publications/field-data/","For further field data, please check NSTA website: https://www.nstauthority.co.uk/data-centre/data-downloads-and-publications/field-data/","Not available","Not available"]
[null,"Island Gas Ltd","ML6","Island Gas Ltd","Oil & Gas","For further field data, please check NSTA website: https://www.nstauthority.co.uk/data-centre/data-downloads-and-publications/field-data/","For further field data, please check NSTA website: https://www.nstauthority.co.uk/data-centre/data-downloads-and-publications/field-data/","For further field data, please check NSTA website: https://www.nstauthority.co.uk/data-centre/data-downloads-and-publications/field-data/","Not available","Not available"]
[null,"Island Gas Ltd","ML7","Island Gas Ltd","Oil & Gas","For further field data, please check NSTA website: https://www.nstauthority.co.uk/data-centre/data-downloads-and-publications/field-data/","For further field data, please check NSTA website: https://www.nstauthority.co.uk/data-centre/data-downloads-and-publications/field-data/","For further field data, please check NSTA website: https://www.nstauthority.co.uk/data-centre/data-downloads-and-publications/field-data/","Not available","Not available"]
[null,"Island Gas Ltd","PEDL21","Island Gas Ltd","Oil & Gas","For further field data, please check NSTA website: https://www.nstauthority.co.uk/data-centre/data-downloads-and-publications/field-data/","For further field data, please check NSTA website: https://www.nstauthority.co.uk/data-centre/data-downloads-and-publications/field-data/","For further field data, please check NSTA website: https://www.nstauthority.co.uk/data-centre/data-downloads-and-publications/field-data/","Not available","Not available"]
[null,"Island Gas Ltd","PEDL70","Island Gas Ltd","Oil & Gas","For further field data, please check NSTA website: https://www.nstauthority.co.uk/data-centre/data-downloads-and-publications/field-data/","For further field data, please check NSTA website: https://www.nstauthority.co.uk/data-centre/data-downloads-and-publications/field-data/","For further field data, please check NSTA website: https://www.nstauthority.co.uk/data-centre/data-downloads-and-publications/field-data/","Not available","Not available"]
[null,"Island Gas Ltd","PL179","Island Gas Ltd","Oil & Gas","For further field data, please check NSTA website: https://www.nstauthority.co.uk/data-centre/data-downloads-and-publications/field-data/","For further field data, please check NSTA website: https://www.nstauthority.co.uk/data-centre/data-downloads-and-publications/field-data/","For further field data, please check NSTA website: https://www.nstauthority.co.uk/data-centre/data-downloads-and-publications/field-data/","Not available","Not available"]
[null,"Island Gas Ltd","PL211","Island Gas Ltd","Oil & Gas","For further field data, please check NSTA website: https://www.nstauthority.co.uk/data-centre/data-downloads-and-publications/field-data/","For further field data, please check NSTA website: https://www.nstauthority.co.uk/data-centre/data-downloads-and-publications/field-data/","For further field data, please check NSTA website: https://www.nstauthority.co.uk/data-centre/data-downloads-and-publications/field-data/","Not available","Not available"]
[null,"ITHACA ALPHA (N.I.) LIMITED","P345","ITHACA ALPHA (N.I.) LIMITED","Oil & Gas","For further field data, please check NSTA website: https://www.nstauthority.co.uk/data-centre/data-downloads-and-publications/field-data/","For further field data, please check NSTA website: https://www.nstauthority.co.uk/data-centre/data-downloads-and-publications/field-data/","For further field data, please check NSTA website: https://www.nstauthority.co.uk/data-centre/data-downloads-and-publications/field-data/","Not available","Not available"]
[null,"ITHACA ENERGY (UK) LIMITED","P1392","ITHACA ENERGY (UK) LIMITED","Oil & Gas","For further field data, please check NSTA website: https://www.nstauthority.co.uk/data-centre/data-downloads-and-publications/field-data/","For further field data, please check NSTA website: https://www.nstauthority.co.uk/data-centre/data-downloads-and-publications/field-data/","For further field data, please check NSTA website: https://www.nstauthority.co.uk/data-centre/data-downloads-and-publications/field-data/","Not available","Not available"]
[null,"ITHACA ENERGY (UK) LIMITED","P2345","ITHACA ENERGY (UK) LIMITED","Oil & Gas","For further field data, please check NSTA website: https://www.nstauthority.co.uk/data-centre/data-downloads-and-publications/field-data/","For further field data, please check NSTA website: https://www.nstauthority.co.uk/data-centre/data-downloads-and-publications/field-data/","For further field data, please check NSTA website: https://www.nstauthority.co.uk/data-centre/data-downloads-and-publications/field-data/","Not available","Not available"]
[null,"ITHACA ENERGY (UK) LIMITED","P2356","ITHACA ENERGY (UK) LIMITED","Oil & Gas","For further field data, please check NSTA website: https://www.nstauthority.co.uk/data-centre/data-downloads-and-publications/field-data/","For further field data, please check NSTA website: https://www.nstauthority.co.uk/data-centre/data-downloads-and-publications/field-data/","For further field data, please check NSTA website: https://www.nstauthority.co.uk/data-centre/data-downloads-and-publications/field-data/","Not available","Not available"]
[null,"ITHACA ENERGY (UK) LIMITED","P2397","ITHACA ENERGY (UK) LIMITED","Oil & Gas","For further field data, please check NSTA website: https://www.nstauthority.co.uk/data-centre/data-downloads-and-publications/field-data/","For further field data, please check NSTA website: https://www.nstauthority.co.uk/data-centre/data-downloads-and-publications/field-data/","For further field data, please check NSTA website: https://www.nstauthority.co.uk/data-centre/data-downloads-and-publications/field-data/","Not available","Not available"]
[null,"ITHACA ENERGY (UK) LIMITED","P2476","ITHACA ENERGY (UK) LIMITED","Oil & Gas","For further field data, please check NSTA website: https://www.nstauthority.co.uk/data-centre/data-downloads-and-publications/field-data/","For further field data, please check NSTA website: https://www.nstauthority.co.uk/data-centre/data-downloads-and-publications/field-data/","For further field data, please check NSTA website: https://www.nstauthority.co.uk/data-centre/data-downloads-and-publications/field-data/","Not available","Not available"]
[null,"ITHACA ENERGY (UK) LIMITED","P2481","ITHACA ENERGY (UK) LIMITED","Oil & Gas","For further field data, please check NSTA website: https://www.nstauthority.co.uk/data-centre/data-downloads-and-publications/field-data/","For further field data, please check NSTA website: https://www.nstauthority.co.uk/data-centre/data-downloads-and-publications/field-data/","For further field data, please check NSTA website: https://www.nstauthority.co.uk/data-centre/data-downloads-and-publications/field-data/","Not available","Not available"]
[null,"ITHACA ENERGY (UK) LIMITED","P2494","ITHACA ENERGY (UK) LIMITED","Oil & Gas","For further field data, please check NSTA website: https://www.nstauthority.co.uk/data-centre/data-downloads-and-publications/field-data/","For further field data, please check NSTA website: https://www.nstauthority.co.uk/data-centre/data-downloads-and-publications/field-data/","For further field data, please check NSTA website: https://www.nstauthority.co.uk/data-centre/data-downloads-and-publications/field-data/","Not available","Not available"]
[null,"Ithaca Energy (UK) Ltd","P119","Ithaca Energy (UK) Ltd","Oil & Gas","For further field data, please check NSTA website: https://www.nstauthority.co.uk/data-centre/data-downloads-and-publications/field-data/","For further field data, please check NSTA website: https://www.nstauthority.co.uk/data-centre/data-downloads-and-publications/field-data/","For further field data, please check NSTA website: https://www.nstauthority.co.uk/data-centre/data-downloads-and-publications/field-data/","Not available","Not available"]
[null,"Ithaca Energy (UK) Ltd","P1293","Ithaca Energy (UK) Ltd","Oil & Gas","For further field data, please check NSTA website: https://www.nstauthority.co.uk/data-centre/data-downloads-and-publications/field-data/","For further field data, please check NSTA website: https://www.nstauthority.co.uk/data-centre/data-downloads-and-publications/field-data/","For further field data, please check NSTA website: https://www.nstauthority.co.uk/data-centre/data-downloads-and-publications/field-data/","Not available","Not available"]
[null,"Ithaca Energy (UK) Ltd","P1383","Ithaca Energy (UK) Ltd","Oil & Gas","For further field data, please check NSTA website: https://www.nstauthority.co.uk/data-centre/data-downloads-and-publications/field-data/","For further field data, please check NSTA website: https://www.nstauthority.co.uk/data-centre/data-downloads-and-publications/field-data/","For further field data, please check NSTA website: https://www.nstauthority.co.uk/data-centre/data-downloads-and-publications/field-data/","Not available","Not available"]
[null,"Ithaca Energy (UK) Ltd","P1588","Ithaca Energy (UK) Ltd","Oil & Gas","For further field data, please check NSTA website: https://www.nstauthority.co.uk/data-centre/data-downloads-and-publications/field-data/","For further field data, please check NSTA website: https://www.nstauthority.co.uk/data-centre/data-downloads-and-publications/field-data/","For further field data, please check NSTA website: https://www.nstauthority.co.uk/data-centre/data-downloads-and-publications/field-data/","Not available","Not available"]
[null,"Ithaca Energy (UK) Ltd","P1665","Ithaca Energy (UK) Ltd","Oil & Gas","For further field data, please check NSTA website: https://www.nstauthority.co.uk/data-centre/data-downloads-and-publications/field-data/","For further field data, please check NSTA website: https://www.nstauthority.co.uk/data-centre/data-downloads-and-publications/field-data/","For further field data, please check NSTA website: https://www.nstauthority.co.uk/data-centre/data-downloads-and-publications/field-data/","Not available","Not available"]
[null,"Ithaca Energy (UK) Ltd","P1823","Ithaca Energy (UK) Ltd","Oil & Gas","For further field data, please check NSTA website: https://www.nstauthority.co.uk/data-centre/data-downloads-and-publications/field-data/","For further field data, please check NSTA website: https://www.nstauthority.co.uk/data-centre/data-downloads-and-publications/field-data/","For further field data, please check NSTA website: https://www.nstauthority.co.uk/data-centre/data-downloads-and-publications/field-data/","Not available","Not available"]
[null,"Ithaca Energy (UK) Ltd","P2532","Ithaca Energy (UK) Ltd","Oil & Gas","For further field data, please check NSTA website: https://www.nstauthority.co.uk/data-centre/data-downloads-and-publications/field-data/","For further field data, please check NSTA website: https://www.nstauthority.co.uk/data-centre/data-downloads-and-publications/field-data/","For further field data, please check NSTA website: https://www.nstauthority.co.uk/data-centre/data-downloads-and-publications/field-data/","Not available","Not available"]
[null,"Ithaca Energy (UK) Ltd","P2534","Ithaca Energy (UK) Ltd","Oil & Gas","For further field data, please check NSTA website: https://www.nstauthority.co.uk/data-centre/data-downloads-and-publications/field-data/","For further field data, please check NSTA website: https://www.nstauthority.co.uk/data-centre/data-downloads-and-publications/field-data/","For further field data, please check NSTA website: https://www.nstauthority.co.uk/data-centre/data-downloads-and-publications/field-data/","Not available","Not available"]
[null,"Ithaca Energy (UK) Ltd","P2554","Ithaca Energy (UK) Ltd","Oil & Gas","For further field data, please check NSTA website: https://www.nstauthority.co.uk/data-centre/data-downloads-and-publications/field-data/","For further field data, please check NSTA website: https://www.nstauthority.co.uk/data-centre/data-downloads-and-publications/field-data/","For further field data, please check NSTA website: https://www.nstauthority.co.uk/data-centre/data-downloads-and-publications/field-data/","Not available","Not available"]
[null,"Ithaca Energy (UK) Ltd","P264","Ithaca Energy (UK) Ltd","Oil & Gas","For further field data, please check NSTA website: https://www.nstauthority.co.uk/data-centre/data-downloads-and-publications/field-data/","For further field data, please check NSTA website: https://www.nstauthority.co.uk/data-centre/data-downloads-and-publications/field-data/","For further field data, please check NSTA website: https://www.nstauthority.co.uk/data-centre/data-downloads-and-publications/field-data/","Not available","Not available"]
[null,"Ithaca Oil & Gas Limited","P213","Ithaca Oil & Gas Limited","Oil & Gas","For further field data, please check NSTA website: https://www.nstauthority.co.uk/data-centre/data-downloads-and-publications/field-data/","For further field data, please check NSTA website: https://www.nstauthority.co.uk/data-centre/data-downloads-and-publications/field-data/","For further field data, please check NSTA website: https://www.nstauthority.co.uk/data-centre/data-downloads-and-publications/field-data/","Not available","Not available"]
[null,"Ithaca Oil & Gas Limited","P2158","Ithaca Oil & Gas Limited","Oil & Gas","For further field data, please check NSTA website: https://www.nstauthority.co.uk/data-centre/data-downloads-and-publications/field-data/","For further field data, please check NSTA website: https://www.nstauthority.co.uk/data-centre/data-downloads-and-publications/field-data/","For further field data, please check NSTA website: https://www.nstauthority.co.uk/data-centre/data-downloads-and-publications/field-data/","Not available","Not available"]
[null,"Ithaca Oil & Gas Limited","P2373","Ithaca Oil & Gas Limited","Oil & Gas","For further field data, please check NSTA website: https://www.nstauthority.co.uk/data-centre/data-downloads-and-publications/field-data/","For further field data, please check NSTA website: https://www.nstauthority.co.uk/data-centre/data-downloads-and-publications/field-data/","For further field data, please check NSTA website: https://www.nstauthority.co.uk/data-centre/data-downloads-and-publications/field-data/","Not available","Not available"]
[null,"Ithaca Oil & Gas Limited","P2513","Ithaca Oil & Gas Limited","Oil & Gas","For further field data, please check NSTA website: https://www.nstauthority.co.uk/data-centre/data-downloads-and-publications/field-data/","For further field data, please check NSTA website: https://www.nstauthority.co.uk/data-centre/data-downloads-and-publications/field-data/","For further field data, please check NSTA website: https://www.nstauthority.co.uk/data-centre/data-downloads-and-publications/field-data/","Not available","Not available"]
[null,"Ithaca Oil & Gas Limited","P2514","Ithaca Oil & Gas Limited","Oil & Gas","For further field data, please check NSTA website: https://www.nstauthority.co.uk/data-centre/data-downloads-and-publications/field-data/","For further field data, please check NSTA website: https://www.nstauthority.co.uk/data-centre/data-downloads-and-publications/field-data/","For further field data, please check NSTA website: https://www.nstauthority.co.uk/data-centre/data-downloads-and-publications/field-data/","Not available","Not available"]
[null,"Ithaca Oil & Gas Limited","P2536","Ithaca Oil & Gas Limited","Oil & Gas","For further field data, please check NSTA website: https://www.nstauthority.co.uk/data-centre/data-downloads-and-publications/field-data/","For further field data, please check NSTA website: https://www.nstauthority.co.uk/data-centre/data-downloads-and-publications/field-data/","For further field data, please check NSTA website: https://www.nstauthority.co.uk/data-centre/data-downloads-and-publications/field-data/","Not available","Not available"]
[null,"ITHACA SP E&P LIMITED","P2403","ITHACA SP E&P LIMITED","Oil & Gas","For further field data, please check NSTA website: https://www.nstauthority.co.uk/data-centre/data-downloads-and-publications/field-data/","For further field data, please check NSTA website: https://www.nstauthority.co.uk/data-centre/data-downloads-and-publications/field-data/","For further field data, please check NSTA website: https://www.nstauthority.co.uk/data-centre/data-downloads-and-publications/field-data/","Not available","Not available"]
[null,"ITHACA ZETA LIMITED","P2382","ITHACA ZETA LIMITED","Oil & Gas","For further field data, please check NSTA website: https://www.nstauthority.co.uk/data-centre/data-downloads-and-publications/field-data/","For further field data, please check NSTA website: https://www.nstauthority.co.uk/data-centre/data-downloads-and-publications/field-data/","For further field data, please check NSTA website: https://www.nstauthority.co.uk/data-centre/data-downloads-and-publications/field-data/","Not available","Not available"]
[null,"JERSEY PETROLEUM LTD","P2170","JERSEY PETROLEUM LTD","Oil & Gas","For further field data, please check NSTA website: https://www.nstauthority.co.uk/data-centre/data-downloads-and-publications/field-data/","For further field data, please check NSTA website: https://www.nstauthority.co.uk/data-centre/data-downloads-and-publications/field-data/","For further field data, please check NSTA website: https://www.nstauthority.co.uk/data-centre/data-downloads-and-publications/field-data/","Not available","Not available"]
[null,"JERSEY PETROLEUM LTD","P2497","JERSEY PETROLEUM LTD","Oil & Gas","For further field data, please check NSTA website: https://www.nstauthority.co.uk/data-centre/data-downloads-and-publications/field-data/","For further field data, please check NSTA website: https://www.nstauthority.co.uk/data-centre/data-downloads-and-publications/field-data/","For further field data, please check NSTA website: https://www.nstauthority.co.uk/data-centre/data-downloads-and-publications/field-data/","Not available","Not available"]
[null,"JERSEY PETROLEUM LTD","P2498","JERSEY PETROLEUM LTD","Oil & Gas","For further field data, please check NSTA website: https://www.nstauthority.co.uk/data-centre/data-downloads-and-publications/field-data/","For further field data, please check NSTA website: https://www.nstauthority.co.uk/data-centre/data-downloads-and-publications/field-data/","For further field data, please check NSTA website: https://www.nstauthority.co.uk/data-centre/data-downloads-and-publications/field-data/","Not available","Not available"]
[null,"JERSEY PETROLEUM LTD","P2499","JERSEY PETROLEUM LTD","Oil & Gas","For further field data, please check NSTA website: https://www.nstauthority.co.uk/data-centre/data-downloads-and-publications/field-data/","For further field data, please check NSTA website: https://www.nstauthority.co.uk/data-centre/data-downloads-and-publications/field-data/","For further field data, please check NSTA website: https://www.nstauthority.co.uk/data-centre/data-downloads-and-publications/field-data/","Not available","Not available"]
[null,"JETEX PETROLEUM LTD","P2227","JETEX PETROLEUM LTD","Oil & Gas","For further field data, please check NSTA website: https://www.nstauthority.co.uk/data-centre/data-downloads-and-publications/field-data/","For further field data, please check NSTA website: https://www.nstauthority.co.uk/data-centre/data-downloads-and-publications/field-data/","For further field data, please check NSTA website: https://www.nstauthority.co.uk/data-centre/data-downloads-and-publications/field-data/","Not available","Not available"]
[null,"JETEX PETROLEUM LTD","P2471","JETEX PETROLEUM LTD","Oil & Gas","For further field data, please check NSTA website: https://www.nstauthority.co.uk/data-centre/data-downloads-and-publications/field-data/","For further field data, please check NSTA website: https://www.nstauthority.co.uk/data-centre/data-downloads-and-publications/field-data/","For further field data, please check NSTA website: https://www.nstauthority.co.uk/data-centre/data-downloads-and-publications/field-data/","Not available","Not available"]
[null,"JETEX PETROLEUM LTD","P2475","JETEX PETROLEUM LTD","Oil & Gas","For further field data, please check NSTA website: https://www.nstauthority.co.uk/data-centre/data-downloads-and-publications/field-data/","For further field data, please check NSTA website: https://www.nstauthority.co.uk/data-centre/data-downloads-and-publications/field-data/","For further field data, please check NSTA website: https://www.nstauthority.co.uk/data-centre/data-downloads-and-publications/field-data/","Not available","Not available"]
[null,"Kilroot","Licence","Irish Salt Mining & Exploration Co. Ltd","Not available","Not applicable","Not applicable","Not applicable","Not applicable","Not applicable"]
[null,"Lease ref 01032402 Cauldon Low Quarry","Licence","Lafarge Cauldon","Not available","Not applicable","Not applicable","Not applicable","Not applicable","Not applicable"]
[null,"Licence Area 457","Licence","Westminster Gravels Limited","Not available","Not applicable","Not applicable","Not applicable","Not applicable","Not applicable"]
[null,"Licence Area 476","Licence","Llanelli Sand Dredging Ltd,","Not available","Not applicable","Not applicable","Not applicable","Not applicable","Not applicable"]
[null,"Licence Area 501","Licence","Westminster Gravels Limited","Not available","Not applicable","Not applicable","Not applicable","Not applicable","Not applicable"]
[null,"Licence Area 515 ","Licence","Westminster Gravels Limited","Not available","Not applicable","Not applicable","Not applicable","Not applicable","Not applicable"]
[null,"Magseis Operations As","E463","Magseis Operations As","Oil & Gas","For further field data, please check NSTA website: https://www.nstauthority.co.uk/data-centre/data-downloads-and-publications/field-data/","For further field data, please check NSTA website: https://www.nstauthority.co.uk/data-centre/data-downloads-and-publications/field-data/","For further field data, please check NSTA website: https://www.nstauthority.co.uk/data-centre/data-downloads-and-publications/field-data/","Not available","Not available"]
[null,"MYTILUS LIMITED","P2360","MYTILUS LIMITED","Oil & Gas","For further field data, please check NSTA website: https://www.nstauthority.co.uk/data-centre/data-downloads-and-publications/field-data/","For further field data, please check NSTA website: https://www.nstauthority.co.uk/data-centre/data-downloads-and-publications/field-data/","For further field data, please check NSTA website: https://www.nstauthority.co.uk/data-centre/data-downloads-and-publications/field-data/","Not available","Not available"]
[null,"MYTILUS LIMITED","P2369","MYTILUS LIMITED","Oil & Gas","For further field data, please check NSTA website: https://www.nstauthority.co.uk/data-centre/data-downloads-and-publications/field-data/","For further field data, please check NSTA website: https://www.nstauthority.co.uk/data-centre/data-downloads-and-publications/field-data/","For further field data, please check NSTA website: https://www.nstauthority.co.uk/data-centre/data-downloads-and-publications/field-data/","Not available","Not available"]
[null,"Nautical Petroleum Ltd","P2560","Nautical Petroleum Ltd","Oil & Gas","For further field data, please check NSTA website: https://www.nstauthority.co.uk/data-centre/data-downloads-and-publications/field-data/","For further field data, please check NSTA website: https://www.nstauthority.co.uk/data-centre/data-downloads-and-publications/field-data/","For further field data, please check NSTA website: https://www.nstauthority.co.uk/data-centre/data-downloads-and-publications/field-data/","Not available","Not available"]
[null,"Nautical Petroleum Ltd","P2561","Nautical Petroleum Ltd","Oil & Gas","For further field data, please check NSTA website: https://www.nstauthority.co.uk/data-centre/data-downloads-and-publications/field-data/","For further field data, please check NSTA website: https://www.nstauthority.co.uk/data-centre/data-downloads-and-publications/field-data/","For further field data, please check NSTA website: https://www.nstauthority.co.uk/data-centre/data-downloads-and-publications/field-data/","Not available","Not available"]
[null,"Nautical Petroleum Ltd","P2562","Nautical Petroleum Ltd","Oil & Gas","For further field data, please check NSTA website: https://www.nstauthority.co.uk/data-centre/data-downloads-and-publications/field-data/","For further field data, please check NSTA website: https://www.nstauthority.co.uk/data-centre/data-downloads-and-publications/field-data/","For further field data, please check NSTA website: https://www.nstauthority.co.uk/data-centre/data-downloads-and-publications/field-data/","Not available","Not available"]
[null,"Nautical Petroleum Ltd","P2567","Nautical Petroleum Ltd","Oil & Gas","For further field data, please check NSTA website: https://www.nstauthority.co.uk/data-centre/data-downloads-and-publications/field-data/","For further field data, please check NSTA website: https://www.nstauthority.co.uk/data-centre/data-downloads-and-publications/field-data/","For further field data, please check NSTA website: https://www.nstauthority.co.uk/data-centre/data-downloads-and-publications/field-data/","Not available","Not available"]
[null,"NEO ENERGY (CNS) LIMITED","P631","NEO ENERGY (CNS) LIMITED","Oil & Gas","For further field data, please check NSTA website: https://www.nstauthority.co.uk/data-centre/data-downloads-and-publications/field-data/","For further field data, please check NSTA website: https://www.nstauthority.co.uk/data-centre/data-downloads-and-publications/field-data/","For further field data, please check NSTA website: https://www.nstauthority.co.uk/data-centre/data-downloads-and-publications/field-data/","Not available","Not available"]
[null,"NEO ENERGY (SNS) LIMITED","P456","NEO ENERGY (SNS) LIMITED","Oil & Gas","For further field data, please check NSTA website: https://www.nstauthority.co.uk/data-centre/data-downloads-and-publications/field-data/","For further field data, please check NSTA website: https://www.nstauthority.co.uk/data-centre/data-downloads-and-publications/field-data/","For further field data, please check NSTA website: https://www.nstauthority.co.uk/data-centre/data-downloads-and-publications/field-data/","Not available","Not available"]
[null,"NEO ENERGY (ZEX) LIMITED","P2390","NEO ENERGY (ZEX) LIMITED","Oil & Gas","For further field data, please check NSTA website: https://www.nstauthority.co.uk/data-centre/data-downloads-and-publications/field-data/","For further field data, please check NSTA website: https://www.nstauthority.co.uk/data-centre/data-downloads-and-publications/field-data/","For further field data, please check NSTA website: https://www.nstauthority.co.uk/data-centre/data-downloads-and-publications/field-data/","Not available","Not available"]
[null,"NEO ENERGY (ZEX) LIMITED","P2520","NEO ENERGY (ZEX) LIMITED","Oil & Gas","For further field data, please check NSTA website: https://www.nstauthority.co.uk/data-centre/data-downloads-and-publications/field-data/","For further field data, please check NSTA website: https://www.nstauthority.co.uk/data-centre/data-downloads-and-publications/field-data/","For further field data, please check NSTA website: https://www.nstauthority.co.uk/data-centre/data-downloads-and-publications/field-data/","Not available","Not available"]
[null,"NEO ENERGY (ZEX) LIMITED","P2521","NEO ENERGY (ZEX) LIMITED","Oil & Gas","For further field data, please check NSTA website: https://www.nstauthority.co.uk/data-centre/data-downloads-and-publications/field-data/","For further field data, please check NSTA website: https://www.nstauthority.co.uk/data-centre/data-downloads-and-publications/field-data/","For further field data, please check NSTA website: https://www.nstauthority.co.uk/data-centre/data-downloads-and-publications/field-data/","Not available","Not available"]
[null,"NEO ENERGY (ZEX) LIMITED","P2533","NEO ENERGY (ZEX) LIMITED","Oil & Gas","For further field data, please check NSTA website: https://www.nstauthority.co.uk/data-centre/data-downloads-and-publications/field-data/","For further field data, please check NSTA website: https://www.nstauthority.co.uk/data-centre/data-downloads-and-publications/field-data/","For further field data, please check NSTA website: https://www.nstauthority.co.uk/data-centre/data-downloads-and-publications/field-data/","Not available","Not available"]
[null,"NEO ENERGY CENTRAL NORTH SEA LIMITED","P84","NEO ENERGY CENTRAL NORTH SEA LIMITED","Oil & Gas","For further field data, please check NSTA website: https://www.nstauthority.co.uk/data-centre/data-downloads-and-publications/field-data/","For further field data, please check NSTA website: https://www.nstauthority.co.uk/data-centre/data-downloads-and-publications/field-data/","For further field data, please check NSTA website: https://www.nstauthority.co.uk/data-centre/data-downloads-and-publications/field-data/","Not available","Not available"]
[null,"NEO ENERGY PATHWAY LIMITED","P2013","NEO ENERGY PATHWAY LIMITED","Oil & Gas","For further field data, please check NSTA website: https://www.nstauthority.co.uk/data-centre/data-downloads-and-publications/field-data/","For further field data, please check NSTA website: https://www.nstauthority.co.uk/data-centre/data-downloads-and-publications/field-data/","For further field data, please check NSTA website: https://www.nstauthority.co.uk/data-centre/data-downloads-and-publications/field-data/","Not available","Not available"]
[null,"NEO ENERGY PETROLEUM LIMITED","P2350","NEO ENERGY PETROLEUM LIMITED","Oil & Gas","For further field data, please check NSTA website: https://www.nstauthority.co.uk/data-centre/data-downloads-and-publications/field-data/","For further field data, please check NSTA website: https://www.nstauthority.co.uk/data-centre/data-downloads-and-publications/field-data/","For further field data, please check NSTA website: https://www.nstauthority.co.uk/data-centre/data-downloads-and-publications/field-data/","Not available","Not available"]
[null,"NEO Energy Production UK  Limited","P1041","NEO Energy Production UK  Limited","Oil & Gas","For further field data, please check NSTA website: https://www.nstauthority.co.uk/data-centre/data-downloads-and-publications/field-data/","For further field data, please check NSTA website: https://www.nstauthority.co.uk/data-centre/data-downloads-and-publications/field-data/","For further field data, please check NSTA website: https://www.nstauthority.co.uk/data-centre/data-downloads-and-publications/field-data/","Not available","Not available"]
[null,"NEO Energy Production UK  Limited","P1464","NEO Energy Production UK  Limited","Oil & Gas","For further field data, please check NSTA website: https://www.nstauthority.co.uk/data-centre/data-downloads-and-publications/field-data/","For further field data, please check NSTA website: https://www.nstauthority.co.uk/data-centre/data-downloads-and-publications/field-data/","For further field data, please check NSTA website: https://www.nstauthority.co.uk/data-centre/data-downloads-and-publications/field-data/","Not available","Not available"]
[null,"NEO Energy Production UK  Limited","P735","NEO Energy Production UK  Limited","Oil & Gas","For further field data, please check NSTA website: https://www.nstauthority.co.uk/data-centre/data-downloads-and-publications/field-data/","For further field data, please check NSTA website: https://www.nstauthority.co.uk/data-centre/data-downloads-and-publications/field-data/","For further field data, please check NSTA website: https://www.nstauthority.co.uk/data-centre/data-downloads-and-publications/field-data/","Not available","Not available"]
[null,"Neptune E&P (UK) Ltd","P1055","Neptune E&P (UK) Ltd","Oil & Gas","For further field data, please check NSTA website: https://www.nstauthority.co.uk/data-centre/data-downloads-and-publications/field-data/","For further field data, please check NSTA website: https://www.nstauthority.co.uk/data-centre/data-downloads-and-publications/field-data/","For further field data, please check NSTA website: https://www.nstauthority.co.uk/data-centre/data-downloads-and-publications/field-data/","Not available","Not available"]
[null,"Neptune E&P (UK) Ltd","P1622","Neptune E&P (UK) Ltd","Oil & Gas","For further field data, please check NSTA website: https://www.nstauthority.co.uk/data-centre/data-downloads-and-publications/field-data/","For further field data, please check NSTA website: https://www.nstauthority.co.uk/data-centre/data-downloads-and-publications/field-data/","For further field data, please check NSTA website: https://www.nstauthority.co.uk/data-centre/data-downloads-and-publications/field-data/","Not available","Not available"]
[null,"Neptune E&P (UK) Ltd","P1731","Neptune E&P (UK) Ltd","Oil & Gas","For further field data, please check NSTA website: https://www.nstauthority.co.uk/data-centre/data-downloads-and-publications/field-data/","For further field data, please check NSTA website: https://www.nstauthority.co.uk/data-centre/data-downloads-and-publications/field-data/","For further field data, please check NSTA website: https://www.nstauthority.co.uk/data-centre/data-downloads-and-publications/field-data/","Not available","Not available"]
[null,"Neptune E&P (UK) Ltd","P2429","Neptune E&P (UK) Ltd","Oil & Gas","For further field data, please check NSTA website: https://www.nstauthority.co.uk/data-centre/data-downloads-and-publications/field-data/","For further field data, please check NSTA website: https://www.nstauthority.co.uk/data-centre/data-downloads-and-publications/field-data/","For further field data, please check NSTA website: https://www.nstauthority.co.uk/data-centre/data-downloads-and-publications/field-data/","Not available","Not available"]
[null,"NEPTUNE E&P UK LIMITED","P454","NEPTUNE E&P UK LIMITED","Oil & Gas","For further field data, please check NSTA website: https://www.nstauthority.co.uk/data-centre/data-downloads-and-publications/field-data/","For further field data, please check NSTA website: https://www.nstauthority.co.uk/data-centre/data-downloads-and-publications/field-data/","For further field data, please check NSTA website: https://www.nstauthority.co.uk/data-centre/data-downloads-and-publications/field-data/","Not available","Not available"]
[null,"NEPTUNE E&P UK LIMITED","P611","NEPTUNE E&P UK LIMITED","Oil & Gas","For further field data, please check NSTA website: https://www.nstauthority.co.uk/data-centre/data-downloads-and-publications/field-data/","For further field data, please check NSTA website: https://www.nstauthority.co.uk/data-centre/data-downloads-and-publications/field-data/","For further field data, please check NSTA website: https://www.nstauthority.co.uk/data-centre/data-downloads-and-publications/field-data/","Not available","Not available"]
[null,"Newport Wharf Depot","Licence","Hanson Limited","Not available","Not applicable","Not applicable","Not applicable","Not applicable","Not applicable"]
[null,"North Sea Natural Resources Ltd","P2321","North Sea Natural Resources Ltd","Oil & Gas","For further field data, please check NSTA website: https://www.nstauthority.co.uk/data-centre/data-downloads-and-publications/field-data/","For further field data, please check NSTA website: https://www.nstauthority.co.uk/data-centre/data-downloads-and-publications/field-data/","For further field data, please check NSTA website: https://www.nstauthority.co.uk/data-centre/data-downloads-and-publications/field-data/","Not available","Not available"]
[null,"One-Dyas UK Limited","P1630","One-Dyas UK Limited","Oil & Gas","For further field data, please check NSTA website: https://www.nstauthority.co.uk/data-centre/data-downloads-and-publications/field-data/","For further field data, please check NSTA website: https://www.nstauthority.co.uk/data-centre/data-downloads-and-publications/field-data/","For further field data, please check NSTA website: https://www.nstauthority.co.uk/data-centre/data-downloads-and-publications/field-data/","Not available","Not available"]
[null,"One-Dyas UK Limited","P2500","One-Dyas UK Limited","Oil & Gas","For further field data, please check NSTA website: https://www.nstauthority.co.uk/data-centre/data-downloads-and-publications/field-data/","For further field data, please check NSTA website: https://www.nstauthority.co.uk/data-centre/data-downloads-and-publications/field-data/","For further field data, please check NSTA website: https://www.nstauthority.co.uk/data-centre/data-downloads-and-publications/field-data/","Not available","Not available"]
[null,"ONSHORE OILFIELD SERVICES LIMITED","PL215","ONSHORE OILFIELD SERVICES LIMITED","Oil & Gas","For further field data, please check NSTA website: https://www.nstauthority.co.uk/data-centre/data-downloads-and-publications/field-data/","For further field data, please check NSTA website: https://www.nstauthority.co.uk/data-centre/data-downloads-and-publications/field-data/","For further field data, please check NSTA website: https://www.nstauthority.co.uk/data-centre/data-downloads-and-publications/field-data/","Not available","Not available"]
[null,"ORCADIAN ENERGY (CNS) LTD","P2244","ORCADIAN ENERGY (CNS) LTD","Oil & Gas","For further field data, please check NSTA website: https://www.nstauthority.co.uk/data-centre/data-downloads-and-publications/field-data/","For further field data, please check NSTA website: https://www.nstauthority.co.uk/data-centre/data-downloads-and-publications/field-data/","For further field data, please check NSTA website: https://www.nstauthority.co.uk/data-centre/data-downloads-and-publications/field-data/","Not available","Not available"]
[null,"ORCADIAN ENERGY (CNS) LTD","P2320","ORCADIAN ENERGY (CNS) LTD","Oil & Gas","For further field data, please check NSTA website: https://www.nstauthority.co.uk/data-centre/data-downloads-and-publications/field-data/","For further field data, please check NSTA website: https://www.nstauthority.co.uk/data-centre/data-downloads-and-publications/field-data/","For further field data, please check NSTA website: https://www.nstauthority.co.uk/data-centre/data-downloads-and-publications/field-data/","Not available","Not available"]
[null,"ORCADIAN ENERGY (CNS) LTD","P2482","ORCADIAN ENERGY (CNS) LTD","Oil & Gas","For further field data, please check NSTA website: https://www.nstauthority.co.uk/data-centre/data-downloads-and-publications/field-data/","For further field data, please check NSTA website: https://www.nstauthority.co.uk/data-centre/data-downloads-and-publications/field-data/","For further field data, please check NSTA website: https://www.nstauthority.co.uk/data-centre/data-downloads-and-publications/field-data/","Not available","Not available"]
[null,"PAINTED WOLF RESOURCES LIMITED","P2339","PAINTED WOLF RESOURCES LIMITED","Oil & Gas","For further field data, please check NSTA website: https://www.nstauthority.co.uk/data-centre/data-downloads-and-publications/field-data/","For further field data, please check NSTA website: https://www.nstauthority.co.uk/data-centre/data-downloads-and-publications/field-data/","For further field data, please check NSTA website: https://www.nstauthority.co.uk/data-centre/data-downloads-and-publications/field-data/","Not available","Not available"]
[null,"PAINTED WOLF RESOURCES LIMITED","P2425","PAINTED WOLF RESOURCES LIMITED","Oil & Gas","For further field data, please check NSTA website: https://www.nstauthority.co.uk/data-centre/data-downloads-and-publications/field-data/","For further field data, please check NSTA website: https://www.nstauthority.co.uk/data-centre/data-downloads-and-publications/field-data/","For further field data, please check NSTA website: https://www.nstauthority.co.uk/data-centre/data-downloads-and-publications/field-data/","Not available","Not available"]
[null,"PAINTED WOLF RESOURCES LIMITED","P2431","PAINTED WOLF RESOURCES LIMITED","Oil & Gas","For further field data, please check NSTA website: https://www.nstauthority.co.uk/data-centre/data-downloads-and-publications/field-data/","For further field data, please check NSTA website: https://www.nstauthority.co.uk/data-centre/data-downloads-and-publications/field-data/","For further field data, please check NSTA website: https://www.nstauthority.co.uk/data-centre/data-downloads-and-publications/field-data/","Not available","Not available"]
[null,"PAINTED WOLF RESOURCES LIMITED","P2581","PAINTED WOLF RESOURCES LIMITED","Oil & Gas","For further field data, please check NSTA website: https://www.nstauthority.co.uk/data-centre/data-downloads-and-publications/field-data/","For further field data, please check NSTA website: https://www.nstauthority.co.uk/data-centre/data-downloads-and-publications/field-data/","For further field data, please check NSTA website: https://www.nstauthority.co.uk/data-centre/data-downloads-and-publications/field-data/","Not available","Not available"]
[null,"PAINTED WOLF RESOURCES LIMITED","P2588","PAINTED WOLF RESOURCES LIMITED","Oil & Gas","For further field data, please check NSTA website: https://www.nstauthority.co.uk/data-centre/data-downloads-and-publications/field-data/","For further field data, please check NSTA website: https://www.nstauthority.co.uk/data-centre/data-downloads-and-publications/field-data/","For further field data, please check NSTA website: https://www.nstauthority.co.uk/data-centre/data-downloads-and-publications/field-data/","Not available","Not available"]
[null,"PAINTED WOLF RESOURCES LIMITED","P2606","PAINTED WOLF RESOURCES LIMITED","Oil & Gas","For further field data, please check NSTA website: https://www.nstauthority.co.uk/data-centre/data-downloads-and-publications/field-data/","For further field data, please check NSTA website: https://www.nstauthority.co.uk/data-centre/data-downloads-and-publications/field-data/","For further field data, please check NSTA website: https://www.nstauthority.co.uk/data-centre/data-downloads-and-publications/field-data/","Not available","Not available"]
[null,"Pant (N Wales) Quarry","Licence","Tarmac Holdings Limited","Not available","Not applicable","Not applicable","Not applicable","Not applicable","Not applicable"]
[null,"Pant y Pwll Dwr Quarry","Licence","CEMEX UK MATERIAL LTD","Not available","Not applicable","Not applicable","Not applicable","Not applicable","Not applicable"]
[null,"PARKMEAD (E&P) LIMITED","P2400","PARKMEAD (E&P) LIMITED","Oil & Gas","For further field data, please check NSTA website: https://www.nstauthority.co.uk/data-centre/data-downloads-and-publications/field-data/","For further field data, please check NSTA website: https://www.nstauthority.co.uk/data-centre/data-downloads-and-publications/field-data/","For further field data, please check NSTA website: https://www.nstauthority.co.uk/data-centre/data-downloads-and-publications/field-data/","Not available","Not available"]
[null,"PARKMEAD (E&P) LIMITED","P2402","PARKMEAD (E&P) LIMITED","Oil & Gas","For further field data, please check NSTA website: https://www.nstauthority.co.uk/data-centre/data-downloads-and-publications/field-data/","For further field data, please check NSTA website: https://www.nstauthority.co.uk/data-centre/data-downloads-and-publications/field-data/","For further field data, please check NSTA website: https://www.nstauthority.co.uk/data-centre/data-downloads-and-publications/field-data/","Not available","Not available"]
[null,"PARKMEAD (E&P) LIMITED","P2406","PARKMEAD (E&P) LIMITED","Oil & Gas","For further field data, please check NSTA website: https://www.nstauthority.co.uk/data-centre/data-downloads-and-publications/field-data/","For further field data, please check NSTA website: https://www.nstauthority.co.uk/data-centre/data-downloads-and-publications/field-data/","For further field data, please check NSTA website: https://www.nstauthority.co.uk/data-centre/data-downloads-and-publications/field-data/","Not available","Not available"]
[null,"PARKMEAD (E&P) LIMITED","P2435","PARKMEAD (E&P) LIMITED","Oil & Gas","For further field data, please check NSTA website: https://www.nstauthority.co.uk/data-centre/data-downloads-and-publications/field-data/","For further field data, please check NSTA website: https://www.nstauthority.co.uk/data-centre/data-downloads-and-publications/field-data/","For further field data, please check NSTA website: https://www.nstauthority.co.uk/data-centre/data-downloads-and-publications/field-data/","Not available","Not available"]
[null,"Parkmead (E&P) Ltd","P2154","Parkmead (E&P) Ltd","Oil & Gas","For further field data, please check NSTA website: https://www.nstauthority.co.uk/data-centre/data-downloads-and-publications/field-data/","For further field data, please check NSTA website: https://www.nstauthority.co.uk/data-centre/data-downloads-and-publications/field-data/","For further field data, please check NSTA website: https://www.nstauthority.co.uk/data-centre/data-downloads-and-publications/field-data/","Not available","Not available"]
[null,"Parkmead (E&P) Ltd","P2516","Parkmead (E&P) Ltd","Oil & Gas","For further field data, please check NSTA website: https://www.nstauthority.co.uk/data-centre/data-downloads-and-publications/field-data/","For further field data, please check NSTA website: https://www.nstauthority.co.uk/data-centre/data-downloads-and-publications/field-data/","For further field data, please check NSTA website: https://www.nstauthority.co.uk/data-centre/data-downloads-and-publications/field-data/","Not available","Not available"]
[null,"Parkmead (E&P) Ltd","P588","Parkmead (E&P) Ltd","Oil & Gas","For further field data, please check NSTA website: https://www.nstauthority.co.uk/data-centre/data-downloads-and-publications/field-data/","For further field data, please check NSTA website: https://www.nstauthority.co.uk/data-centre/data-downloads-and-publications/field-data/","For further field data, please check NSTA website: https://www.nstauthority.co.uk/data-centre/data-downloads-and-publications/field-data/","Not available","Not available"]
[null,"Penmaenmawr","Licence","Hanson Limited","Not available","Not applicable","Not applicable","Not applicable","Not applicable","Not applicable"]
[null,"Perenco (UK) Ltd","ML5","Perenco (UK) Ltd","Oil & Gas","For further field data, please check NSTA website: https://www.nstauthority.co.uk/data-centre/data-downloads-and-publications/field-data/","For further field data, please check NSTA website: https://www.nstauthority.co.uk/data-centre/data-downloads-and-publications/field-data/","For further field data, please check NSTA website: https://www.nstauthority.co.uk/data-centre/data-downloads-and-publications/field-data/","Not available","Not available"]
[null,"Perenco (UK) Ltd","P1","Perenco (UK) Ltd","Oil & Gas","For further field data, please check NSTA website: https://www.nstauthority.co.uk/data-centre/data-downloads-and-publications/field-data/","For further field data, please check NSTA website: https://www.nstauthority.co.uk/data-centre/data-downloads-and-publications/field-data/","For further field data, please check NSTA website: https://www.nstauthority.co.uk/data-centre/data-downloads-and-publications/field-data/","Not available","Not available"]
[null,"Perenco (UK) Ltd","P138","Perenco (UK) Ltd","Oil & Gas","For further field data, please check NSTA website: https://www.nstauthority.co.uk/data-centre/data-downloads-and-publications/field-data/","For further field data, please check NSTA website: https://www.nstauthority.co.uk/data-centre/data-downloads-and-publications/field-data/","For further field data, please check NSTA website: https://www.nstauthority.co.uk/data-centre/data-downloads-and-publications/field-data/","Not available","Not available"]
[null,"Perenco (UK) Ltd","P16","Perenco (UK) Ltd","Oil & Gas","For further field data, please check NSTA website: https://www.nstauthority.co.uk/data-centre/data-downloads-and-publications/field-data/","For further field data, please check NSTA website: https://www.nstauthority.co.uk/data-centre/data-downloads-and-publications/field-data/","For further field data, please check NSTA website: https://www.nstauthority.co.uk/data-centre/data-downloads-and-publications/field-data/","Not available","Not available"]
[null,"Perenco (UK) Ltd","P24","Perenco (UK) Ltd","Oil & Gas","For further field data, please check NSTA website: https://www.nstauthority.co.uk/data-centre/data-downloads-and-publications/field-data/","For further field data, please check NSTA website: https://www.nstauthority.co.uk/data-centre/data-downloads-and-publications/field-data/","For further field data, please check NSTA website: https://www.nstauthority.co.uk/data-centre/data-downloads-and-publications/field-data/","Not available","Not available"]
[null,"Perenco (UK) Ltd","P25","Perenco (UK) Ltd","Oil & Gas","For further field data, please check NSTA website: https://www.nstauthority.co.uk/data-centre/data-downloads-and-publications/field-data/","For further field data, please check NSTA website: https://www.nstauthority.co.uk/data-centre/data-downloads-and-publications/field-data/","For further field data, please check NSTA website: https://www.nstauthority.co.uk/data-centre/data-downloads-and-publications/field-data/","Not available","Not available"]
[null,"Perenco (UK) Ltd","P302","Perenco (UK) Ltd","Oil & Gas","For further field data, please check NSTA website: https://www.nstauthority.co.uk/data-centre/data-downloads-and-publications/field-data/","For further field data, please check NSTA website: https://www.nstauthority.co.uk/data-centre/data-downloads-and-publications/field-data/","For further field data, please check NSTA website: https://www.nstauthority.co.uk/data-centre/data-downloads-and-publications/field-data/","Not available","Not available"]
[null,"Perenco (UK) Ltd","P37","Perenco (UK) Ltd","Oil & Gas","For further field data, please check NSTA website: https://www.nstauthority.co.uk/data-centre/data-downloads-and-publications/field-data/","For further field data, please check NSTA website: https://www.nstauthority.co.uk/data-centre/data-downloads-and-publications/field-data/","For further field data, please check NSTA website: https://www.nstauthority.co.uk/data-centre/data-downloads-and-publications/field-data/","Not available","Not available"]
[null,"Perenco (UK) Ltd","P463","Perenco (UK) Ltd","Oil & Gas","For further field data, please check NSTA website: https://www.nstauthority.co.uk/data-centre/data-downloads-and-publications/field-data/","For further field data, please check NSTA website: https://www.nstauthority.co.uk/data-centre/data-downloads-and-publications/field-data/","For further field data, please check NSTA website: https://www.nstauthority.co.uk/data-centre/data-downloads-and-publications/field-data/","Not available","Not available"]
[null,"Perenco (UK) Ltd","P534","Perenco (UK) Ltd","Oil & Gas","For further field data, please check NSTA website: https://www.nstauthority.co.uk/data-centre/data-downloads-and-publications/field-data/","For further field data, please check NSTA website: https://www.nstauthority.co.uk/data-centre/data-downloads-and-publications/field-data/","For further field data, please check NSTA website: https://www.nstauthority.co.uk/data-centre/data-downloads-and-publications/field-data/","Not available","Not available"]
[null,"Perenco (UK) Ltd","P606","Perenco (UK) Ltd","Oil & Gas","For further field data, please check NSTA website: https://www.nstauthority.co.uk/data-centre/data-downloads-and-publications/field-data/","For further field data, please check NSTA website: https://www.nstauthority.co.uk/data-centre/data-downloads-and-publications/field-data/","For further field data, please check NSTA website: https://www.nstauthority.co.uk/data-centre/data-downloads-and-publications/field-data/","Not available","Not available"]
[null,"Perenco (UK) Ltd","P64","Perenco (UK) Ltd","Oil & Gas","For further field data, please check NSTA website: https://www.nstauthority.co.uk/data-centre/data-downloads-and-publications/field-data/","For further field data, please check NSTA website: https://www.nstauthority.co.uk/data-centre/data-downloads-and-publications/field-data/","For further field data, please check NSTA website: https://www.nstauthority.co.uk/data-centre/data-downloads-and-publications/field-data/","Not available","Not available"]
[null,"Perenco (UK) Ltd","P685","Perenco (UK) Ltd","Oil & Gas","For further field data, please check NSTA website: https://www.nstauthority.co.uk/data-centre/data-downloads-and-publications/field-data/","For further field data, please check NSTA website: https://www.nstauthority.co.uk/data-centre/data-downloads-and-publications/field-data/","For further field data, please check NSTA website: https://www.nstauthority.co.uk/data-centre/data-downloads-and-publications/field-data/","Not available","Not available"]
[null,"Perenco (UK) Ltd","P780","Perenco (UK) Ltd","Oil & Gas","For further field data, please check NSTA website: https://www.nstauthority.co.uk/data-centre/data-downloads-and-publications/field-data/","For further field data, please check NSTA website: https://www.nstauthority.co.uk/data-centre/data-downloads-and-publications/field-data/","For further field data, please check NSTA website: https://www.nstauthority.co.uk/data-centre/data-downloads-and-publications/field-data/","Not available","Not available"]
[null,"Perenco (UK) Ltd","P787","Perenco (UK) Ltd","Oil & Gas","For further field data, please check NSTA website: https://www.nstauthority.co.uk/data-centre/data-downloads-and-publications/field-data/","For further field data, please check NSTA website: https://www.nstauthority.co.uk/data-centre/data-downloads-and-publications/field-data/","For further field data, please check NSTA website: https://www.nstauthority.co.uk/data-centre/data-downloads-and-publications/field-data/","Not available","Not available"]
[null,"Perenco (UK) Ltd","P947","Perenco (UK) Ltd","Oil & Gas","For further field data, please check NSTA website: https://www.nstauthority.co.uk/data-centre/data-downloads-and-publications/field-data/","For further field data, please check NSTA website: https://www.nstauthority.co.uk/data-centre/data-downloads-and-publications/field-data/","For further field data, please check NSTA website: https://www.nstauthority.co.uk/data-centre/data-downloads-and-publications/field-data/","Not available","Not available"]
[null,"Perenco (UK) Ltd","PEDL328","Perenco (UK) Ltd","Oil & Gas","For further field data, please check NSTA website: https://www.nstauthority.co.uk/data-centre/data-downloads-and-publications/field-data/","For further field data, please check NSTA website: https://www.nstauthority.co.uk/data-centre/data-downloads-and-publications/field-data/","For further field data, please check NSTA website: https://www.nstauthority.co.uk/data-centre/data-downloads-and-publications/field-data/","Not available","Not available"]
[null,"Perenco (UK) Ltd","PL259","Perenco (UK) Ltd","Oil & Gas","For further field data, please check NSTA website: https://www.nstauthority.co.uk/data-centre/data-downloads-and-publications/field-data/","For further field data, please check NSTA website: https://www.nstauthority.co.uk/data-centre/data-downloads-and-publications/field-data/","For further field data, please check NSTA website: https://www.nstauthority.co.uk/data-centre/data-downloads-and-publications/field-data/","Not available","Not available"]
[null,"Perenco (UK) Ltd","PL89","Perenco (UK) Ltd","Oil & Gas","For further field data, please check NSTA website: https://www.nstauthority.co.uk/data-centre/data-downloads-and-publications/field-data/","For further field data, please check NSTA website: https://www.nstauthority.co.uk/data-centre/data-downloads-and-publications/field-data/","For further field data, please check NSTA website: https://www.nstauthority.co.uk/data-centre/data-downloads-and-publications/field-data/","Not available","Not available"]
[null,"PERENCO GAS (UK) LIMITED","P142","PERENCO GAS (UK) LIMITED","Oil & Gas","For further field data, please check NSTA website: https://www.nstauthority.co.uk/data-centre/data-downloads-and-publications/field-data/","For further field data, please check NSTA website: https://www.nstauthority.co.uk/data-centre/data-downloads-and-publications/field-data/","For further field data, please check NSTA website: https://www.nstauthority.co.uk/data-centre/data-downloads-and-publications/field-data/","Not available","Not available"]
[null,"Perenco Gas (UK) Ltd","P461","Perenco Gas (UK) Ltd","Oil & Gas","For further field data, please check NSTA website: https://www.nstauthority.co.uk/data-centre/data-downloads-and-publications/field-data/","For further field data, please check NSTA website: https://www.nstauthority.co.uk/data-centre/data-downloads-and-publications/field-data/","For further field data, please check NSTA website: https://www.nstauthority.co.uk/data-centre/data-downloads-and-publications/field-data/","Not available","Not available"]
[null,"Perenco Gas (UK) Ltd","P844","Perenco Gas (UK) Ltd","Oil & Gas","For further field data, please check NSTA website: https://www.nstauthority.co.uk/data-centre/data-downloads-and-publications/field-data/","For further field data, please check NSTA website: https://www.nstauthority.co.uk/data-centre/data-downloads-and-publications/field-data/","For further field data, please check NSTA website: https://www.nstauthority.co.uk/data-centre/data-downloads-and-publications/field-data/","Not available","Not available"]
[null,"PERENCO NORTH SEA LIMITED","P1061","PERENCO NORTH SEA LIMITED","Oil & Gas","For further field data, please check NSTA website: https://www.nstauthority.co.uk/data-centre/data-downloads-and-publications/field-data/","For further field data, please check NSTA website: https://www.nstauthority.co.uk/data-centre/data-downloads-and-publications/field-data/","For further field data, please check NSTA website: https://www.nstauthority.co.uk/data-centre/data-downloads-and-publications/field-data/","Not available","Not available"]
[null,"Petrogas North Sea Ltd","P2025","Petrogas North Sea Ltd","Oil & Gas","For further field data, please check NSTA website: https://www.nstauthority.co.uk/data-centre/data-downloads-and-publications/field-data/","For further field data, please check NSTA website: https://www.nstauthority.co.uk/data-centre/data-downloads-and-publications/field-data/","For further field data, please check NSTA website: https://www.nstauthority.co.uk/data-centre/data-downloads-and-publications/field-data/","Not available","Not available"]
[null,"PGS EXPLORATION (UK) LIMITED","E471","PGS EXPLORATION (UK) LIMITED","Oil & Gas","For further field data, please check NSTA website: https://www.nstauthority.co.uk/data-centre/data-downloads-and-publications/field-data/","For further field data, please check NSTA website: https://www.nstauthority.co.uk/data-centre/data-downloads-and-publications/field-data/","For further field data, please check NSTA website: https://www.nstauthority.co.uk/data-centre/data-downloads-and-publications/field-data/","Not available","Not available"]
[null,"PGS Exploration Ltd","E446","PGS Exploration Ltd","Oil & Gas","For further field data, please check NSTA website: https://www.nstauthority.co.uk/data-centre/data-downloads-and-publications/field-data/","For further field data, please check NSTA website: https://www.nstauthority.co.uk/data-centre/data-downloads-and-publications/field-data/","For further field data, please check NSTA website: https://www.nstauthority.co.uk/data-centre/data-downloads-and-publications/field-data/","Not available","Not available"]
[null,"Ping Petroleum (UK) Ltd","P2006","Ping Petroleum (UK) Ltd","Oil & Gas","For further field data, please check NSTA website: https://www.nstauthority.co.uk/data-centre/data-downloads-and-publications/field-data/","For further field data, please check NSTA website: https://www.nstauthority.co.uk/data-centre/data-downloads-and-publications/field-data/","For further field data, please check NSTA website: https://www.nstauthority.co.uk/data-centre/data-downloads-and-publications/field-data/","Not available","Not available"]
[null,"PING PETROLEUM UK LIMITED","P2364","PING PETROLEUM UK LIMITED","Oil & Gas","For further field data, please check NSTA website: https://www.nstauthority.co.uk/data-centre/data-downloads-and-publications/field-data/","For further field data, please check NSTA website: https://www.nstauthority.co.uk/data-centre/data-downloads-and-publications/field-data/","For further field data, please check NSTA website: https://www.nstauthority.co.uk/data-centre/data-downloads-and-publications/field-data/","Not available","Not available"]
[null,"Premier Oil (UK) Ltd","E467","Premier Oil (UK) Ltd","Oil & Gas","For further field data, please check NSTA website: https://www.nstauthority.co.uk/data-centre/data-downloads-and-publications/field-data/","For further field data, please check NSTA website: https://www.nstauthority.co.uk/data-centre/data-downloads-and-publications/field-data/","For further field data, please check NSTA website: https://www.nstauthority.co.uk/data-centre/data-downloads-and-publications/field-data/","Not available","Not available"]
[null,"Premier Oil (UK) Ltd","P1330","Premier Oil (UK) Ltd","Oil & Gas","For further field data, please check NSTA website: https://www.nstauthority.co.uk/data-centre/data-downloads-and-publications/field-data/","For further field data, please check NSTA website: https://www.nstauthority.co.uk/data-centre/data-downloads-and-publications/field-data/","For further field data, please check NSTA website: https://www.nstauthority.co.uk/data-centre/data-downloads-and-publications/field-data/","Not available","Not available"]
[null,"Premier Oil (UK) Ltd","P1430","Premier Oil (UK) Ltd","Oil & Gas","For further field data, please check NSTA website: https://www.nstauthority.co.uk/data-centre/data-downloads-and-publications/field-data/","For further field data, please check NSTA website: https://www.nstauthority.co.uk/data-centre/data-downloads-and-publications/field-data/","For further field data, please check NSTA website: https://www.nstauthority.co.uk/data-centre/data-downloads-and-publications/field-data/","Not available","Not available"]
[null,"Premier Oil (UK) Ltd","P164","Premier Oil (UK) Ltd","Oil & Gas","For further field data, please check NSTA website: https://www.nstauthority.co.uk/data-centre/data-downloads-and-publications/field-data/","For further field data, please check NSTA website: https://www.nstauthority.co.uk/data-centre/data-downloads-and-publications/field-data/","For further field data, please check NSTA website: https://www.nstauthority.co.uk/data-centre/data-downloads-and-publications/field-data/","Not available","Not available"]
[null,"Premier Oil (UK) Ltd","P2070","Premier Oil (UK) Ltd","Oil & Gas","For further field data, please check NSTA website: https://www.nstauthority.co.uk/data-centre/data-downloads-and-publications/field-data/","For further field data, please check NSTA website: https://www.nstauthority.co.uk/data-centre/data-downloads-and-publications/field-data/","For further field data, please check NSTA website: https://www.nstauthority.co.uk/data-centre/data-downloads-and-publications/field-data/","Not available","Not available"]
[null,"Premier Oil (UK) Ltd","P2305","Premier Oil (UK) Ltd","Oil & Gas","For further field data, please check NSTA website: https://www.nstauthority.co.uk/data-centre/data-downloads-and-publications/field-data/","For further field data, please check NSTA website: https://www.nstauthority.co.uk/data-centre/data-downloads-and-publications/field-data/","For further field data, please check NSTA website: https://www.nstauthority.co.uk/data-centre/data-downloads-and-publications/field-data/","Not available","Not available"]
[null,"Premier Oil (UK) Ltd","P2454","Premier Oil (UK) Ltd","Oil & Gas","For further field data, please check NSTA website: https://www.nstauthority.co.uk/data-centre/data-downloads-and-publications/field-data/","For further field data, please check NSTA website: https://www.nstauthority.co.uk/data-centre/data-downloads-and-publications/field-data/","For further field data, please check NSTA website: https://www.nstauthority.co.uk/data-centre/data-downloads-and-publications/field-data/","Not available","Not available"]
[null,"Premier Oil (UK) Ltd","P2550","Premier Oil (UK) Ltd","Oil & Gas","For further field data, please check NSTA website: https://www.nstauthority.co.uk/data-centre/data-downloads-and-publications/field-data/","For further field data, please check NSTA website: https://www.nstauthority.co.uk/data-centre/data-downloads-and-publications/field-data/","For further field data, please check NSTA website: https://www.nstauthority.co.uk/data-centre/data-downloads-and-publications/field-data/","Not available","Not available"]
[null,"Premier Oil (UK) Ltd","P2564","Premier Oil (UK) Ltd","Oil & Gas","For further field data, please check NSTA website: https://www.nstauthority.co.uk/data-centre/data-downloads-and-publications/field-data/","For further field data, please check NSTA website: https://www.nstauthority.co.uk/data-centre/data-downloads-and-publications/field-data/","For further field data, please check NSTA website: https://www.nstauthority.co.uk/data-centre/data-downloads-and-publications/field-data/","Not available","Not available"]
[null,"Premier Oil E&P (UK) EU Ltd","P686","Premier Oil E&P (UK) EU Ltd","Oil & Gas","For further field data, please check NSTA website: https://www.nstauthority.co.uk/data-centre/data-downloads-and-publications/field-data/","For further field data, please check NSTA website: https://www.nstauthority.co.uk/data-centre/data-downloads-and-publications/field-data/","For further field data, please check NSTA website: https://www.nstauthority.co.uk/data-centre/data-downloads-and-publications/field-data/","Not available","Not available"]
[null,"Premier Oil E&P (UK) Ltd","P1042","Premier Oil E&P (UK) Ltd","Oil & Gas","For further field data, please check NSTA website: https://www.nstauthority.co.uk/data-centre/data-downloads-and-publications/field-data/","For further field data, please check NSTA website: https://www.nstauthority.co.uk/data-centre/data-downloads-and-publications/field-data/","For further field data, please check NSTA website: https://www.nstauthority.co.uk/data-centre/data-downloads-and-publications/field-data/","Not available","Not available"]
[null,"Premier Oil E&P (UK) Ltd","P1114","Premier Oil E&P (UK) Ltd","Oil & Gas","For further field data, please check NSTA website: https://www.nstauthority.co.uk/data-centre/data-downloads-and-publications/field-data/","For further field data, please check NSTA website: https://www.nstauthority.co.uk/data-centre/data-downloads-and-publications/field-data/","For further field data, please check NSTA website: https://www.nstauthority.co.uk/data-centre/data-downloads-and-publications/field-data/","Not available","Not available"]
[null,"PREMIER OIL E&P UK EU LIMITED","P380","PREMIER OIL E&P UK EU LIMITED","Oil & Gas","For further field data, please check NSTA website: https://www.nstauthority.co.uk/data-centre/data-downloads-and-publications/field-data/","For further field data, please check NSTA website: https://www.nstauthority.co.uk/data-centre/data-downloads-and-publications/field-data/","For further field data, please check NSTA website: https://www.nstauthority.co.uk/data-centre/data-downloads-and-publications/field-data/","Not available","Not available"]
[null,"PREMIER OIL E&P UK LIMITED","P201","PREMIER OIL E&P UK LIMITED","Oil & Gas","For further field data, please check NSTA website: https://www.nstauthority.co.uk/data-centre/data-downloads-and-publications/field-data/","For further field data, please check NSTA website: https://www.nstauthority.co.uk/data-centre/data-downloads-and-publications/field-data/","For further field data, please check NSTA website: https://www.nstauthority.co.uk/data-centre/data-downloads-and-publications/field-data/","Not available","Not available"]
[null,"PREMIER OIL UK LIMITED","P170","PREMIER OIL UK LIMITED","Oil & Gas","For further field data, please check NSTA website: https://www.nstauthority.co.uk/data-centre/data-downloads-and-publications/field-data/","For further field data, please check NSTA website: https://www.nstauthority.co.uk/data-centre/data-downloads-and-publications/field-data/","For further field data, please check NSTA website: https://www.nstauthority.co.uk/data-centre/data-downloads-and-publications/field-data/","Not available","Not available"]
[null,"PREMIER OIL UK LIMITED","P2453","PREMIER OIL UK LIMITED","Oil & Gas","For further field data, please check NSTA website: https://www.nstauthority.co.uk/data-centre/data-downloads-and-publications/field-data/","For further field data, please check NSTA website: https://www.nstauthority.co.uk/data-centre/data-downloads-and-publications/field-data/","For further field data, please check NSTA website: https://www.nstauthority.co.uk/data-centre/data-downloads-and-publications/field-data/","Not available","Not available"]
[null,"RAPID OIL PRODUCTION LTD","P2451","RAPID OIL PRODUCTION LTD","Oil & Gas","For further field data, please check NSTA website: https://www.nstauthority.co.uk/data-centre/data-downloads-and-publications/field-data/","For further field data, please check NSTA website: https://www.nstauthority.co.uk/data-centre/data-downloads-and-publications/field-data/","For further field data, please check NSTA website: https://www.nstauthority.co.uk/data-centre/data-downloads-and-publications/field-data/","Not available","Not available"]
[null,"Rathlin Energy (UK) Ltd","PEDL183","Rathlin Energy (UK) Ltd","Oil & Gas","For further field data, please check NSTA website: https://www.nstauthority.co.uk/data-centre/data-downloads-and-publications/field-data/","For further field data, please check NSTA website: https://www.nstauthority.co.uk/data-centre/data-downloads-and-publications/field-data/","For further field data, please check NSTA website: https://www.nstauthority.co.uk/data-centre/data-downloads-and-publications/field-data/","Not available","Not available"]
[null,"Regent Park Energy Ltd","PEDL11","Regent Park Energy Ltd","Oil & Gas","For further field data, please check NSTA website: https://www.nstauthority.co.uk/data-centre/data-downloads-and-publications/field-data/","For further field data, please check NSTA website: https://www.nstauthority.co.uk/data-centre/data-downloads-and-publications/field-data/","For further field data, please check NSTA website: https://www.nstauthority.co.uk/data-centre/data-downloads-and-publications/field-data/","Not available","Not available"]
[null,"Regent Park Energy Ltd","PEDL169","Regent Park Energy Ltd","Oil & Gas","For further field data, please check NSTA website: https://www.nstauthority.co.uk/data-centre/data-downloads-and-publications/field-data/","For further field data, please check NSTA website: https://www.nstauthority.co.uk/data-centre/data-downloads-and-publications/field-data/","For further field data, please check NSTA website: https://www.nstauthority.co.uk/data-centre/data-downloads-and-publications/field-data/","Not available","Not available"]
[null,"Regent Park Energy Ltd","PL161","Regent Park Energy Ltd","Oil & Gas","For further field data, please check NSTA website: https://www.nstauthority.co.uk/data-centre/data-downloads-and-publications/field-data/","For further field data, please check NSTA website: https://www.nstauthority.co.uk/data-centre/data-downloads-and-publications/field-data/","For further field data, please check NSTA website: https://www.nstauthority.co.uk/data-centre/data-downloads-and-publications/field-data/","Not available","Not available"]
[null,"REPSOL SINOPEC NORTH SEA LIMITED","P219","REPSOL SINOPEC NORTH SEA LIMITED","Oil & Gas","For further field data, please check NSTA website: https://www.nstauthority.co.uk/data-centre/data-downloads-and-publications/field-data/","For further field data, please check NSTA website: https://www.nstauthority.co.uk/data-centre/data-downloads-and-publications/field-data/","For further field data, please check NSTA website: https://www.nstauthority.co.uk/data-centre/data-downloads-and-publications/field-data/","Not available","Not available"]
[null,"REPSOL SINOPEC NORTH SEA LIMITED","P240","REPSOL SINOPEC NORTH SEA LIMITED","Oil & Gas","For further field data, please check NSTA website: https://www.nstauthority.co.uk/data-centre/data-downloads-and-publications/field-data/","For further field data, please check NSTA website: https://www.nstauthority.co.uk/data-centre/data-downloads-and-publications/field-data/","For further field data, please check NSTA website: https://www.nstauthority.co.uk/data-centre/data-downloads-and-publications/field-data/","Not available","Not available"]
[null,"Repsol Sinopec North Sea Ltd","P256","Repsol Sinopec North Sea Ltd","Oil & Gas","For further field data, please check NSTA website: https://www.nstauthority.co.uk/data-centre/data-downloads-and-publications/field-data/","For further field data, please check NSTA website: https://www.nstauthority.co.uk/data-centre/data-downloads-and-publications/field-data/","For further field data, please check NSTA website: https://www.nstauthority.co.uk/data-centre/data-downloads-and-publications/field-data/","Not available","Not available"]
[null,"Repsol Sinopec North Sea Ltd","P344","Repsol Sinopec North Sea Ltd","Oil & Gas","For further field data, please check NSTA website: https://www.nstauthority.co.uk/data-centre/data-downloads-and-publications/field-data/","For further field data, please check NSTA website: https://www.nstauthority.co.uk/data-centre/data-downloads-and-publications/field-data/","For further field data, please check NSTA website: https://www.nstauthority.co.uk/data-centre/data-downloads-and-publications/field-data/","Not available","Not available"]
[null,"Repsol Sinopec Resources (UK) Ltd","P116","Repsol Sinopec Resources (UK) Ltd","Oil & Gas","For further field data, please check NSTA website: https://www.nstauthority.co.uk/data-centre/data-downloads-and-publications/field-data/","For further field data, please check NSTA website: https://www.nstauthority.co.uk/data-centre/data-downloads-and-publications/field-data/","For further field data, please check NSTA website: https://www.nstauthority.co.uk/data-centre/data-downloads-and-publications/field-data/","Not available","Not available"]
[null,"Repsol Sinopec Resources (UK) Ltd","P19","Repsol Sinopec Resources (UK) Ltd","Oil & Gas","For further field data, please check NSTA website: https://www.nstauthority.co.uk/data-centre/data-downloads-and-publications/field-data/","For further field data, please check NSTA website: https://www.nstauthority.co.uk/data-centre/data-downloads-and-publications/field-data/","For further field data, please check NSTA website: https://www.nstauthority.co.uk/data-centre/data-downloads-and-publications/field-data/","Not available","Not available"]
[null,"Repsol Sinopec Resources (UK) Ltd","P20","Repsol Sinopec Resources (UK) Ltd","Oil & Gas","For further field data, please check NSTA website: https://www.nstauthority.co.uk/data-centre/data-downloads-and-publications/field-data/","For further field data, please check NSTA website: https://www.nstauthority.co.uk/data-centre/data-downloads-and-publications/field-data/","For further field data, please check NSTA website: https://www.nstauthority.co.uk/data-centre/data-downloads-and-publications/field-data/","Not available","Not available"]
[null,"Repsol Sinopec Resources (UK) Ltd","P249","Repsol Sinopec Resources (UK) Ltd","Oil & Gas","For further field data, please check NSTA website: https://www.nstauthority.co.uk/data-centre/data-downloads-and-publications/field-data/","For further field data, please check NSTA website: https://www.nstauthority.co.uk/data-centre/data-downloads-and-publications/field-data/","For further field data, please check NSTA website: https://www.nstauthority.co.uk/data-centre/data-downloads-and-publications/field-data/","Not available","Not available"]
[null,"Repsol Sinopec Resources (UK) Ltd","P250","Repsol Sinopec Resources (UK) Ltd","Oil & Gas","For further field data, please check NSTA website: https://www.nstauthority.co.uk/data-centre/data-downloads-and-publications/field-data/","For further field data, please check NSTA website: https://www.nstauthority.co.uk/data-centre/data-downloads-and-publications/field-data/","For further field data, please check NSTA website: https://www.nstauthority.co.uk/data-centre/data-downloads-and-publications/field-data/","Not available","Not available"]
[null,"Repsol Sinopec Resources (UK) Ltd","P263","Repsol Sinopec Resources (UK) Ltd","Oil & Gas","For further field data, please check NSTA website: https://www.nstauthority.co.uk/data-centre/data-downloads-and-publications/field-data/","For further field data, please check NSTA website: https://www.nstauthority.co.uk/data-centre/data-downloads-and-publications/field-data/","For further field data, please check NSTA website: https://www.nstauthority.co.uk/data-centre/data-downloads-and-publications/field-data/","Not available","Not available"]
[null,"Repsol Sinopec Resources (UK) Ltd","P266","Repsol Sinopec Resources (UK) Ltd","Oil & Gas","For further field data, please check NSTA website: https://www.nstauthority.co.uk/data-centre/data-downloads-and-publications/field-data/","For further field data, please check NSTA website: https://www.nstauthority.co.uk/data-centre/data-downloads-and-publications/field-data/","For further field data, please check NSTA website: https://www.nstauthority.co.uk/data-centre/data-downloads-and-publications/field-data/","Not available","Not available"]
[null,"Repsol Sinopec Resources (UK) Ltd","P291","Repsol Sinopec Resources (UK) Ltd","Oil & Gas","For further field data, please check NSTA website: https://www.nstauthority.co.uk/data-centre/data-downloads-and-publications/field-data/","For further field data, please check NSTA website: https://www.nstauthority.co.uk/data-centre/data-downloads-and-publications/field-data/","For further field data, please check NSTA website: https://www.nstauthority.co.uk/data-centre/data-downloads-and-publications/field-data/","Not available","Not available"]
[null,"Repsol Sinopec Resources (UK) Ltd","P292","Repsol Sinopec Resources (UK) Ltd","Oil & Gas","For further field data, please check NSTA website: https://www.nstauthority.co.uk/data-centre/data-downloads-and-publications/field-data/","For further field data, please check NSTA website: https://www.nstauthority.co.uk/data-centre/data-downloads-and-publications/field-data/","For further field data, please check NSTA website: https://www.nstauthority.co.uk/data-centre/data-downloads-and-publications/field-data/","Not available","Not available"]
[null,"Repsol Sinopec Resources (UK) Ltd","P297","Repsol Sinopec Resources (UK) Ltd","Oil & Gas","For further field data, please check NSTA website: https://www.nstauthority.co.uk/data-centre/data-downloads-and-publications/field-data/","For further field data, please check NSTA website: https://www.nstauthority.co.uk/data-centre/data-downloads-and-publications/field-data/","For further field data, please check NSTA website: https://www.nstauthority.co.uk/data-centre/data-downloads-and-publications/field-data/","Not available","Not available"]
[null,"Repsol Sinopec Resources (UK) Ltd","P307","Repsol Sinopec Resources (UK) Ltd","Oil & Gas","For further field data, please check NSTA website: https://www.nstauthority.co.uk/data-centre/data-downloads-and-publications/field-data/","For further field data, please check NSTA website: https://www.nstauthority.co.uk/data-centre/data-downloads-and-publications/field-data/","For further field data, please check NSTA website: https://www.nstauthority.co.uk/data-centre/data-downloads-and-publications/field-data/","Not available","Not available"]
[null,"Repsol Sinopec Resources (UK) Ltd","P729","Repsol Sinopec Resources (UK) Ltd","Oil & Gas","For further field data, please check NSTA website: https://www.nstauthority.co.uk/data-centre/data-downloads-and-publications/field-data/","For further field data, please check NSTA website: https://www.nstauthority.co.uk/data-centre/data-downloads-and-publications/field-data/","For further field data, please check NSTA website: https://www.nstauthority.co.uk/data-centre/data-downloads-and-publications/field-data/","Not available","Not available"]
[null,"Repsol Sinopec Resources (UK) Ltd","P73","Repsol Sinopec Resources (UK) Ltd","Oil & Gas","For further field data, please check NSTA website: https://www.nstauthority.co.uk/data-centre/data-downloads-and-publications/field-data/","For further field data, please check NSTA website: https://www.nstauthority.co.uk/data-centre/data-downloads-and-publications/field-data/","For further field data, please check NSTA website: https://www.nstauthority.co.uk/data-centre/data-downloads-and-publications/field-data/","Not available","Not available"]
[null,"Repsol Sinopec Resources (UK) Ltd","P810","Repsol Sinopec Resources (UK) Ltd","Oil & Gas","For further field data, please check NSTA website: https://www.nstauthority.co.uk/data-centre/data-downloads-and-publications/field-data/","For further field data, please check NSTA website: https://www.nstauthority.co.uk/data-centre/data-downloads-and-publications/field-data/","For further field data, please check NSTA website: https://www.nstauthority.co.uk/data-centre/data-downloads-and-publications/field-data/","Not available","Not available"]
[null,"Repsol Sinopec Resources (UK) Ltd","P973","Repsol Sinopec Resources (UK) Ltd","Oil & Gas","For further field data, please check NSTA website: https://www.nstauthority.co.uk/data-centre/data-downloads-and-publications/field-data/","For further field data, please check NSTA website: https://www.nstauthority.co.uk/data-centre/data-downloads-and-publications/field-data/","For further field data, please check NSTA website: https://www.nstauthority.co.uk/data-centre/data-downloads-and-publications/field-data/","Not available","Not available"]
[null,"Repsol Sinopec Resources (UK) Ltd","P983","Repsol Sinopec Resources (UK) Ltd","Oil & Gas","For further field data, please check NSTA website: https://www.nstauthority.co.uk/data-centre/data-downloads-and-publications/field-data/","For further field data, please check NSTA website: https://www.nstauthority.co.uk/data-centre/data-downloads-and-publications/field-data/","For further field data, please check NSTA website: https://www.nstauthority.co.uk/data-centre/data-downloads-and-publications/field-data/","Not available","Not available"]
[null,"REPSOL SINOPEC RESOURCES UK LIMITED","P185","REPSOL SINOPEC RESOURCES UK LIMITED","Oil & Gas","For further field data, please check NSTA website: https://www.nstauthority.co.uk/data-centre/data-downloads-and-publications/field-data/","For further field data, please check NSTA website: https://www.nstauthority.co.uk/data-centre/data-downloads-and-publications/field-data/","For further field data, please check NSTA website: https://www.nstauthority.co.uk/data-centre/data-downloads-and-publications/field-data/","Not available","Not available"]
[null,"REPSOL SINOPEC RESOURCES UK LIMITED","P220","REPSOL SINOPEC RESOURCES UK LIMITED","Oil & Gas","For further field data, please check NSTA website: https://www.nstauthority.co.uk/data-centre/data-downloads-and-publications/field-data/","For further field data, please check NSTA website: https://www.nstauthority.co.uk/data-centre/data-downloads-and-publications/field-data/","For further field data, please check NSTA website: https://www.nstauthority.co.uk/data-centre/data-downloads-and-publications/field-data/","Not available","Not available"]
[null,"REPSOL SINOPEC RESOURCES UK LIMITED","P237","REPSOL SINOPEC RESOURCES UK LIMITED","Oil & Gas","For further field data, please check NSTA website: https://www.nstauthority.co.uk/data-centre/data-downloads-and-publications/field-data/","For further field data, please check NSTA website: https://www.nstauthority.co.uk/data-centre/data-downloads-and-publications/field-data/","For further field data, please check NSTA website: https://www.nstauthority.co.uk/data-centre/data-downloads-and-publications/field-data/","Not available","Not available"]
[null,"REPSOL SINOPEC RESOURCES UK LIMITED","P241","REPSOL SINOPEC RESOURCES UK LIMITED","Oil & Gas","For further field data, please check NSTA website: https://www.nstauthority.co.uk/data-centre/data-downloads-and-publications/field-data/","For further field data, please check NSTA website: https://www.nstauthority.co.uk/data-centre/data-downloads-and-publications/field-data/","For further field data, please check NSTA website: https://www.nstauthority.co.uk/data-centre/data-downloads-and-publications/field-data/","Not available","Not available"]
[null,"REPSOL SINOPEC RESOURCES UK LIMITED","P244","REPSOL SINOPEC RESOURCES UK LIMITED","Oil & Gas","For further field data, please check NSTA website: https://www.nstauthority.co.uk/data-centre/data-downloads-and-publications/field-data/","For further field data, please check NSTA website: https://www.nstauthority.co.uk/data-centre/data-downloads-and-publications/field-data/","For further field data, please check NSTA website: https://www.nstauthority.co.uk/data-centre/data-downloads-and-publications/field-data/","Not available","Not available"]
[null,"REPSOL SINOPEC RESOURCES UK LIMITED","P324","REPSOL SINOPEC RESOURCES UK LIMITED","Oil & Gas","For further field data, please check NSTA website: https://www.nstauthority.co.uk/data-centre/data-downloads-and-publications/field-data/","For further field data, please check NSTA website: https://www.nstauthority.co.uk/data-centre/data-downloads-and-publications/field-data/","For further field data, please check NSTA website: https://www.nstauthority.co.uk/data-centre/data-downloads-and-publications/field-data/","Not available","Not available"]
[null,"REPSOL SINOPEC RESOURCES UK LIMITED","P593","REPSOL SINOPEC RESOURCES UK LIMITED","Oil & Gas","For further field data, please check NSTA website: https://www.nstauthority.co.uk/data-centre/data-downloads-and-publications/field-data/","For further field data, please check NSTA website: https://www.nstauthority.co.uk/data-centre/data-downloads-and-publications/field-data/","For further field data, please check NSTA website: https://www.nstauthority.co.uk/data-centre/data-downloads-and-publications/field-data/","Not available","Not available"]
[null,"RIGON OPERATIONS LIMITED","PEDL297","RIGON OPERATIONS LIMITED","Oil & Gas","For further field data, please check NSTA website: https://www.nstauthority.co.uk/data-centre/data-downloads-and-publications/field-data/","For further field data, please check NSTA website: https://www.nstauthority.co.uk/data-centre/data-downloads-and-publications/field-data/","For further field data, please check NSTA website: https://www.nstauthority.co.uk/data-centre/data-downloads-and-publications/field-data/","Not available","Not available"]
[null,"RockRose UKCS14 Limited","P2341","RockRose UKCS14 Limited","Oil & Gas","For further field data, please check NSTA website: https://www.nstauthority.co.uk/data-centre/data-downloads-and-publications/field-data/","For further field data, please check NSTA website: https://www.nstauthority.co.uk/data-centre/data-downloads-and-publications/field-data/","For further field data, please check NSTA website: https://www.nstauthority.co.uk/data-centre/data-downloads-and-publications/field-data/","Not available","Not available"]
[null,"Rockrose UKCS4 Limited","P1051","Rockrose UKCS4 Limited","Oil & Gas","For further field data, please check NSTA website: https://www.nstauthority.co.uk/data-centre/data-downloads-and-publications/field-data/","For further field data, please check NSTA website: https://www.nstauthority.co.uk/data-centre/data-downloads-and-publications/field-data/","For further field data, please check NSTA website: https://www.nstauthority.co.uk/data-centre/data-downloads-and-publications/field-data/","Not available","Not available"]
[null,"Rockrose UKCS4 Limited","P1720","Rockrose UKCS4 Limited","Oil & Gas","For further field data, please check NSTA website: https://www.nstauthority.co.uk/data-centre/data-downloads-and-publications/field-data/","For further field data, please check NSTA website: https://www.nstauthority.co.uk/data-centre/data-downloads-and-publications/field-data/","For further field data, please check NSTA website: https://www.nstauthority.co.uk/data-centre/data-downloads-and-publications/field-data/","Not available","Not available"]
[null,"ScottishPower Energy Management Ltd","PL162","ScottishPower Energy Management Ltd","Oil & Gas","For further field data, please check NSTA website: https://www.nstauthority.co.uk/data-centre/data-downloads-and-publications/field-data/","For further field data, please check NSTA website: https://www.nstauthority.co.uk/data-centre/data-downloads-and-publications/field-data/","For further field data, please check NSTA website: https://www.nstauthority.co.uk/data-centre/data-downloads-and-publications/field-data/","Not available","Not available"]
[null,"Serica Energy (UK) Ltd","P1314","Serica Energy (UK) Ltd","Oil & Gas","For further field data, please check NSTA website: https://www.nstauthority.co.uk/data-centre/data-downloads-and-publications/field-data/","For further field data, please check NSTA website: https://www.nstauthority.co.uk/data-centre/data-downloads-and-publications/field-data/","For further field data, please check NSTA website: https://www.nstauthority.co.uk/data-centre/data-downloads-and-publications/field-data/","Not available","Not available"]
[null,"Serica Energy (UK) Ltd","P198","Serica Energy (UK) Ltd","Oil & Gas","For further field data, please check NSTA website: https://www.nstauthority.co.uk/data-centre/data-downloads-and-publications/field-data/","For further field data, please check NSTA website: https://www.nstauthority.co.uk/data-centre/data-downloads-and-publications/field-data/","For further field data, please check NSTA website: https://www.nstauthority.co.uk/data-centre/data-downloads-and-publications/field-data/","Not available","Not available"]
[null,"Serica Energy (UK) Ltd","P209","Serica Energy (UK) Ltd","Oil & Gas","For further field data, please check NSTA website: https://www.nstauthority.co.uk/data-centre/data-downloads-and-publications/field-data/","For further field data, please check NSTA website: https://www.nstauthority.co.uk/data-centre/data-downloads-and-publications/field-data/","For further field data, please check NSTA website: https://www.nstauthority.co.uk/data-centre/data-downloads-and-publications/field-data/","Not available","Not available"]
[null,"Serica Energy (UK) Ltd","P2501","Serica Energy (UK) Ltd","Oil & Gas","For further field data, please check NSTA website: https://www.nstauthority.co.uk/data-centre/data-downloads-and-publications/field-data/","For further field data, please check NSTA website: https://www.nstauthority.co.uk/data-centre/data-downloads-and-publications/field-data/","For further field data, please check NSTA website: https://www.nstauthority.co.uk/data-centre/data-downloads-and-publications/field-data/","Not available","Not available"]
[null,"Serica Energy (UK) Ltd","P2506","Serica Energy (UK) Ltd","Oil & Gas","For further field data, please check NSTA website: https://www.nstauthority.co.uk/data-centre/data-downloads-and-publications/field-data/","For further field data, please check NSTA website: https://www.nstauthority.co.uk/data-centre/data-downloads-and-publications/field-data/","For further field data, please check NSTA website: https://www.nstauthority.co.uk/data-centre/data-downloads-and-publications/field-data/","Not available","Not available"]
[null,"Serica Energy (UK) Ltd","P276","Serica Energy (UK) Ltd","Oil & Gas","For further field data, please check NSTA website: https://www.nstauthority.co.uk/data-centre/data-downloads-and-publications/field-data/","For further field data, please check NSTA website: https://www.nstauthority.co.uk/data-centre/data-downloads-and-publications/field-data/","For further field data, please check NSTA website: https://www.nstauthority.co.uk/data-centre/data-downloads-and-publications/field-data/","Not available","Not available"]
[null,"Serica Energy (UK) Ltd","P566","Serica Energy (UK) Ltd","Oil & Gas","For further field data, please check NSTA website: https://www.nstauthority.co.uk/data-centre/data-downloads-and-publications/field-data/","For further field data, please check NSTA website: https://www.nstauthority.co.uk/data-centre/data-downloads-and-publications/field-data/","For further field data, please check NSTA website: https://www.nstauthority.co.uk/data-centre/data-downloads-and-publications/field-data/","Not available","Not available"]
[null,"Serica Energy (UK) Ltd","P975","Serica Energy (UK) Ltd","Oil & Gas","For further field data, please check NSTA website: https://www.nstauthority.co.uk/data-centre/data-downloads-and-publications/field-data/","For further field data, please check NSTA website: https://www.nstauthority.co.uk/data-centre/data-downloads-and-publications/field-data/","For further field data, please check NSTA website: https://www.nstauthority.co.uk/data-centre/data-downloads-and-publications/field-data/","Not available","Not available"]
[null,"Seven Star Natural Gas Ltd","PL213","Seven Star Natural Gas Ltd","Oil & Gas","For further field data, please check NSTA website: https://www.nstauthority.co.uk/data-centre/data-downloads-and-publications/field-data/","For further field data, please check NSTA website: https://www.nstauthority.co.uk/data-centre/data-downloads-and-publications/field-data/","For further field data, please check NSTA website: https://www.nstauthority.co.uk/data-centre/data-downloads-and-publications/field-data/","Not available","Not available"]
[null,"Shell (UK) Ltd","P1015","Shell (UK) Ltd","Oil & Gas","For further field data, please check NSTA website: https://www.nstauthority.co.uk/data-centre/data-downloads-and-publications/field-data/","For further field data, please check NSTA website: https://www.nstauthority.co.uk/data-centre/data-downloads-and-publications/field-data/","For further field data, please check NSTA website: https://www.nstauthority.co.uk/data-centre/data-downloads-and-publications/field-data/","Not available","Not available"]
[null,"Shell (UK) Ltd","P11","Shell (UK) Ltd","Oil & Gas","For further field data, please check NSTA website: https://www.nstauthority.co.uk/data-centre/data-downloads-and-publications/field-data/","For further field data, please check NSTA website: https://www.nstauthority.co.uk/data-centre/data-downloads-and-publications/field-data/","For further field data, please check NSTA website: https://www.nstauthority.co.uk/data-centre/data-downloads-and-publications/field-data/","Not available","Not available"]
[null,"Shell (UK) Ltd","P1117","Shell (UK) Ltd","Oil & Gas","For further field data, please check NSTA website: https://www.nstauthority.co.uk/data-centre/data-downloads-and-publications/field-data/","For further field data, please check NSTA website: https://www.nstauthority.co.uk/data-centre/data-downloads-and-publications/field-data/","For further field data, please check NSTA website: https://www.nstauthority.co.uk/data-centre/data-downloads-and-publications/field-data/","Not available","Not available"]
[null,"Shell (UK) Ltd","P117","Shell (UK) Ltd","Oil & Gas","For further field data, please check NSTA website: https://www.nstauthority.co.uk/data-centre/data-downloads-and-publications/field-data/","For further field data, please check NSTA website: https://www.nstauthority.co.uk/data-centre/data-downloads-and-publications/field-data/","For further field data, please check NSTA website: https://www.nstauthority.co.uk/data-centre/data-downloads-and-publications/field-data/","Not available","Not available"]
[null,"Shell (UK) Ltd","P12","Shell (UK) Ltd","Oil & Gas","For further field data, please check NSTA website: https://www.nstauthority.co.uk/data-centre/data-downloads-and-publications/field-data/","For further field data, please check NSTA website: https://www.nstauthority.co.uk/data-centre/data-downloads-and-publications/field-data/","For further field data, please check NSTA website: https://www.nstauthority.co.uk/data-centre/data-downloads-and-publications/field-data/","Not available","Not available"]
[null,"Shell (UK) Ltd","P13","Shell (UK) Ltd","Oil & Gas","For further field data, please check NSTA website: https://www.nstauthority.co.uk/data-centre/data-downloads-and-publications/field-data/","For further field data, please check NSTA website: https://www.nstauthority.co.uk/data-centre/data-downloads-and-publications/field-data/","For further field data, please check NSTA website: https://www.nstauthority.co.uk/data-centre/data-downloads-and-publications/field-data/","Not available","Not available"]
[null,"Shell (UK) Ltd","P132","Shell (UK) Ltd","Oil & Gas","For further field data, please check NSTA website: https://www.nstauthority.co.uk/data-centre/data-downloads-and-publications/field-data/","For further field data, please check NSTA website: https://www.nstauthority.co.uk/data-centre/data-downloads-and-publications/field-data/","For further field data, please check NSTA website: https://www.nstauthority.co.uk/data-centre/data-downloads-and-publications/field-data/","Not available","Not available"]
[null,"Shell (UK) Ltd","P1664","Shell (UK) Ltd","Oil & Gas","For further field data, please check NSTA website: https://www.nstauthority.co.uk/data-centre/data-downloads-and-publications/field-data/","For further field data, please check NSTA website: https://www.nstauthority.co.uk/data-centre/data-downloads-and-publications/field-data/","For further field data, please check NSTA website: https://www.nstauthority.co.uk/data-centre/data-downloads-and-publications/field-data/","Not available","Not available"]
[null,"Shell (UK) Ltd","P1807","Shell (UK) Ltd","Oil & Gas","For further field data, please check NSTA website: https://www.nstauthority.co.uk/data-centre/data-downloads-and-publications/field-data/","For further field data, please check NSTA website: https://www.nstauthority.co.uk/data-centre/data-downloads-and-publications/field-data/","For further field data, please check NSTA website: https://www.nstauthority.co.uk/data-centre/data-downloads-and-publications/field-data/","Not available","Not available"]
[null,"Shell (UK) Ltd","P188","Shell (UK) Ltd","Oil & Gas","For further field data, please check NSTA website: https://www.nstauthority.co.uk/data-centre/data-downloads-and-publications/field-data/","For further field data, please check NSTA website: https://www.nstauthority.co.uk/data-centre/data-downloads-and-publications/field-data/","For further field data, please check NSTA website: https://www.nstauthority.co.uk/data-centre/data-downloads-and-publications/field-data/","Not available","Not available"]
[null,"Shell (UK) Ltd","P1929","Shell (UK) Ltd","Oil & Gas","For further field data, please check NSTA website: https://www.nstauthority.co.uk/data-centre/data-downloads-and-publications/field-data/","For further field data, please check NSTA website: https://www.nstauthority.co.uk/data-centre/data-downloads-and-publications/field-data/","For further field data, please check NSTA website: https://www.nstauthority.co.uk/data-centre/data-downloads-and-publications/field-data/","Not available","Not available"]
[null,"Shell (UK) Ltd","P2252","Shell (UK) Ltd","Oil & Gas","For further field data, please check NSTA website: https://www.nstauthority.co.uk/data-centre/data-downloads-and-publications/field-data/","For further field data, please check NSTA website: https://www.nstauthority.co.uk/data-centre/data-downloads-and-publications/field-data/","For further field data, please check NSTA website: https://www.nstauthority.co.uk/data-centre/data-downloads-and-publications/field-data/","Not available","Not available"]
[null,"Shell (UK) Ltd","P2304","Shell (UK) Ltd","Oil & Gas","For further field data, please check NSTA website: https://www.nstauthority.co.uk/data-centre/data-downloads-and-publications/field-data/","For further field data, please check NSTA website: https://www.nstauthority.co.uk/data-centre/data-downloads-and-publications/field-data/","For further field data, please check NSTA website: https://www.nstauthority.co.uk/data-centre/data-downloads-and-publications/field-data/","Not available","Not available"]
[null,"Shell (UK) Ltd","P233","Shell (UK) Ltd","Oil & Gas","For further field data, please check NSTA website: https://www.nstauthority.co.uk/data-centre/data-downloads-and-publications/field-data/","For further field data, please check NSTA website: https://www.nstauthority.co.uk/data-centre/data-downloads-and-publications/field-data/","For further field data, please check NSTA website: https://www.nstauthority.co.uk/data-centre/data-downloads-and-publications/field-data/","Not available","Not available"]
[null,"Shell (UK) Ltd","P2332","Shell (UK) Ltd","Oil & Gas","For further field data, please check NSTA website: https://www.nstauthority.co.uk/data-centre/data-downloads-and-publications/field-data/","For further field data, please check NSTA website: https://www.nstauthority.co.uk/data-centre/data-downloads-and-publications/field-data/","For further field data, please check NSTA website: https://www.nstauthority.co.uk/data-centre/data-downloads-and-publications/field-data/","Not available","Not available"]
[null,"Shell (UK) Ltd","P2340","Shell (UK) Ltd","Oil & Gas","For further field data, please check NSTA website: https://www.nstauthority.co.uk/data-centre/data-downloads-and-publications/field-data/","For further field data, please check NSTA website: https://www.nstauthority.co.uk/data-centre/data-downloads-and-publications/field-data/","For further field data, please check NSTA website: https://www.nstauthority.co.uk/data-centre/data-downloads-and-publications/field-data/","Not available","Not available"]
[null,"Shell (UK) Ltd","P2351","Shell (UK) Ltd","Oil & Gas","For further field data, please check NSTA website: https://www.nstauthority.co.uk/data-centre/data-downloads-and-publications/field-data/","For further field data, please check NSTA website: https://www.nstauthority.co.uk/data-centre/data-downloads-and-publications/field-data/","For further field data, please check NSTA website: https://www.nstauthority.co.uk/data-centre/data-downloads-and-publications/field-data/","Not available","Not available"]
[null,"Shell (UK) Ltd","P2377","Shell (UK) Ltd","Oil & Gas","For further field data, please check NSTA website: https://www.nstauthority.co.uk/data-centre/data-downloads-and-publications/field-data/","For further field data, please check NSTA website: https://www.nstauthority.co.uk/data-centre/data-downloads-and-publications/field-data/","For further field data, please check NSTA website: https://www.nstauthority.co.uk/data-centre/data-downloads-and-publications/field-data/","Not available","Not available"]
[null,"Shell (UK) Ltd","P2401","Shell (UK) Ltd","Oil & Gas","For further field data, please check NSTA website: https://www.nstauthority.co.uk/data-centre/data-downloads-and-publications/field-data/","For further field data, please check NSTA website: https://www.nstauthority.co.uk/data-centre/data-downloads-and-publications/field-data/","For further field data, please check NSTA website: https://www.nstauthority.co.uk/data-centre/data-downloads-and-publications/field-data/","Not available","Not available"]
[null,"Shell (UK) Ltd","P2437","Shell (UK) Ltd","Oil & Gas","For further field data, please check NSTA website: https://www.nstauthority.co.uk/data-centre/data-downloads-and-publications/field-data/","For further field data, please check NSTA website: https://www.nstauthority.co.uk/data-centre/data-downloads-and-publications/field-data/","For further field data, please check NSTA website: https://www.nstauthority.co.uk/data-centre/data-downloads-and-publications/field-data/","Not available","Not available"]
[null,"Shell (UK) Ltd","P2495","Shell (UK) Ltd","Oil & Gas","For further field data, please check NSTA website: https://www.nstauthority.co.uk/data-centre/data-downloads-and-publications/field-data/","For further field data, please check NSTA website: https://www.nstauthority.co.uk/data-centre/data-downloads-and-publications/field-data/","For further field data, please check NSTA website: https://www.nstauthority.co.uk/data-centre/data-downloads-and-publications/field-data/","Not available","Not available"]
[null,"Shell (UK) Ltd","P255","Shell (UK) Ltd","Oil & Gas","For further field data, please check NSTA website: https://www.nstauthority.co.uk/data-centre/data-downloads-and-publications/field-data/","For further field data, please check NSTA website: https://www.nstauthority.co.uk/data-centre/data-downloads-and-publications/field-data/","For further field data, please check NSTA website: https://www.nstauthority.co.uk/data-centre/data-downloads-and-publications/field-data/","Not available","Not available"]
[null,"Shell (UK) Ltd","P2556","Shell (UK) Ltd","Oil & Gas","For further field data, please check NSTA website: https://www.nstauthority.co.uk/data-centre/data-downloads-and-publications/field-data/","For further field data, please check NSTA website: https://www.nstauthority.co.uk/data-centre/data-downloads-and-publications/field-data/","For further field data, please check NSTA website: https://www.nstauthority.co.uk/data-centre/data-downloads-and-publications/field-data/","Not available","Not available"]
[null,"Shell (UK) Ltd","P2559","Shell (UK) Ltd","Oil & Gas","For further field data, please check NSTA website: https://www.nstauthority.co.uk/data-centre/data-downloads-and-publications/field-data/","For further field data, please check NSTA website: https://www.nstauthority.co.uk/data-centre/data-downloads-and-publications/field-data/","For further field data, please check NSTA website: https://www.nstauthority.co.uk/data-centre/data-downloads-and-publications/field-data/","Not available","Not available"]
[null,"Shell (UK) Ltd","P257","Shell (UK) Ltd","Oil & Gas","For further field data, please check NSTA website: https://www.nstauthority.co.uk/data-centre/data-downloads-and-publications/field-data/","For further field data, please check NSTA website: https://www.nstauthority.co.uk/data-centre/data-downloads-and-publications/field-data/","For further field data, please check NSTA website: https://www.nstauthority.co.uk/data-centre/data-downloads-and-publications/field-data/","Not available","Not available"]
[null,"Shell (UK) Ltd","P2600","Shell (UK) Ltd","Oil & Gas","For further field data, please check NSTA website: https://www.nstauthority.co.uk/data-centre/data-downloads-and-publications/field-data/","For further field data, please check NSTA website: https://www.nstauthority.co.uk/data-centre/data-downloads-and-publications/field-data/","For further field data, please check NSTA website: https://www.nstauthority.co.uk/data-centre/data-downloads-and-publications/field-data/","Not available","Not available"]
[null,"Shell (UK) Ltd","P295","Shell (UK) Ltd","Oil & Gas","For further field data, please check NSTA website: https://www.nstauthority.co.uk/data-centre/data-downloads-and-publications/field-data/","For further field data, please check NSTA website: https://www.nstauthority.co.uk/data-centre/data-downloads-and-publications/field-data/","For further field data, please check NSTA website: https://www.nstauthority.co.uk/data-centre/data-downloads-and-publications/field-data/","Not available","Not available"]
[null,"Shell (UK) Ltd","P296","Shell (UK) Ltd","Oil & Gas","For further field data, please check NSTA website: https://www.nstauthority.co.uk/data-centre/data-downloads-and-publications/field-data/","For further field data, please check NSTA website: https://www.nstauthority.co.uk/data-centre/data-downloads-and-publications/field-data/","For further field data, please check NSTA website: https://www.nstauthority.co.uk/data-centre/data-downloads-and-publications/field-data/","Not available","Not available"]
[null,"Shell (UK) Ltd","P359","Shell (UK) Ltd","Oil & Gas","For further field data, please check NSTA website: https://www.nstauthority.co.uk/data-centre/data-downloads-and-publications/field-data/","For further field data, please check NSTA website: https://www.nstauthority.co.uk/data-centre/data-downloads-and-publications/field-data/","For further field data, please check NSTA website: https://www.nstauthority.co.uk/data-centre/data-downloads-and-publications/field-data/","Not available","Not available"]
[null,"Shell (UK) Ltd","P465","Shell (UK) Ltd","Oil & Gas","For further field data, please check NSTA website: https://www.nstauthority.co.uk/data-centre/data-downloads-and-publications/field-data/","For further field data, please check NSTA website: https://www.nstauthority.co.uk/data-centre/data-downloads-and-publications/field-data/","For further field data, please check NSTA website: https://www.nstauthority.co.uk/data-centre/data-downloads-and-publications/field-data/","Not available","Not available"]
[null,"Shell (UK) Ltd","P523","Shell (UK) Ltd","Oil & Gas","For further field data, please check NSTA website: https://www.nstauthority.co.uk/data-centre/data-downloads-and-publications/field-data/","For further field data, please check NSTA website: https://www.nstauthority.co.uk/data-centre/data-downloads-and-publications/field-data/","For further field data, please check NSTA website: https://www.nstauthority.co.uk/data-centre/data-downloads-and-publications/field-data/","Not available","Not available"]
[null,"Shell (UK) Ltd","P54","Shell (UK) Ltd","Oil & Gas","For further field data, please check NSTA website: https://www.nstauthority.co.uk/data-centre/data-downloads-and-publications/field-data/","For further field data, please check NSTA website: https://www.nstauthority.co.uk/data-centre/data-downloads-and-publications/field-data/","For further field data, please check NSTA website: https://www.nstauthority.co.uk/data-centre/data-downloads-and-publications/field-data/","Not available","Not available"]
[null,"Shell (UK) Ltd","P559","Shell (UK) Ltd","Oil & Gas","For further field data, please check NSTA website: https://www.nstauthority.co.uk/data-centre/data-downloads-and-publications/field-data/","For further field data, please check NSTA website: https://www.nstauthority.co.uk/data-centre/data-downloads-and-publications/field-data/","For further field data, please check NSTA website: https://www.nstauthority.co.uk/data-centre/data-downloads-and-publications/field-data/","Not available","Not available"]
[null,"Shell (UK) Ltd","P598","Shell (UK) Ltd","Oil & Gas","For further field data, please check NSTA website: https://www.nstauthority.co.uk/data-centre/data-downloads-and-publications/field-data/","For further field data, please check NSTA website: https://www.nstauthority.co.uk/data-centre/data-downloads-and-publications/field-data/","For further field data, please check NSTA website: https://www.nstauthority.co.uk/data-centre/data-downloads-and-publications/field-data/","Not available","Not available"]
[null,"Shell (UK) Ltd","P664","Shell (UK) Ltd","Oil & Gas","For further field data, please check NSTA website: https://www.nstauthority.co.uk/data-centre/data-downloads-and-publications/field-data/","For further field data, please check NSTA website: https://www.nstauthority.co.uk/data-centre/data-downloads-and-publications/field-data/","For further field data, please check NSTA website: https://www.nstauthority.co.uk/data-centre/data-downloads-and-publications/field-data/","Not available","Not available"]
[null,"Shell (UK) Ltd","P7","Shell (UK) Ltd","Oil & Gas","For further field data, please check NSTA website: https://www.nstauthority.co.uk/data-centre/data-downloads-and-publications/field-data/","For further field data, please check NSTA website: https://www.nstauthority.co.uk/data-centre/data-downloads-and-publications/field-data/","For further field data, please check NSTA website: https://www.nstauthority.co.uk/data-centre/data-downloads-and-publications/field-data/","Not available","Not available"]
[null,"Shell (UK) Ltd","P8","Shell (UK) Ltd","Oil & Gas","For further field data, please check NSTA website: https://www.nstauthority.co.uk/data-centre/data-downloads-and-publications/field-data/","For further field data, please check NSTA website: https://www.nstauthority.co.uk/data-centre/data-downloads-and-publications/field-data/","For further field data, please check NSTA website: https://www.nstauthority.co.uk/data-centre/data-downloads-and-publications/field-data/","Not available","Not available"]
[null,"Shell (UK) Ltd","P88","Shell (UK) Ltd","Oil & Gas","For further field data, please check NSTA website: https://www.nstauthority.co.uk/data-centre/data-downloads-and-publications/field-data/","For further field data, please check NSTA website: https://www.nstauthority.co.uk/data-centre/data-downloads-and-publications/field-data/","For further field data, please check NSTA website: https://www.nstauthority.co.uk/data-centre/data-downloads-and-publications/field-data/","Not available","Not available"]
[null,"Shell (UK) Ltd","P886","Shell (UK) Ltd","Oil & Gas","For further field data, please check NSTA website: https://www.nstauthority.co.uk/data-centre/data-downloads-and-publications/field-data/","For further field data, please check NSTA website: https://www.nstauthority.co.uk/data-centre/data-downloads-and-publications/field-data/","For further field data, please check NSTA website: https://www.nstauthority.co.uk/data-centre/data-downloads-and-publications/field-data/","Not available","Not available"]
[null,"Shell Clair UK Limited","P169","Shell Clair UK Limited","Oil & Gas","For further field data, please check NSTA website: https://www.nstauthority.co.uk/data-centre/data-downloads-and-publications/field-data/","For further field data, please check NSTA website: https://www.nstauthority.co.uk/data-centre/data-downloads-and-publications/field-data/","For further field data, please check NSTA website: https://www.nstauthority.co.uk/data-centre/data-downloads-and-publications/field-data/","Not available","Not available"]
[null,"SHELL U.K. LIMITED","P2376","SHELL U.K. LIMITED","Oil & Gas","For further field data, please check NSTA website: https://www.nstauthority.co.uk/data-centre/data-downloads-and-publications/field-data/","For further field data, please check NSTA website: https://www.nstauthority.co.uk/data-centre/data-downloads-and-publications/field-data/","For further field data, please check NSTA website: https://www.nstauthority.co.uk/data-centre/data-downloads-and-publications/field-data/","Not available","Not available"]
[null,"SHELL U.K. LIMITED","P2380","SHELL U.K. LIMITED","Oil & Gas","For further field data, please check NSTA website: https://www.nstauthority.co.uk/data-centre/data-downloads-and-publications/field-data/","For further field data, please check NSTA website: https://www.nstauthority.co.uk/data-centre/data-downloads-and-publications/field-data/","For further field data, please check NSTA website: https://www.nstauthority.co.uk/data-centre/data-downloads-and-publications/field-data/","Not available","Not available"]
[null,"SHELL U.K. LIMITED","P2391","SHELL U.K. LIMITED","Oil & Gas","For further field data, please check NSTA website: https://www.nstauthority.co.uk/data-centre/data-downloads-and-publications/field-data/","For further field data, please check NSTA website: https://www.nstauthority.co.uk/data-centre/data-downloads-and-publications/field-data/","For further field data, please check NSTA website: https://www.nstauthority.co.uk/data-centre/data-downloads-and-publications/field-data/","Not available","Not available"]
[null,"SICCAR POINT ENERGY E&P LIMITED","P1189","SICCAR POINT ENERGY E&P LIMITED","Oil & Gas","For further field data, please check NSTA website: https://www.nstauthority.co.uk/data-centre/data-downloads-and-publications/field-data/","For further field data, please check NSTA website: https://www.nstauthority.co.uk/data-centre/data-downloads-and-publications/field-data/","For further field data, please check NSTA website: https://www.nstauthority.co.uk/data-centre/data-downloads-and-publications/field-data/","Not available","Not available"]
[null,"SICCAR POINT ENERGY E&P LIMITED","P2461","SICCAR POINT ENERGY E&P LIMITED","Oil & Gas","For further field data, please check NSTA website: https://www.nstauthority.co.uk/data-centre/data-downloads-and-publications/field-data/","For further field data, please check NSTA website: https://www.nstauthority.co.uk/data-centre/data-downloads-and-publications/field-data/","For further field data, please check NSTA website: https://www.nstauthority.co.uk/data-centre/data-downloads-and-publications/field-data/","Not available","Not available"]
[null,"SICCAR POINT ENERGY E&P LIMITED","P2592","SICCAR POINT ENERGY E&P LIMITED","Oil & Gas","For further field data, please check NSTA website: https://www.nstauthority.co.uk/data-centre/data-downloads-and-publications/field-data/","For further field data, please check NSTA website: https://www.nstauthority.co.uk/data-centre/data-downloads-and-publications/field-data/","For further field data, please check NSTA website: https://www.nstauthority.co.uk/data-centre/data-downloads-and-publications/field-data/","Not available","Not available"]
[null,"SICCAR POINT ENERGY E&P LIMITED","P2593","SICCAR POINT ENERGY E&P LIMITED","Oil & Gas","For further field data, please check NSTA website: https://www.nstauthority.co.uk/data-centre/data-downloads-and-publications/field-data/","For further field data, please check NSTA website: https://www.nstauthority.co.uk/data-centre/data-downloads-and-publications/field-data/","For further field data, please check NSTA website: https://www.nstauthority.co.uk/data-centre/data-downloads-and-publications/field-data/","Not available","Not available"]
[null,"SICCAR POINT ENERGY E&P LIMITED","P2602","SICCAR POINT ENERGY E&P LIMITED","Oil & Gas","For further field data, please check NSTA website: https://www.nstauthority.co.uk/data-centre/data-downloads-and-publications/field-data/","For further field data, please check NSTA website: https://www.nstauthority.co.uk/data-centre/data-downloads-and-publications/field-data/","For further field data, please check NSTA website: https://www.nstauthority.co.uk/data-centre/data-downloads-and-publications/field-data/","Not available","Not available"]
[null,"Siccar Point Energy E&P Ltd","P1028","Siccar Point Energy E&P Ltd","Oil & Gas","For further field data, please check NSTA website: https://www.nstauthority.co.uk/data-centre/data-downloads-and-publications/field-data/","For further field data, please check NSTA website: https://www.nstauthority.co.uk/data-centre/data-downloads-and-publications/field-data/","For further field data, please check NSTA website: https://www.nstauthority.co.uk/data-centre/data-downloads-and-publications/field-data/","Not available","Not available"]
[null,"Siccar Point Energy E&P Ltd","P1830","Siccar Point Energy E&P Ltd","Oil & Gas","For further field data, please check NSTA website: https://www.nstauthority.co.uk/data-centre/data-downloads-and-publications/field-data/","For further field data, please check NSTA website: https://www.nstauthority.co.uk/data-centre/data-downloads-and-publications/field-data/","For further field data, please check NSTA website: https://www.nstauthority.co.uk/data-centre/data-downloads-and-publications/field-data/","Not available","Not available"]
[null,"Siccar Point Energy E&P Ltd","P974","Siccar Point Energy E&P Ltd","Oil & Gas","For further field data, please check NSTA website: https://www.nstauthority.co.uk/data-centre/data-downloads-and-publications/field-data/","For further field data, please check NSTA website: https://www.nstauthority.co.uk/data-centre/data-downloads-and-publications/field-data/","For further field data, please check NSTA website: https://www.nstauthority.co.uk/data-centre/data-downloads-and-publications/field-data/","Not available","Not available"]
[null,"South Coast","Licence","Tarmac Holdings Limited","Not available","Not applicable","Not applicable","Not applicable","Not applicable","Not applicable"]
[null,"South Western Energy ","PEDL 320","South Western Energy ","Oil & Gas","For further field data, please check NSTA website: https://www.nstauthority.co.uk/data-centre/data-downloads-and-publications/field-data/","For further field data, please check NSTA website: https://www.nstauthority.co.uk/data-centre/data-downloads-and-publications/field-data/","For further field data, please check NSTA website: https://www.nstauthority.co.uk/data-centre/data-downloads-and-publications/field-data/","Not available","Not available"]
[null,"South Western Energy ","PEDL 321","South Western Energy ","Oil & Gas","For further field data, please check NSTA website: https://www.nstauthority.co.uk/data-centre/data-downloads-and-publications/field-data/","For further field data, please check NSTA website: https://www.nstauthority.co.uk/data-centre/data-downloads-and-publications/field-data/","For further field data, please check NSTA website: https://www.nstauthority.co.uk/data-centre/data-downloads-and-publications/field-data/","Not available","Not available"]
[null,"South Western Energy ","PEDL 329","South Western Energy ","Oil & Gas","For further field data, please check NSTA website: https://www.nstauthority.co.uk/data-centre/data-downloads-and-publications/field-data/","For further field data, please check NSTA website: https://www.nstauthority.co.uk/data-centre/data-downloads-and-publications/field-data/","For further field data, please check NSTA website: https://www.nstauthority.co.uk/data-centre/data-downloads-and-publications/field-data/","Not available","Not available"]
[null,"South Western Energy ","PEDL 344","South Western Energy ","Oil & Gas","For further field data, please check NSTA website: https://www.nstauthority.co.uk/data-centre/data-downloads-and-publications/field-data/","For further field data, please check NSTA website: https://www.nstauthority.co.uk/data-centre/data-downloads-and-publications/field-data/","For further field data, please check NSTA website: https://www.nstauthority.co.uk/data-centre/data-downloads-and-publications/field-data/","Not available","Not available"]
[null,"South Western Energy Ltd","PEDL320","South Western Energy Ltd","Oil & Gas","For further field data, please check NSTA website: https://www.nstauthority.co.uk/data-centre/data-downloads-and-publications/field-data/","For further field data, please check NSTA website: https://www.nstauthority.co.uk/data-centre/data-downloads-and-publications/field-data/","For further field data, please check NSTA website: https://www.nstauthority.co.uk/data-centre/data-downloads-and-publications/field-data/","Not available","Not available"]
[null,"South Western Energy Ltd","PEDL321","South Western Energy Ltd","Oil & Gas","For further field data, please check NSTA website: https://www.nstauthority.co.uk/data-centre/data-downloads-and-publications/field-data/","For further field data, please check NSTA website: https://www.nstauthority.co.uk/data-centre/data-downloads-and-publications/field-data/","For further field data, please check NSTA website: https://www.nstauthority.co.uk/data-centre/data-downloads-and-publications/field-data/","Not available","Not available"]
[null,"South Western Energy Ltd","PEDL327","South Western Energy Ltd","Oil & Gas","For further field data, please check NSTA website: https://www.nstauthority.co.uk/data-centre/data-downloads-and-publications/field-data/","For further field data, please check NSTA website: https://www.nstauthority.co.uk/data-centre/data-downloads-and-publications/field-data/","For further field data, please check NSTA website: https://www.nstauthority.co.uk/data-centre/data-downloads-and-publications/field-data/","Not available","Not available"]
[null,"South Western Energy Ltd","PEDL329","South Western Energy Ltd","Oil & Gas","For further field data, please check NSTA website: https://www.nstauthority.co.uk/data-centre/data-downloads-and-publications/field-data/","For further field data, please check NSTA website: https://www.nstauthority.co.uk/data-centre/data-downloads-and-publications/field-data/","For further field data, please check NSTA website: https://www.nstauthority.co.uk/data-centre/data-downloads-and-publications/field-data/","Not available","Not available"]
[null,"South Western Energy Ltd","PEDL344","South Western Energy Ltd","Oil & Gas","For further field data, please check NSTA website: https://www.nstauthority.co.uk/data-centre/data-downloads-and-publications/field-data/","For further field data, please check NSTA website: https://www.nstauthority.co.uk/data-centre/data-downloads-and-publications/field-data/","For further field data, please check NSTA website: https://www.nstauthority.co.uk/data-centre/data-downloads-and-publications/field-data/","Not available","Not available"]
[null,"SPIRIT ENERGY NORTH SEA LIMITED","P1724","SPIRIT ENERGY NORTH SEA LIMITED","Oil & Gas","For further field data, please check NSTA website: https://www.nstauthority.co.uk/data-centre/data-downloads-and-publications/field-data/","For further field data, please check NSTA website: https://www.nstauthority.co.uk/data-centre/data-downloads-and-publications/field-data/","For further field data, please check NSTA website: https://www.nstauthority.co.uk/data-centre/data-downloads-and-publications/field-data/","Not available","Not available"]
[null,"SPIRIT ENERGY NORTH SEA LIMITED","P1727","SPIRIT ENERGY NORTH SEA LIMITED","Oil & Gas","For further field data, please check NSTA website: https://www.nstauthority.co.uk/data-centre/data-downloads-and-publications/field-data/","For further field data, please check NSTA website: https://www.nstauthority.co.uk/data-centre/data-downloads-and-publications/field-data/","For further field data, please check NSTA website: https://www.nstauthority.co.uk/data-centre/data-downloads-and-publications/field-data/","Not available","Not available"]
[null,"SPIRIT ENERGY NORTH SEA LIMITED","P2430","SPIRIT ENERGY NORTH SEA LIMITED","Oil & Gas","For further field data, please check NSTA website: https://www.nstauthority.co.uk/data-centre/data-downloads-and-publications/field-data/","For further field data, please check NSTA website: https://www.nstauthority.co.uk/data-centre/data-downloads-and-publications/field-data/","For further field data, please check NSTA website: https://www.nstauthority.co.uk/data-centre/data-downloads-and-publications/field-data/","Not available","Not available"]
[null,"SPIRIT ENERGY NORTH SEA LIMITED","P2457","SPIRIT ENERGY NORTH SEA LIMITED","Oil & Gas","For further field data, please check NSTA website: https://www.nstauthority.co.uk/data-centre/data-downloads-and-publications/field-data/","For further field data, please check NSTA website: https://www.nstauthority.co.uk/data-centre/data-downloads-and-publications/field-data/","For further field data, please check NSTA website: https://www.nstauthority.co.uk/data-centre/data-downloads-and-publications/field-data/","Not available","Not available"]
[null,"Spirit Energy North Sea Ltd","P1060","Spirit Energy North Sea Ltd","Oil & Gas","For further field data, please check NSTA website: https://www.nstauthority.co.uk/data-centre/data-downloads-and-publications/field-data/","For further field data, please check NSTA website: https://www.nstauthority.co.uk/data-centre/data-downloads-and-publications/field-data/","For further field data, please check NSTA website: https://www.nstauthority.co.uk/data-centre/data-downloads-and-publications/field-data/","Not available","Not available"]
[null,"Spirit Energy North Sea Ltd","P1186","Spirit Energy North Sea Ltd","Oil & Gas","For further field data, please check NSTA website: https://www.nstauthority.co.uk/data-centre/data-downloads-and-publications/field-data/","For further field data, please check NSTA website: https://www.nstauthority.co.uk/data-centre/data-downloads-and-publications/field-data/","For further field data, please check NSTA website: https://www.nstauthority.co.uk/data-centre/data-downloads-and-publications/field-data/","Not available","Not available"]
[null,"Spirit Energy North Sea Ltd","P1241","Spirit Energy North Sea Ltd","Oil & Gas","For further field data, please check NSTA website: https://www.nstauthority.co.uk/data-centre/data-downloads-and-publications/field-data/","For further field data, please check NSTA website: https://www.nstauthority.co.uk/data-centre/data-downloads-and-publications/field-data/","For further field data, please check NSTA website: https://www.nstauthority.co.uk/data-centre/data-downloads-and-publications/field-data/","Not available","Not available"]
[null,"Spirit Energy North Sea Ltd","P1246","Spirit Energy North Sea Ltd","Oil & Gas","For further field data, please check NSTA website: https://www.nstauthority.co.uk/data-centre/data-downloads-and-publications/field-data/","For further field data, please check NSTA website: https://www.nstauthority.co.uk/data-centre/data-downloads-and-publications/field-data/","For further field data, please check NSTA website: https://www.nstauthority.co.uk/data-centre/data-downloads-and-publications/field-data/","Not available","Not available"]
[null,"Spirit Energy North Sea Ltd","P2327","Spirit Energy North Sea Ltd","Oil & Gas","For further field data, please check NSTA website: https://www.nstauthority.co.uk/data-centre/data-downloads-and-publications/field-data/","For further field data, please check NSTA website: https://www.nstauthority.co.uk/data-centre/data-downloads-and-publications/field-data/","For further field data, please check NSTA website: https://www.nstauthority.co.uk/data-centre/data-downloads-and-publications/field-data/","Not available","Not available"]
[null,"Spirit Energy North Sea Ltd","P2553","Spirit Energy North Sea Ltd","Oil & Gas","For further field data, please check NSTA website: https://www.nstauthority.co.uk/data-centre/data-downloads-and-publications/field-data/","For further field data, please check NSTA website: https://www.nstauthority.co.uk/data-centre/data-downloads-and-publications/field-data/","For further field data, please check NSTA website: https://www.nstauthority.co.uk/data-centre/data-downloads-and-publications/field-data/","Not available","Not available"]
[null,"Spirit Energy North Sea Ltd","P2570","Spirit Energy North Sea Ltd","Oil & Gas","For further field data, please check NSTA website: https://www.nstauthority.co.uk/data-centre/data-downloads-and-publications/field-data/","For further field data, please check NSTA website: https://www.nstauthority.co.uk/data-centre/data-downloads-and-publications/field-data/","For further field data, please check NSTA website: https://www.nstauthority.co.uk/data-centre/data-downloads-and-publications/field-data/","Not available","Not available"]
[null,"Spirit Energy North Sea Ltd","P30","Spirit Energy North Sea Ltd","Oil & Gas","For further field data, please check NSTA website: https://www.nstauthority.co.uk/data-centre/data-downloads-and-publications/field-data/","For further field data, please check NSTA website: https://www.nstauthority.co.uk/data-centre/data-downloads-and-publications/field-data/","For further field data, please check NSTA website: https://www.nstauthority.co.uk/data-centre/data-downloads-and-publications/field-data/","Not available","Not available"]
[null,"Spirit Energy North Sea Ltd","P455","Spirit Energy North Sea Ltd","Oil & Gas","For further field data, please check NSTA website: https://www.nstauthority.co.uk/data-centre/data-downloads-and-publications/field-data/","For further field data, please check NSTA website: https://www.nstauthority.co.uk/data-centre/data-downloads-and-publications/field-data/","For further field data, please check NSTA website: https://www.nstauthority.co.uk/data-centre/data-downloads-and-publications/field-data/","Not available","Not available"]
[null,"Spirit Energy North Sea Ltd","P468","Spirit Energy North Sea Ltd","Oil & Gas","For further field data, please check NSTA website: https://www.nstauthority.co.uk/data-centre/data-downloads-and-publications/field-data/","For further field data, please check NSTA website: https://www.nstauthority.co.uk/data-centre/data-downloads-and-publications/field-data/","For further field data, please check NSTA website: https://www.nstauthority.co.uk/data-centre/data-downloads-and-publications/field-data/","Not available","Not available"]
[null,"Spirit Energy North Sea Oil Ltd","P212","Spirit Energy North Sea Oil Ltd","Oil & Gas","For further field data, please check NSTA website: https://www.nstauthority.co.uk/data-centre/data-downloads-and-publications/field-data/","For further field data, please check NSTA website: https://www.nstauthority.co.uk/data-centre/data-downloads-and-publications/field-data/","For further field data, please check NSTA website: https://www.nstauthority.co.uk/data-centre/data-downloads-and-publications/field-data/","Not available","Not available"]
[null,"Spirit Energy North Sea Oil Ltd","P354","Spirit Energy North Sea Oil Ltd","Oil & Gas","For further field data, please check NSTA website: https://www.nstauthority.co.uk/data-centre/data-downloads-and-publications/field-data/","For further field data, please check NSTA website: https://www.nstauthority.co.uk/data-centre/data-downloads-and-publications/field-data/","For further field data, please check NSTA website: https://www.nstauthority.co.uk/data-centre/data-downloads-and-publications/field-data/","Not available","Not available"]
[null,"Spirit Energy Production (UK) Ltd","P1483","Spirit Energy Production (UK) Ltd","Oil & Gas","For further field data, please check NSTA website: https://www.nstauthority.co.uk/data-centre/data-downloads-and-publications/field-data/","For further field data, please check NSTA website: https://www.nstauthority.co.uk/data-centre/data-downloads-and-publications/field-data/","For further field data, please check NSTA website: https://www.nstauthority.co.uk/data-centre/data-downloads-and-publications/field-data/","Not available","Not available"]
[null,"Spirit Energy Production (UK) Ltd","P153","Spirit Energy Production (UK) Ltd","Oil & Gas","For further field data, please check NSTA website: https://www.nstauthority.co.uk/data-centre/data-downloads-and-publications/field-data/","For further field data, please check NSTA website: https://www.nstauthority.co.uk/data-centre/data-downloads-and-publications/field-data/","For further field data, please check NSTA website: https://www.nstauthority.co.uk/data-centre/data-downloads-and-publications/field-data/","Not available","Not available"]
[null,"SPIRIT ENERGY RESOURCES LIMITED","P2128","SPIRIT ENERGY RESOURCES LIMITED","Oil & Gas","For further field data, please check NSTA website: https://www.nstauthority.co.uk/data-centre/data-downloads-and-publications/field-data/","For further field data, please check NSTA website: https://www.nstauthority.co.uk/data-centre/data-downloads-and-publications/field-data/","For further field data, please check NSTA website: https://www.nstauthority.co.uk/data-centre/data-downloads-and-publications/field-data/","Not available","Not available"]
[null,"SPIRIT ENERGY RESOURCES LIMITED","P2133","SPIRIT ENERGY RESOURCES LIMITED","Oil & Gas","For further field data, please check NSTA website: https://www.nstauthority.co.uk/data-centre/data-downloads-and-publications/field-data/","For further field data, please check NSTA website: https://www.nstauthority.co.uk/data-centre/data-downloads-and-publications/field-data/","For further field data, please check NSTA website: https://www.nstauthority.co.uk/data-centre/data-downloads-and-publications/field-data/","Not available","Not available"]
[null,"Spirit Energy Resources Ltd","P1354","Spirit Energy Resources Ltd","Oil & Gas","For further field data, please check NSTA website: https://www.nstauthority.co.uk/data-centre/data-downloads-and-publications/field-data/","For further field data, please check NSTA website: https://www.nstauthority.co.uk/data-centre/data-downloads-and-publications/field-data/","For further field data, please check NSTA website: https://www.nstauthority.co.uk/data-centre/data-downloads-and-publications/field-data/","Not available","Not available"]
[null,"Spirit Energy Resources Ltd","P2484","Spirit Energy Resources Ltd","Oil & Gas","For further field data, please check NSTA website: https://www.nstauthority.co.uk/data-centre/data-downloads-and-publications/field-data/","For further field data, please check NSTA website: https://www.nstauthority.co.uk/data-centre/data-downloads-and-publications/field-data/","For further field data, please check NSTA website: https://www.nstauthority.co.uk/data-centre/data-downloads-and-publications/field-data/","Not available","Not available"]
[null,"Spirit Energy Resources Ltd","P293","Spirit Energy Resources Ltd","Oil & Gas","For further field data, please check NSTA website: https://www.nstauthority.co.uk/data-centre/data-downloads-and-publications/field-data/","For further field data, please check NSTA website: https://www.nstauthority.co.uk/data-centre/data-downloads-and-publications/field-data/","For further field data, please check NSTA website: https://www.nstauthority.co.uk/data-centre/data-downloads-and-publications/field-data/","Not available","Not available"]
[null,"Spirit Energy Resources Ltd","P612","Spirit Energy Resources Ltd","Oil & Gas","For further field data, please check NSTA website: https://www.nstauthority.co.uk/data-centre/data-downloads-and-publications/field-data/","For further field data, please check NSTA website: https://www.nstauthority.co.uk/data-centre/data-downloads-and-publications/field-data/","For further field data, please check NSTA website: https://www.nstauthority.co.uk/data-centre/data-downloads-and-publications/field-data/","Not available","Not available"]
[null,"Spirit Energy Resources Ltd","P774","Spirit Energy Resources Ltd","Oil & Gas","For further field data, please check NSTA website: https://www.nstauthority.co.uk/data-centre/data-downloads-and-publications/field-data/","For further field data, please check NSTA website: https://www.nstauthority.co.uk/data-centre/data-downloads-and-publications/field-data/","For further field data, please check NSTA website: https://www.nstauthority.co.uk/data-centre/data-downloads-and-publications/field-data/","Not available","Not available"]
[null,"Spirit Energy Resources Ltd","P83","Spirit Energy Resources Ltd","Oil & Gas","For further field data, please check NSTA website: https://www.nstauthority.co.uk/data-centre/data-downloads-and-publications/field-data/","For further field data, please check NSTA website: https://www.nstauthority.co.uk/data-centre/data-downloads-and-publications/field-data/","For further field data, please check NSTA website: https://www.nstauthority.co.uk/data-centre/data-downloads-and-publications/field-data/","Not available","Not available"]
[null,"Spirit Energy Resources Ltd","P901","Spirit Energy Resources Ltd","Oil & Gas","For further field data, please check NSTA website: https://www.nstauthority.co.uk/data-centre/data-downloads-and-publications/field-data/","For further field data, please check NSTA website: https://www.nstauthority.co.uk/data-centre/data-downloads-and-publications/field-data/","For further field data, please check NSTA website: https://www.nstauthority.co.uk/data-centre/data-downloads-and-publications/field-data/","Not available","Not available"]
[null,"SPIRIT ENERGY SOUTHERN NORTH SEA LIMITED","P2325","SPIRIT ENERGY SOUTHERN NORTH SEA LIMITED","Oil & Gas","For further field data, please check NSTA website: https://www.nstauthority.co.uk/data-centre/data-downloads-and-publications/field-data/","For further field data, please check NSTA website: https://www.nstauthority.co.uk/data-centre/data-downloads-and-publications/field-data/","For further field data, please check NSTA website: https://www.nstauthority.co.uk/data-centre/data-downloads-and-publications/field-data/","Not available","Not available"]
[null,"Stainton Quarry","Licence","Tarmac Holdings Limited","Not available","Not applicable","Not applicable","Not applicable","Not applicable","Not applicable"]
[null,"STAR ENERGY OIL & GAS LIMITED","PL220","STAR ENERGY OIL & GAS LIMITED","Oil & Gas","For further field data, please check NSTA website: https://www.nstauthority.co.uk/data-centre/data-downloads-and-publications/field-data/","For further field data, please check NSTA website: https://www.nstauthority.co.uk/data-centre/data-downloads-and-publications/field-data/","For further field data, please check NSTA website: https://www.nstauthority.co.uk/data-centre/data-downloads-and-publications/field-data/","Not available","Not available"]
[null,"Star Energy Weald Basin Limited","PEDL235","Star Energy Weald Basin Limited","Oil & Gas","For further field data, please check NSTA website: https://www.nstauthority.co.uk/data-centre/data-downloads-and-publications/field-data/","For further field data, please check NSTA website: https://www.nstauthority.co.uk/data-centre/data-downloads-and-publications/field-data/","For further field data, please check NSTA website: https://www.nstauthority.co.uk/data-centre/data-downloads-and-publications/field-data/","Not available","Not available"]
[null,"Star Energy Weald Basin Limited","PL205","Star Energy Weald Basin Limited","Oil & Gas","For further field data, please check NSTA website: https://www.nstauthority.co.uk/data-centre/data-downloads-and-publications/field-data/","For further field data, please check NSTA website: https://www.nstauthority.co.uk/data-centre/data-downloads-and-publications/field-data/","For further field data, please check NSTA website: https://www.nstauthority.co.uk/data-centre/data-downloads-and-publications/field-data/","Not available","Not available"]
[null,"Stelinmatvic Industries Ltd","NA","Stelinmatvic Industries Ltd","Oil & Gas","For further field data, please check NSTA website: https://www.nstauthority.co.uk/data-centre/data-downloads-and-publications/field-data/","For further field data, please check NSTA website: https://www.nstauthority.co.uk/data-centre/data-downloads-and-publications/field-data/","For further field data, please check NSTA website: https://www.nstauthority.co.uk/data-centre/data-downloads-and-publications/field-data/","Not available","Not available"]
[null,"STELINMATVIC INDUSTRIES LTD","P2474","STELINMATVIC INDUSTRIES LTD","Oil & Gas","For further field data, please check NSTA website: https://www.nstauthority.co.uk/data-centre/data-downloads-and-publications/field-data/","For further field data, please check NSTA website: https://www.nstauthority.co.uk/data-centre/data-downloads-and-publications/field-data/","For further field data, please check NSTA website: https://www.nstauthority.co.uk/data-centre/data-downloads-and-publications/field-data/","Not available","Not available"]
[null,"Summit Exploration And Production Ltd","P2503","Summit Exploration And Production Ltd","Oil & Gas","For further field data, please check NSTA website: https://www.nstauthority.co.uk/data-centre/data-downloads-and-publications/field-data/","For further field data, please check NSTA website: https://www.nstauthority.co.uk/data-centre/data-downloads-and-publications/field-data/","For further field data, please check NSTA website: https://www.nstauthority.co.uk/data-centre/data-downloads-and-publications/field-data/","Not available","Not available"]
[null,"Summit Exploration And Production Ltd","P2545","Summit Exploration And Production Ltd","Oil & Gas","For further field data, please check NSTA website: https://www.nstauthority.co.uk/data-centre/data-downloads-and-publications/field-data/","For further field data, please check NSTA website: https://www.nstauthority.co.uk/data-centre/data-downloads-and-publications/field-data/","For further field data, please check NSTA website: https://www.nstauthority.co.uk/data-centre/data-downloads-and-publications/field-data/","Not available","Not available"]
[null,"SUNCOR ENERGY UK LIMITED","P2591","SUNCOR ENERGY UK LIMITED","Oil & Gas","For further field data, please check NSTA website: https://www.nstauthority.co.uk/data-centre/data-downloads-and-publications/field-data/","For further field data, please check NSTA website: https://www.nstauthority.co.uk/data-centre/data-downloads-and-publications/field-data/","For further field data, please check NSTA website: https://www.nstauthority.co.uk/data-centre/data-downloads-and-publications/field-data/","Not available","Not available"]
[null,"TAILWIND ENERGY BORA LTD","P2448","TAILWIND ENERGY BORA LTD","Oil & Gas","For further field data, please check NSTA website: https://www.nstauthority.co.uk/data-centre/data-downloads-and-publications/field-data/","For further field data, please check NSTA website: https://www.nstauthority.co.uk/data-centre/data-downloads-and-publications/field-data/","For further field data, please check NSTA website: https://www.nstauthority.co.uk/data-centre/data-downloads-and-publications/field-data/","Not available","Not available"]
[null,"TAILWIND ENERGY CHINOOK LTD","P1606","TAILWIND ENERGY CHINOOK LTD","Oil & Gas","For further field data, please check NSTA website: https://www.nstauthority.co.uk/data-centre/data-downloads-and-publications/field-data/","For further field data, please check NSTA website: https://www.nstauthority.co.uk/data-centre/data-downloads-and-publications/field-data/","For further field data, please check NSTA website: https://www.nstauthority.co.uk/data-centre/data-downloads-and-publications/field-data/","Not available","Not available"]
[null,"Tailwind Mistral Ltd","P1792","Tailwind Mistral Ltd","Oil & Gas","For further field data, please check NSTA website: https://www.nstauthority.co.uk/data-centre/data-downloads-and-publications/field-data/","For further field data, please check NSTA website: https://www.nstauthority.co.uk/data-centre/data-downloads-and-publications/field-data/","For further field data, please check NSTA website: https://www.nstauthority.co.uk/data-centre/data-downloads-and-publications/field-data/","Not available","Not available"]
[null,"TALON PETROLEUM (UK) LIMITED","P2526","TALON PETROLEUM (UK) LIMITED","Oil & Gas","For further field data, please check NSTA website: https://www.nstauthority.co.uk/data-centre/data-downloads-and-publications/field-data/","For further field data, please check NSTA website: https://www.nstauthority.co.uk/data-centre/data-downloads-and-publications/field-data/","For further field data, please check NSTA website: https://www.nstauthority.co.uk/data-centre/data-downloads-and-publications/field-data/","Not available","Not available"]
[null,"TALON PETROLEUM (UK) LIMITED","P2549","TALON PETROLEUM (UK) LIMITED","Oil & Gas","For further field data, please check NSTA website: https://www.nstauthority.co.uk/data-centre/data-downloads-and-publications/field-data/","For further field data, please check NSTA website: https://www.nstauthority.co.uk/data-centre/data-downloads-and-publications/field-data/","For further field data, please check NSTA website: https://www.nstauthority.co.uk/data-centre/data-downloads-and-publications/field-data/","Not available","Not available"]
[null,"TANGRAM ENERGY LTD","P2359","TANGRAM ENERGY LTD","Oil & Gas","For further field data, please check NSTA website: https://www.nstauthority.co.uk/data-centre/data-downloads-and-publications/field-data/","For further field data, please check NSTA website: https://www.nstauthority.co.uk/data-centre/data-downloads-and-publications/field-data/","For further field data, please check NSTA website: https://www.nstauthority.co.uk/data-centre/data-downloads-and-publications/field-data/","Not available","Not available"]
[null,"Tangram Energy Ltd","P2421","Tangram Energy Ltd","Oil & Gas","For further field data, please check NSTA website: https://www.nstauthority.co.uk/data-centre/data-downloads-and-publications/field-data/","For further field data, please check NSTA website: https://www.nstauthority.co.uk/data-centre/data-downloads-and-publications/field-data/","For further field data, please check NSTA website: https://www.nstauthority.co.uk/data-centre/data-downloads-and-publications/field-data/","Not available","Not available"]
[null,"TANGRAM ENERGY LTD","P2440","TANGRAM ENERGY LTD","Oil & Gas","For further field data, please check NSTA website: https://www.nstauthority.co.uk/data-centre/data-downloads-and-publications/field-data/","For further field data, please check NSTA website: https://www.nstauthority.co.uk/data-centre/data-downloads-and-publications/field-data/","For further field data, please check NSTA website: https://www.nstauthority.co.uk/data-centre/data-downloads-and-publications/field-data/","Not available","Not available"]
[null,"Tangram Energy Ltd","P2512","Tangram Energy Ltd","Oil & Gas","For further field data, please check NSTA website: https://www.nstauthority.co.uk/data-centre/data-downloads-and-publications/field-data/","For further field data, please check NSTA website: https://www.nstauthority.co.uk/data-centre/data-downloads-and-publications/field-data/","For further field data, please check NSTA website: https://www.nstauthority.co.uk/data-centre/data-downloads-and-publications/field-data/","Not available","Not available"]
[null,"Tangram Energy Ltd","P2517","Tangram Energy Ltd","Oil & Gas","For further field data, please check NSTA website: https://www.nstauthority.co.uk/data-centre/data-downloads-and-publications/field-data/","For further field data, please check NSTA website: https://www.nstauthority.co.uk/data-centre/data-downloads-and-publications/field-data/","For further field data, please check NSTA website: https://www.nstauthority.co.uk/data-centre/data-downloads-and-publications/field-data/","Not available","Not available"]
[null,"Tangram Energy Ltd","P2584","Tangram Energy Ltd","Oil & Gas","For further field data, please check NSTA website: https://www.nstauthority.co.uk/data-centre/data-downloads-and-publications/field-data/","For further field data, please check NSTA website: https://www.nstauthority.co.uk/data-centre/data-downloads-and-publications/field-data/","For further field data, please check NSTA website: https://www.nstauthority.co.uk/data-centre/data-downloads-and-publications/field-data/","Not available","Not available"]
[null,"Tangram Energy Ltd","P2585","Tangram Energy Ltd","Oil & Gas","For further field data, please check NSTA website: https://www.nstauthority.co.uk/data-centre/data-downloads-and-publications/field-data/","For further field data, please check NSTA website: https://www.nstauthority.co.uk/data-centre/data-downloads-and-publications/field-data/","For further field data, please check NSTA website: https://www.nstauthority.co.uk/data-centre/data-downloads-and-publications/field-data/","Not available","Not available"]
[null,"Taqa Bratani Ltd","P1064","Taqa Bratani Ltd","Oil & Gas","For further field data, please check NSTA website: https://www.nstauthority.co.uk/data-centre/data-downloads-and-publications/field-data/","For further field data, please check NSTA website: https://www.nstauthority.co.uk/data-centre/data-downloads-and-publications/field-data/","For further field data, please check NSTA website: https://www.nstauthority.co.uk/data-centre/data-downloads-and-publications/field-data/","Not available","Not available"]
[null,"Taqa Bratani Ltd","P108","Taqa Bratani Ltd","Oil & Gas","For further field data, please check NSTA website: https://www.nstauthority.co.uk/data-centre/data-downloads-and-publications/field-data/","For further field data, please check NSTA website: https://www.nstauthority.co.uk/data-centre/data-downloads-and-publications/field-data/","For further field data, please check NSTA website: https://www.nstauthority.co.uk/data-centre/data-downloads-and-publications/field-data/","Not available","Not available"]
[null,"Taqa Bratani Ltd","P205","Taqa Bratani Ltd","Oil & Gas","For further field data, please check NSTA website: https://www.nstauthority.co.uk/data-centre/data-downloads-and-publications/field-data/","For further field data, please check NSTA website: https://www.nstauthority.co.uk/data-centre/data-downloads-and-publications/field-data/","For further field data, please check NSTA website: https://www.nstauthority.co.uk/data-centre/data-downloads-and-publications/field-data/","Not available","Not available"]
[null,"Taqa Bratani Ltd","P232","Taqa Bratani Ltd","Oil & Gas","For further field data, please check NSTA website: https://www.nstauthority.co.uk/data-centre/data-downloads-and-publications/field-data/","For further field data, please check NSTA website: https://www.nstauthority.co.uk/data-centre/data-downloads-and-publications/field-data/","For further field data, please check NSTA website: https://www.nstauthority.co.uk/data-centre/data-downloads-and-publications/field-data/","Not available","Not available"]
[null,"Taqa Bratani Ltd","P258","Taqa Bratani Ltd","Oil & Gas","For further field data, please check NSTA website: https://www.nstauthority.co.uk/data-centre/data-downloads-and-publications/field-data/","For further field data, please check NSTA website: https://www.nstauthority.co.uk/data-centre/data-downloads-and-publications/field-data/","For further field data, please check NSTA website: https://www.nstauthority.co.uk/data-centre/data-downloads-and-publications/field-data/","Not available","Not available"]
[null,"Taqa Bratani Ltd","P313","Taqa Bratani Ltd","Oil & Gas","For further field data, please check NSTA website: https://www.nstauthority.co.uk/data-centre/data-downloads-and-publications/field-data/","For further field data, please check NSTA website: https://www.nstauthority.co.uk/data-centre/data-downloads-and-publications/field-data/","For further field data, please check NSTA website: https://www.nstauthority.co.uk/data-centre/data-downloads-and-publications/field-data/","Not available","Not available"]
[null,"Taqa Bratani Ltd","P338","Taqa Bratani Ltd","Oil & Gas","For further field data, please check NSTA website: https://www.nstauthority.co.uk/data-centre/data-downloads-and-publications/field-data/","For further field data, please check NSTA website: https://www.nstauthority.co.uk/data-centre/data-downloads-and-publications/field-data/","For further field data, please check NSTA website: https://www.nstauthority.co.uk/data-centre/data-downloads-and-publications/field-data/","Not available","Not available"]
[null,"Taqa Bratani Ltd","P340","Taqa Bratani Ltd","Oil & Gas","For further field data, please check NSTA website: https://www.nstauthority.co.uk/data-centre/data-downloads-and-publications/field-data/","For further field data, please check NSTA website: https://www.nstauthority.co.uk/data-centre/data-downloads-and-publications/field-data/","For further field data, please check NSTA website: https://www.nstauthority.co.uk/data-centre/data-downloads-and-publications/field-data/","Not available","Not available"]
[null,"Taqa Bratani Ltd","P478","Taqa Bratani Ltd","Oil & Gas","For further field data, please check NSTA website: https://www.nstauthority.co.uk/data-centre/data-downloads-and-publications/field-data/","For further field data, please check NSTA website: https://www.nstauthority.co.uk/data-centre/data-downloads-and-publications/field-data/","For further field data, please check NSTA website: https://www.nstauthority.co.uk/data-centre/data-downloads-and-publications/field-data/","Not available","Not available"]
[null,"Taqa Bratani Ltd","P570","Taqa Bratani Ltd","Oil & Gas","For further field data, please check NSTA website: https://www.nstauthority.co.uk/data-centre/data-downloads-and-publications/field-data/","For further field data, please check NSTA website: https://www.nstauthority.co.uk/data-centre/data-downloads-and-publications/field-data/","For further field data, please check NSTA website: https://www.nstauthority.co.uk/data-centre/data-downloads-and-publications/field-data/","Not available","Not available"]
[null,"Taqa Bratani Ltd","P945","Taqa Bratani Ltd","Oil & Gas","For further field data, please check NSTA website: https://www.nstauthority.co.uk/data-centre/data-downloads-and-publications/field-data/","For further field data, please check NSTA website: https://www.nstauthority.co.uk/data-centre/data-downloads-and-publications/field-data/","For further field data, please check NSTA website: https://www.nstauthority.co.uk/data-centre/data-downloads-and-publications/field-data/","Not available","Not available"]
[null,"Taqa Bratani Ltd","P980","Taqa Bratani Ltd","Oil & Gas","For further field data, please check NSTA website: https://www.nstauthority.co.uk/data-centre/data-downloads-and-publications/field-data/","For further field data, please check NSTA website: https://www.nstauthority.co.uk/data-centre/data-downloads-and-publications/field-data/","For further field data, please check NSTA website: https://www.nstauthority.co.uk/data-centre/data-downloads-and-publications/field-data/","Not available","Not available"]
[null,"TGS Geophysical Company (UK) Ltd","E449","TGS Geophysical Company (UK) Ltd","Oil & Gas","For further field data, please check NSTA website: https://www.nstauthority.co.uk/data-centre/data-downloads-and-publications/field-data/","For further field data, please check NSTA website: https://www.nstauthority.co.uk/data-centre/data-downloads-and-publications/field-data/","For further field data, please check NSTA website: https://www.nstauthority.co.uk/data-centre/data-downloads-and-publications/field-data/","Not available","Not available"]
[null,"TOTAL E&P UK LIMITED","P2405","TOTAL E&P UK LIMITED","Oil & Gas","For further field data, please check NSTA website: https://www.nstauthority.co.uk/data-centre/data-downloads-and-publications/field-data/","For further field data, please check NSTA website: https://www.nstauthority.co.uk/data-centre/data-downloads-and-publications/field-data/","For further field data, please check NSTA website: https://www.nstauthority.co.uk/data-centre/data-downloads-and-publications/field-data/","Not available","Not available"]
[null,"TOTAL E&P UK LIMITED","P2418","TOTAL E&P UK LIMITED","Oil & Gas","For further field data, please check NSTA website: https://www.nstauthority.co.uk/data-centre/data-downloads-and-publications/field-data/","For further field data, please check NSTA website: https://www.nstauthority.co.uk/data-centre/data-downloads-and-publications/field-data/","For further field data, please check NSTA website: https://www.nstauthority.co.uk/data-centre/data-downloads-and-publications/field-data/","Not available","Not available"]
[null,"TOTALENERGIES E&P NORTH SEA UK LIMITED","P1820","TOTALENERGIES E&P NORTH SEA UK LIMITED","Oil & Gas","For further field data, please check NSTA website: https://www.nstauthority.co.uk/data-centre/data-downloads-and-publications/field-data/","For further field data, please check NSTA website: https://www.nstauthority.co.uk/data-centre/data-downloads-and-publications/field-data/","For further field data, please check NSTA website: https://www.nstauthority.co.uk/data-centre/data-downloads-and-publications/field-data/","Not available","Not available"]
[null,"TOTALENERGIES E&P NORTH SEA UK LIMITED","P2344","TOTALENERGIES E&P NORTH SEA UK LIMITED","Oil & Gas","For further field data, please check NSTA website: https://www.nstauthority.co.uk/data-centre/data-downloads-and-publications/field-data/","For further field data, please check NSTA website: https://www.nstauthority.co.uk/data-centre/data-downloads-and-publications/field-data/","For further field data, please check NSTA website: https://www.nstauthority.co.uk/data-centre/data-downloads-and-publications/field-data/","Not available","Not available"]
[null,"TOTALENERGIES E&P NORTH SEA UK LIMITED","P2450","TOTALENERGIES E&P NORTH SEA UK LIMITED","Oil & Gas","For further field data, please check NSTA website: https://www.nstauthority.co.uk/data-centre/data-downloads-and-publications/field-data/","For further field data, please check NSTA website: https://www.nstauthority.co.uk/data-centre/data-downloads-and-publications/field-data/","For further field data, please check NSTA website: https://www.nstauthority.co.uk/data-centre/data-downloads-and-publications/field-data/","Not available","Not available"]
[null,"TOTALENERGIES E&P NORTH SEA UK LIMITED","P2544","TOTALENERGIES E&P NORTH SEA UK LIMITED","Oil & Gas","For further field data, please check NSTA website: https://www.nstauthority.co.uk/data-centre/data-downloads-and-publications/field-data/","For further field data, please check NSTA website: https://www.nstauthority.co.uk/data-centre/data-downloads-and-publications/field-data/","For further field data, please check NSTA website: https://www.nstauthority.co.uk/data-centre/data-downloads-and-publications/field-data/","Not available","Not available"]
[null,"TOTALENERGIES E&P NORTH SEA UK LIMITED","P496","TOTALENERGIES E&P NORTH SEA UK LIMITED","Oil & Gas","For further field data, please check NSTA website: https://www.nstauthority.co.uk/data-centre/data-downloads-and-publications/field-data/","For further field data, please check NSTA website: https://www.nstauthority.co.uk/data-centre/data-downloads-and-publications/field-data/","For further field data, please check NSTA website: https://www.nstauthority.co.uk/data-centre/data-downloads-and-publications/field-data/","Not available","Not available"]
[null,"TOTALENERGIES E&P UK LIMITED","E455","TOTALENERGIES E&P UK LIMITED","Oil & Gas","For further field data, please check NSTA website: https://www.nstauthority.co.uk/data-centre/data-downloads-and-publications/field-data/","For further field data, please check NSTA website: https://www.nstauthority.co.uk/data-centre/data-downloads-and-publications/field-data/","For further field data, please check NSTA website: https://www.nstauthority.co.uk/data-centre/data-downloads-and-publications/field-data/","Not available","Not available"]
[null,"TOTALENERGIES E&P UK LIMITED","P1159","TOTALENERGIES E&P UK LIMITED","Oil & Gas","For further field data, please check NSTA website: https://www.nstauthority.co.uk/data-centre/data-downloads-and-publications/field-data/","For further field data, please check NSTA website: https://www.nstauthority.co.uk/data-centre/data-downloads-and-publications/field-data/","For further field data, please check NSTA website: https://www.nstauthority.co.uk/data-centre/data-downloads-and-publications/field-data/","Not available","Not available"]
[null,"TOTALENERGIES E&P UK LIMITED","P118","TOTALENERGIES E&P UK LIMITED","Oil & Gas","For further field data, please check NSTA website: https://www.nstauthority.co.uk/data-centre/data-downloads-and-publications/field-data/","For further field data, please check NSTA website: https://www.nstauthority.co.uk/data-centre/data-downloads-and-publications/field-data/","For further field data, please check NSTA website: https://www.nstauthority.co.uk/data-centre/data-downloads-and-publications/field-data/","Not available","Not available"]
[null,"TOTALENERGIES E&P UK LIMITED","P1195","TOTALENERGIES E&P UK LIMITED","Oil & Gas","For further field data, please check NSTA website: https://www.nstauthority.co.uk/data-centre/data-downloads-and-publications/field-data/","For further field data, please check NSTA website: https://www.nstauthority.co.uk/data-centre/data-downloads-and-publications/field-data/","For further field data, please check NSTA website: https://www.nstauthority.co.uk/data-centre/data-downloads-and-publications/field-data/","Not available","Not available"]
[null,"TOTALENERGIES E&P UK LIMITED","P1453","TOTALENERGIES E&P UK LIMITED","Oil & Gas","For further field data, please check NSTA website: https://www.nstauthority.co.uk/data-centre/data-downloads-and-publications/field-data/","For further field data, please check NSTA website: https://www.nstauthority.co.uk/data-centre/data-downloads-and-publications/field-data/","For further field data, please check NSTA website: https://www.nstauthority.co.uk/data-centre/data-downloads-and-publications/field-data/","Not available","Not available"]
[null,"TOTALENERGIES E&P UK LIMITED","P1678","TOTALENERGIES E&P UK LIMITED","Oil & Gas","For further field data, please check NSTA website: https://www.nstauthority.co.uk/data-centre/data-downloads-and-publications/field-data/","For further field data, please check NSTA website: https://www.nstauthority.co.uk/data-centre/data-downloads-and-publications/field-data/","For further field data, please check NSTA website: https://www.nstauthority.co.uk/data-centre/data-downloads-and-publications/field-data/","Not available","Not available"]
[null,"TOTALENERGIES E&P UK LIMITED","P1970","TOTALENERGIES E&P UK LIMITED","Oil & Gas","For further field data, please check NSTA website: https://www.nstauthority.co.uk/data-centre/data-downloads-and-publications/field-data/","For further field data, please check NSTA website: https://www.nstauthority.co.uk/data-centre/data-downloads-and-publications/field-data/","For further field data, please check NSTA website: https://www.nstauthority.co.uk/data-centre/data-downloads-and-publications/field-data/","Not available","Not available"]
[null,"TOTALENERGIES E&P UK LIMITED","P208","TOTALENERGIES E&P UK LIMITED","Oil & Gas","For further field data, please check NSTA website: https://www.nstauthority.co.uk/data-centre/data-downloads-and-publications/field-data/","For further field data, please check NSTA website: https://www.nstauthority.co.uk/data-centre/data-downloads-and-publications/field-data/","For further field data, please check NSTA website: https://www.nstauthority.co.uk/data-centre/data-downloads-and-publications/field-data/","Not available","Not available"]
[null,"TOTALENERGIES E&P UK LIMITED","P239","TOTALENERGIES E&P UK LIMITED","Oil & Gas","For further field data, please check NSTA website: https://www.nstauthority.co.uk/data-centre/data-downloads-and-publications/field-data/","For further field data, please check NSTA website: https://www.nstauthority.co.uk/data-centre/data-downloads-and-publications/field-data/","For further field data, please check NSTA website: https://www.nstauthority.co.uk/data-centre/data-downloads-and-publications/field-data/","Not available","Not available"]
[null,"TOTALENERGIES E&P UK LIMITED","P2411","TOTALENERGIES E&P UK LIMITED","Oil & Gas","For further field data, please check NSTA website: https://www.nstauthority.co.uk/data-centre/data-downloads-and-publications/field-data/","For further field data, please check NSTA website: https://www.nstauthority.co.uk/data-centre/data-downloads-and-publications/field-data/","For further field data, please check NSTA website: https://www.nstauthority.co.uk/data-centre/data-downloads-and-publications/field-data/","Not available","Not available"]
[null,"TOTALENERGIES E&P UK LIMITED","P2415","TOTALENERGIES E&P UK LIMITED","Oil & Gas","For further field data, please check NSTA website: https://www.nstauthority.co.uk/data-centre/data-downloads-and-publications/field-data/","For further field data, please check NSTA website: https://www.nstauthority.co.uk/data-centre/data-downloads-and-publications/field-data/","For further field data, please check NSTA website: https://www.nstauthority.co.uk/data-centre/data-downloads-and-publications/field-data/","Not available","Not available"]
[null,"TOTALENERGIES E&P UK LIMITED","P2469","TOTALENERGIES E&P UK LIMITED","Oil & Gas","For further field data, please check NSTA website: https://www.nstauthority.co.uk/data-centre/data-downloads-and-publications/field-data/","For further field data, please check NSTA website: https://www.nstauthority.co.uk/data-centre/data-downloads-and-publications/field-data/","For further field data, please check NSTA website: https://www.nstauthority.co.uk/data-centre/data-downloads-and-publications/field-data/","Not available","Not available"]
[null,"TOTALENERGIES E&P UK LIMITED","P2594","TOTALENERGIES E&P UK LIMITED","Oil & Gas","For further field data, please check NSTA website: https://www.nstauthority.co.uk/data-centre/data-downloads-and-publications/field-data/","For further field data, please check NSTA website: https://www.nstauthority.co.uk/data-centre/data-downloads-and-publications/field-data/","For further field data, please check NSTA website: https://www.nstauthority.co.uk/data-centre/data-downloads-and-publications/field-data/","Not available","Not available"]
[null,"TOTALENERGIES E&P UK LIMITED","P2604","TOTALENERGIES E&P UK LIMITED","Oil & Gas","For further field data, please check NSTA website: https://www.nstauthority.co.uk/data-centre/data-downloads-and-publications/field-data/","For further field data, please check NSTA website: https://www.nstauthority.co.uk/data-centre/data-downloads-and-publications/field-data/","For further field data, please check NSTA website: https://www.nstauthority.co.uk/data-centre/data-downloads-and-publications/field-data/","Not available","Not available"]
[null,"TOTALENERGIES E&P UK LIMITED","P268","TOTALENERGIES E&P UK LIMITED","Oil & Gas","For further field data, please check NSTA website: https://www.nstauthority.co.uk/data-centre/data-downloads-and-publications/field-data/","For further field data, please check NSTA website: https://www.nstauthority.co.uk/data-centre/data-downloads-and-publications/field-data/","For further field data, please check NSTA website: https://www.nstauthority.co.uk/data-centre/data-downloads-and-publications/field-data/","Not available","Not available"]
[null,"TOTALENERGIES E&P UK LIMITED","P281","TOTALENERGIES E&P UK LIMITED","Oil & Gas","For further field data, please check NSTA website: https://www.nstauthority.co.uk/data-centre/data-downloads-and-publications/field-data/","For further field data, please check NSTA website: https://www.nstauthority.co.uk/data-centre/data-downloads-and-publications/field-data/","For further field data, please check NSTA website: https://www.nstauthority.co.uk/data-centre/data-downloads-and-publications/field-data/","Not available","Not available"]
[null,"TOTALENERGIES E&P UK LIMITED","P284","TOTALENERGIES E&P UK LIMITED","Oil & Gas","For further field data, please check NSTA website: https://www.nstauthority.co.uk/data-centre/data-downloads-and-publications/field-data/","For further field data, please check NSTA website: https://www.nstauthority.co.uk/data-centre/data-downloads-and-publications/field-data/","For further field data, please check NSTA website: https://www.nstauthority.co.uk/data-centre/data-downloads-and-publications/field-data/","Not available","Not available"]
[null,"TOTALENERGIES E&P UK LIMITED","P362","TOTALENERGIES E&P UK LIMITED","Oil & Gas","For further field data, please check NSTA website: https://www.nstauthority.co.uk/data-centre/data-downloads-and-publications/field-data/","For further field data, please check NSTA website: https://www.nstauthority.co.uk/data-centre/data-downloads-and-publications/field-data/","For further field data, please check NSTA website: https://www.nstauthority.co.uk/data-centre/data-downloads-and-publications/field-data/","Not available","Not available"]
[null,"TOTALENERGIES E&P UK LIMITED","P416","TOTALENERGIES E&P UK LIMITED","Oil & Gas","For further field data, please check NSTA website: https://www.nstauthority.co.uk/data-centre/data-downloads-and-publications/field-data/","For further field data, please check NSTA website: https://www.nstauthority.co.uk/data-centre/data-downloads-and-publications/field-data/","For further field data, please check NSTA website: https://www.nstauthority.co.uk/data-centre/data-downloads-and-publications/field-data/","Not available","Not available"]
[null,"TOTALENERGIES E&P UK LIMITED","P491","TOTALENERGIES E&P UK LIMITED","Oil & Gas","For further field data, please check NSTA website: https://www.nstauthority.co.uk/data-centre/data-downloads-and-publications/field-data/","For further field data, please check NSTA website: https://www.nstauthority.co.uk/data-centre/data-downloads-and-publications/field-data/","For further field data, please check NSTA website: https://www.nstauthority.co.uk/data-centre/data-downloads-and-publications/field-data/","Not available","Not available"]
[null,"TOTALENERGIES E&P UK LIMITED","P622","TOTALENERGIES E&P UK LIMITED","Oil & Gas","For further field data, please check NSTA website: https://www.nstauthority.co.uk/data-centre/data-downloads-and-publications/field-data/","For further field data, please check NSTA website: https://www.nstauthority.co.uk/data-centre/data-downloads-and-publications/field-data/","For further field data, please check NSTA website: https://www.nstauthority.co.uk/data-centre/data-downloads-and-publications/field-data/","Not available","Not available"]
[null,"TOTALENERGIES E&P UK LIMITED","P666","TOTALENERGIES E&P UK LIMITED","Oil & Gas","For further field data, please check NSTA website: https://www.nstauthority.co.uk/data-centre/data-downloads-and-publications/field-data/","For further field data, please check NSTA website: https://www.nstauthority.co.uk/data-centre/data-downloads-and-publications/field-data/","For further field data, please check NSTA website: https://www.nstauthority.co.uk/data-centre/data-downloads-and-publications/field-data/","Not available","Not available"]
[null,"TOTALENERGIES E&P UK LIMITED","P701","TOTALENERGIES E&P UK LIMITED","Oil & Gas","For further field data, please check NSTA website: https://www.nstauthority.co.uk/data-centre/data-downloads-and-publications/field-data/","For further field data, please check NSTA website: https://www.nstauthority.co.uk/data-centre/data-downloads-and-publications/field-data/","For further field data, please check NSTA website: https://www.nstauthority.co.uk/data-centre/data-downloads-and-publications/field-data/","Not available","Not available"]
[null,"TOTALENERGIES E&P UK LIMITED","P724","TOTALENERGIES E&P UK LIMITED","Oil & Gas","For further field data, please check NSTA website: https://www.nstauthority.co.uk/data-centre/data-downloads-and-publications/field-data/","For further field data, please check NSTA website: https://www.nstauthority.co.uk/data-centre/data-downloads-and-publications/field-data/","For further field data, please check NSTA website: https://www.nstauthority.co.uk/data-centre/data-downloads-and-publications/field-data/","Not available","Not available"]
[null,"TOTALENERGIES E&P UK LIMITED","P752","TOTALENERGIES E&P UK LIMITED","Oil & Gas","For further field data, please check NSTA website: https://www.nstauthority.co.uk/data-centre/data-downloads-and-publications/field-data/","For further field data, please check NSTA website: https://www.nstauthority.co.uk/data-centre/data-downloads-and-publications/field-data/","For further field data, please check NSTA website: https://www.nstauthority.co.uk/data-centre/data-downloads-and-publications/field-data/","Not available","Not available"]
[null,"TOTALENERGIES E&P UK LIMITED","P90","TOTALENERGIES E&P UK LIMITED","Oil & Gas","For further field data, please check NSTA website: https://www.nstauthority.co.uk/data-centre/data-downloads-and-publications/field-data/","For further field data, please check NSTA website: https://www.nstauthority.co.uk/data-centre/data-downloads-and-publications/field-data/","For further field data, please check NSTA website: https://www.nstauthority.co.uk/data-centre/data-downloads-and-publications/field-data/","Not available","Not available"]
[null,"TOTALENERGIES E&P UK LIMITED","P911","TOTALENERGIES E&P UK LIMITED","Oil & Gas","For further field data, please check NSTA website: https://www.nstauthority.co.uk/data-centre/data-downloads-and-publications/field-data/","For further field data, please check NSTA website: https://www.nstauthority.co.uk/data-centre/data-downloads-and-publications/field-data/","For further field data, please check NSTA website: https://www.nstauthority.co.uk/data-centre/data-downloads-and-publications/field-data/","Not available","Not available"]
[null,"TULIC-127","Licence","Tarmac Holdings Limited","Not available","Not applicable","Not applicable","Not applicable","Not applicable","Not applicable"]
[null,"TULIC-197","Licence","Tarmac Holdings Limited","Not available","Not applicable","Not applicable","Not applicable","Not applicable","Not applicable"]
[null,"TULIC-254","Licence","Tarmac Holdings Limited","Not available","Not applicable","Not applicable","Not applicable","Not applicable","Not applicable"]
[null,"TULIC-351","Licence","Tarmac Holdings Limited","Not available","Not applicable","Not applicable","Not applicable","Not applicable","Not applicable"]
[null,"TULIC-395","Licence","Tarmac Holdings Limited","Not available","Not applicable","Not applicable","Not applicable","Not applicable","Not applicable"]
[null,"TULIC-396","Licence","Tarmac Holdings Limited","Not available","Not applicable","Not applicable","Not applicable","Not applicable","Not applicable"]
[null,"TULIC-430","Licence","Tarmac Holdings Limited","Not available","Not applicable","Not applicable","Not applicable","Not applicable","Not applicable"]
[null,"TULIC-458","Licence","Tarmac Holdings Limited","Not available","Not applicable","Not applicable","Not applicable","Not applicable","Not applicable"]
[null,"TULIC-460","Licence","Tarmac Holdings Limited","Not available","Not applicable","Not applicable","Not applicable","Not applicable","Not applicable"]
[null,"TULIC-481","Licence","Tarmac Holdings Limited","Not available","Not applicable","Not applicable","Not applicable","Not applicable","Not applicable"]
[null,"TULIC-493","Licence","Tarmac Holdings Limited","Not available","Not applicable","Not applicable","Not applicable","Not applicable","Not applicable"]
[null,"TULIC-494","Licence","Tarmac Holdings Limited","Not available","Not applicable","Not applicable","Not applicable","Not applicable","Not applicable"]
[null,"TULIC-500","Licence","Tarmac Holdings Limited","Not available","Not applicable","Not applicable","Not applicable","Not applicable","Not applicable"]
[null,"TULIC-509","Licence","Tarmac Holdings Limited","Not available","Not applicable","Not applicable","Not applicable","Not applicable","Not applicable"]
[null,"TULIC-526","Licence","Tarmac Holdings Limited","Not available","Not applicable","Not applicable","Not applicable","Not applicable","Not applicable"]
[null,"TULIC-531","Licence","Tarmac Holdings Limited","Not available","Not applicable","Not applicable","Not applicable","Not applicable","Not applicable"]
[null,"UKOG (137/246) Ltd","PEDL137","UKOG (137/246) Ltd","Oil & Gas","For further field data, please check NSTA website: https://www.nstauthority.co.uk/data-centre/data-downloads-and-publications/field-data/","For further field data, please check NSTA website: https://www.nstauthority.co.uk/data-centre/data-downloads-and-publications/field-data/","For further field data, please check NSTA website: https://www.nstauthority.co.uk/data-centre/data-downloads-and-publications/field-data/","Not available","Not available"]
[null,"UKOG (137/246) Ltd","PEDL246","UKOG (137/246) Ltd","Oil & Gas","For further field data, please check NSTA website: https://www.nstauthority.co.uk/data-centre/data-downloads-and-publications/field-data/","For further field data, please check NSTA website: https://www.nstauthority.co.uk/data-centre/data-downloads-and-publications/field-data/","For further field data, please check NSTA website: https://www.nstauthority.co.uk/data-centre/data-downloads-and-publications/field-data/","Not available","Not available"]
[null,"UKOG (234) Ltd","PEDL234","UKOG (234) Ltd","Oil & Gas","For further field data, please check NSTA website: https://www.nstauthority.co.uk/data-centre/data-downloads-and-publications/field-data/","For further field data, please check NSTA website: https://www.nstauthority.co.uk/data-centre/data-downloads-and-publications/field-data/","For further field data, please check NSTA website: https://www.nstauthority.co.uk/data-centre/data-downloads-and-publications/field-data/","Not available","Not available"]
[null,"Unallocated","Licence","Hanson Limited","Not available","Not applicable","Not applicable","Not applicable","Not applicable","Not applicable"]
[null,"United Oil & Gas Plc","P2480","United Oil & Gas Plc","Oil & Gas","For further field data, please check NSTA website: https://www.nstauthority.co.uk/data-centre/data-downloads-and-publications/field-data/","For further field data, please check NSTA website: https://www.nstauthority.co.uk/data-centre/data-downloads-and-publications/field-data/","For further field data, please check NSTA website: https://www.nstauthority.co.uk/data-centre/data-downloads-and-publications/field-data/","Not available","Not available"]
[null,"United Oil & Gas Plc","P2519","United Oil & Gas Plc","Oil & Gas","For further field data, please check NSTA website: https://www.nstauthority.co.uk/data-centre/data-downloads-and-publications/field-data/","For further field data, please check NSTA website: https://www.nstauthority.co.uk/data-centre/data-downloads-and-publications/field-data/","For further field data, please check NSTA website: https://www.nstauthority.co.uk/data-centre/data-downloads-and-publications/field-data/","Not available","Not available"]
[null,"WINTERSHALL NOORDZEE B.V.","P2574","WINTERSHALL NOORDZEE B.V.","Oil & Gas","For further field data, please check NSTA website: https://www.nstauthority.co.uk/data-centre/data-downloads-and-publications/field-data/","For further field data, please check NSTA website: https://www.nstauthority.co.uk/data-centre/data-downloads-and-publications/field-data/","For further field data, please check NSTA website: https://www.nstauthority.co.uk/data-centre/data-downloads-and-publications/field-data/","Not available","Not available"]
[null,"WINTERSHALL NOORDZEE B.V.","P2575","WINTERSHALL NOORDZEE B.V.","Oil & Gas","For further field data, please check NSTA website: https://www.nstauthority.co.uk/data-centre/data-downloads-and-publications/field-data/","For further field data, please check NSTA website: https://www.nstauthority.co.uk/data-centre/data-downloads-and-publications/field-data/","For further field data, please check NSTA website: https://www.nstauthority.co.uk/data-centre/data-downloads-and-publications/field-data/","Not available","Not available"]
[null,"WINTERSHALL NOORDZEE B.V.","P2579","WINTERSHALL NOORDZEE B.V.","Oil & Gas","For further field data, please check NSTA website: https://www.nstauthority.co.uk/data-centre/data-downloads-and-publications/field-data/","For further field data, please check NSTA website: https://www.nstauthority.co.uk/data-centre/data-downloads-and-publications/field-data/","For further field data, please check NSTA website: https://www.nstauthority.co.uk/data-centre/data-downloads-and-publications/field-data/","Not available","Not available"]
[null,"Wintershall Noordzee BV","P1239","Wintershall Noordzee BV","Oil & Gas","For further field data, please check NSTA website: https://www.nstauthority.co.uk/data-centre/data-downloads-and-publications/field-data/","For further field data, please check NSTA website: https://www.nstauthority.co.uk/data-centre/data-downloads-and-publications/field-data/","For further field data, please check NSTA website: https://www.nstauthority.co.uk/data-centre/data-downloads-and-publications/field-data/","Not available","Not available"]
[null,"Wintershall Noordzee BV","P1733","Wintershall Noordzee BV","Oil & Gas","For further field data, please check NSTA website: https://www.nstauthority.co.uk/data-centre/data-downloads-and-publications/field-data/","For further field data, please check NSTA website: https://www.nstauthority.co.uk/data-centre/data-downloads-and-publications/field-data/","For further field data, please check NSTA website: https://www.nstauthority.co.uk/data-centre/data-downloads-and-publications/field-data/","Not available","Not available"]
[null,"Wintershall Noordzee BV","P2135","Wintershall Noordzee BV","Oil & Gas","For further field data, please check NSTA website: https://www.nstauthority.co.uk/data-centre/data-downloads-and-publications/field-data/","For further field data, please check NSTA website: https://www.nstauthority.co.uk/data-centre/data-downloads-and-publications/field-data/","For further field data, please check NSTA website: https://www.nstauthority.co.uk/data-centre/data-downloads-and-publications/field-data/","Not available","Not available"]
[]
[null,"For the latest version of Summary data templates, see https://eiti.org/summary-data-template"]
[null,"Give us your feedback or report a conflict in the data! Write to us at  data@eiti.org"]
[]
[null,"EITI International Secretariat"]
[null,"Phone: +47 222 00 800      E-mail: secretariat@eiti.org      Twitter: @EITIorg      www.eiti.org"]
[null,"Address: Rådhusgata 26, 0151 Oslo, Norway      P.O. Box: Postboks 340 Sentrum, 0101 Oslo, Norway"]

{"sheet":"Part 4 - Government revenues","index":4,"n_rows":58,"n_cols":14,"rows_kept":58,"cut":false,"hidden":false,"merged":[[57,5,57,13],[17,5,17,10],[7,5,7,13],[8,5,8,13],[9,5,9,13],[10,5,10,13],[11,5,11,13],[12,5,12,13],[13,5,13,13],[14,5,14,13],[17,12,17,13],[50,5,50,13],[51,5,51,13],[52,5,52,13],[56,5,56,13],[53,5,53,13],[54,5,54,13],[55,5,55,13],[19,5,19,10],[15,5,15,13],[18,12,18,13],[26,12,26,13],[27,12,27,13],[20,12,20,13],[21,12,25,13],[40,5,41,10]]}
[]
[]
[null,null,null,null,null,null,null,null,null,null,null,null,null,"Summary data template"]
[null,null,null,null,null,null,null,null,null,null,null,null,null,{"$f":"Introduction!G4","v":45185}]
[]
[]
[]
[null,null,null,null,null,"Part 4 (Government revenues) contains comprehensive data on government revenues per revenue stream, according to GFSM classification."]
[null,null,null,null,null,"How to complete this sheet:"]
[null,null,null,null,null,"1. Enter the name of all government Revenue streams for the extractive sectors, including revenues that fall below agreed materiality thresholds (one row should be used for each individual revenue stream and individual governmant entity)"]
[null,null,null,null,null,"2. Enter the name of the receiving Government entity (choose using the dropdown list. It will appear there since you have already entered the government entitiy in Part 3)."]
[null,null,null,null,null,"3.Choose the Sector and the GFS Classification this revenue applies to. Use the guidance provided in the GFS Framework for EITI reporting. If a revenue stream cannot be disaggregated by sector, chose \"Other\"."]
[null,null,null,null,null,"4. In the Revenue value column, enter total figure of each revenue stream as disclosed by government, including revenues that were not reconciled."]
[null,null,null,null,null," Remember: Governments receipts from companies on behalf of their employees should be excluded (e.g personal income tax PAYE, employee social security contributions, withholding tax) because they are not considered payments from companies to government."]
[null,null,null,null,null,"5. If there are any payments which are in the EITI Report, but cannot be matched with the GFS categories, please list them in the box below called \"Additional information\"."]
[null,null,null,null,null,"If you have any questions, please contact data@eiti.org"]
[]
[null,null,null,null,null,"Total government revenues from extractive sector (using GFS)",null,null,null,null,null,null,"GFS Framework for EITI Reporting"]
[null,null,null,null,null,null,null,null,null,null,null,null,"EITI Requirement 5.1.b: Revenue classification"]
[null,null,null,null,null,"EITI Requirement 4.1.d: Full government disclosure"]
[null,"GFS Level 1","GFS Level 2","GFS Level 3","GFS Level 4","GFS Classification","Sector","Revenue stream name","Government entity","Revenue value","Currency",null,"What is GFS?"]
[null,{"$f":"IFERROR(VLOOKUP(Government_revenues_table[[#This Row],[GFS Classification]],Table6_GFS_codes_classification[],COLUMNS($F:F)+3,FALSE),\"Do not enter data\")","v":"Taxes (11E)"},{"$f":"IFERROR(VLOOKUP(Government_revenues_table[[#This Row],[GFS Classification]],Table6_GFS_codes_classification[],COLUMNS($F:G)+3,FALSE),\"Do not enter data\")","v":"Taxes on income, profits and capital gains (111E)"},{"$f":"IFERROR(VLOOKUP(Government_revenues_table[[#This Row],[GFS Classification]],Table6_GFS_codes_classification[],COLUMNS($F:H)+3,FALSE),\"Do not enter data\")","v":"Ordinary taxes on income, profits and capital gains (1112E1)"},{"$f":"IFERROR(VLOOKUP(Government_revenues_table[[#This Row],[GFS Classification]],Table6_GFS_codes_classification[],COLUMNS($F:I)+3,FALSE),\"Do not enter data\")","v":"Ordinary taxes on income, profits and capital gains (1112E1)"},"Ordinary taxes on income, profits and capital gains (1112E1)","Mining","Corporation Tax","His Majesty’s Revenue and Customs (HMRC)",{"$f":"28.65834298*1000000","v":28658342.98},"GBP",null,"GFS, or Government Finance Statistics, is an international framework for categorising revenue streams so they are comparable across countries and time-periods. See full framework example below. The framework used below has been developped by the IMF and EITI International Secretariat.\nThe letter E in the GFS codes means that these are codes only used for revenues from extractives companies. The digits to the right were specifically designed for extractive sector companies."]
[null,{"$f":"IFERROR(VLOOKUP(Government_revenues_table[[#This Row],[GFS Classification]],Table6_GFS_codes_classification[],COLUMNS($F:F)+3,FALSE),\"Do not enter data\")","v":"Taxes (11E)"},{"$f":"IFERROR(VLOOKUP(Government_revenues_table[[#This Row],[GFS Classification]],Table6_GFS_codes_classification[],COLUMNS($F:G)+3,FALSE),\"Do not enter data\")","v":"Taxes on income, profits and capital gains (111E)"},{"$f":"IFERROR(VLOOKUP(Government_revenues_table[[#This Row],[GFS Classification]],Table6_GFS_codes_classification[],COLUMNS($F:H)+3,FALSE),\"Do not enter data\")","v":"Ordinary taxes on income, profits and capital gains (1112E1)"},{"$f":"IFERROR(VLOOKUP(Government_revenues_table[[#This Row],[GFS Classification]],Table6_GFS_codes_classification[],COLUMNS($F:I)+3,FALSE),\"Do not enter data\")","v":"Ordinary taxes on income, profits and capital gains (1112E1)"},"Ordinary taxes on income, profits and capital gains (1112E1)","Oil & Gas","Ring Fence CT and Supplementary Charge (RFCT & SC)","His Majesty’s Revenue and Customs (HMRC)",{"$f":"5364.8030032*1000000","v":5364803003.1999998},"GBP"]
[null,{"$f":"IFERROR(VLOOKUP(Government_revenues_table[[#This Row],[GFS Classification]],Table6_GFS_codes_classification[],COLUMNS($F:F)+3,FALSE),\"Do not enter data\")","v":"Taxes (11E)"},{"$f":"IFERROR(VLOOKUP(Government_revenues_table[[#This Row],[GFS Classification]],Table6_GFS_codes_classification[],COLUMNS($F:G)+3,FALSE),\"Do not enter data\")","v":"Taxes on income, profits and capital gains (111E)"},{"$f":"IFERROR(VLOOKUP(Government_revenues_table[[#This Row],[GFS Classification]],Table6_GFS_codes_classification[],COLUMNS($F:H)+3,FALSE),\"Do not enter data\")","v":"Extraordinary taxes on income, profits and capital gains (1112E2)"},{"$f":"IFERROR(VLOOKUP(Government_revenues_table[[#This Row],[GFS Classification]],Table6_GFS_codes_classification[],COLUMNS($F:I)+3,FALSE),\"Do not enter data\")","v":"Extraordinary taxes on income, profits and capital gains (1112E2)"},"Extraordinary taxes on income, profits and capital gains (1112E2)","Oil & Gas","Petroleum Revenue Tax (PRT)","His Majesty’s Revenue and Customs (HMRC)",{"$f":"-393.945491*1000000","v":-393945491},"GBP"]
[null,{"$f":"IFERROR(VLOOKUP(Government_revenues_table[[#This Row],[GFS Classification]],Table6_GFS_codes_classification[],COLUMNS($F:F)+3,FALSE),\"Do not enter data\")","v":"Taxes (11E)"},{"$f":"IFERROR(VLOOKUP(Government_revenues_table[[#This Row],[GFS Classification]],Table6_GFS_codes_classification[],COLUMNS($F:G)+3,FALSE),\"Do not enter data\")","v":"Taxes on income, profits and capital gains (111E)"},{"$f":"IFERROR(VLOOKUP(Government_revenues_table[[#This Row],[GFS Classification]],Table6_GFS_codes_classification[],COLUMNS($F:H)+3,FALSE),\"Do not enter data\")","v":"Extraordinary taxes on income, profits and capital gains (1112E2)"},{"$f":"IFERROR(VLOOKUP(Government_revenues_table[[#This Row],[GFS Classification]],Table6_GFS_codes_classification[],COLUMNS($F:I)+3,FALSE),\"Do not enter data\")","v":"Extraordinary taxes on income, profits and capital gains (1112E2)"},"Extraordinary taxes on income, profits and capital gains (1112E2)","Oil & Gas","ENERGY (OIL AND GAS) PROFITS LEVY","His Majesty’s Revenue and Customs (HMRC)",{"$f":"1770.471513*1000000","v":1770471513},"GBP"]
[null,{"$f":"IFERROR(VLOOKUP(Government_revenues_table[[#This Row],[GFS Classification]],Table6_GFS_codes_classification[],COLUMNS($F:F)+3,FALSE),\"Do not enter data\")","v":"Taxes (11E)"},{"$f":"IFERROR(VLOOKUP(Government_revenues_table[[#This Row],[GFS Classification]],Table6_GFS_codes_classification[],COLUMNS($F:G)+3,FALSE),\"Do not enter data\")","v":"Taxes on goods and services (114E)"},{"$f":"IFERROR(VLOOKUP(Government_revenues_table[[#This Row],[GFS Classification]],Table6_GFS_codes_classification[],COLUMNS($F:H)+3,FALSE),\"Do not enter data\")","v":"Taxes on use of goods/permission to use goods or perform activities (1145E)"},{"$f":"IFERROR(VLOOKUP(Government_revenues_table[[#This Row],[GFS Classification]],Table6_GFS_codes_classification[],COLUMNS($F:I)+3,FALSE),\"Do not enter data\")","v":"Licence fees (114521E)"},"Licence fees (114521E)","Mining","Payments to the Crown Estate M&Q","The Crown Estate (TCE)",{"$f":"26.2763994*1000000","v":26276399.399999999},"GBP"]
[null,{"$f":"IFERROR(VLOOKUP(Government_revenues_table[[#This Row],[GFS Classification]],Table6_GFS_codes_classification[],COLUMNS($F:F)+3,FALSE),\"Do not enter data\")","v":"Taxes (11E)"},{"$f":"IFERROR(VLOOKUP(Government_revenues_table[[#This Row],[GFS Classification]],Table6_GFS_codes_classification[],COLUMNS($F:G)+3,FALSE),\"Do not enter data\")","v":"Taxes on goods and services (114E)"},{"$f":"IFERROR(VLOOKUP(Government_revenues_table[[#This Row],[GFS Classification]],Table6_GFS_codes_classification[],COLUMNS($F:H)+3,FALSE),\"Do not enter data\")","v":"Taxes on use of goods/permission to use goods or perform activities (1145E)"},{"$f":"IFERROR(VLOOKUP(Government_revenues_table[[#This Row],[GFS Classification]],Table6_GFS_codes_classification[],COLUMNS($F:I)+3,FALSE),\"Do not enter data\")","v":"Licence fees (114521E)"},"Licence fees (114521E)","Oil & Gas","Payments to the Crown Estate O&G","The Crown Estate (TCE)",{"$f":"2.416598*1000000","v":2416598},"GBP",null,"For more guidance, please visit https://eiti.org/summary-data-template"]
[null,{"$f":"IFERROR(VLOOKUP(Government_revenues_table[[#This Row],[GFS Classification]],Table6_GFS_codes_classification[],COLUMNS($F:F)+3,FALSE),\"Do not enter data\")","v":"Taxes (11E)"},{"$f":"IFERROR(VLOOKUP(Government_revenues_table[[#This Row],[GFS Classification]],Table6_GFS_codes_classification[],COLUMNS($F:G)+3,FALSE),\"Do not enter data\")","v":"Taxes on goods and services (114E)"},{"$f":"IFERROR(VLOOKUP(Government_revenues_table[[#This Row],[GFS Classification]],Table6_GFS_codes_classification[],COLUMNS($F:H)+3,FALSE),\"Do not enter data\")","v":"Taxes on use of goods/permission to use goods or perform activities (1145E)"},{"$f":"IFERROR(VLOOKUP(Government_revenues_table[[#This Row],[GFS Classification]],Table6_GFS_codes_classification[],COLUMNS($F:I)+3,FALSE),\"Do not enter data\")","v":"Licence fees (114521E)"},"Licence fees (114521E)","Mining","Payments to Crown Estate Scotland M&Q","Crown Estate Scotland (CES)",{"$f":"0.310766*1000000","v":310766},"GBP",null,"or, https://www.imf.org/external/np/sta/gfsm/"]
[null,{"$f":"IFERROR(VLOOKUP(Government_revenues_table[[#This Row],[GFS Classification]],Table6_GFS_codes_classification[],COLUMNS($F:F)+3,FALSE),\"Do not enter data\")","v":"Taxes (11E)"},{"$f":"IFERROR(VLOOKUP(Government_revenues_table[[#This Row],[GFS Classification]],Table6_GFS_codes_classification[],COLUMNS($F:G)+3,FALSE),\"Do not enter data\")","v":"Taxes on goods and services (114E)"},{"$f":"IFERROR(VLOOKUP(Government_revenues_table[[#This Row],[GFS Classification]],Table6_GFS_codes_classification[],COLUMNS($F:H)+3,FALSE),\"Do not enter data\")","v":"Taxes on use of goods/permission to use goods or perform activities (1145E)"},{"$f":"IFERROR(VLOOKUP(Government_revenues_table[[#This Row],[GFS Classification]],Table6_GFS_codes_classification[],COLUMNS($F:I)+3,FALSE),\"Do not enter data\")","v":"Licence fees (114521E)"},"Licence fees (114521E)","Oil & Gas","Payments to Crown Estate Scotland O&G","Crown Estate Scotland (CES)",{"$f":"1.605911*1000000","v":1605911},"GBP"]
[null,{"$f":"IFERROR(VLOOKUP(Government_revenues_table[[#This Row],[GFS Classification]],Table6_GFS_codes_classification[],COLUMNS($F:F)+3,FALSE),\"Do not enter data\")","v":"Taxes (11E)"},{"$f":"IFERROR(VLOOKUP(Government_revenues_table[[#This Row],[GFS Classification]],Table6_GFS_codes_classification[],COLUMNS($F:G)+3,FALSE),\"Do not enter data\")","v":"Taxes on goods and services (114E)"},{"$f":"IFERROR(VLOOKUP(Government_revenues_table[[#This Row],[GFS Classification]],Table6_GFS_codes_classification[],COLUMNS($F:H)+3,FALSE),\"Do not enter data\")","v":"Taxes on use of goods/permission to use goods or perform activities (1145E)"},{"$f":"IFERROR(VLOOKUP(Government_revenues_table[[#This Row],[GFS Classification]],Table6_GFS_codes_classification[],COLUMNS($F:I)+3,FALSE),\"Do not enter data\")","v":"Licence fees (114521E)"},"Licence fees (114521E)","Oil & Gas","Petroleum Licence Fees","North Sea Transition Authority (NSTA)",{"$f":"51004688.92-100328.46","v":50904360.460000001},"GBP"]
[null,{"$f":"IFERROR(VLOOKUP(Government_revenues_table[[#This Row],[GFS Classification]],Table6_GFS_codes_classification[],COLUMNS($F:F)+3,FALSE),\"Do not enter data\")","v":"Taxes (11E)"},{"$f":"IFERROR(VLOOKUP(Government_revenues_table[[#This Row],[GFS Classification]],Table6_GFS_codes_classification[],COLUMNS($F:G)+3,FALSE),\"Do not enter data\")","v":"Other taxes payable by natural resource companies (116E)"},{"$f":"IFERROR(VLOOKUP(Government_revenues_table[[#This Row],[GFS Classification]],Table6_GFS_codes_classification[],COLUMNS($F:H)+3,FALSE),\"Do not enter data\")","v":"Other taxes payable by natural resource companies (116E)"},{"$f":"IFERROR(VLOOKUP(Government_revenues_table[[#This Row],[GFS Classification]],Table6_GFS_codes_classification[],COLUMNS($F:I)+3,FALSE),\"Do not enter data\")","v":"Other taxes payable by natural resource companies (116E)"},"Other taxes payable by natural resource companies (116E)","Oil & Gas","Oil & Gas Authority (OGA) Levy","North Sea Transition Authority (NSTA)",{"$f":"(32853887.92-3792268.14)","v":29061619.780000001},"GBP"]
[]
[null,null,null,null,null,null,null,null,"Total in USD",{"$f":"SUMIF(Government_revenues_table[Currency],\"USD\",Government_revenues_table[Revenue value])+(IFERROR(SUMIF(Government_revenues_table[Currency],\"<>USD\",Government_revenues_table[Revenue value])/'Part 1 - About'!$E$45,0))","v":8473599781.798027}]
[]
[null,null,null,null,null,null,null,null,{"$f":"\"Total in \"&'Part 1 - About'!E44","v":"Total in GBP"},{"$f":"IF('Part 1 - About'!$E$44=\"USD\",0,SUMIF(Government_revenues_table[Currency],'Part 1 - About'!$E$44,Government_revenues_table[Revenue value]))+(IFERROR(SUMIF(Government_revenues_table[Currency],\"USD\",Government_revenues_table[Revenue value])*'Part 1 - About'!$E$45,0))","v":6880563022.8199987}]
[]
[]
[]
[null,null,null,null,null,"Additional information"]
[]
[null,null,null,null,null,"Please note that the difference of GBP 13.48 million (Equivalent to USD 14.46 million) between the \"Total Government Revenues\" and the \"Total Company Data\". This includes:\n1) extractive companies out of scope of the reconciliation because their payment / repayments were below the agreed  materiality thresholds, \n2) those with material payments that declined to participate in the reconciliation process and \n3) non-material payment / repayments for companies that were in scope."]
[]
[]
[]
[]
[]
[]
[]
[]
[]
[]
[]
[null,null,null,null,null,"For the latest version of Summary data templates, see https://eiti.org/summary-data-template"]
[null,null,null,null,null,"Give us your feedback or report a conflict in the data! Write to us at  data@eiti.org"]
[]
[null,null,null,null,null,"EITI International Secretariat"]
[null,null,null,null,null,"Phone: +47 222 00 800      E-mail: secretariat@eiti.org      Twitter: @EITIorg      www.eiti.org"]
[null,null,null,null,null,"Address: Rådhusgata 26, 0151 Oslo, Norway      P.O. Box: Postboks 340 Sentrum, 0101 Oslo, Norway"]

{"sheet":"Part 5 - Company data","index":5,"n_rows":374,"n_cols":14,"rows_kept":374,"cut":false,"hidden":false,"merged":[[373,2,373,13],[12,1,12,13],[367,2,367,13],[368,2,368,13],[369,2,369,13],[370,2,370,13],[371,2,371,13],[372,2,372,13],[366,2,366,13],[1,2,1,13],[2,2,2,13],[3,2,3,13],[4,2,4,13],[5,2,5,13],[6,2,6,13],[7,2,7,13],[8,2,8,13],[364,2,364,13],[365,2,365,13],[9,2,9,13],[10,2,10,13],[357,2,357,13],[358,2,358,13],[359,2,359,13],[360,2,360,13],[361,2,361,13],[362,2,362,13],[363,2,363,13]]}
[]
[null,null,"Part 5 (Company data) contains company- and project-level data per revenue stream. The companies and projects are available from drop-down since the data is entered in sheet 3. "]
[null,null,"How to fill this sheet:"]
[null,null,"1. Select company name from drop-down menu"]
[null,null,"2. Select government collecting entity and payment name from drop-down menu"]
[null,null,"3. Indicate whether the payment stream is (i) levied on project and (ii) reported by project"]
[null,null,"4. Enter project information: project name, and reporting currency"]
[null,null,"5. Enter revenue value,as disclosed by government and any comments that may be applicable"]
[null,null,"If you have any questions, please contact data@eiti.org"]
[]
[null,null,"Government revenues by company and project"]
[]
[null,"EITI Requirement 4.1.c: Company payments ;  EITI Requirement 4.7: Project-level reporting"]
[null,"Sector","Full company name","Government entity","Revenue stream name","Levied on project (Y/N)","Reported by project (Y/N)","Project name","Reporting currency","Revenue value","Payment made in-kind (Y/N)","In-kind volume (if applicable)","Unit (if applicable)","Comments"]
[null,null,"ANASURIA HIBISCUS UK Ltd","His Majesty’s Revenue and Customs (HMRC)","Ring Fence CT and Supplementary Charge (RFCT & SC)","No","No","N/A","GBP",8563334,"Not applicable","Not applicable","Not applicable"]
[null,null,"Apache Corporation","His Majesty’s Revenue and Customs (HMRC)","Ring Fence CT and Supplementary Charge (RFCT & SC)","No","No","N/A","GBP",224140000,"Not applicable","Not applicable","Not applicable"]
[null,null,"BP Plc","His Majesty’s Revenue and Customs (HMRC)","Ring Fence CT and Supplementary Charge (RFCT & SC)","No","No","N/A","GBP",735000000,"Not applicable","Not applicable","Not applicable"]
[null,null,"Centrica PLC","His Majesty’s Revenue and Customs (HMRC)","Ring Fence CT and Supplementary Charge (RFCT & SC)","No","No","N/A","GBP",62523500,"Not applicable","Not applicable","Not applicable"]
[null,null,"Chevron","His Majesty’s Revenue and Customs (HMRC)","Ring Fence CT and Supplementary Charge (RFCT & SC)","No","No","N/A","GBP",130275873,"Not applicable","Not applicable","Not applicable"]
[null,null,"CNOOC Petroleum Europe Ltd","His Majesty’s Revenue and Customs (HMRC)","Ring Fence CT and Supplementary Charge (RFCT & SC)","No","No","N/A","GBP",338000000,"Not applicable","Not applicable","Not applicable"]
[null,null,"CNR International UK Investments Ltd","His Majesty’s Revenue and Customs (HMRC)","Ring Fence CT and Supplementary Charge (RFCT & SC)","No","No","N/A","GBP",-4861258,"Not applicable","Not applicable","Not applicable"]
[null,null,"Dana Petroleum Ltd","His Majesty’s Revenue and Customs (HMRC)","Ring Fence CT and Supplementary Charge (RFCT & SC)","No","No","N/A","GBP",25223480,"Not applicable","Not applicable","Not applicable"]
[null,null,"ENI UK Ltd","His Majesty’s Revenue and Customs (HMRC)","Ring Fence CT and Supplementary Charge (RFCT & SC)","No","No","N/A","GBP",378526000,"Not applicable","Not applicable","Not applicable"]
[null,null,"ExxonMobil International Ltd","His Majesty’s Revenue and Customs (HMRC)","Ring Fence CT and Supplementary Charge (RFCT & SC)","No","No","N/A","GBP",72000000,"Not applicable","Not applicable","Not applicable"]
[null,null,"Harbour Energy Plc","His Majesty’s Revenue and Customs (HMRC)","Ring Fence CT and Supplementary Charge (RFCT & SC)","No","No","N/A","GBP",274381594,"Not applicable","Not applicable","Not applicable"]
[null,null,"HESS Ltd","His Majesty’s Revenue and Customs (HMRC)","Ring Fence CT and Supplementary Charge (RFCT & SC)","No","No","N/A","GBP",209423,"Not applicable","Not applicable","Not applicable"]
[null,null,"Iranian Oil Company (U.K.) Ltd","His Majesty’s Revenue and Customs (HMRC)","Ring Fence CT and Supplementary Charge (RFCT & SC)","No","No","N/A","GBP",198032461,"Not applicable","Not applicable","Not applicable"]
[null,null,"Ithaca Energy UK","His Majesty’s Revenue and Customs (HMRC)","Ring Fence CT and Supplementary Charge (RFCT & SC)","No","No","N/A","GBP",47221400,"Not applicable","Not applicable","Not applicable"]
[null,null,"Neo Energy","His Majesty’s Revenue and Customs (HMRC)","Ring Fence CT and Supplementary Charge (RFCT & SC)","No","No","N/A","GBP",66254777.199999996,"Not applicable","Not applicable","Not applicable"]
[null,null,"Neptune Energy Group Ltd","His Majesty’s Revenue and Customs (HMRC)","Ring Fence CT and Supplementary Charge (RFCT & SC)","No","No","N/A","GBP",-3687655,"Not applicable","Not applicable","Not applicable"]
[null,null,"ONE-Dyas UK Ltd","His Majesty’s Revenue and Customs (HMRC)","Ring Fence CT and Supplementary Charge (RFCT & SC)","No","No","N/A","GBP",30129963,"Not applicable","Not applicable","Not applicable"]
[null,null,"Perenco UK Ltd","His Majesty’s Revenue and Customs (HMRC)","Ring Fence CT and Supplementary Charge (RFCT & SC)","No","No","N/A","GBP",303289075,"Not applicable","Not applicable","Not applicable"]
[null,null,"Repsol Sinopec Resources UK Ltd","His Majesty’s Revenue and Customs (HMRC)","Ring Fence CT and Supplementary Charge (RFCT & SC)","No","No","N/A","GBP",-7755461,"Not applicable","Not applicable","Not applicable"]
[null,null,"RockRose Energy Ltd","His Majesty’s Revenue and Customs (HMRC)","Ring Fence CT and Supplementary Charge (RFCT & SC)","No","No","N/A","GBP",40000000,"Not applicable","Not applicable","Not applicable"]
[null,null,"Serica Energy Plc","His Majesty’s Revenue and Customs (HMRC)","Ring Fence CT and Supplementary Charge (RFCT & SC)","No","No","N/A","GBP",116000000,"Not applicable","Not applicable","Not applicable"]
[null,null,"Suncor Energy UK Ltd","His Majesty’s Revenue and Customs (HMRC)","Ring Fence CT and Supplementary Charge (RFCT & SC)","No","No","N/A","GBP",155453662,"Not applicable","Not applicable","Not applicable"]
[null,null,"TAQA","His Majesty’s Revenue and Customs (HMRC)","Ring Fence CT and Supplementary Charge (RFCT & SC)","No","No","N/A","GBP",164376950,"Not applicable","Not applicable","Not applicable"]
[null,null,"TotalEnergies Holdings UK Ltd","His Majesty’s Revenue and Customs (HMRC)","Ring Fence CT and Supplementary Charge (RFCT & SC)","No","No","N/A","GBP",2016517314,"Not applicable","Not applicable","Not applicable"]
[null,7899774,"Tullow Oil Plc","His Majesty’s Revenue and Customs (HMRC)","Ring Fence CT and Supplementary Charge (RFCT & SC)","No","No","N/A","GBP",-14487313,"Not applicable","Not applicable","Not applicable"]
[null,956571.33,"WINTERSHALL NOORDZEE B.V.","His Majesty’s Revenue and Customs (HMRC)","Ring Fence CT and Supplementary Charge (RFCT & SC)","No","No","N/A","GBP",9000000,"Not applicable","Not applicable","Not applicable"]
[null,33565226.850000001,"BP Plc","His Majesty’s Revenue and Customs (HMRC)","Petroleum Revenue Tax (PRT)","Yes","Yes","South Valiant","GBP",-19110,"Not applicable","Not applicable","Not applicable"]
[null,-1123761,"BP Plc","His Majesty’s Revenue and Customs (HMRC)","Petroleum Revenue Tax (PRT)","Yes","Yes","Vulcan","GBP",-269258,"Not applicable","Not applicable","Not applicable"]
[null,255000,"BP Plc","His Majesty’s Revenue and Customs (HMRC)","Petroleum Revenue Tax (PRT)","Yes","Yes","Miller","GBP",-420846,"Not applicable","Not applicable","Not applicable"]
[null,1771076,"BP Plc","His Majesty’s Revenue and Customs (HMRC)","Petroleum Revenue Tax (PRT)","Yes","Yes","Vulcan","GBP",-5969490,"Not applicable","Not applicable","Not applicable"]
[null,null,"BP Plc","His Majesty’s Revenue and Customs (HMRC)","Petroleum Revenue Tax (PRT)","Yes","Yes","South Valiant","GBP",-1833343,"Not applicable","Not applicable","Not applicable"]
[null,null,"BP Plc","His Majesty’s Revenue and Customs (HMRC)","Petroleum Revenue Tax (PRT)","Yes","Yes","Miller","GBP",-129184,"Not applicable","Not applicable","Not applicable"]
[null,null,"BP Plc","His Majesty’s Revenue and Customs (HMRC)","Petroleum Revenue Tax (PRT)","Yes","Yes","Thistle","GBP",-9964212,"Not applicable","Not applicable","Not applicable"]
[null,null,"CNOOC Petroleum Europe Ltd","His Majesty’s Revenue and Customs (HMRC)","Petroleum Revenue Tax (PRT)","Yes","Yes","Scott","GBP",-4522321,"Not applicable","Not applicable","Not applicable"]
[null,null,"CNR International UK Investments Ltd","His Majesty’s Revenue and Customs (HMRC)","Petroleum Revenue Tax (PRT)","Yes","Yes","Ninian","GBP",-20100394,"Not applicable","Not applicable","Not applicable"]
[null,null,"Dana Petroleum Ltd","His Majesty’s Revenue and Customs (HMRC)","Petroleum Revenue Tax (PRT)","Yes","Yes","Victor","GBP",-1148527,"Not applicable","Not applicable","Not applicable"]
[null,null,"ENI UK Ltd","His Majesty’s Revenue and Customs (HMRC)","Petroleum Revenue Tax (PRT)","Yes","Yes","Orwell","GBP",-201889,"Not applicable","Not applicable","Not applicable"]
[null,null,"ExxonMobil International Ltd","His Majesty’s Revenue and Customs (HMRC)","Petroleum Revenue Tax (PRT)","Yes","Yes","Brent","GBP",-35965378,"Not applicable","Not applicable","Not applicable"]
[null,null,"ExxonMobil International Ltd","His Majesty’s Revenue and Customs (HMRC)","Petroleum Revenue Tax (PRT)","Yes","Yes","Fulmar","GBP",-11862263,"Not applicable","Not applicable","Not applicable"]
[null,null,"ExxonMobil International Ltd","His Majesty’s Revenue and Customs (HMRC)","Petroleum Revenue Tax (PRT)","Yes","Yes","Victor","GBP",-1704308,"Not applicable","Not applicable","Not applicable"]
[null,null,"Harbour Energy Plc","His Majesty’s Revenue and Customs (HMRC)","Petroleum Revenue Tax (PRT)","Yes","Yes","South Valiant","GBP",-7859,"Not applicable","Not applicable","Not applicable"]
[null,null,"Harbour Energy Plc","His Majesty’s Revenue and Customs (HMRC)","Petroleum Revenue Tax (PRT)","Yes","Yes","Vulcan","GBP",-631213,"Not applicable","Not applicable","Not applicable"]
[null,null,"Harbour Energy Plc","His Majesty’s Revenue and Customs (HMRC)","Petroleum Revenue Tax (PRT)","Yes","Yes","Victor","GBP",-1335132,"Not applicable","Not applicable","Not applicable"]
[null,null,"Harbour Energy Plc","His Majesty’s Revenue and Customs (HMRC)","Petroleum Revenue Tax (PRT)","Yes","Yes","South Valiant","GBP",-7859,"Not applicable","Not applicable","Not applicable"]
[null,null,"Harbour Energy Plc","His Majesty’s Revenue and Customs (HMRC)","Petroleum Revenue Tax (PRT)","Yes","Yes","Vulcan","GBP",-631044,"Not applicable","Not applicable","Not applicable"]
[null,null,"Harbour Energy Plc","His Majesty’s Revenue and Customs (HMRC)","Petroleum Revenue Tax (PRT)","Yes","Yes","Miller","GBP",-278520,"Not applicable","Not applicable","Not applicable"]
[null,null,"Harbour Energy Plc","His Majesty’s Revenue and Customs (HMRC)","Petroleum Revenue Tax (PRT)","Yes","Yes","Vulcan","GBP",-4226395,"Not applicable","Not applicable","Not applicable"]
[null,null,"INEOS Industries","His Majesty’s Revenue and Customs (HMRC)","Petroleum Revenue Tax (PRT)","Yes","Yes","Victor","GBP",-1112936,"Not applicable","Not applicable","Not applicable"]
[null,null,"Ithaca Energy UK","His Majesty’s Revenue and Customs (HMRC)","Petroleum Revenue Tax (PRT)","Yes","Yes","Murchison","GBP",-183329,"Not applicable","Not applicable","Not applicable"]
[null,null,"JX Nippon Exploration and Production (U.K.) Ltd","His Majesty’s Revenue and Customs (HMRC)","Petroleum Revenue Tax (PRT)","Yes","Yes","Brae","GBP",-364206,"Not applicable","Not applicable","Not applicable"]
[null,null,"JX Nippon Exploration and Production (U.K.) Ltd","His Majesty’s Revenue and Customs (HMRC)","Petroleum Revenue Tax (PRT)","Yes","Yes","East Brae","GBP",-321835,"Not applicable","Not applicable","Not applicable"]
[null,null,"Perenco UK Ltd","His Majesty’s Revenue and Customs (HMRC)","Petroleum Revenue Tax (PRT)","Yes","Yes","West Sole","GBP",-4154370,"Not applicable","Not applicable","Not applicable"]
[null,null,"Repsol Sinopec Resources UK Ltd","His Majesty’s Revenue and Customs (HMRC)","Petroleum Revenue Tax (PRT)","Yes","Yes","Claymore","GBP",-17990328,"Not applicable","Not applicable","Not applicable"]
[null,null,"Repsol Sinopec Resources UK Ltd","His Majesty’s Revenue and Customs (HMRC)","Petroleum Revenue Tax (PRT)","Yes","Yes","Wytch Farm","GBP",-138166080,"Not applicable","Not applicable","Not applicable"]
[null,null,"Repsol Sinopec Resources UK Ltd","His Majesty’s Revenue and Customs (HMRC)","Petroleum Revenue Tax (PRT)","Yes","Yes","Claymore","GBP",-6406324,"Not applicable","Not applicable","Not applicable"]
[null,null,"Repsol Sinopec Resources UK Ltd","His Majesty’s Revenue and Customs (HMRC)","Petroleum Revenue Tax (PRT)","Yes","Yes","Piper","GBP",-6865143,"Not applicable","Not applicable","Not applicable"]
[null,null,"Repsol Sinopec Resources UK Ltd","His Majesty’s Revenue and Customs (HMRC)","Petroleum Revenue Tax (PRT)","Yes","Yes","Piper","GBP",-7574627,"Not applicable","Not applicable","Not applicable"]
[null,null,"Royal Dutch Shell Plc","His Majesty’s Revenue and Customs (HMRC)","Petroleum Revenue Tax (PRT)","Yes","Yes","Brent","GBP",-40309554,"Not applicable","Not applicable","Not applicable"]
[null,null,"Royal Dutch Shell Plc","His Majesty’s Revenue and Customs (HMRC)","Petroleum Revenue Tax (PRT)","Yes","Yes","Fulmar","GBP",-17547066,"Not applicable","Not applicable","Not applicable"]
[null,null,"Centrica plc","His Majesty’s Revenue and Customs (HMRC)","Petroleum Revenue Tax (PRT)","Yes","Yes","South Morecambe","GBP",-15087887,"Not applicable","Not applicable","Not applicable"]
[null,null,"Centrica plc","His Majesty’s Revenue and Customs (HMRC)","Petroleum Revenue Tax (PRT)","Yes","Yes","Brae","GBP",-1347913,"Not applicable","Not applicable","Not applicable"]
[null,null,"Centrica plc","His Majesty’s Revenue and Customs (HMRC)","Petroleum Revenue Tax (PRT)","Yes","Yes","East Brae","GBP",-70536,"Not applicable","Not applicable","Not applicable"]
[null,null,"Centrica plc","His Majesty’s Revenue and Customs (HMRC)","Petroleum Revenue Tax (PRT)","Yes","Yes","Victor","GBP",-2069885,"Not applicable","Not applicable","Not applicable"]
[null,null,"TAQA","His Majesty’s Revenue and Customs (HMRC)","Petroleum Revenue Tax (PRT)","Yes","Yes","East Brae","GBP",-792042,"Not applicable","Not applicable","Not applicable"]
[null,null,"TAQA","His Majesty’s Revenue and Customs (HMRC)","Petroleum Revenue Tax (PRT)","Yes","Yes","North Cormorant","GBP",-12110593,"Not applicable","Not applicable","Not applicable"]
[null,null,"TAQA","His Majesty’s Revenue and Customs (HMRC)","Petroleum Revenue Tax (PRT)","Yes","Yes","Tern","GBP",-18289099,"Not applicable","Not applicable","Not applicable"]
[null,null,"TAQA","His Majesty’s Revenue and Customs (HMRC)","Petroleum Revenue Tax (PRT)","Yes","Yes","Brae","GBP",-1222685,"Not applicable","Not applicable","Not applicable"]
[null,null,"TAQA","His Majesty’s Revenue and Customs (HMRC)","Petroleum Revenue Tax (PRT)","Yes","Yes","East Brae","GBP",-76014,"Not applicable","Not applicable","Not applicable"]
[null,null,"Tullow Oil Plc","His Majesty’s Revenue and Customs (HMRC)","Petroleum Revenue Tax (PRT)","Yes","Yes","Murdoch","GBP",-654494,"Not applicable","Not applicable","Not applicable"]
[null,null,"Apache Corporation","His Majesty’s Revenue and Customs (HMRC)","ENERGY (OIL AND GAS) PROFITS LEVY","Not applicable","Not applicable","N/A","GBP",41060000,"Not applicable","Not applicable","Not applicable"]
[null,null,"BP Plc","His Majesty’s Revenue and Customs (HMRC)","ENERGY (OIL AND GAS) PROFITS LEVY","Not applicable","Not applicable","N/A","GBP",356000000,"Not applicable","Not applicable","Not applicable"]
[null,null,"Centrica PLC","His Majesty’s Revenue and Customs (HMRC)","ENERGY (OIL AND GAS) PROFITS LEVY","Not applicable","Not applicable","N/A","GBP",34467888,"Not applicable","Not applicable","Not applicable"]
[null,null,"Chevron","His Majesty’s Revenue and Customs (HMRC)","ENERGY (OIL AND GAS) PROFITS LEVY","Not applicable","Not applicable","N/A","GBP",22894021,"Not applicable","Not applicable","Not applicable"]
[null,null,"CNOOC Petroleum Europe Ltd","His Majesty’s Revenue and Customs (HMRC)","ENERGY (OIL AND GAS) PROFITS LEVY","Not applicable","Not applicable","N/A","GBP",73000000,"Not applicable","Not applicable","Not applicable"]
[null,null,"Dana Petroleum Ltd","His Majesty’s Revenue and Customs (HMRC)","ENERGY (OIL AND GAS) PROFITS LEVY","Not applicable","Not applicable","N/A","GBP",49046261,"Not applicable","Not applicable","Not applicable"]
[null,null,"ENI UK Ltd","His Majesty’s Revenue and Customs (HMRC)","ENERGY (OIL AND GAS) PROFITS LEVY","Not applicable","Not applicable","N/A","GBP",81607810,"Not applicable","Not applicable","Not applicable"]
[null,null,"EnQuest PLC","His Majesty’s Revenue and Customs (HMRC)","ENERGY (OIL AND GAS) PROFITS LEVY","Not applicable","Not applicable","N/A","GBP",30917000,"Not applicable","Not applicable","Not applicable"]
[null,null,"ExxonMobil International Ltd","His Majesty’s Revenue and Customs (HMRC)","ENERGY (OIL AND GAS) PROFITS LEVY","Not applicable","Not applicable","N/A","GBP",26000000,"Not applicable","Not applicable","Not applicable"]
[null,null,"Harbour Energy Plc","His Majesty’s Revenue and Customs (HMRC)","ENERGY (OIL AND GAS) PROFITS LEVY","Not applicable","Not applicable","N/A","GBP",171400000,"Not applicable","Not applicable","Not applicable"]
[null,null,"Hurricane Energy Plc","His Majesty’s Revenue and Customs (HMRC)","ENERGY (OIL AND GAS) PROFITS LEVY","Not applicable","Not applicable","N/A","GBP",2100000,"Not applicable","Not applicable","Not applicable"]
[null,null,"Iranian Oil Company (U.K.) Ltd","His Majesty’s Revenue and Customs (HMRC)","ENERGY (OIL AND GAS) PROFITS LEVY","Not applicable","Not applicable","N/A","GBP",38658359,"Not applicable","Not applicable","Not applicable"]
[null,null,"Ithaca Energy UK","His Majesty’s Revenue and Customs (HMRC)","ENERGY (OIL AND GAS) PROFITS LEVY","Not applicable","Not applicable","N/A","GBP",26300000,"Not applicable","Not applicable","Not applicable"]
[null,null,"ONE-Dyas UK Ltd","His Majesty’s Revenue and Customs (HMRC)","ENERGY (OIL AND GAS) PROFITS LEVY","Not applicable","Not applicable","N/A","GBP",16500000,"Not applicable","Not applicable","Not applicable"]
[null,null,"Perenco UK Ltd","His Majesty’s Revenue and Customs (HMRC)","ENERGY (OIL AND GAS) PROFITS LEVY","Not applicable","Not applicable","N/A","GBP",64500000,"Not applicable","Not applicable","Not applicable"]
[null,null,"Repsol Sinopec Resources UK Ltd","His Majesty’s Revenue and Customs (HMRC)","ENERGY (OIL AND GAS) PROFITS LEVY","Not applicable","Not applicable","N/A","GBP",37011289,"Not applicable","Not applicable","Not applicable"]
[null,null,"RockRose Energy Ltd","His Majesty’s Revenue and Customs (HMRC)","ENERGY (OIL AND GAS) PROFITS LEVY","Not applicable","Not applicable","N/A","GBP",34274000,"Not applicable","Not applicable","Not applicable"]
[null,null,"Royal Dutch Shell Plc","His Majesty’s Revenue and Customs (HMRC)","ENERGY (OIL AND GAS) PROFITS LEVY","Not applicable","Not applicable","N/A","GBP",49000000,"Not applicable","Not applicable","Not applicable"]
[null,null,"Serica Energy Plc","His Majesty’s Revenue and Customs (HMRC)","ENERGY (OIL AND GAS) PROFITS LEVY","Not applicable","Not applicable","N/A","GBP",27500000,"Not applicable","Not applicable","Not applicable"]
[null,null,"Suncor Energy UK Ltd","His Majesty’s Revenue and Customs (HMRC)","ENERGY (OIL AND GAS) PROFITS LEVY","Not applicable","Not applicable","N/A","GBP",41783280,"Not applicable","Not applicable","Not applicable"]
[null,null,"TAQA","His Majesty’s Revenue and Customs (HMRC)","ENERGY (OIL AND GAS) PROFITS LEVY","Not applicable","Not applicable","N/A","GBP",63169000,"Not applicable","Not applicable","Not applicable"]
[null,null,"TotalEnergies Holdings UK Ltd","His Majesty’s Revenue and Customs (HMRC)","ENERGY (OIL AND GAS) PROFITS LEVY","Not applicable","Not applicable","N/A","GBP",472755982,"Not applicable","Not applicable","Not applicable"]
[null,null,"WINTERSHALL NOORDZEE B.V.","His Majesty’s Revenue and Customs (HMRC)","ENERGY (OIL AND GAS) PROFITS LEVY","Not applicable","Not applicable","N/A","GBP",8000000,"Not applicable","Not applicable","Not applicable"]
[null,null,"Centrica PLC","The Crown Estate (TCE)","Payments to the Crown Estate M&Q","Yes","Yes","Rough","GBP",373611,"Not applicable","Not applicable","Not applicable"]
[null,null,"Harbour Energy Plc","The Crown Estate (TCE)","Payments to the Crown Estate M&Q","Yes","Yes","Theddlethorpe - Caister / Murdoch Oil Pipeline","GBP",155741,"Not applicable","Not applicable","Not applicable"]
[null,null,"Harbour Energy Plc","The Crown Estate (TCE)","Payments to the Crown Estate M&Q","Yes","Yes","Theddlethorpe - Viking Oil Pipeline","GBP",6750,"Not applicable","Not applicable","Not applicable"]
[null,null,"Harbour Energy Plc","The Crown Estate (TCE)","Payments to the Crown Estate M&Q","Yes","Yes","Victor / Viking - Hydrocarbon Pipeline","GBP",1900,"Not applicable","Not applicable","Not applicable"]
[null,null,"Harbour Energy Plc","The Crown Estate (TCE)","Payments to the Crown Estate M&Q","Yes","Yes","River Fields - Hydrocarbon Pipeline","GBP",163945,"Not applicable","Not applicable","Not applicable"]
[null,null,"INEOS Industries","The Crown Estate (TCE)","Payments to the Crown Estate M&Q","Yes","Yes","Breagh","GBP",11800,"Not applicable","Not applicable","Not applicable"]
[null,null,"INEOS Industries","The Crown Estate (TCE)","Payments to the Crown Estate M&Q","Yes","Yes","Breagh","GBP",11800,"Not applicable","Not applicable","Not applicable"]
[null,null,"INEOS Industries","The Crown Estate (TCE)","Payments to the Crown Estate M&Q","Yes","Yes","Breagh","GBP",11800,"Not applicable","Not applicable","Not applicable"]
[null,null,"INEOS Industries","The Crown Estate (TCE)","Payments to the Crown Estate M&Q","Yes","Yes","Breagh","GBP",63842,"Not applicable","Not applicable","Not applicable"]
[null,null,"INEOS Industries","The Crown Estate (TCE)","Payments to the Crown Estate M&Q","Yes","Yes","Breagh","GBP",63842,"Not applicable","Not applicable","Not applicable"]
[null,null,"Perenco UK Ltd","The Crown Estate (TCE)","Payments to the Crown Estate M&Q","Yes","Yes","Eagles pipeline","GBP",163945,"Not applicable","Not applicable","Not applicable"]
[null,null,"Perenco UK Ltd","The Crown Estate (TCE)","Payments to the Crown Estate M&Q","Yes","Yes","Furzey Island","GBP",21818,"Not applicable","Not applicable","Not applicable"]
[null,null,"Perenco UK Ltd","The Crown Estate (TCE)","Payments to the Crown Estate M&Q","Yes","Yes","Leman","GBP",65,"Not applicable","Not applicable","Not applicable"]
[null,null,"Perenco UK Ltd","The Crown Estate (TCE)","Payments to the Crown Estate M&Q","Yes","Yes","Bacton - Lancelot","GBP",106071,"Not applicable","Not applicable","Not applicable"]
[null,null,"Perenco UK Ltd","The Crown Estate (TCE)","Payments to the Crown Estate M&Q","Yes","Yes","Bacton ","GBP",199208,"Not applicable","Not applicable","Not applicable"]
[null,null,"Perenco UK Ltd","The Crown Estate (TCE)","Payments to the Crown Estate M&Q","Yes","Yes","Easington Amethyst","GBP",380162,"Not applicable","Not applicable","Not applicable"]
[null,null,"Perenco UK Ltd","The Crown Estate (TCE)","Payments to the Crown Estate M&Q","Yes","Yes","Pickerill","GBP",41283,"Not applicable","Not applicable","Not applicable"]
[null,null,"Royal Dutch Shell Plc","The Crown Estate (TCE)","Payments to the Crown Estate M&Q","Yes","Yes","Lease Rent Bacton Refinery ","GBP",8651,"Not applicable","Not applicable","Not applicable"]
[null,null,"Royal Dutch Shell Plc","The Crown Estate (TCE)","Payments to the Crown Estate M&Q","Yes","Yes","Bacton Pipeline","GBP",193232,"Not applicable","Not applicable","Not applicable"]
[null,null,"Royal Dutch Shell Plc","The Crown Estate (TCE)","Payments to the Crown Estate M&Q","Yes","Yes","Hydrocarbone pipeline","GBP",41929,"Not applicable","Not applicable","Not applicable"]
[null,null,"Royal Dutch Shell Plc","The Crown Estate (TCE)","Payments to the Crown Estate M&Q","Yes","Yes","Hydrocarbone pipeline","GBP",34483,"Not applicable","Not applicable","Not applicable"]
[null,null,"Royal Dutch Shell Plc","The Crown Estate (TCE)","Payments to the Crown Estate M&Q","Yes","Yes","Bacton Pipeline","GBP",250267,"Not applicable","Not applicable","Not applicable"]
[null,null,"BP Plc","Crown Estate Scotland (CES)","Payments to Crown Estate Scotland M&Q","Yes","Yes","Clair Pipeline","GBP",150107,"Not applicable","Not applicable","Not applicable"]
[null,null,"BP Plc","Crown Estate Scotland (CES)","Payments to Crown Estate Scotland M&Q","Yes","Yes","Orka Voe - West of Shetland","GBP",94415,"Not applicable","Not applicable","Not applicable"]
[null,null,"EnQuest PLC","Crown Estate Scotland (CES)","Payments to Crown Estate Scotland M&Q","Yes","Yes","Ninian Field to Grutwick","GBP",10,"Not applicable","Not applicable","Not applicable"]
[null,null,"EnQuest PLC","Crown Estate Scotland (CES)","Payments to Crown Estate Scotland M&Q","Yes","Yes","Orka Voe - East of Shetland","GBP",94067,"Not applicable","Not applicable","Not applicable"]
[null,null,"Harbour Energy Plc","Crown Estate Scotland (CES)","Payments to Crown Estate Scotland M&Q","Yes","Yes","Britannia Field to St Fergus","GBP",156565,"Not applicable","Not applicable","Not applicable"]
[null,null,"INEOS Industries","Crown Estate Scotland (CES)","Payments to Crown Estate Scotland M&Q","Yes","Yes","Forties Field","GBP",12,"Not applicable","Not applicable","Not applicable"]
[null,null,"INEOS Industries","Crown Estate Scotland (CES)","Payments to Crown Estate Scotland M&Q","Yes","Yes","Forties Field to Cruden Bay","GBP",222691,"Not applicable","Not applicable","Not applicable"]
[null,null,"Ithaca Energy UK","Crown Estate Scotland (CES)","Payments to Crown Estate Scotland M&Q","Yes","Yes","Jacky B Project","GBP",130218,"Not applicable","Not applicable","Not applicable"]
[null,null,"NSMP Operations Ltd ","Crown Estate Scotland (CES)","Payments to Crown Estate Scotland M&Q","Yes","Yes","Frigg Field to Rattray Bay","GBP",12,"Not applicable","Not applicable","Not applicable"]
[null,null,"NSMP Operations Ltd ","Crown Estate Scotland (CES)","Payments to Crown Estate Scotland M&Q","Yes","Yes","Laggan Tormore Export Pipe","GBP",207000,"Not applicable","Not applicable","Not applicable"]
[null,null,"SAGE North Sea Ltd","Crown Estate Scotland (CES)","Payments to Crown Estate Scotland M&Q","Yes","Yes","Beryl Field","GBP",207000,"Not applicable","Not applicable","Not applicable"]
[null,null,"Royal Dutch Shell Plc","Crown Estate Scotland (CES)","Payments to Crown Estate Scotland M&Q","Yes","Yes","Atlantic Cromarty","GBP",45269,"Not applicable","Not applicable","Not applicable"]
[null,null,"Royal Dutch Shell Plc","Crown Estate Scotland (CES)","Payments to Crown Estate Scotland M&Q","Yes","Yes","Brent St Fergus","GBP",10,"Not applicable","Not applicable","Not applicable"]
[null,null,"Royal Dutch Shell Plc","Crown Estate Scotland (CES)","Payments to Crown Estate Scotland M&Q","Yes","Yes","Goldeneye","GBP",44055,"Not applicable","Not applicable","Not applicable"]
[null,null,"TotalEnergies Holdings UK Ltd","Crown Estate Scotland (CES)","Payments to Crown Estate Scotland M&Q","Yes","Yes","Laggan Tormore Import Pipes","GBP",206000,"Not applicable","Not applicable","Not applicable"]
[null,null,"Aggregate Industries UK Ltd","His Majesty’s Revenue and Customs (HMRC)","Corporation Tax","Not applicable","Not applicable","N/A","GBP",2907460,"Not applicable","Not applicable","Not applicable"]
[null,null,"Boskalis Westminster Holdings Ltd","His Majesty’s Revenue and Customs (HMRC)","Corporation Tax","Not applicable","Not applicable","N/A","GBP",1201945.33,"Not applicable","Not applicable","Not applicable"]
[null,null,"Breedon Group PLC","His Majesty’s Revenue and Customs (HMRC)","Corporation Tax","Not applicable","Not applicable","N/A","GBP",20046519.93,"Not applicable","Not applicable","Not applicable"]
[null,null,"Cemex UK Materials Ltd","His Majesty’s Revenue and Customs (HMRC)","Corporation Tax","Not applicable","Not applicable","N/A","GBP",1619328,"Not applicable","Not applicable","Not applicable"]
[null,null,"DEME Building Materials Ltd","His Majesty’s Revenue and Customs (HMRC)","Corporation Tax","Not applicable","Not applicable","N/A","GBP",581958.54999999993,"Not applicable","Not applicable","Not applicable"]
[null,null,"Irish Salt Mining & Exploration Co. Ltd","His Majesty’s Revenue and Customs (HMRC)","Corporation Tax","Not applicable","Not applicable","N/A","GBP",1429863.91,"Not applicable","Not applicable","Not applicable"]
[null,null,"Saint-Gobain Ltd","His Majesty’s Revenue and Customs (HMRC)","Corporation Tax","Not applicable","Not applicable","N/A","GBP",-4589938.51,"Not applicable","Not applicable","Not applicable"]
[null,null,"Van Oord UK Ltd","His Majesty’s Revenue and Customs (HMRC)","Corporation Tax","Not applicable","Not applicable","N/A","GBP",2987698.4899999998,"Not applicable","Not applicable","Not applicable"]
[null,null,"Volker Dredging Ltd","His Majesty’s Revenue and Customs (HMRC)","Corporation Tax","Not applicable","Not applicable","N/A","GBP",108067,"Not applicable","Not applicable","Not applicable"]
[null,null,"Albion Stone","The Crown Estate (TCE)","Payments to the Crown Estate M&Q","Yes","Yes","na","GBP",75428,"Not applicable","Not applicable","Not applicable"]
[null,null,"Albion Stone","The Crown Estate (TCE)","Payments to the Crown Estate M&Q","Yes","Yes","na","GBP",193817,"Not applicable","Not applicable","Not applicable"]
[null,null,"Albion Stone","The Crown Estate (TCE)","Payments to the Crown Estate M&Q","Yes","Yes","na","GBP",20229,"Not applicable","Not applicable","Not applicable"]
[null,null,"Albion Stone","The Crown Estate (TCE)","Payments to the Crown Estate M&Q","Yes","Yes","na","GBP",-4496,"Not applicable","Not applicable","Not applicable"]
[null,null,"Boskalis Westminster Holdings Ltd","The Crown Estate (TCE)","Payments to the Crown Estate M&Q","Yes","Yes","Licence Area 451 ","GBP",57600,"Not applicable","Not applicable","Not applicable"]
[null,null,"Boskalis Westminster Holdings Ltd","The Crown Estate (TCE)","Payments to the Crown Estate M&Q","Yes","Yes","Licence Area 451 ","GBP",70140,"Not applicable","Not applicable","Not applicable"]
[null,null,"Boskalis Westminster Holdings Ltd","The Crown Estate (TCE)","Payments to the Crown Estate M&Q","Yes","Yes","Licence Area 457","GBP",8888,"Not applicable","Not applicable","Not applicable"]
[null,null,"Boskalis Westminster Holdings Ltd","The Crown Estate (TCE)","Payments to the Crown Estate M&Q","Yes","Yes","Licence Area 457","GBP",57270,"Not applicable","Not applicable","Not applicable"]
[null,null,"Boskalis Westminster Holdings Ltd","The Crown Estate (TCE)","Payments to the Crown Estate M&Q","Yes","Yes","Licence Area 457","GBP",1142364,"Not applicable","Not applicable","Not applicable"]
[null,null,"Boskalis Westminster Holdings Ltd","The Crown Estate (TCE)","Payments to the Crown Estate M&Q","Yes","Yes","Licence Area 457","GBP",57270,"Not applicable","Not applicable","Not applicable"]
[null,null,"Boskalis Westminster Holdings Ltd","The Crown Estate (TCE)","Payments to the Crown Estate M&Q","Yes","Yes","Licence Area 457","GBP",69620,"Not applicable","Not applicable","Not applicable"]
[null,null,"Boskalis Westminster Holdings Ltd","The Crown Estate (TCE)","Payments to the Crown Estate M&Q","Yes","Yes","Licence Area 501","GBP",99860,"Not applicable","Not applicable","Not applicable"]
[null,null,"Boskalis Westminster Holdings Ltd","The Crown Estate (TCE)","Payments to the Crown Estate M&Q","Yes","Yes","Licence Area 501","GBP",121600,"Not applicable","Not applicable","Not applicable"]
[null,null,"Boskalis Westminster Holdings Ltd","The Crown Estate (TCE)","Payments to the Crown Estate M&Q","Yes","Yes","Licence Area 515 ","GBP",79680,"Not applicable","Not applicable","Not applicable"]
[null,null,"Boskalis Westminster Holdings Ltd","The Crown Estate (TCE)","Payments to the Crown Estate M&Q","Yes","Yes","Licence Area 515 ","GBP",370807,"Not applicable","Not applicable","Not applicable"]
[null,null,"Boskalis Westminster Holdings Ltd","The Crown Estate (TCE)","Payments to the Crown Estate M&Q","Yes","Yes","Licence Area 515 ","GBP",555771,"Not applicable","Not applicable","Not applicable"]
[null,null,"Boskalis Westminster Holdings Ltd","The Crown Estate (TCE)","Payments to the Crown Estate M&Q","Yes","Yes","Licence Area 515 ","GBP",97110,"Not applicable","Not applicable","Not applicable"]
[null,null,"Boskalis Westminster Holdings Ltd","The Crown Estate (TCE)","Payments to the Crown Estate M&Q","Yes","Yes","Licence Area 476","GBP",56544,"Not applicable","Not applicable","Not applicable"]
[null,null,"Boskalis Westminster Holdings Ltd","The Crown Estate (TCE)","Payments to the Crown Estate M&Q","Yes","Yes","Licence Area 476","GBP",180699,"Not applicable","Not applicable","Not applicable"]
[null,null,"Boskalis Westminster Holdings Ltd","The Crown Estate (TCE)","Payments to the Crown Estate M&Q","Yes","Yes","Licence Area 476","GBP",46404,"Not applicable","Not applicable","Not applicable"]
[null,null,"Boskalis Westminster Holdings Ltd","The Crown Estate (TCE)","Payments to the Crown Estate M&Q","Yes","Yes","Licence Area 476","GBP",74594,"Not applicable","Not applicable","Not applicable"]
[null,null,"Breedon Group PLC","The Crown Estate (TCE)","Payments to the Crown Estate M&Q","Yes","Yes",4032180,"GBP",8640,"Not applicable","Not applicable","Not applicable"]
[null,null,"Breedon Group PLC","The Crown Estate (TCE)","Payments to the Crown Estate M&Q","Yes","Yes",2025257,"GBP",78864,"Not applicable","Not applicable","Not applicable"]
[null,null,"Breedon Group PLC","The Crown Estate (TCE)","Payments to the Crown Estate M&Q","Yes","Yes",2025257,"GBP",342,"Not applicable","Not applicable","Not applicable"]
[null,null,"Breedon Group PLC","The Crown Estate (TCE)","Payments to the Crown Estate M&Q","Yes","Yes",4032180,"GBP",8640,"Not applicable","Not applicable","Not applicable"]
[null,null,"Breedon Group PLC","The Crown Estate (TCE)","Payments to the Crown Estate M&Q","Yes","Yes",2025257,"GBP",298,"Not applicable","Not applicable","Not applicable"]
[null,null,"Breedon Group PLC","The Crown Estate (TCE)","Payments to the Crown Estate M&Q","Yes","Yes",3031958,"GBP",8364,"Not applicable","Not applicable","Not applicable"]
[null,null,"Breedon Group PLC","The Crown Estate (TCE)","Payments to the Crown Estate M&Q","Yes","Yes",2031957,"GBP",1286,"Not applicable","Not applicable","Not applicable"]
[null,null,"Breedon Group PLC","The Crown Estate (TCE)","Payments to the Crown Estate M&Q","Yes","Yes",3031963,"GBP",840,"Not applicable","Not applicable","Not applicable"]
[null,null,"Breedon Group PLC","The Crown Estate (TCE)","Payments to the Crown Estate M&Q","Yes","Yes",4032180,"GBP",8640,"Not applicable","Not applicable","Not applicable"]
[null,null,"Breedon Group PLC","The Crown Estate (TCE)","Payments to the Crown Estate M&Q","Yes","Yes",2025257,"GBP",16000,"Not applicable","Not applicable","Not applicable"]
[null,null,"Breedon Group PLC","The Crown Estate (TCE)","Payments to the Crown Estate M&Q","Yes","Yes",3031958,"GBP",8364,"Not applicable","Not applicable","Not applicable"]
[null,null,"Breedon Group PLC","The Crown Estate (TCE)","Payments to the Crown Estate M&Q","Yes","Yes",3031963,"GBP",840,"Not applicable","Not applicable","Not applicable"]
[null,null,"Breedon Group PLC","The Crown Estate (TCE)","Payments to the Crown Estate M&Q","Yes","Yes",2031957,"GBP",1286,"Not applicable","Not applicable","Not applicable"]
[null,null,"Breedon Group PLC","The Crown Estate (TCE)","Payments to the Crown Estate M&Q","Yes","Yes",1082,"GBP",-38499,"Not applicable","Not applicable","Not applicable"]
[null,null,"Breedon Group PLC","The Crown Estate (TCE)","Payments to the Crown Estate M&Q","Yes","Yes",1081,"GBP",2602,"Not applicable","Not applicable","Not applicable"]
[null,null,"Britannia Aggregates Ltd","The Crown Estate (TCE)","Payments to the Crown Estate M&Q","Yes","Yes",8775,"GBP",16990,"Not applicable","Not applicable","Not applicable"]
[null,null,"Britannia Aggregates Ltd","The Crown Estate (TCE)","Payments to the Crown Estate M&Q","Yes","Yes",8795,"GBP",40740,"Not applicable","Not applicable","Not applicable"]
[null,null,"Britannia Aggregates Ltd","The Crown Estate (TCE)","Payments to the Crown Estate M&Q","Yes","Yes",8775,"GBP",-7381,"Not applicable","Not applicable","Not applicable"]
[null,null,"Britannia Aggregates Ltd","The Crown Estate (TCE)","Payments to the Crown Estate M&Q","Yes","Yes",8795,"GBP",334993,"Not applicable","Not applicable","Not applicable"]
[null,null,"Britannia Aggregates Ltd","The Crown Estate (TCE)","Payments to the Crown Estate M&Q","Yes","Yes",8775,"GBP",16990,"Not applicable","Not applicable","Not applicable"]
[null,null,"Britannia Aggregates Ltd","The Crown Estate (TCE)","Payments to the Crown Estate M&Q","Yes","Yes",8795,"GBP",40740,"Not applicable","Not applicable","Not applicable"]
[null,null,"Britannia Aggregates Ltd","The Crown Estate (TCE)","Payments to the Crown Estate M&Q","Yes","Yes",8775,"GBP",38875,"Not applicable","Not applicable","Not applicable"]
[null,null,"Britannia Aggregates Ltd","The Crown Estate (TCE)","Payments to the Crown Estate M&Q","Yes","Yes",8795,"GBP",380376,"Not applicable","Not applicable","Not applicable"]
[null,null,"Cemex UK Materials Ltd","The Crown Estate (TCE)","Payments to the Crown Estate M&Q","Yes","Yes","Area 507/1- Shipwash 0016273","GBP",67320,"Not applicable","Not applicable","Not applicable"]
[null,null,"Cemex UK Materials Ltd","The Crown Estate (TCE)","Payments to the Crown Estate M&Q","Yes","Yes","Area 510/1-2 Longsand 0016276","GBP",67320,"Not applicable","Not applicable","Not applicable"]
[null,null,"Cemex UK Materials Ltd","The Crown Estate (TCE)","Payments to the Crown Estate M&Q","Yes","Yes","Area 453 Owers Extension 0016243","GBP",27036,"Not applicable","Not applicable","Not applicable"]
[null,null,"Cemex UK Materials Ltd","The Crown Estate (TCE)","Payments to the Crown Estate M&Q","Yes","Yes","Area 407 St Catherine's 0010105","GBP",105504,"Not applicable","Not applicable","Not applicable"]
[null,null,"Cemex UK Materials Ltd","The Crown Estate (TCE)","Payments to the Crown Estate M&Q","Yes","Yes","Area 340 Nab 0010093","GBP",50928,"Not applicable","Not applicable","Not applicable"]
[null,null,"Cemex UK Materials Ltd","The Crown Estate (TCE)","Payments to the Crown Estate M&Q","Yes","Yes","Area 522 West Wight 0019141","GBP",29856,"Not applicable","Not applicable","Not applicable"]
[null,null,"Cemex UK Materials Ltd","The Crown Estate (TCE)","Payments to the Crown Estate M&Q","Yes","Yes","Area 514/1-4 Humber 0016242","GBP",455722,"Not applicable","Not applicable","Not applicable"]
[null,null,"Cemex UK Materials Ltd","The Crown Estate (TCE)","Payments to the Crown Estate M&Q","Yes","Yes","Area 512 ex 251/454 0016244","GBP",661534,"Not applicable","Not applicable","Not applicable"]
[null,null,"Cemex UK Materials Ltd","The Crown Estate (TCE)","Payments to the Crown Estate M&Q","Yes","Yes","Area 511 Lowestoft 0018726","GBP",24112,"Not applicable","Not applicable","Not applicable"]
[null,null,"Cemex UK Materials Ltd","The Crown Estate (TCE)","Payments to the Crown Estate M&Q","Yes","Yes","Area 473 Greenwich Light East 0013027","GBP",881840,"Not applicable","Not applicable","Not applicable"]
[null,null,"Cemex UK Materials Ltd","The Crown Estate (TCE)","Payments to the Crown Estate M&Q","Yes","Yes","Area 458/464 West Bassurelle 0013234","GBP",83510,"Not applicable","Not applicable","Not applicable"]
[null,null,"Cemex UK Materials Ltd","The Crown Estate (TCE)","Payments to the Crown Estate M&Q","Yes","Yes","Area 460 South Hastings 0016246","GBP",165067,"Not applicable","Not applicable","Not applicable"]
[null,null,"Cemex UK Materials Ltd","The Crown Estate (TCE)","Payments to the Crown Estate M&Q","Yes","Yes","Area 513 Lowestoft 0018727","GBP",140852,"Not applicable","Not applicable","Not applicable"]
[null,null,"Cemex UK Materials Ltd","The Crown Estate (TCE)","Payments to the Crown Estate M&Q","Yes","Yes","Area 526 Culver Extension 0019145","GBP",284704,"Not applicable","Not applicable","Not applicable"]
[null,null,"Cemex UK Materials Ltd","The Crown Estate (TCE)","Payments to the Crown Estate M&Q","Yes","Yes","Area 137 Area A 0010099","GBP",512771,"Not applicable","Not applicable","Not applicable"]
[null,null,"Cemex UK Materials Ltd","The Crown Estate (TCE)","Payments to the Crown Estate M&Q","Yes","Yes","Area 514/1-4 Humber 0016242","GBP",152772,"Not applicable","Not applicable","Not applicable"]
[null,null,"Cemex UK Materials Ltd","The Crown Estate (TCE)","Payments to the Crown Estate M&Q","Yes","Yes","Area 512 ex 251/454 0016244","GBP",66204,"Not applicable","Not applicable","Not applicable"]
[null,null,"Cemex UK Materials Ltd","The Crown Estate (TCE)","Payments to the Crown Estate M&Q","Yes","Yes","Area 511 Lowestoft 0018726","GBP",66204,"Not applicable","Not applicable","Not applicable"]
[null,null,"Cemex UK Materials Ltd","The Crown Estate (TCE)","Payments to the Crown Estate M&Q","Yes","Yes","Area 473 Greenwich Light East 0013027","GBP",118660,"Not applicable","Not applicable","Not applicable"]
[null,null,"Cemex UK Materials Ltd","The Crown Estate (TCE)","Payments to the Crown Estate M&Q","Yes","Yes","Area 458/464 West Bassurelle 0013234","GBP",72379,"Not applicable","Not applicable","Not applicable"]
[null,null,"Cemex UK Materials Ltd","The Crown Estate (TCE)","Payments to the Crown Estate M&Q","Yes","Yes","Area 460 South hastings 0016246","GBP",103008,"Not applicable","Not applicable","Not applicable"]
[null,null,"Cemex UK Materials Ltd","The Crown Estate (TCE)","Payments to the Crown Estate M&Q","Yes","Yes","Area 513 Lowestoft 0018727","GBP",66204,"Not applicable","Not applicable","Not applicable"]
[null,null,"Cemex UK Materials Ltd","The Crown Estate (TCE)","Payments to the Crown Estate M&Q","Yes","Yes","Area 430 Southwold East 0010051","GBP",26030,"Not applicable","Not applicable","Not applicable"]
[null,null,"Cemex UK Materials Ltd","The Crown Estate (TCE)","Payments to the Crown Estate M&Q","Yes","Yes","Area 526 Culver Extension 0019145","GBP",90420,"Not applicable","Not applicable","Not applicable"]
[null,null,"Cemex UK Materials Ltd","The Crown Estate (TCE)","Payments to the Crown Estate M&Q","Yes","Yes","Area 137 Area A 0010099","GBP",101844,"Not applicable","Not applicable","Not applicable"]
[null,null,"Cemex UK Materials Ltd","The Crown Estate (TCE)","Payments to the Crown Estate M&Q","Yes","Yes","Area 514/1-4 Humber 0016242","GBP",152772,"Not applicable","Not applicable","Not applicable"]
[null,null,"Cemex UK Materials Ltd","The Crown Estate (TCE)","Payments to the Crown Estate M&Q","Yes","Yes","Area 507/1- Shipwash 0016273","GBP",67320,"Not applicable","Not applicable","Not applicable"]
[null,null,"Cemex UK Materials Ltd","The Crown Estate (TCE)","Payments to the Crown Estate M&Q","Yes","Yes","Area 510/1-2 Longsand 0016276","GBP",67320,"Not applicable","Not applicable","Not applicable"]
[null,null,"Cemex UK Materials Ltd","The Crown Estate (TCE)","Payments to the Crown Estate M&Q","Yes","Yes","Area 512 ex 251/454 0016244","GBP",66204,"Not applicable","Not applicable","Not applicable"]
[null,null,"Cemex UK Materials Ltd","The Crown Estate (TCE)","Payments to the Crown Estate M&Q","Yes","Yes","Area 511 Lowestoft 0018726","GBP",66204,"Not applicable","Not applicable","Not applicable"]
[null,null,"Cemex UK Materials Ltd","The Crown Estate (TCE)","Payments to the Crown Estate M&Q","Yes","Yes","Area 473 Greenwich Light East 0013027","GBP",118660,"Not applicable","Not applicable","Not applicable"]
[null,null,"Cemex UK Materials Ltd","The Crown Estate (TCE)","Payments to the Crown Estate M&Q","Yes","Yes","Area 458/464 West Bassurelle 0013234","GBP",168580,"Not applicable","Not applicable","Not applicable"]
[null,null,"Cemex UK Materials Ltd","The Crown Estate (TCE)","Payments to the Crown Estate M&Q","Yes","Yes","Area 453 Owers Extension 0016243","GBP",27036,"Not applicable","Not applicable","Not applicable"]
[null,null,"Cemex UK Materials Ltd","The Crown Estate (TCE)","Payments to the Crown Estate M&Q","Yes","Yes","Area 407 St Catherine's 0010105","GBP",105504,"Not applicable","Not applicable","Not applicable"]
[null,null,"Cemex UK Materials Ltd","The Crown Estate (TCE)","Payments to the Crown Estate M&Q","Yes","Yes","Area 460 South Hastings 0016246","GBP",103008,"Not applicable","Not applicable","Not applicable"]
[null,null,"Cemex UK Materials Ltd","The Crown Estate (TCE)","Payments to the Crown Estate M&Q","Yes","Yes","Area 513 Lowestoft 0018727","GBP",66204,"Not applicable","Not applicable","Not applicable"]
[null,null,"Cemex UK Materials Ltd","The Crown Estate (TCE)","Payments to the Crown Estate M&Q","Yes","Yes","Area 430 Southwold East 0010051","GBP",26030,"Not applicable","Not applicable","Not applicable"]
[null,null,"Cemex UK Materials Ltd","The Crown Estate (TCE)","Payments to the Crown Estate M&Q","Yes","Yes","Area 340 Nab 0010093","GBP",50928,"Not applicable","Not applicable","Not applicable"]
[null,null,"Cemex UK Materials Ltd","The Crown Estate (TCE)","Payments to the Crown Estate M&Q","Yes","Yes","Area 526 Culver Extension 0019145","GBP",90420,"Not applicable","Not applicable","Not applicable"]
[null,null,"Cemex UK Materials Ltd","The Crown Estate (TCE)","Payments to the Crown Estate M&Q","Yes","Yes","Area 522 West Wight 0019141","GBP",29856,"Not applicable","Not applicable","Not applicable"]
[null,null,"Cemex UK Materials Ltd","The Crown Estate (TCE)","Payments to the Crown Estate M&Q","Yes","Yes","Area 137 Area A 0010099","GBP",101844,"Not applicable","Not applicable","Not applicable"]
[null,null,"Cemex UK Materials Ltd","The Crown Estate (TCE)","Payments to the Crown Estate M&Q","Yes","Yes","Pant y Pwll Dwr Quarry","GBP",419983,"Not applicable","Not applicable","Not applicable"]
[null,null,"Cemex UK Materials Ltd","The Crown Estate (TCE)","Payments to the Crown Estate M&Q","Yes","Yes","Pant y Pwll Dwr Quarry","GBP",23500,"Not applicable","Not applicable","Not applicable"]
[null,null,"Cemex UK Materials Ltd","The Crown Estate (TCE)","Payments to the Crown Estate M&Q","Yes","Yes","Pant y Pwll Dwr Quarry","GBP",23500,"Not applicable","Not applicable","Not applicable"]
[null,null,"Cemex UK Materials Ltd","The Crown Estate (TCE)","Payments to the Crown Estate M&Q","Yes","Yes","Pant y Pwll Dwr Quarry","GBP",2292,"Not applicable","Not applicable","Not applicable"]
[null,null,"Cleveland Potash Ltd","The Crown Estate (TCE)","Payments to the Crown Estate M&Q","Yes","Yes","Boulby Mine","GBP",2031596,"Not applicable","Not applicable","Not applicable"]
[null,null,"Cleveland Potash Ltd","The Crown Estate (TCE)","Payments to the Crown Estate M&Q","Yes","Yes","Boulby Mine","GBP",151173,"Not applicable","Not applicable","Not applicable"]
[null,null,"DEME Building Materials Ltd","The Crown Estate (TCE)","Payments to the Crown Estate M&Q","Yes","Yes","Area 524, 550,000 tpa, PA","GBP",46680,"Not applicable","Not applicable","Not applicable"]
[null,null,"DEME Building Materials Ltd","The Crown Estate (TCE)","Payments to the Crown Estate M&Q","Yes","Yes","Area 483, 600,000 tpa","GBP",77770,"Not applicable","Not applicable","Not applicable"]
[null,null,"DEME Building Materials Ltd","The Crown Estate (TCE)","Payments to the Crown Estate M&Q","Yes","Yes","Area 484, 600,000 tpa","GBP",77770,"Not applicable","Not applicable","Not applicable"]
[null,null,"DEME Building Materials Ltd","The Crown Estate (TCE)","Payments to the Crown Estate M&Q","Yes","Yes","Area 506, 800,000 tpa","GBP",95700,"Not applicable","Not applicable","Not applicable"]
[null,null,"DEME Building Materials Ltd","The Crown Estate (TCE)","Payments to the Crown Estate M&Q","Yes","Yes","Area 478, 1,000,000 tpa","GBP",445730,"Not applicable","Not applicable","Not applicable"]
[null,null,"DEME Building Materials Ltd","The Crown Estate (TCE)","Payments to the Crown Estate M&Q","Yes","Yes","Area 484, 600,000 tpa","GBP",14062,"Not applicable","Not applicable","Not applicable"]
[null,null,"DEME Building Materials Ltd","The Crown Estate (TCE)","Payments to the Crown Estate M&Q","Yes","Yes","Area 478, 1,000,000 tpa","GBP",37339,"Not applicable","Not applicable","Not applicable"]
[null,null,"DEME Building Materials Ltd","The Crown Estate (TCE)","Payments to the Crown Estate M&Q","Yes","Yes","Area 483, 600,000 tpa","GBP",238911,"Not applicable","Not applicable","Not applicable"]
[null,null,"DEME Building Materials Ltd","The Crown Estate (TCE)","Payments to the Crown Estate M&Q","Yes","Yes","Area 483, 600,000 tpa","GBP",94010,"Not applicable","Not applicable","Not applicable"]
[null,null,"DEME Building Materials Ltd","The Crown Estate (TCE)","Payments to the Crown Estate M&Q","Yes","Yes","Area 524, 550,000 tpa, PA","GBP",56890,"Not applicable","Not applicable","Not applicable"]
[null,null,"DEME Building Materials Ltd","The Crown Estate (TCE)","Payments to the Crown Estate M&Q","Yes","Yes","Area 506, 800,000 tpa","GBP",116700,"Not applicable","Not applicable","Not applicable"]
[null,null,"DEME Building Materials Ltd","The Crown Estate (TCE)","Payments to the Crown Estate M&Q","Yes","Yes","Area 478, 1,000,000 tpa","GBP",541800,"Not applicable","Not applicable","Not applicable"]
[null,null,"DEME Building Materials Ltd","The Crown Estate (TCE)","Payments to the Crown Estate M&Q","Yes","Yes","Area 484, 600,000 tpa","GBP",94010,"Not applicable","Not applicable","Not applicable"]
[null,null,"DEME Building Materials Ltd","The Crown Estate (TCE)","Payments to the Crown Estate M&Q","Yes","Yes","Area 484, 600,000 tpa","GBP",95719,"Not applicable","Not applicable","Not applicable"]
[null,null,"DEME Building Materials Ltd","The Crown Estate (TCE)","Payments to the Crown Estate M&Q","Yes","Yes","Area 483, 600,000 tpa","GBP",92803,"Not applicable","Not applicable","Not applicable"]
[null,null,"DEME Building Materials Ltd","The Crown Estate (TCE)","Payments to the Crown Estate M&Q","Yes","Yes","Area 506, 800,000 tpa","GBP",2893,"Not applicable","Not applicable","Not applicable"]
[null,null,"DEME Building Materials Ltd","The Crown Estate (TCE)","Payments to the Crown Estate M&Q","Yes","Yes","Area 478, 1,000,000 tpa","GBP",358264,"Not applicable","Not applicable","Not applicable"]
[null,null,"Hanson Ltd","The Crown Estate (TCE)","Payments to the Crown Estate M&Q","Yes","Yes",106,"GBP",548388,"Not applicable","Not applicable","Not applicable"]
[null,null,"Hanson Ltd","The Crown Estate (TCE)","Payments to the Crown Estate M&Q","Yes","Yes",106,"GBP",305544,"Not applicable","Not applicable","Not applicable"]
[null,null,"Hanson Ltd","The Crown Estate (TCE)","Payments to the Crown Estate M&Q","Yes","Yes",1601,"GBP",0,"Not applicable","Not applicable","Not applicable"]
[null,null,"Hanson Ltd","The Crown Estate (TCE)","Payments to the Crown Estate M&Q","Yes","Yes",1601,"GBP",20616,"Not applicable","Not applicable","Not applicable"]
[null,null,"Hanson Ltd","The Crown Estate (TCE)","Payments to the Crown Estate M&Q","Yes","Yes",1602,"GBP",0,"Not applicable","Not applicable","Not applicable"]
[null,null,"Hanson Ltd","The Crown Estate (TCE)","Payments to the Crown Estate M&Q","Yes","Yes",1602,"GBP",20616,"Not applicable","Not applicable","Not applicable"]
[null,null,"Hanson Ltd","The Crown Estate (TCE)","Payments to the Crown Estate M&Q","Yes","Yes",240,"GBP",134290,"Not applicable","Not applicable","Not applicable"]
[null,null,"Hanson Ltd","The Crown Estate (TCE)","Payments to the Crown Estate M&Q","Yes","Yes",240,"GBP",305544,"Not applicable","Not applicable","Not applicable"]
[null,null,"Hanson Ltd","The Crown Estate (TCE)","Payments to the Crown Estate M&Q","Yes","Yes","242-361","GBP",416066,"Not applicable","Not applicable","Not applicable"]
[null,null,"Hanson Ltd","The Crown Estate (TCE)","Payments to the Crown Estate M&Q","Yes","Yes","242-361","GBP",63660,"Not applicable","Not applicable","Not applicable"]
[null,null,"Hanson Ltd","The Crown Estate (TCE)","Payments to the Crown Estate M&Q","Yes","Yes","401-2","GBP",260808,"Not applicable","Not applicable","Not applicable"]
[null,null,"Hanson Ltd","The Crown Estate (TCE)","Payments to the Crown Estate M&Q","Yes","Yes","401-2","GBP",183312,"Not applicable","Not applicable","Not applicable"]
[null,null,"Hanson Ltd","The Crown Estate (TCE)","Payments to the Crown Estate M&Q","Yes","Yes",435,"GBP",823,"Not applicable","Not applicable","Not applicable"]
[null,null,"Hanson Ltd","The Crown Estate (TCE)","Payments to the Crown Estate M&Q","Yes","Yes",435,"GBP",60072,"Not applicable","Not applicable","Not applicable"]
[null,null,"Hanson Ltd","The Crown Estate (TCE)","Payments to the Crown Estate M&Q","Yes","Yes",460,"GBP",97280,"Not applicable","Not applicable","Not applicable"]
[null,null,"Hanson Ltd","The Crown Estate (TCE)","Payments to the Crown Estate M&Q","Yes","Yes",460,"GBP",206016,"Not applicable","Not applicable","Not applicable"]
[null,null,"Hanson Ltd","The Crown Estate (TCE)","Payments to the Crown Estate M&Q","Yes","Yes",465,"GBP",0,"Not applicable","Not applicable","Not applicable"]
[null,null,"Hanson Ltd","The Crown Estate (TCE)","Payments to the Crown Estate M&Q","Yes","Yes",465,"GBP",600,"Not applicable","Not applicable","Not applicable"]
[null,null,"Hanson Ltd","The Crown Estate (TCE)","Payments to the Crown Estate M&Q","Yes","Yes",473,"GBP",124711,"Not applicable","Not applicable","Not applicable"]
[null,null,"Hanson Ltd","The Crown Estate (TCE)","Payments to the Crown Estate M&Q","Yes","Yes",473,"GBP",158220,"Not applicable","Not applicable","Not applicable"]
[null,null,"Hanson Ltd","The Crown Estate (TCE)","Payments to the Crown Estate M&Q","Yes","Yes",526,"GBP",216221,"Not applicable","Not applicable","Not applicable"]
[null,null,"Hanson Ltd","The Crown Estate (TCE)","Payments to the Crown Estate M&Q","Yes","Yes",526,"GBP",181340,"Not applicable","Not applicable","Not applicable"]
[null,null,"Hanson Ltd","The Crown Estate (TCE)","Payments to the Crown Estate M&Q","Yes","Yes","Unallocated","GBP",120,"Not applicable","Not applicable","Not applicable"]
[null,null,"Hanson Ltd","The Crown Estate (TCE)","Payments to the Crown Estate M&Q","Yes","Yes","Newport Wharf Depot","GBP",6600,"Not applicable","Not applicable","Not applicable"]
[null,null,"Hanson Ltd","The Crown Estate (TCE)","Payments to the Crown Estate M&Q","Yes","Yes","Penmaenmawr","GBP",173087,"Not applicable","Not applicable","Not applicable"]
[null,null,"Aggregate Industries UK Ltd","The Crown Estate (TCE)","Payments to the Crown Estate M&Q","Yes","Yes","Area 395/1-2, 750,000 tpa","GBP",80808,"Not applicable","Not applicable","Not applicable"]
[null,null,"Aggregate Industries UK Ltd","The Crown Estate (TCE)","Payments to the Crown Estate M&Q","Yes","Yes","Area 395/1-2, 750,000 tpa","GBP",66172,"Not applicable","Not applicable","Not applicable"]
[null,null,"Aggregate Industries UK Ltd","The Crown Estate (TCE)","Payments to the Crown Estate M&Q","Yes","Yes","Area 395/1-2, 750,000 tpa","GBP",98400,"Not applicable","Not applicable","Not applicable"]
[null,null,"Aggregate Industries UK Ltd","The Crown Estate (TCE)","Payments to the Crown Estate M&Q","Yes","Yes","Area 395/1-2, 750,000 tpa","GBP",194439,"Not applicable","Not applicable","Not applicable"]
[null,null,"Aggregate Industries UK Ltd","The Crown Estate (TCE)","Payments to the Crown Estate M&Q","Yes","Yes","Lease ref 01032402 Cauldon Low Quarry","GBP",93579,"Not applicable","Not applicable","Not applicable"]
[null,null,"Aggregate Industries UK Ltd","The Crown Estate (TCE)","Payments to the Crown Estate M&Q","Yes","Yes","Lease ref 01032402 Cauldon Low Quarry","GBP",91984,"Not applicable","Not applicable","Not applicable"]
[null,null,"Aggregate Industries UK Ltd","The Crown Estate (TCE)","Payments to the Crown Estate M&Q","Yes","Yes","Lease ref 01032402 Cauldon Low Quarry","GBP",91508,"Not applicable","Not applicable","Not applicable"]
[null,null,"Aggregate Industries UK Ltd","The Crown Estate (TCE)","Payments to the Crown Estate M&Q","Yes","Yes","Lease ref 01032402 Cauldon Low Quarry","GBP",89623,"Not applicable","Not applicable","Not applicable"]
[null,null,"Tarmac Holdings Ltd","The Crown Estate (TCE)","Payments to the Crown Estate M&Q","Yes","Yes","TULIC-127","GBP",40728,"Not applicable","Not applicable","Not applicable"]
[null,null,"Tarmac Holdings Ltd","The Crown Estate (TCE)","Payments to the Crown Estate M&Q","Yes","Yes","TULIC-127","GBP",-12833,"Not applicable","Not applicable","Not applicable"]
[null,null,"Tarmac Holdings Ltd","The Crown Estate (TCE)","Payments to the Crown Estate M&Q","Yes","Yes","TULIC-197","GBP",61104,"Not applicable","Not applicable","Not applicable"]
[null,null,"Tarmac Holdings Ltd","The Crown Estate (TCE)","Payments to the Crown Estate M&Q","Yes","Yes","TULIC-197","GBP",75673,"Not applicable","Not applicable","Not applicable"]
[null,null,"Tarmac Holdings Ltd","The Crown Estate (TCE)","Payments to the Crown Estate M&Q","Yes","Yes","TULIC-254","GBP",104376,"Not applicable","Not applicable","Not applicable"]
[null,null,"Tarmac Holdings Ltd","The Crown Estate (TCE)","Payments to the Crown Estate M&Q","Yes","Yes","TULIC-254","GBP",34541,"Not applicable","Not applicable","Not applicable"]
[null,null,"Tarmac Holdings Ltd","The Crown Estate (TCE)","Payments to the Crown Estate M&Q","Yes","Yes","TULIC-351","GBP",101856,"Not applicable","Not applicable","Not applicable"]
[null,null,"Tarmac Holdings Ltd","The Crown Estate (TCE)","Payments to the Crown Estate M&Q","Yes","Yes","TULIC-351","GBP",524202,"Not applicable","Not applicable","Not applicable"]
[null,null,"Tarmac Holdings Ltd","The Crown Estate (TCE)","Payments to the Crown Estate M&Q","Yes","Yes","TULIC-395","GBP",998,"Not applicable","Not applicable","Not applicable"]
[null,null,"Tarmac Holdings Ltd","The Crown Estate (TCE)","Payments to the Crown Estate M&Q","Yes","Yes","TULIC-395","GBP",107736,"Not applicable","Not applicable","Not applicable"]
[null,null,"Tarmac Holdings Ltd","The Crown Estate (TCE)","Payments to the Crown Estate M&Q","Yes","Yes","TULIC-395","GBP",12964,"Not applicable","Not applicable","Not applicable"]
[null,null,"Tarmac Holdings Ltd","The Crown Estate (TCE)","Payments to the Crown Estate M&Q","Yes","Yes","TULIC-396","GBP",109224,"Not applicable","Not applicable","Not applicable"]
[null,null,"Tarmac Holdings Ltd","The Crown Estate (TCE)","Payments to the Crown Estate M&Q","Yes","Yes","TULIC-430","GBP",52060,"Not applicable","Not applicable","Not applicable"]
[null,null,"Tarmac Holdings Ltd","The Crown Estate (TCE)","Payments to the Crown Estate M&Q","Yes","Yes","TULIC-430","GBP",136844,"Not applicable","Not applicable","Not applicable"]
[null,null,"Tarmac Holdings Ltd","The Crown Estate (TCE)","Payments to the Crown Estate M&Q","Yes","Yes","TULIC-458","GBP",168580,"Not applicable","Not applicable","Not applicable"]
[null,null,"Tarmac Holdings Ltd","The Crown Estate (TCE)","Payments to the Crown Estate M&Q","Yes","Yes","TULIC-458","GBP",118893,"Not applicable","Not applicable","Not applicable"]
[null,null,"Tarmac Holdings Ltd","The Crown Estate (TCE)","Payments to the Crown Estate M&Q","Yes","Yes","TULIC-460","GBP",841,"Not applicable","Not applicable","Not applicable"]
[null,null,"Tarmac Holdings Ltd","The Crown Estate (TCE)","Payments to the Crown Estate M&Q","Yes","Yes","TULIC-460","GBP",103008,"Not applicable","Not applicable","Not applicable"]
[null,null,"Tarmac Holdings Ltd","The Crown Estate (TCE)","Payments to the Crown Estate M&Q","Yes","Yes","TULIC-460","GBP",138096,"Not applicable","Not applicable","Not applicable"]
[null,null,"Tarmac Holdings Ltd","The Crown Estate (TCE)","Payments to the Crown Estate M&Q","Yes","Yes","TULIC-481","GBP",58032,"Not applicable","Not applicable","Not applicable"]
[null,null,"Tarmac Holdings Ltd","The Crown Estate (TCE)","Payments to the Crown Estate M&Q","Yes","Yes","TULIC-481","GBP",71164,"Not applicable","Not applicable","Not applicable"]
[null,null,"Tarmac Holdings Ltd","The Crown Estate (TCE)","Payments to the Crown Estate M&Q","Yes","Yes","TULIC-493","GBP",64848,"Not applicable","Not applicable","Not applicable"]
[null,null,"Tarmac Holdings Ltd","The Crown Estate (TCE)","Payments to the Crown Estate M&Q","Yes","Yes","TULIC-493","GBP",105921,"Not applicable","Not applicable","Not applicable"]
[null,null,"Tarmac Holdings Ltd","The Crown Estate (TCE)","Payments to the Crown Estate M&Q","Yes","Yes","TULIC-494","GBP",108096,"Not applicable","Not applicable","Not applicable"]
[null,null,"Tarmac Holdings Ltd","The Crown Estate (TCE)","Payments to the Crown Estate M&Q","Yes","Yes","TULIC-494","GBP",-9747,"Not applicable","Not applicable","Not applicable"]
[null,null,"Tarmac Holdings Ltd","The Crown Estate (TCE)","Payments to the Crown Estate M&Q","Yes","Yes","TULIC-500","GBP",183936,"Not applicable","Not applicable","Not applicable"]
[null,null,"Tarmac Holdings Ltd","The Crown Estate (TCE)","Payments to the Crown Estate M&Q","Yes","Yes","TULIC-500","GBP",24753,"Not applicable","Not applicable","Not applicable"]
[null,null,"Tarmac Holdings Ltd","The Crown Estate (TCE)","Payments to the Crown Estate M&Q","Yes","Yes","TULIC-509","GBP",155359,"Not applicable","Not applicable","Not applicable"]
[null,null,"Tarmac Holdings Ltd","The Crown Estate (TCE)","Payments to the Crown Estate M&Q","Yes","Yes","TULIC-509","GBP",556724,"Not applicable","Not applicable","Not applicable"]
[null,null,"Tarmac Holdings Ltd","The Crown Estate (TCE)","Payments to the Crown Estate M&Q","Yes","Yes","TULIC-526","GBP",180840,"Not applicable","Not applicable","Not applicable"]
[null,null,"Tarmac Holdings Ltd","The Crown Estate (TCE)","Payments to the Crown Estate M&Q","Yes","Yes","TULIC-526","GBP",240502,"Not applicable","Not applicable","Not applicable"]
[null,null,"Tarmac Holdings Ltd","The Crown Estate (TCE)","Payments to the Crown Estate M&Q","Yes","Yes","TULIC-531","GBP",41232,"Not applicable","Not applicable","Not applicable"]
[null,null,"Tarmac Holdings Ltd","The Crown Estate (TCE)","Payments to the Crown Estate M&Q","Yes","Yes","TULIC-531","GBP",502,"Not applicable","Not applicable","Not applicable"]
[null,null,"Tarmac Holdings Ltd","The Crown Estate (TCE)","Payments to the Crown Estate M&Q","Yes","Yes","Crown Farm Quarry","GBP",193060,"Not applicable","Not applicable","Not applicable"]
[null,null,"Tarmac Holdings Ltd","The Crown Estate (TCE)","Payments to the Crown Estate M&Q","Yes","Yes","Stainton Quarry","GBP",14346,"Not applicable","Not applicable","Not applicable"]
[null,null,"Tarmac Holdings Ltd","The Crown Estate (TCE)","Payments to the Crown Estate M&Q","Yes","Yes","Pant (N Wales) Quarry","GBP",34280,"Not applicable","Not applicable","Not applicable"]
[null,null,"Tarmac Holdings Ltd","The Crown Estate (TCE)","Payments to the Crown Estate M&Q","Yes","Yes","South Coast","GBP",500,"Not applicable","Not applicable","Not applicable"]
[null,null,"Tarmac Holdings Ltd","The Crown Estate (TCE)","Payments to the Crown Estate M&Q","Yes","Yes","Irish Sea","GBP",500,"Not applicable","Not applicable","Not applicable"]
[null,null,"Van Oord UK Ltd","The Crown Estate (TCE)","Payments to the Crown Estate M&Q","Yes","Yes","Area481","GBP",265759,"Not applicable","Not applicable","Not applicable"]
[null,null,"Volker Dredging Ltd","The Crown Estate (TCE)","Payments to the Crown Estate M&Q","Yes","Yes",1015618,"GBP",81480,"Not applicable","Not applicable","Not applicable"]
[null,null,"Volker Dredging Ltd","The Crown Estate (TCE)","Payments to the Crown Estate M&Q","Yes","Yes",8777,"GBP",16990,"Not applicable","Not applicable","Not applicable"]
[null,null,"Volker Dredging Ltd","The Crown Estate (TCE)","Payments to the Crown Estate M&Q","Yes","Yes",1520,"GBP",125030,"Not applicable","Not applicable","Not applicable"]
[null,null,"Volker Dredging Ltd","The Crown Estate (TCE)","Payments to the Crown Estate M&Q","Yes","Yes",1015726,"GBP",50928,"Not applicable","Not applicable","Not applicable"]
[null,null,"Volker Dredging Ltd","The Crown Estate (TCE)","Payments to the Crown Estate M&Q","Yes","Yes",1015725,"GBP",50928,"Not applicable","Not applicable","Not applicable"]
[null,null,"Volker Dredging Ltd","The Crown Estate (TCE)","Payments to the Crown Estate M&Q","Yes","Yes",1015618,"GBP",68669,"Not applicable","Not applicable","Not applicable"]
[null,null,"Volker Dredging Ltd","The Crown Estate (TCE)","Payments to the Crown Estate M&Q","Yes","Yes",8777,"GBP",100720,"Not applicable","Not applicable","Not applicable"]
[null,null,"Volker Dredging Ltd","The Crown Estate (TCE)","Payments to the Crown Estate M&Q","Yes","Yes",1520,"GBP",329430,"Not applicable","Not applicable","Not applicable"]
[null,null,"Volker Dredging Ltd","The Crown Estate (TCE)","Payments to the Crown Estate M&Q","Yes","Yes",1015726,"GBP",406645,"Not applicable","Not applicable","Not applicable"]
[null,null,"Volker Dredging Ltd","The Crown Estate (TCE)","Payments to the Crown Estate M&Q","Yes","Yes",1015725,"GBP",225586,"Not applicable","Not applicable","Not applicable"]
[null,null,"Volker Dredging Ltd","The Crown Estate (TCE)","Payments to the Crown Estate M&Q","Yes","Yes",1015618,"GBP",60660,"Not applicable","Not applicable","Not applicable"]
[null,null,"Volker Dredging Ltd","The Crown Estate (TCE)","Payments to the Crown Estate M&Q","Yes","Yes",8777,"GBP",1530,"Not applicable","Not applicable","Not applicable"]
[null,null,"Volker Dredging Ltd","The Crown Estate (TCE)","Payments to the Crown Estate M&Q","Yes","Yes",1520,"GBP",183870,"Not applicable","Not applicable","Not applicable"]
[null,null,"Volker Dredging Ltd","The Crown Estate (TCE)","Payments to the Crown Estate M&Q","Yes","Yes",1015726,"GBP",319387,"Not applicable","Not applicable","Not applicable"]
[null,null,"Volker Dredging Ltd","The Crown Estate (TCE)","Payments to the Crown Estate M&Q","Yes","Yes",1015725,"GBP",196649,"Not applicable","Not applicable","Not applicable"]
[null,null,"Volker Dredging Ltd","The Crown Estate (TCE)","Payments to the Crown Estate M&Q","Yes","Yes",1015618,"GBP",81480,"Not applicable","Not applicable","Not applicable"]
[null,null,"Volker Dredging Ltd","The Crown Estate (TCE)","Payments to the Crown Estate M&Q","Yes","Yes",8777,"GBP",16990,"Not applicable","Not applicable","Not applicable"]
[null,null,"Volker Dredging Ltd","The Crown Estate (TCE)","Payments to the Crown Estate M&Q","Yes","Yes",1520,"GBP",125030,"Not applicable","Not applicable","Not applicable"]
[null,null,"Volker Dredging Ltd","The Crown Estate (TCE)","Payments to the Crown Estate M&Q","Yes","Yes",1015726,"GBP",50928,"Not applicable","Not applicable","Not applicable"]
[null,null,"Volker Dredging Ltd","The Crown Estate (TCE)","Payments to the Crown Estate M&Q","Yes","Yes",1015725,"GBP",50928,"Not applicable","Not applicable","Not applicable"]
[]
[null,null,null,null,null,null,null,"Total in USD",null,{"$f":"SUMIF(Table10[Reporting currency],\"USD\",Table10[Revenue value])+(IFERROR(SUMIF(Table10[Reporting currency],\"<>USD\",Table10[Revenue value])/'Part 1 - About'!$E$45,0))","v":8367925634.1132994}]
[]
[null,null,null,null,null,null,null,{"$f":"\"Total in \"&'Part 1 - About'!E44","v":"Total in GBP"},null,{"$f":"IF('Part 1 - About'!$E$44=\"USD\",0,SUMIF(Table10[Reporting currency],'Part 1 - About'!$E$44,Table10[Revenue value]))+(IFERROR(SUMIF(Table10[Reporting currency],\"USD\",Table10[Revenue value])*'Part 1 - About'!$E$45,0))","v":6794755614.8999996}]
[]
[null,null,"Additional information"]
[]
[]
[]
[]
[]
[]
[]
[]
[]
[]
[null,null,"For the latest version of Summary data templates, see https://eiti.org/summary-data-template"]
[null,null,"Give us your feedback or report a conflict in the data! Write to us at  data@eiti.org"]
[]
[null,null,"EITI International Secretariat"]
[null,null,"Phone: +47 222 00 800      E-mail: secretariat@eiti.org      Twitter: @EITIorg      www.eiti.org"]
[null,null,"Address: Rådhusgata 26, 0151 Oslo, Norway      P.O. Box: Postboks 340 Sentrum, 0101 Oslo, Norway"]

{"sheet":"2.1 Sources","index":6,"n_rows":15,"n_cols":4,"rows_kept":15,"cut":false,"hidden":true,"merged":[]}
["2.1 Legal framework and fiscal regime"]
["Business Income Manual (HMRC) ","https://www.gov.uk/government/collections/business-income-manual-bim",{"$f":"CONCATENATE(A2,\": \", B2,\";\")","v":"Business Income Manual (HMRC) : https://www.gov.uk/government/collections/business-income-manual-bim;"},"Business Income Manual (HMRC) : https://www.gov.uk/government/collections/business-income-manual-bim;"]
["Company Taxation Manual (HMRC) ","https://www.gov.uk/government/collections/company-taxation-manual",{"$f":"CONCATENATE(A3,\": \", B3,\";\")","v":"Company Taxation Manual (HMRC) : https://www.gov.uk/government/collections/company-taxation-manual;"},"Company Taxation Manual (HMRC) : https://www.gov.uk/government/collections/company-taxation-manual;"]
["Exploration & Production Taxation Overview (Oil & Gas Authority)","https://www.ogauthority.co.uk/exploration-production/taxation/overview","Exploration & Production Taxation Overview (Oil & Gas Authority): https://www.ogauthority.co.uk/exploration-production/taxation/overview;","Exploration & Production Taxation Overview (Oil & Gas Authority): https://www.ogauthority.co.uk/exploration-production/taxation/overview;"]
["Guidance: Minerals (MHCLG) ","https://www.gov.uk/guidance/minerals","Guidance: Minerals (MHCLG) : https://www.gov.uk/guidance/minerals;","Guidance: Minerals (MHCLG) : https://www.gov.uk/guidance/minerals;"]
["Investing on the UKCS: Fiscal (Oil & Gas Authority)","https://www.ogauthority.co.uk/about-us/investing-on-the-ukcs/fiscal","Investing on the UKCS: Fiscal (Oil & Gas Authority): https://www.ogauthority.co.uk/about-us/investing-on-the-ukcs/fiscal;","Investing on the UKCS: Fiscal (Oil & Gas Authority): https://www.ogauthority.co.uk/about-us/investing-on-the-ukcs/fiscal;"]
["Minerals Planning Policy (Welsh Government) ","https://gov.wales/topics/planning/policy/minerals/?lang=en","Minerals Planning Policy (Welsh Government) : https://gov.wales/topics/planning/policy/minerals/?lang=en;","Minerals Planning Policy (Welsh Government) : https://gov.wales/topics/planning/policy/minerals/?lang=en;"]
["Minerals UK: Planning ","http://www.bgs.ac.uk/mineralsuk/planning/home.html","Minerals UK: Planning : http://www.bgs.ac.uk/mineralsuk/planning/home.html;","Minerals UK: Planning : http://www.bgs.ac.uk/mineralsuk/planning/home.html;"]
["National Planning Framework 3 (Scottish Government) ","https://beta.gov.scot/publications/national-planning-framework-3/","National Planning Framework 3 (Scottish Government) : https://beta.gov.scot/publications/national-planning-framework-3/;","National Planning Framework 3 (Scottish Government) : https://beta.gov.scot/publications/national-planning-framework-3/;"]
["National Planning Policy Framework (MHCLG) ","https://www.gov.uk/government/uploads/system/uploads/attachment_data/file/6077/2116950.pdf","National Planning Policy Framework (MHCLG) : https://www.gov.uk/government/uploads/system/uploads/attachment_data/file/6077/2116950.pdf;","National Planning Policy Framework (MHCLG) : https://www.gov.uk/government/uploads/system/uploads/attachment_data/file/6077/2116950.pdf;"]
["Oil Taxation Manual (HMRC)","https://www.gov.uk/hmrc-internal-manuals/oil-taxation-manual","Oil Taxation Manual (HMRC): https://www.gov.uk/hmrc-internal-manuals/oil-taxation-manual;","Oil Taxation Manual (HMRC): https://www.gov.uk/hmrc-internal-manuals/oil-taxation-manual;"]
["Onshore oil and gas exploration and Northern Ireland: Regulation and Best Practice (NI Government)","https://www.economy-ni.gov.uk/publications/onshore-oil-and-gas-exploration-northern-ireland-regulation-and-best-practice","Onshore oil and gas exploration and Northern Ireland: Regulation and Best Practice (NI Government): https://www.economy-ni.gov.uk/publications/onshore-oil-and-gas-exploration-northern-ireland-regulation-and-best-practice;","Onshore oil and gas exploration and Northern Ireland: Regulation and Best Practice (NI Government): https://www.economy-ni.gov.uk/publications/onshore-oil-and-gas-exploration-northern-ireland-regulation-and-best-practice;"]
["Petroleum (Production) Act (Northern Ireland) 1964","http://www.legislation.gov.uk/apni/1964/28/contents","Petroleum (Production) Act (Northern Ireland) 1964: http://www.legislation.gov.uk/apni/1964/28/contents;","Petroleum (Production) Act (Northern Ireland) 1964: http://www.legislation.gov.uk/apni/1964/28/contents;"]
["Petroleum Act 1998","https://beisgov.sharepoint.com/sites/beis/335/Analysis/Work%20Streams/EITI%20Mainstreaming%20Feasibility%20Study/Drafting/www.legislation.gov.uk/ukpga/1998/17/contents","Petroleum Act 1998: https://beisgov.sharepoint.com/sites/beis/335/Analysis/Work%20Streams/EITI%20Mainstreaming%20Feasibility%20Study/Drafting/www.legislation.gov.uk/ukpga/1998/17/contents;","Petroleum Act 1998: https://beisgov.sharepoint.com/sites/beis/335/Analysis/Work%20Streams/EITI%20Mainstreaming%20Feasibility%20Study/Drafting/www.legislation.gov.uk/ukpga/1998/17/contents;"]
["Strategic Planning Policy Statement (NI Government) ","https://www.planningni.gov.uk/index/policy/spps.htm","Strategic Planning Policy Statement (NI Government) : https://www.planningni.gov.uk/index/policy/spps.htm;","Strategic Planning Policy Statement (NI Government) : https://www.planningni.gov.uk/index/policy/spps.htm;"]

{"sheet":"2.2 Sources","index":7,"n_rows":8,"n_cols":4,"rows_kept":8,"cut":false,"hidden":true,"merged":[]}
["2.2 License allocations"]
["Coal mining licence applications (Coal Authority)","https://www.gov.uk/government/collections/coal-mining-licence-applications",{"$f":"CONCATENATE(A2,\": \", B2,\";\")","v":"Coal mining licence applications (Coal Authority): https://www.gov.uk/government/collections/coal-mining-licence-applications;"},"Coal mining licence applications (Coal Authority): https://www.gov.uk/government/collections/coal-mining-licence-applications;"]
["Crown Estate, The","http://www.thecrownestate.co.uk/",{"$f":"CONCATENATE(A3,\": \", B3,\";\")","v":"Crown Estate, The: http://www.thecrownestate.co.uk/;"},"Crown Estate, The: http://www.thecrownestate.co.uk/;"]
["Get a permit to deal with coal or coal mines (Coal Authority)","https://www.gov.uk/get-a-permit-to-deal-with-a-coal-mine-on-your-property","Get a permit to deal with coal or coal mines (Coal Authority): https://www.gov.uk/get-a-permit-to-deal-with-a-coal-mine-on-your-property;","Get a permit to deal with coal or coal mines (Coal Authority): https://www.gov.uk/get-a-permit-to-deal-with-a-coal-mine-on-your-property;"]
["Licensing & Consents (Oil & Gas Authority)   ","http://www.ogauthority.co.uk/licensing-consents/","Licensing & Consents (Oil & Gas Authority)   : http://www.ogauthority.co.uk/licensing-consents/;","Licensing & Consents (Oil & Gas Authority)   : http://www.ogauthority.co.uk/licensing-consents/;"]
["Licensing and regulation (British Marine Aggregate Producers Association)","http://www.bmapa.org/regulation_and_management/licensing_and_regulation.php","Licensing and regulation (British Marine Aggregate Producers Association): http://www.bmapa.org/regulation_and_management/licensing_and_regulation.php;","Licensing and regulation (British Marine Aggregate Producers Association): http://www.bmapa.org/regulation_and_management/licensing_and_regulation.php;"]
["Minerals Licensing (NI government)","http://www.economy-ni.gov.uk/articles/minerals-licensing","Minerals Licensing (NI government): http://www.economy-ni.gov.uk/articles/minerals-licensing;","Minerals Licensing (NI government): http://www.economy-ni.gov.uk/articles/minerals-licensing;"]
["Petroleum Licensing (NI government)","http://www.economy-ni.gov.uk/articles/petroleum-licensing","Petroleum Licensing (NI government): http://www.economy-ni.gov.uk/articles/petroleum-licensing;","Petroleum Licensing (NI government): http://www.economy-ni.gov.uk/articles/petroleum-licensing;"]

{"sheet":"2.3 Sources","index":8,"n_rows":12,"n_cols":4,"rows_kept":12,"cut":false,"hidden":true,"merged":[]}
["2.3 Register of licenses"]
["Coal Authority","https://www.gov.uk/government/organisations/the-coal-authority",{"$f":"CONCATENATE(A2,\": \", B2,\";\")","v":"Coal Authority: https://www.gov.uk/government/organisations/the-coal-authority;"},"Coal Authority: https://www.gov.uk/government/organisations/the-coal-authority;"]
["Coal Authority metadata","https://www.gov.uk/government/collections/coal-mining-data",{"$f":"CONCATENATE(A3,\": \", B3,\";\")","v":"Coal Authority metadata: https://www.gov.uk/government/collections/coal-mining-data;"},"Coal Authority metadata: https://www.gov.uk/government/collections/coal-mining-data;"]
["Interactive maps and tools (Oil & Gas Authority)","https://www.ogauthority.co.uk/data-centre/interactive-maps-and-tools/","Interactive maps and tools (Oil & Gas Authority): https://www.ogauthority.co.uk/data-centre/interactive-maps-and-tools/;","Interactive maps and tools (Oil & Gas Authority): https://www.ogauthority.co.uk/data-centre/interactive-maps-and-tools/;"]
["Licence Data (Oil & Gas Authority)","http://www.ogauthority.co.uk/data-centre/data-downloads-and-publications/licence-data","Licence Data (Oil & Gas Authority): http://www.ogauthority.co.uk/data-centre/data-downloads-and-publications/licence-data;","Licence Data (Oil & Gas Authority): http://www.ogauthority.co.uk/data-centre/data-downloads-and-publications/licence-data;"]
["Marine Licensing Applications received and determined (Welsh Government)","https://naturalresources.wales/permits-and-permissions/marine-licensing/applications-received-and-determined/?lang=en","Marine Licensing Applications received and determined (Welsh Government): https://naturalresources.wales/permits-and-permissions/marine-licensing/applications-received-and-determined/?lang=en;","Marine Licensing Applications received and determined (Welsh Government): https://naturalresources.wales/permits-and-permissions/marine-licensing/applications-received-and-determined/?lang=en;"]
["Marine Licensing Information (Scottish Government)","http://www.gov.scot/Topics/marine/Licensing/marine/register","Marine Licensing Information (Scottish Government): http://www.gov.scot/Topics/marine/Licensing/marine/register;","Marine Licensing Information (Scottish Government): http://www.gov.scot/Topics/marine/Licensing/marine/register;"]
["Northern Ireland Environment Agency","https://www.daera-ni.gov.uk/northern-ireland-environment-agency","Northern Ireland Environment Agency: https://www.daera-ni.gov.uk/northern-ireland-environment-agency;","Northern Ireland Environment Agency: https://www.daera-ni.gov.uk/northern-ireland-environment-agency;"]
["Petroleum licence map (NI Government)","https://www.daera-ni.gov.uk/northern-ireland-environment-agency","Petroleum licence map (NI Government): https://www.daera-ni.gov.uk/northern-ireland-environment-agency;","Petroleum licence map (NI Government): https://www.daera-ni.gov.uk/northern-ireland-environment-agency;"]
["Petroleum licensing (NI Government)","http://www.economy-ni.gov.uk/articles/petroleum-licensing","Petroleum licensing (NI Government): http://www.economy-ni.gov.uk/articles/petroleum-licensing;","Petroleum licensing (NI Government): http://www.economy-ni.gov.uk/articles/petroleum-licensing;"]
["Production Licences (British Marine Aggregate Producers Association)","https://www.bmapa.org/resources_and_operations/production_licences.php","Production Licences (British Marine Aggregate Producers Association): https://www.bmapa.org/resources_and_operations/production_licences.php;","Production Licences (British Marine Aggregate Producers Association): https://www.bmapa.org/resources_and_operations/production_licences.php;"]
["Public register (Marine Management Organisation)","https://marinelicensing.marinemanagement.org.uk/mmo/fox/live/MMO_PUBLIC_REGISTER","Public register (Marine Management Organisation): https://marinelicensing.marinemanagement.org.uk/mmo/fox/live/MMO_PUBLIC_REGISTER;","Public register (Marine Management Organisation): https://marinelicensing.marinemanagement.org.uk/mmo/fox/live/MMO_PUBLIC_REGISTER;"]

{"sheet":"3.1 Sources","index":9,"n_rows":11,"n_cols":4,"rows_kept":11,"cut":false,"hidden":true,"merged":[]}
["3.1 Exploration"]
["Business Outlook 2018 (Oil & Gas UK)",{"$f":"GetURL(A2)","v":"http://oilandgasuk.co.uk/businessoutlook"},{"$f":"CONCATENATE(A2,\": \", B2,\";\")","v":"Business Outlook 2018 (Oil & Gas UK): http://oilandgasuk.co.uk/businessoutlook;"},"Business Outlook 2018 (Oil & Gas UK): http://oilandgasuk.co.uk/businessoutlook;"]
["Economic Report 2017 (Oil & Gas UK)",{"$f":"GetURL(A3)","v":"http://oilandgasuk.co.uk/wp-content/uploads/2017/09/Economic-Report-2017-Oil-Gas-UK.pdf"},{"$f":"CONCATENATE(A3,\": \", B3,\";\")","v":"Economic Report 2017 (Oil & Gas UK): http://oilandgasuk.co.uk/wp-content/uploads/2017/09/Economic-Report-2017-Oil-Gas-UK.pdf;"},"Economic Report 2017 (Oil & Gas UK): http://oilandgasuk.co.uk/wp-content/uploads/2017/09/Economic-Report-2017-Oil-Gas-UK.pdf;"]
["Economic Report 2018 (Oil & Gas UK)","https://oilandgasuk.co.uk/economicreport/","Economic Report 2018 (Oil & Gas UK): https://oilandgasuk.co.uk/economicreport/;","Economic Report 2018 (Oil & Gas UK): https://oilandgasuk.co.uk/economicreport/;"]
["Exploration (Oil & Gas Authority)","https://www.ogauthority.co.uk/exploration-production/exploration/","Exploration (Oil & Gas Authority): https://www.ogauthority.co.uk/exploration-production/exploration/;","Exploration (Oil & Gas Authority): https://www.ogauthority.co.uk/exploration-production/exploration/;"]
["Exploration: Current Activities (Minerals UK)","http://www.bgs.ac.uk/mineralsuk/exploration/current.html","Exploration: Current Activities (Minerals UK): http://www.bgs.ac.uk/mineralsuk/exploration/current.html;","Exploration: Current Activities (Minerals UK): http://www.bgs.ac.uk/mineralsuk/exploration/current.html;"]
["Landward Exploration Licences (Oil & Gas Authority)","https://www.ogauthority.co.uk/media/4614/copy-of-expl-licences-land.xls","Landward Exploration Licences (Oil & Gas Authority): https://www.ogauthority.co.uk/media/4614/copy-of-expl-licences-land.xls;","Landward Exploration Licences (Oil & Gas Authority): https://www.ogauthority.co.uk/media/4614/copy-of-expl-licences-land.xls;"]
["Mineral Products Association","https://mineralproducts.org/","Mineral Products Association: https://mineralproducts.org/;","Mineral Products Association: https://mineralproducts.org/;"]
["Oil & Gas Authority Annual Report and Accounts 2016-17","https://www.ogauthority.co.uk/news-publications/publications/2017/oga-annual-report-and-accounts-2016-17/","Oil & Gas Authority Annual Report and Accounts 2016-17: https://www.ogauthority.co.uk/news-publications/publications/2017/oga-annual-report-and-accounts-2016-17/;","Oil & Gas Authority Annual Report and Accounts 2016-17: https://www.ogauthority.co.uk/news-publications/publications/2017/oga-annual-report-and-accounts-2016-17/;"]
["Seaward Exploration Licences (Oil& Gas Authority)","https://www.ogauthority.co.uk/media/5021/copy-of-expl-licences-sea.xls","Seaward Exploration Licences (Oil& Gas Authority): https://www.ogauthority.co.uk/media/5021/copy-of-expl-licences-sea.xls;","Seaward Exploration Licences (Oil& Gas Authority): https://www.ogauthority.co.uk/media/5021/copy-of-expl-licences-sea.xls;"]
["United Kingdom Minerals Yearbook 2015 (British Geological Survey)","http://www.bgs.ac.uk/downloads/start.cfm?id=3094","United Kingdom Minerals Yearbook 2015 (British Geological Survey): http://www.bgs.ac.uk/downloads/start.cfm?id=3094;","United Kingdom Minerals Yearbook 2015 (British Geological Survey): http://www.bgs.ac.uk/downloads/start.cfm?id=3094;"]

{"sheet":"3.2 Sources","index":10,"n_rows":14,"n_cols":4,"rows_kept":14,"cut":false,"hidden":true,"merged":[]}
["3.2 Production"]
["Business Outlook 2018 (Oil & Gas UK)",{"$f":"GetURL(A2)","v":"https://oilandgasuk.co.uk/businessoutlook"},{"$f":"CONCATENATE(A2,\": \", B2,\";\")","v":"Business Outlook 2018 (Oil & Gas UK): https://oilandgasuk.co.uk/businessoutlook;"},"Business Outlook 2018 (Oil & Gas UK): https://oilandgasuk.co.uk/businessoutlook;"]
["Digest of UK Energy Statistics (BEIS)",{"$f":"GetURL(A3)","v":"https://www.gov.uk/government/collections/digest-of-uk-energy-statistics-dukes"},{"$f":"CONCATENATE(A3,\": \", B3,\";\")","v":"Digest of UK Energy Statistics (BEIS): https://www.gov.uk/government/collections/digest-of-uk-energy-statistics-dukes;"},"Digest of UK Energy Statistics (BEIS): https://www.gov.uk/government/collections/digest-of-uk-energy-statistics-dukes;"]
["Economic Report 2018 (Oil & Gas UK)","https://oilandgasuk.co.uk/economicreport/","Economic Report 2018 (Oil & Gas UK): https://oilandgasuk.co.uk/economicreport/;","Economic Report 2018 (Oil & Gas UK): https://oilandgasuk.co.uk/economicreport/;"]
["Energy Trends: gas","https://www.gov.uk/government/statistics/gas-section-4-energy-trends","Energy Trends: gas: https://www.gov.uk/government/statistics/gas-section-4-energy-trends;","Energy Trends: gas: https://www.gov.uk/government/statistics/gas-section-4-energy-trends;"]
["Energy Trends: oil and oil products","https://www.gov.uk/government/statistics/oil-and-oil-products-section-3-energy-trends","Energy Trends: oil and oil products: https://www.gov.uk/government/statistics/oil-and-oil-products-section-3-energy-trends;","Energy Trends: oil and oil products: https://www.gov.uk/government/statistics/oil-and-oil-products-section-3-energy-trends;"]
["Energy Trends: solid fuels and derived gases (BEIS)","https://www.gov.uk/government/statistics/solid-fuels-and-derived-gases-section-2-energy-trends","Energy Trends: solid fuels and derived gases (BEIS): https://www.gov.uk/government/statistics/solid-fuels-and-derived-gases-section-2-energy-trends;","Energy Trends: solid fuels and derived gases (BEIS): https://www.gov.uk/government/statistics/solid-fuels-and-derived-gases-section-2-energy-trends;"]
["Minerals Statements (NI Government)","https://www.economy-ni.gov.uk/articles/minerals-statements","Minerals Statements (NI Government): https://www.economy-ni.gov.uk/articles/minerals-statements;","Minerals Statements (NI Government): https://www.economy-ni.gov.uk/articles/minerals-statements;"]
["Oil and Gas Production Statistics 2017-18 (Scottish Government)","https://www.gov.scot/Topics/Statistics/Browse/Economy/oilgas1718","Oil and Gas Production Statistics 2017-18 (Scottish Government): https://www.gov.scot/Topics/Statistics/Browse/Economy/oilgas1718;","Oil and Gas Production Statistics 2017-18 (Scottish Government): https://www.gov.scot/Topics/Statistics/Browse/Economy/oilgas1718;"]
["Production and expenditure projections (Oil & Gas Authority)","https://www.ogauthority.co.uk/data-centre/data-downloads-and-publications/production-projections/","Production and expenditure projections (Oil & Gas Authority): https://www.ogauthority.co.uk/data-centre/data-downloads-and-publications/production-projections/;","Production and expenditure projections (Oil & Gas Authority): https://www.ogauthority.co.uk/data-centre/data-downloads-and-publications/production-projections/;"]
["Seismic data","https://www.ogauthority.co.uk/data-centre/data-downloads-and-publications/","Seismic data: https://www.ogauthority.co.uk/data-centre/data-downloads-and-publications/;","Seismic data: https://www.ogauthority.co.uk/data-centre/data-downloads-and-publications/;"]
["The Mineral Products Industry Facts at a Glance (Mineral Products Association)","https://mineralproducts.org/documents/Facts-at-a-Glance-2018.pdf","The Mineral Products Industry Facts at a Glance (Mineral Products Association): https://mineralproducts.org/documents/Facts-at-a-Glance-2018.pdf;","The Mineral Products Industry Facts at a Glance (Mineral Products Association): https://mineralproducts.org/documents/Facts-at-a-Glance-2018.pdf;"]
["The Mineral Products Profile of the Industry","https://mineralproducts.org/documents/Profile-of-the-UK-Mineral-Products-Industry-2018-Statistical-Background.xlsx","The Mineral Products Profile of the Industry: https://mineralproducts.org/documents/Profile-of-the-UK-Mineral-Products-Industry-2018-Statistical-Background.xlsx;","The Mineral Products Profile of the Industry: https://mineralproducts.org/documents/Profile-of-the-UK-Mineral-Products-Industry-2018-Statistical-Background.xlsx;"]
["UKCS Production (Oil & Gas Authority)","https://data-ogauthority.opendata.arcgis.com/pages/production","UKCS Production (Oil & Gas Authority): https://data-ogauthority.opendata.arcgis.com/pages/production;","UKCS Production (Oil & Gas Authority): https://data-ogauthority.opendata.arcgis.com/pages/production;"]

{"sheet":"5.1 Sources","index":11,"n_rows":3,"n_cols":4,"rows_kept":3,"cut":false,"hidden":true,"merged":[]}
["5.1 Distribution of extractive industry revenues"]
["Budget (HM Treasury)",{"$f":"GetURL(A2)","v":"https://www.gov.uk/search?q=Budget+&show_organisations_filter=true"},{"$f":"CONCATENATE(A2,\": \", B2,\";\")","v":"Budget (HM Treasury): https://www.gov.uk/search?q=Budget+&show_organisations_filter=true;"},"Budget (HM Treasury): https://www.gov.uk/search?q=Budget+&show_organisations_filter=true;"]
["Economic and Fiscal Outlook October 2018 (OBR)",{"$f":"GetURL(A3)","v":"https://obr.uk/efo/"},{"$f":"CONCATENATE(A3,\": \", B3,\";\")","v":"Economic and Fiscal Outlook October 2018 (OBR): https://obr.uk/efo/;"},"Economic and Fiscal Outlook October 2018 (OBR): https://obr.uk/efo/;"]

{"sheet":"5.2 Sources","index":12,"n_rows":3,"n_cols":4,"rows_kept":3,"cut":false,"hidden":true,"merged":[]}
["5.2 Subnational transfers"]
["Oil & Gas Authority Annual Report and Accounts",{"$f":"GetURL(A2)","v":"https://www.ogauthority.co.uk/about-us/leadership-governance/annual-report-and-accounts/"},{"$f":"CONCATENATE(A2,\": \", B2,\";\")","v":"Oil & Gas Authority Annual Report and Accounts: https://www.ogauthority.co.uk/about-us/leadership-governance/annual-report-and-accounts/;"},"Oil & Gas Authority Annual Report and Accounts: https://www.ogauthority.co.uk/about-us/leadership-governance/annual-report-and-accounts/;"]
["Public Income and Expenditure Accounts (NI Government)",{"$f":"GetURL(A3)","v":"https://www.finance-ni.gov.uk/publications/public-income-and-expenditure-accounts"},{"$f":"CONCATENATE(A3,\": \", B3,\";\")","v":"Public Income and Expenditure Accounts (NI Government): https://www.finance-ni.gov.uk/publications/public-income-and-expenditure-accounts;"},"Public Income and Expenditure Accounts (NI Government): https://www.finance-ni.gov.uk/publications/public-income-and-expenditure-accounts;"]

{"sheet":"5.3 Sources","index":13,"n_rows":4,"n_cols":4,"rows_kept":4,"cut":false,"hidden":true,"merged":[]}
["5.3 Revenue management and expenditures"]
["Data on payments of the Oil and Gas Authority (OGA) levy in 2016 (BEIS)",{"$f":"GetURL(A2)","v":"https://www.gov.uk/government/uploads/system/uploads/attachment_data/file/703218/eiti-2016-oga-levy.csv/preview"},{"$f":"CONCATENATE(A2,\": \", B2,\";\")","v":"Data on payments of the Oil and Gas Authority (OGA) levy in 2016 (BEIS): https://www.gov.uk/government/uploads/system/uploads/attachment_data/file/703218/eiti-2016-oga-levy.csv/preview;"},"Data on payments of the Oil and Gas Authority (OGA) levy in 2016 (BEIS): https://www.gov.uk/government/uploads/system/uploads/attachment_data/file/703218/eiti-2016-oga-levy.csv/preview;"]
["Oil & Gas Authority Annual Report and Accounts",{"$f":"GetURL(A3)","v":"https://www.ogauthority.co.uk/about-us/leadership-governance/annual-report-and-accounts/"},{"$f":"CONCATENATE(A3,\": \", B3,\";\")","v":"Oil & Gas Authority Annual Report and Accounts: https://www.ogauthority.co.uk/about-us/leadership-governance/annual-report-and-accounts/;"},"Oil & Gas Authority Annual Report and Accounts: https://www.ogauthority.co.uk/about-us/leadership-governance/annual-report-and-accounts/;"]
["Public Income and Expenditure Accounts (NI Government)",{"$f":"GetURL(A4)","v":"https://www.finance-ni.gov.uk/publications/public-income-and-expenditure-accounts"},{"$f":"CONCATENATE(A4,\": \", B4,\";\")","v":"Public Income and Expenditure Accounts (NI Government): https://www.finance-ni.gov.uk/publications/public-income-and-expenditure-accounts;"},"Public Income and Expenditure Accounts (NI Government): https://www.finance-ni.gov.uk/publications/public-income-and-expenditure-accounts;"]

{"sheet":"6.3 Sources","index":14,"n_rows":11,"n_cols":4,"rows_kept":11,"cut":false,"hidden":true,"merged":[]}
["6.3 The contribution of the extractive sector to the economy"]
["About the Industry (Oil & Gas UK)",{"$f":"GetURL(A2)","v":"https://oilandgasuk.co.uk/knowledge_centre/"},{"$f":"CONCATENATE(A2,\": \", B2,\";\")","v":"About the Industry (Oil & Gas UK): https://oilandgasuk.co.uk/knowledge_centre/;"},"About the Industry (Oil & Gas UK): https://oilandgasuk.co.uk/knowledge_centre/;"]
["Business services (ONS)",{"$f":"GetURL(A3)","v":"https://www.ons.gov.uk/businessindustryandtrade/business/businessservices"},{"$f":"CONCATENATE(A3,\": \", B3,\";\")","v":"Business services (ONS): https://www.ons.gov.uk/businessindustryandtrade/business/businessservices;"},"Business services (ONS): https://www.ons.gov.uk/businessindustryandtrade/business/businessservices;"]
["Digest of UK Energy Statistics (BEIS)","https://www.gov.uk/government/collections/digest-of-uk-energy-statistics-dukes","Digest of UK Energy Statistics (BEIS): https://www.gov.uk/government/collections/digest-of-uk-energy-statistics-dukes;","Digest of UK Energy Statistics (BEIS): https://www.gov.uk/government/collections/digest-of-uk-energy-statistics-dukes;"]
["Economic and fiscal outlook – October 2018 (OBR)","http://www.obr.uk/efo/","Economic and fiscal outlook – October 2018 (OBR): http://www.obr.uk/efo/;","Economic and fiscal outlook – October 2018 (OBR): http://www.obr.uk/efo/;"]
["GDP output approach – low-level aggregates (ONS)","https://www.ons.gov.uk/economy/grossdomesticproductgdp/datasets/ukgdpolowlevelaggregates","GDP output approach – low-level aggregates (ONS): https://www.ons.gov.uk/economy/grossdomesticproductgdp/datasets/ukgdpolowlevelaggregates;","GDP output approach – low-level aggregates (ONS): https://www.ons.gov.uk/economy/grossdomesticproductgdp/datasets/ukgdpolowlevelaggregates;"]
["Regional gross value added (income approach) (ONS)","https://www.ons.gov.uk/economy/grossvalueaddedgva/datasets/regionalgrossvalueaddedincomeapproach","Regional gross value added (income approach) (ONS): https://www.ons.gov.uk/economy/grossvalueaddedgva/datasets/regionalgrossvalueaddedincomeapproach;","Regional gross value added (income approach) (ONS): https://www.ons.gov.uk/economy/grossvalueaddedgva/datasets/regionalgrossvalueaddedincomeapproach;"]
["UK labour market statistics: March 2018 (ONS)","https://www.ons.gov.uk/releases/uklabourmarketstatisticsmar2018","UK labour market statistics: March 2018 (ONS): https://www.ons.gov.uk/releases/uklabourmarketstatisticsmar2018;","UK labour market statistics: March 2018 (ONS): https://www.ons.gov.uk/releases/uklabourmarketstatisticsmar2018;"]
["UKCS companies gross operating surplus (ONS)","https://www.ons.gov.uk/economy/nationalaccounts/uksectoraccounts/timeseries/lrwx/prof","UKCS companies gross operating surplus (ONS): https://www.ons.gov.uk/economy/nationalaccounts/uksectoraccounts/timeseries/lrwx/prof;","UKCS companies gross operating surplus (ONS): https://www.ons.gov.uk/economy/nationalaccounts/uksectoraccounts/timeseries/lrwx/prof;"]
["United Kingdom mineral statistics (Minerals UK)","http://www.bgs.ac.uk/mineralsUK/statistics/ukStatistics.html","United Kingdom mineral statistics (Minerals UK): http://www.bgs.ac.uk/mineralsUK/statistics/ukStatistics.html;","United Kingdom mineral statistics (Minerals UK): http://www.bgs.ac.uk/mineralsUK/statistics/ukStatistics.html;"]
[" "]

{"sheet":"Lists","index":15,"n_rows":246,"n_cols":31,"rows_kept":246,"cut":false,"hidden":true,"merged":[]}
["Table 1 - Country codes",null,null,null,null,null,null,null,"Table 2 - Simple options",null,"Table 3 - Reporting options",null,null,"Table 5 - Commodities list",null,null,null,null,"Table 6 - GFS Codes / Classification",null,null,null,null,null,null,null,"Table 7 - Sectors",null,"Table 8 - Project phases",null,"Table 9 - Government entity types"]
["Country or Area name","ISO Alpha-2 Code","ISO Alpha-3 Code","ISO Numeric Code (UN M49)","Currency code (ISO-4217)","Currency code num (ISO-4217)","Currency",null,"List",null,"List",null,null,"HS ProductCode","HS Product Description","HS Product Description w volume",null,null,"Combined","GFS description","GFS Code","GFS Level 1","GFS Level 2","GFS Level 3","GFS Level 4",null,"Sector(s)",null,"Project phases",null,"< Agency type >"]
["United States of America","US","USA","840","USD",840,"United States dollar",null,"< Choose option >",null,"< EITI Reporting or systematically disclosed? >",null,null,"2606","Aluminium (2606)","Aluminium (2606), volume",null,null,"Ordinary taxes on income, profits and capital gains (1112E1)","Ordinary taxes on income, profits and capital gains","1112E1","Taxes (11E)","Taxes on income, profits and capital gains (111E)","Ordinary taxes on income, profits and capital gains (1112E1)","Ordinary taxes on income, profits and capital gains (1112E1)",null,"<Choose sector>",null,"< Choose phase >",null,"Central goverment"]
["Afghanistan","AF","AFG","4","AFN",971,"Afghan afghani",null,"Yes",null,"Yes, systematically disclosed",null,null,"2524","Asbestos (2524)","Asbestos (2524), volume",null,null,"Extraordinary taxes on income, profits and capital gains (1112E2)","Extraordinary taxes on income, profits and capital gains","1112E2","Taxes (11E)","Taxes on income, profits and capital gains (111E)","Extraordinary taxes on income, profits and capital gains (1112E2)","Extraordinary taxes on income, profits and capital gains (1112E2)",null,"Oil",null,"Exploration",null,"State government"]
["Aland Islands","AX","ALA","248","EUR",978,"Euro",null,"Partially",null,"Yes, through EITI reporting",null,null,"2620","Ash and residues (2620)","Ash and residues (2620), volume",null,null,"Taxes on payroll and workforce (112E)","Taxes on payroll and workforce","112E","Taxes (11E)","Taxes on payroll and workforce (112E)","Taxes on payroll and workforce (112E)","Taxes on payroll and workforce (112E)",null,"Gas",null,"Production",null,"Local government"]
["Albania","AL","ALB","8","ALL",8,"Albanian lek",null,"No",null,"Not applicable",null,null,"2714","Bitumen and asphalt (2714)","Bitumen and asphalt (2714), volume",null,null,"Taxes on property (113E)","Taxes on property","113E","Taxes (11E)","Taxes on property (113E)","Taxes on property (113E)","Taxes on property (113E)",null,"Mining",null,"Development",null,"State-owned enterprises & public corporations "]
["Algeria","DZ","DZA","12","DZD",12,"Algerian dinar",null,"Not applicable",null,"Not available",null,null,"2715","Bituminous mixtures (2715)","Bituminous mixtures (2715), volume",null,null,"General taxes on goods and services (VAT, sales tax, turnover tax) (1141E)","General taxes on goods and services (VAT, sales tax, turnover tax)","1141E","Taxes (11E)","Taxes on goods and services (114E)","General taxes on goods and services (VAT, sales tax, turnover tax) (1141E)","General taxes on goods and services (VAT, sales tax, turnover tax) (1141E)",null,"Not applicable",null,"Other",null,"Other"]
["American Samoa","AS","ASM","16","USD",840,"United States dollar",null,null,null,null,null,null,"2509","Chalk (2509)","Chalk (2509), volume",null,null,"Excise taxes (1142E)","Excise taxes","1142E","Taxes (11E)","Taxes on goods and services (114E)","Excise taxes (1142E)","Excise taxes (1142E)",null,"Oil & Gas",null,"Not applicable"]
["Andorra","AD","AND","20","EUR",978,"Euro",null,"Table 4 - Currency code list",null,null,null,null,"2610","Chromium (2610)","Chromium (2610), volume",null,null,"Licence fees (114521E)","Licence fees","114521E","Taxes (11E)","Taxes on goods and services (114E)","Taxes on use of goods/permission to use goods or perform activities (1145E)","Licence fees (114521E)",null,"Other"]
["Angola","AO","AGO","24","AOA",973,"Angolan kwanza",null,"Currency code (ISO-4217)","Currency code num (ISO-4217)","Currency",null,null,"2701","Coal (2701)","Coal (2701), volume",null,null,"Emission and pollution taxes (114522E)","Emission and pollution taxes","114522E","Taxes (11E)","Taxes on goods and services (114E)","Taxes on use of goods/permission to use goods or perform activities (1145E)","Emission and pollution taxes (114522E)"]
["Anguilla","AI","AIA","660","XCD",951,"East Caribbean dollar",null,"AED",784,"United Arab Emirates dirham",null,null,"2705","Coal gas (2705)","Coal gas (2705), volume",null,null,"Motor vehicle taxes (11451E)","Motor vehicle taxes","11451E","Taxes (11E)","Taxes on goods and services (114E)","Taxes on use of goods/permission to use goods or perform activities (1145E)","Motor vehicle taxes (11451E)"]
["Antigua and Barbuda","AG","ATG","28","XCD",951,"East Caribbean dollar",null,"AFN",971,"Afghan afghani",null,null,"2605","Cobalt (2605)","Cobalt (2605), volume",null,null,"Customs and other import duties (1151E)","Customs and other import duties","1151E","Taxes (11E)","Taxes on international trade and transactions (115E)","Customs and other import duties (1151E)","Customs and other import duties (1151E)"]
["Argentina","AR","ARG","32","ARS",32,"Argentine peso",null,"ALL",8,"Albanian lek",null,null,"2704","Coke and semi-coke (2704)","Coke and semi-coke (2704), volume",null,null,"Taxes on exports (1152E)","Taxes on exports","1152E","Taxes (11E)","Taxes on international trade and transactions (115E)","Taxes on exports (1152E)","Taxes on exports (1152E)"]
["Armenia","AM","ARM","51","AMD",51,"Armenian dram",null,"AMD",51,"Armenian dram",null,null,"2603","Copper (2603)","Copper (2603), volume",null,null,"Profits of natural resource export monopolies (1153E1)","Profits of natural resource export monopolies","1153E1","Taxes (11E)","Taxes on international trade and transactions (115E)","Profits of natural resource export monopolies (1153E1)","Profits of natural resource export monopolies (1153E1)"]
["Aruba","AW","ABW","533","AWG",533,"Aruban florin",null,"ANG",532,"Netherlands Antillean guilder",null,null,"2709","Crude oil (2709)","Crude oil (2709), volume",null,null,"Other taxes payable by natural resource companies (116E)","Other taxes payable by natural resource companies","116E","Taxes (11E)","Other taxes payable by natural resource companies (116E)","Other taxes payable by natural resource companies (116E)","Other taxes payable by natural resource companies (116E)"]
["Australia","AU","AUS","36","AUD",36,"Australian dollar",null,"AOA",973,"Angolan kwanza",null,null,"7102","Diamonds (7102)","Diamonds (7102), volume",null,null,"Social security employer contributions (1212E)","Social security employer contributions","1212E","Social contributions (12E)","Social security employer contributions (1212E)","Social security employer contributions (1212E)","Social security employer contributions (1212E)"]
["Austria","AT","AUT","40","EUR",978,"Euro",null,"ARS",32,"Argentine peso",null,null,"2518","Dolomite (2518)","Dolomite (2518), volume",null,null,"From state-owned enterprises (1412E1)","From state-owned enterprises","1412E1","Other revenue (14E)","Property income (141E)","Dividends (1412E)","From state-owned enterprises (1412E1)"]
["Azerbaijan","AZ","AZE","31","AZN",944,"Azerbaijani manat",null,"AUD",36,"Australian dollar",null,null,"2716","Electrical energy (2716)","Electrical energy (2716), volume",null,null,"From government participation (equity) (1412E2)","From government participation (equity)","1412E2","Other revenue (14E)","Property income (141E)","Dividends (1412E)","From government participation (equity) (1412E2)"]
["Bahamas","BS","BHS","44","BSD",44,"Bahamian dollar",null,"AWG",533,"Aruban florin",null,null,"2529","Felspar (2529)","Felspar (2529), volume",null,null,"Withdrawals from income of quasi-corporations (1413E)","Withdrawals from income of quasi-corporations","1413E","Other revenue (14E)","Property income (141E)","Withdrawals from income of quasi-corporations (1413E)","Withdrawals from income of quasi-corporations (1413E)"]
["Bahrain","BH","BHR","48","BHD",48,"Bahraini dinar",null,"AZN",944,"Azerbaijani manat",null,null,"7108","Gold (7108)","Gold (7108), volume",null,null,"Royalties (1415E1)","Royalties","1415E1","Other revenue (14E)","Property income (141E)","Rent (1415E)","Royalties (1415E1)"]
["Bangladesh","BD","BGD","50","BDT",50,"Bangladeshi taka",null,"BAM",977,"Bosnia and Herzegovina convertible mark",null,null,"2516","Granite (2516)","Granite (2516), volume",null,null,"Bonuses (1415E2)","Bonuses","1415E2","Other revenue (14E)","Property income (141E)","Rent (1415E)","Bonuses (1415E2)"]
["Barbados","BB","BRB","52","BBD",52,"Barbadian dollar",null,"BBD",52,"Barbadian dollar",null,null,"2618","Granulated slag (2618)","Granulated slag (2618), volume",null,null,"Delivered/paid directly to government (1415E31)","Delivered/paid directly to government","1415E31","Other revenue (14E)","Property income (141E)","Rent (1415E)","Production entitlements (in-kind or cash) (1415E3)"]
["Belarus","BY","BLR","112","BYR",974,"Belarussian ruble",null,"BDT",50,"Bangladeshi taka",null,null,"2520","Gypsum (2520)","Gypsum (2520), volume",null,null,"Delivered/paid to state-owned enterprise(s) (1415E32)","Delivered/paid to state-owned enterprise(s)","1415E32","Other revenue (14E)","Property income (141E)","Rent (1415E)","Production entitlements (in-kind or cash) (1415E3)"]
["Belgium","BE","BEL","56","EUR",978,"Euro",null,"BGN",975,"Bulgarian lev (old)",null,null,"2601","Iron (2601)","Iron (2601), volume",null,null,"Compulsory transfers to government (infrastructure and other) (1415E4)","Compulsory transfers to government (infrastructure and other)","1415E4","Other revenue (14E)","Property income (141E)","Rent (1415E)","Compulsory transfers to government (infrastructure and other) (1415E4)"]
["Belize","BZ","BLZ","84","BZD",84,"Belize dollar",null,"BHD",48,"Bahraini dinar",null,null,"2502","Iron pyrites (2502)","Iron pyrites (2502), volume",null,null,"Other rent payments (1415E5)","Other rent payments","1415E5","Other revenue (14E)","Property income (141E)","Rent (1415E)","Other rent payments (1415E5)"]
["Benin","BJ","BEN","204","XOF",952,"West African CFA franc",null,"BIF",108,"Burundian franc",null,null,"2507","Kaolin (2507)","Kaolin (2507), volume",null,null,"Sales of goods and services by government units (1421E)","Sales of goods and services by government units","1421E","Other revenue (14E)","Sales of goods and services (142E)","Sales of goods and services by government units (1421E)","Sales of goods and services by government units (1421E)"]
["Bermuda","BM","BMU","60","BMD",60,"Bermudian dollar",null,"BMD",60,"Bermudian dollar",null,null,"2607","Lead (2607)","Lead (2607), volume",null,null,"Administrative fees for government services (1422E)","Administrative fees for government services","1422E","Other revenue (14E)","Sales of goods and services (142E)","Administrative fees for government services (1422E)","Administrative fees for government services (1422E)"]
["Bhutan","BT","BTN","64","BTN",64,"Bhutanese ngultrum",null,"BND",96,"Brunei dollar",null,null,"2702","Lignite (2702)","Lignite (2702), volume",null,null,"Fines, penalties, and forfeits (143E)","Fines, penalties, and forfeits","143E","Other revenue (14E)","Fines, penalties, and forfeits (143E)","Fines, penalties, and forfeits (143E)","Fines, penalties, and forfeits (143E)"]
["Bolivia","BO","BOL","68","BOB",68,"Bolivian boliviano",null,"BOB",68,"Bolivian boliviano",null,null,"2521","Limestone (2521)","Limestone (2521), volume",null,null,"Voluntary transfers to government (donations) (144E1)","Voluntary transfers to government (donations)","144E1","Other revenue (14E)","Voluntary transfers to government (donations) (144E1)","Voluntary transfers to government (donations) (144E1)","Voluntary transfers to government (donations) (144E1)"]
["Bosnia and Herzegovina","BA","BIH","70","BAM",977,"Bosnia and Herzegovina convertible mark",null,"BRL",986,"Brazilian real",null,null,"2602","Manganese (2602)","Manganese (2602), volume",null,null,"<Choose from menu>","<Choose from menu>","<Choose from menu>","<Choose from menu>","<Choose from menu>","<Choose from menu>","<Choose from menu>"]
["Botswana","BW","BWA","72","BWP",72,"Botswana pula",null,"BSD",44,"Bahamian dollar",null,null,"2515","Marble (2515)","Marble (2515), volume"]
["Brazil","BR","BRA","76","BRL",986,"Brazilian real",null,"BTN",64,"Bhutanese ngultrum",null,null,"2525","Mica (2525)","Mica (2525), volume"]
["British Indian Ocean Territory","IO","IOT","86","USD",840,"United States dollar",null,"BWP",72,"Botswana pula",null,null,"2530","Mineral substances not elsewhere specified (2530)","Mineral substances not elsewhere specified (2530), volume"]
["British Virgin Islands","VG","VGB","92","USD",840,"United States dollar",null,"BYR",974,"Belarussian ruble",null,null,"2613","Molybdenum (2613)","Molybdenum (2613), volume"]
["Brunei Darussalam","BN","BRN","96","BND",96,"Brunei dollar",null,"BZD",84,"Belize dollar",null,null,"2511","Natural barium sulphate (2511)","Natural barium sulphate (2511), volume"]
["Bulgaria","BG","BGR","100","BGN",975,"Bulgarian lev (old)",null,"CAD",124,"Canadian dollar",null,null,"2528","Natural borates and concentrates (2528)","Natural borates and concentrates (2528), volume"]
["Burkina Faso","BF","BFA","854","XOF",952,"West African CFA franc",null,"CDF",976,"Congolese franc",null,null,"2510","Natural calcium phosphates (2510)","Natural calcium phosphates (2510), volume"]
["Burundi","BI","BDI","108","BIF",108,"Burundian franc",null,"CHF",756,"Swiss franc",null,null,"2527","Natural cryolite (2527)","Natural cryolite (2527), volume"]
["Cambodia","KH","KHM","116","KHR",116,"Cambodian Riel",null,"CLF",990,"Chilean Unidad de Fomento",null,null,"2711","Natural gas (2711)","Natural gas (2711), volume"]
["Cameroon","CM","CMR","120","XAF",950,"Central African CFA franc",null,"CNH",0,"Chinese yuan renminbi (offshore)",null,null,"2504","Natural graphite (2504)","Natural graphite (2504), volume"]
["Canada","CA","CAN","124","CAD",124,"Canadian dollar",null,"COP",170,"Colombian peso",null,null,"2519","Natural magnesium carbonate (2519)","Natural magnesium carbonate (2519), volume"]
["Cape Verde","CV","CPV","132","CVE",132,"Cape Verdean escudo",null,"CRC",188,"Costa Rican colon",null,null,"2505","Natural sands (2505)","Natural sands (2505), volume"]
["Cayman Islands","KY","CYM","136","KYD",136,"Cayman Islands Dollar",null,"CUC",931,"Cuban peso convertible",null,null,"2526","Natural steatite (2526)","Natural steatite (2526), volume"]
["Central African Republic","CF","CAF","140","XAF",950,"Central African CFA franc",null,"CVE",132,"Cape Verdean escudo",null,null,"2604","Nickel (2604)","Nickel (2604), volume"]
["Chad","TD","TCD","148","XAF",950,"Central African CFA franc",null,"CZK",203,"Czech koruna",null,null,"2615","Niobium (2615)","Niobium (2615), volume"]
["Chile","CL","CHL","152","CLF",990,"Chilean Unidad de Fomento",null,"DJF",262,"Djiboutian franc",null,null,"2617","Other (2617)","Other (2617), volume"]
["China","CN","CHN","156","CNH",0,"Chinese yuan renminbi (offshore)",null,"DKK",208,"Danish krone",null,null,"2508","Other clays (2508)","Other clays (2508), volume"]
["Christmas Island","CX","CXR","162","AUD",36,"Australian dollar",null,"DOP",214,"Dominican peso",null,null,"2621","Other slag and ash (2621)","Other slag and ash (2621), volume"]
["Cocos (Keeling) Islands","CC","CCK","166","AUD",36,"Australian dollar",null,"DZD",12,"Algerian dinar",null,null,"2703","Peat (2703)","Peat (2703), volume"]
["Colombia","CO","COL","170","COP",170,"Colombian peso",null,"EGP",818,"Egyptian pound",null,null,"2517","Pebbles (2517)","Pebbles (2517), volume"]
["Comoros","KM","COM","174","KMF",174,"Comorian Franc",null,"ERN",232,"Eritrean nakfa",null,null,"2713","Petroleum coke (2713)","Petroleum coke (2713), volume"]
["Costa Rica","CR","CRI","188","CRC",188,"Costa Rican colon",null,"ETB",230,"Ethiopian birr",null,null,"2712","Petroleum jelly (2712)","Petroleum jelly (2712), volume"]
["Cote d'Ivoire","CI","CIV","384","XOF",952,"West African CFA franc",null,"EUR",978,"Euro",null,null,"2710","Petroleum oils excluding crude (2710)","Petroleum oils excluding crude (2710), volume"]
["Croatia","HR","HRV","191","HRK",191,"Croatian Kuna",null,"FJD",242,"Fijian dollar",null,null,"2708","Pitch and pitch coke (2708)","Pitch and pitch coke (2708), volume"]
["Cuba","CU","CUB","192","CUC",931,"Cuban peso convertible",null,"FKP",238,"Falkland Islands pound",null,null,"2523","Portland cement (2523)","Portland cement (2523), volume"]
["Cyprus","CY","CYP","196","EUR",978,"Euro",null,"GBP",826,"Pound sterling",null,null,"2616","Precious metals (2616)","Precious metals (2616), volume"]
["Czech Republic","CZ","CZE","203","CZK",203,"Czech koruna",null,"GEL",981,"Georgian lari",null,null,"2707","Products of the distillation of coal tar (2707)","Products of the distillation of coal tar (2707), volume"]
["Democratic Republic of Congo","CD","COD","180","CDF",976,"Congolese franc",null,"GGP",0,"Pound",null,null,"2513","Pumice stone (2513)","Pumice stone (2513), volume"]
["Denmark","DK","DNK","208","DKK",208,"Danish krone",null,"GHS",936,"Ghanaian cedi",null,null,"2506","Quartz (2506)","Quartz (2506), volume"]
["Djibouti","DJ","DJI","262","DJF",262,"Djiboutian franc",null,"GIP",292,"Gibraltar pound",null,null,"2522","Quicklime (2522)","Quicklime (2522), volume"]
["Dominica","DM","DMA","212","XCD",951,"East Caribbean dollar",null,"GMD",270,"Gambian dalasi",null,null,"2501","Salt and pure sodium chloride (2501)","Salt and pure sodium chloride (2501), volume"]
["Dominican Republic","DO","DOM","214","DOP",214,"Dominican peso",null,"GNF",324,"Guinean franc",null,null,"2512","Siliceous fossil meals (2512)","Siliceous fossil meals (2512), volume"]
["Ecuador","EC","ECU","218","USD",840,"United States dollar",null,"GTQ",320,"Guatemalan quetzal",null,null,"7106","Silver (7106)","Silver (7106), volume"]
["Egypt","EG","EGY","818","EGP",818,"Egyptian pound",null,"GYD",328,"Guyanese Dollar",null,null,"2619","Slag (2619)","Slag (2619), volume"]
["El Salvador","SV","SLV","222","USD",840,"United States dollar",null,"HKD",344,"Hong Kong Dollar",null,null,"2514","Slate (2514)","Slate (2514), volume"]
["Equatorial Guinea","GQ","GNQ","226","XAF",950,"Central African CFA franc",null,"HNL",340,"Honduran Lempira",null,null,"2503","Sulphur of all kinds (2503)","Sulphur of all kinds (2503), volume"]
["Eritrea","ER","ERI","232","ERN",232,"Eritrean nakfa",null,"HRK",191,"Croatian Kuna",null,null,"2706","Tar distilled from coal (2706)","Tar distilled from coal (2706), volume"]
["Estonia","EE","EST","233","EUR",978,"Euro",null,"HTG",332,"Haitian Gourde",null,null,"2609","Tin (2609)","Tin (2609), volume"]
["Eswatini","SZ","SWZ","748","SZL",748,"Swazi Lilangeni",null,"HUF",348,"Hungarian Forint",null,null,"2614","Titanium (2614)","Titanium (2614), volume"]
["Ethiopia","ET","ETH","231","ETB",230,"Ethiopian birr",null,"IDR",360,"Indonesian Rupiah",null,null,"2611","Tungsten (2611)","Tungsten (2611), volume"]
["Falkland Islands","FK","FLK","238","FKP",238,"Falkland Islands pound",null,"ILS",376,"Israeli New Shekel",null,null,"2612","Uranium or thorium (2612)","Uranium or thorium (2612), volume"]
["Faroe Islands","FO","FRO","234","DKK",208,"Danish krone",null,"IMP",0,"Isle of Man Pound",null,null,"2608","Zinc (2608)","Zinc (2608), volume"]
["Fiji","FJ","FJI","242","FJD",242,"Fijian dollar",null,"INR",356,"Indian Rupee"]
["Finland","FI","FIN","246","EUR",978,"Euro",null,"IQD",368,"Iraqi dinar"]
["France","FR","FRA","250","EUR",978,"Euro",null,"IRR",364,"Iranian Rial"]
["French Guiana","GF","GUF","254","EUR",978,"Euro",null,"ISK",352,"Icelandic króna"]
["French Polynesia","PF","PYF","258","EUR",978,"Euro",null,"JEP",0,"Jersey Pound"]
["French Southern Territories","TF","ATF","260","EUR",978,"Euro",null,"JMD",388,"Jamaican Dollar"]
["Gabon","GA","GAB","266","XAF",950,"Central African CFA franc",null,"JOD",400,"Jordanian Dinar"]
["Gambia","GM","GMB","270","GMD",270,"Gambian dalasi",null,"JPY",392,"Japanese Yen"]
["Georgia","GE","GEO","268","GEL",981,"Georgian lari",null,"KES",404,"Kenyan Shilling"]
["Germany","DE","DEU","276","EUR",978,"Euro",null,"KGS",417,"Kyrgyzstani Som"]
["Ghana","GH","GHA","288","GHS",936,"Ghanaian cedi",null,"KHR",116,"Cambodian Riel"]
["Gibraltar","GI","GIB","292","GIP",292,"Gibraltar pound",null,"KMF",174,"Comorian Franc"]
["Greece","GR","GRC","300","EUR",978,"Euro",null,"KPW",408,"North Korean Won"]
["Greenland","GL","GRL","304","DKK",208,"Danish krone",null,"KRW",410,"South Korean Won"]
["Grenada","GD","GRD","308","XCD",951,"East Caribbean dollar",null,"KWD",414,"Kuwaiti Dinar"]
["Guadeloupe","GP","GLP","312","EUR",978,"Euro",null,"KYD",136,"Cayman Islands Dollar"]
["Guam","GU","GUM","316","USD",840,"United States dollar",null,"KZT",398,"Kazakhstani Tenge"]
["Guatemala","GT","GTM","320","GTQ",320,"Guatemalan quetzal",null,"LAK",418,"Lao Kip"]
["Guernsey","GG","GGY","831","GGP",0,"Pound",null,"LBP",422,"Lebanese Pound"]
["Guinea","GN","GIN","324","GNF",324,"Guinean franc",null,"LKR",144,"Sri Lankan Rupee"]
["Guinea-Bissau","GW","GNB","624","XOF",952,"West African CFA franc",null,"LRD",430,"Liberian Dollar"]
["Guyana","GY","GUY","328","GYD",328,"Guyanese Dollar",null,"LSL",426,"Lesotho loti"]
["Haiti","HT","HTI","332","HTG",332,"Haitian Gourde",null,"LYD",434,"Libyan Dinar"]
["Heard and Mcdonald Islands","HM","HMD","334",null,null,null,null,"MAD",504,"Moroccan Dirham"]
["Honduras","HN","HND","340","HNL",340,"Honduran Lempira",null,"MDL",498,"Moldovan Leu"]
["Hong Kong","HK","HKG","344","HKD",344,"Hong Kong Dollar",null,"MGA",969,"Malagasy Ariary"]
["Hungary","HU","HUN","348","HUF",348,"Hungarian Forint",null,"MKD",807,"Macedonian denar"]
["Iceland","IS","ISL","352","ISK",352,"Icelandic króna",null,"MMK",104,"Burmese Kyat"]
["India","IN","IND","356","INR",356,"Indian Rupee",null,"MNT",496,"Mongolian Tugrik"]
["Indonesia","ID","IDN","360","IDR",360,"Indonesian Rupiah",null,"MOP",446,"Macanese patca"]
["Iran","IR","IRN","364","IRR",364,"Iranian Rial",null,"MRO",478,"Mauritanian Ouguiya"]
["Iraq","IQ","IRQ","368","IQD",368,"Iraqi dinar",null,"MUR",480,"Mauritian Rupee"]
["Ireland","IE","IRL","372","EUR",978,"Euro",null,"MVR",462,"Maldivian Rufiyaa"]
["Isle of Man","IM","IMN","833","IMP",0,"Isle of Man Pound",null,"MWK",454,"Malawian kwacha"]
["Israel","IL","ISR","376","ILS",376,"Israeli New Shekel",null,"MXN",484,"Mexican Peso"]
["Italy","IT","ITA","380","EUR",978,"Euro",null,"MYR",458,"Malaysian Ringgit"]
["Jamaica","JM","JAM","388","JMD",388,"Jamaican Dollar",null,"MZN",943,"Mozambique Metical"]
["Japan","JP","JPN","392","JPY",392,"Japanese Yen",null,"NAD",516,"Namibian Dollar"]
["Jersey","JE","JEY","832","JEP",0,"Jersey Pound",null,"NGN",566,"Nigerian Naira"]
["Jordan","JO","JOR","400","JOD",400,"Jordanian Dinar",null,"NIO",558,"Nicaraguan córdoba oro"]
["Kazakhstan","KZ","KAZ","398","KZT",398,"Kazakhstani Tenge",null,"NOK",578,"Norwegian Krone"]
["Kenya","KE","KEN","404","KES",404,"Kenyan Shilling",null,"NPR",524,"Nepalese Rupee"]
["Kiribati","KI","KIR","296",null,null,null,null,"NZD",554,"New Zealand Dollar"]
["Korea (North)","KP","PRK","408","KPW",408,"North Korean Won",null,"OMR",512,"Omani Rial"]
["Korea (South)","KR","KOR","410","KRW",410,"South Korean Won",null,"PAB",590,"Panamanian balboa"]
["Kosovo","XK","XKX","-","EUR",978,"Euro",null,"PEN",604,"Peruvian Sol"]
["Kuwait","KW","KWT","414","KWD",414,"Kuwaiti Dinar",null,"PGK",598,"Papua New Guinean Kina"]
["Kyrgyz Republic","KG","KGZ","417","KGS",417,"Kyrgyzstani Som",null,"PHP",608,"Philippine Peso"]
["Lao PDR","LA","LAO","418","LAK",418,"Lao Kip",null,"PKR",586,"Pakistani Rupee"]
["Latvia","LV","LVA","428","EUR",978,"Euro",null,"PLN",985,"Polish Zloty"]
["Lebanon","LB","LBN","422","LBP",422,"Lebanese Pound",null,"PYG",600,"Paraguayan guaraní"]
["Lesotho","LS","LSO","426","LSL",426,"Lesotho loti",null,"QAR",634,"Qatari Riyal"]
["Liberia","LR","LBR","430","LRD",430,"Liberian Dollar",null,"RON",946,"Romanian Leu"]
["Libya","LY","LBY","434","LYD",434,"Libyan Dinar",null,"RSD",941,"Serbian Dinar"]
["Liechtenstein","LI","LIE","438","CHF",756,"Swiss franc",null,"RUB",643,"Russian Ruble"]
["Lithuania","LT","LTU","440","EUR",978,"Euro",null,"RWF",646,"Rwandan Franc"]
["Luxembourg","LU","LUX","442","EUR",978,"Euro",null,"SAR",682,"Saudi Riyal"]
["Macao","MO","MAC","446","MOP",446,"Macanese patca",null,"SBD",90,"Solomon Islands Dollar"]
["Macedonia","MK","MKD","807","MKD",807,"Macedonian denar",null,"SCR",690,"Seychellois rupee"]
["Madagascar","MG","MDG","450","MGA",969,"Malagasy Ariary",null,"SDG",938,"Sudanese Pound"]
["Malawi","MW","MWI","454","MWK",454,"Malawian kwacha",null,"SEK",752,"Swedish Krona"]
["Malaysia","MY","MYS","458","MYR",458,"Malaysian Ringgit",null,"SGD",702,"Singapore Dollar"]
["Maldives","MV","MDV","462","MVR",462,"Maldivian Rufiyaa",null,"SHP",654,"Saint Helena Pound"]
["Mali","ML","MLI","466","XOF",952,"West African CFA franc",null,"SLL",694,"Sierra Leonean leone"]
["Malta","MT","MLT","470","EUR",978,"Euro",null,"SOS",706,"Somali Shilling"]
["Marshall Islands","MH","MHL","584","USD",840,"United States dollar",null,"SRD",968,"Surinamese dollar"]
["Martinique","MQ","MTQ","474","EUR",978,"Euro",null,"SSP",728,"South Sudanese Pound"]
["Mauritania","MR","MRT","478","MRO",478,"Mauritanian Ouguiya",null,"STD",678,"São Tomé and Príncipe Dobra"]
["Mauritius","MU","MUS","480","MUR",480,"Mauritian Rupee",null,"SYP",760,"Syrian Pound"]
["Mayotte","YT","MYT","175","EUR",978,"Euro",null,"SZL",748,"Swazi Lilangeni"]
["Mexico","MX","MEX","484","MXN",484,"Mexican Peso",null,"THB",764,"Thai Baht"]
["Micronesia","FM","FSM","583","USD",840,"United States dollar",null,"TJS",972,"Tajikistani Somoni"]
["Moldova","MD","MDA","498","MDL",498,"Moldovan Leu",null,"TMT",934,"Turkmenistan New Manat"]
["Monaco","MC","MCO","492","EUR",978,"Euro",null,"TND",788,"Tunisian dinar"]
["Mongolia","MN","MNG","496","MNT",496,"Mongolian Tugrik",null,"TOP",776,"Tongan pa'anga"]
["Montenegro","ME","MNE","499","EUR",978,"Euro",null,"TRY",949,"Turkish lira"]
["Montserrat","MS","MSR","500","XCD",951,"East Caribbean dollar",null,"TTD",780,"Trinidad and Tobago Dollar"]
["Morocco","MA","MAR","504","MAD",504,"Moroccan Dirham",null,"TVD",0,"Tuvaluan dollar"]
["Mozambique","MZ","MOZ","508","MZN",943,"Mozambique Metical",null,"TWD",901,"New Taiwan dollar"]
["Myanmar","MM","MMR","104","MMK",104,"Burmese Kyat",null,"TZS",834,"Tanzanian shilling"]
["Namibia","NA","NAM","516","NAD",516,"Namibian Dollar",null,"UAH",980,"Ukrainian Hryvnia"]
["Nauru","NR","NRU","520",null,null,null,null,"UGX",800,"Ugandan shilling"]
["Nepal","NP","NPL","524","NPR",524,"Nepalese Rupee",null,"USD",840,"United States dollar"]
["Netherlands","NL","NLD","528","EUR",978,"Euro",null,"USD"]
["Netherlands Antilles","AN","ANT","530","ANG",532,"Netherlands Antillean guilder",null,"UYU",858,"Uruguayan Peso"]
["New Caledonia","NC","NCL","540",null,null,null,null,"UZS",860,"Uzbekistani Som"]
["New Zealand","NZ","NZL","554","NZD",554,"New Zealand Dollar",null,"VEF",937,"Venezuelan Bolívar fuerte"]
["Nicaragua","NI","NIC","558","NIO",558,"Nicaraguan córdoba oro",null,"VND",704,"Vietnamese Dong"]
["Niger","NE","NER","562","XOF",952,"West African CFA franc",null,"VUV",548,"Vanuatu Vatu"]
["Nigeria","NG","NGA","566","NGN",566,"Nigerian Naira",null,"WST",882,"Samoan tala"]
["Niue","NU","NIU","570",null,null,null,null,"XAF",950,"Central African CFA franc"]
["Norfolk Island","NF","NFK","574",null,null,null,null,"XCD",951,"East Caribbean dollar"]
["Northern Mariana Islands","MP","MNP","580","USD",840,"United States dollar",null,"XOF",952,"West African CFA franc"]
["Norway","NO","NOR","578","NOK",578,"Norwegian Krone",null,"YER",886,"Yemeni Rial"]
["Oman","OM","OMN","512","OMR",512,"Omani Rial",null,"ZAR",710,"South African Rand"]
["Pakistan","PK","PAK","586","PKR",586,"Pakistani Rupee",null,"ZMW",967,"Zambian Kwacha"]
["Palau","PW","PLW","585","USD",840,"United States dollar"]
["Palestinian Territory","PS","PSE","275"]
["Panama","PA","PAN","591","PAB",590,"Panamanian balboa"]
["Papua New Guinea","PG","PNG","598","PGK",598,"Papua New Guinean Kina"]
["Paraguay","PY","PRY","600","PYG",600,"Paraguayan guaraní"]
["Peru","PE","PER","604","PEN",604,"Peruvian Sol"]
["Philippines","PH","PHL","608","PHP",608,"Philippine Peso"]
["Pitcairn","PN","PCN","612"]
["Poland","PL","POL","616","PLN",985,"Polish Zloty"]
["Portugal","PT","PRT","620","EUR",978,"Euro"]
["Puerto Rico","PR","PRI","630","USD",840,"United States dollar"]
["Qatar","QA","QAT","634","QAR",634,"Qatari Riyal"]
["Republic of the Congo","CG","COG","178","XAF",950,"Central African CFA franc"]
["Reunion","RE","REU","638","EUR",978,"Euro"]
["Romania","RO","ROU","642","RON",946,"Romanian Leu"]
["Russian Federation","RU","RUS","643","RUB",643,"Russian Ruble"]
["Rwanda","RW","RWA","646","RWF",646,"Rwandan Franc"]
["Saint Helena","SH","SHN","654","SHP",654,"Saint Helena Pound"]
["Saint Kitts and Nevis","KN","KNA","659","XCD",951,"East Caribbean dollar"]
["Saint Lucia","LC","LCA","662","XCD",951,"East Caribbean dollar"]
["Saint Pierre and Miquelon","PM","SPM","666","EUR",978,"Euro"]
["Saint Vincent and Grenadines","VC","VCT","670","XCD",951,"East Caribbean dollar"]
["Saint-Barthelemy","BL","BLM","652","EUR",978,"Euro"]
["Saint-Martin","MF","MAF","663","EUR",978,"Euro"]
["Samoa","WS","WSM","882","WST",882,"Samoan tala"]
["San Marino","SM","SMR","674","EUR",978,"Euro"]
["Sao Tome and Principe","ST","STP","678","STD",678,"São Tomé and Príncipe Dobra"]
["Saudi Arabia","SA","SAU","682","SAR",682,"Saudi Riyal"]
["Senegal","SN","SEN","686","XOF",952,"West African CFA franc"]
["Serbia","RS","SRB","688","RSD",941,"Serbian Dinar"]
["Seychelles","SC","SYC","690","SCR",690,"Seychellois rupee"]
["Sierra Leone","SL","SLE","694","SLL",694,"Sierra Leonean leone"]
["Singapore","SG","SGP","702","SGD",702,"Singapore Dollar"]
["Slovakia","SK","SVK","703","EUR",978,"Euro"]
["Slovenia","SI","SVN","705","EUR",978,"Euro"]
["Solomon Islands","SB","SLB","90","SBD",90,"Solomon Islands Dollar"]
["Somalia","SO","SOM","706","SOS",706,"Somali Shilling"]
["South Africa","ZA","ZAF","710","ZAR",710,"South African Rand"]
["South Georgia and the South Sandwich Islands","GS","SGS","239"]
["South Sudan","SS","SSD","728","SSP",728,"South Sudanese Pound"]
["Spain","ES","ESP","724","EUR",978,"Euro"]
["Sri Lanka","LK","LKA","144","LKR",144,"Sri Lankan Rupee"]
["Sudan","SD","SDN","736","SDG",938,"Sudanese Pound"]
["Suriname","SR","SUR","740","SRD",968,"Surinamese dollar"]
["Svalbard and Jan Mayen Islands","SJ","SJM","744"]
["Sweden","SE","SWE","752","SEK",752,"Swedish Krona"]
["Switzerland","CH","CHE","756","CHF",756,"Swiss franc"]
["Syria","SY","SYR","760","SYP",760,"Syrian Pound"]
["Taiwan","TW","TWN","158","TWD",901,"New Taiwan dollar"]
["Tajikistan","TJ","TJK","762","TJS",972,"Tajikistani Somoni"]
["Tanzania","TZ","TZA","834","TZS",834,"Tanzanian shilling"]
["Thailand","TH","THA","764","THB",764,"Thai Baht"]
["Timor-Leste","TL","TLS","626","USD",840,"United States dollar"]
["Togo","TG","TGO","768","XOF",952,"West African CFA franc"]
["Tokelau","TK","TKL","772"]
["Tonga","TO","TON","776","TOP",776,"Tongan pa'anga"]
["Trinidad and Tobago","TT","TTO","780","TTD",780,"Trinidad and Tobago Dollar"]
["Tunisia","TN","TUN","788","TND",788,"Tunisian dinar"]
["Turkey","TR","TUR","792","TRY",949,"Turkish lira"]
["Turkmenistan","TM","TKM","795","TMT",934,"Turkmenistan New Manat"]
["Turks and Caicos Islands","TC","TCA","796","USD",840,"United States dollar"]
["Tuvalu","TV","TUV","798","TVD",0,"Tuvaluan dollar"]
["Uganda","UG","UGA","800","UGX",800,"Ugandan shilling"]
["Ukraine","UA","UKR","804","UAH",980,"Ukrainian Hryvnia"]
["United Arab Emirates","AE","ARE","784","AED",784,"United Arab Emirates dirham"]
["United Kingdom","GB","GBR","826","GBP",826,"Pound sterling"]
["Uruguay","UY","URY","858","UYU",858,"Uruguayan Peso"]
["Uzbekistan","UZ","UZB","860","UZS",860,"Uzbekistani Som"]
["Vanuatu","VU","VUT","548","VUV",548,"Vanuatu Vatu"]
["Vatican","VA","VAT","336","EUR",978,"Euro"]
["Venezuela","VE","VEN","862","VEF",937,"Venezuelan Bolívar fuerte"]
["Viet Nam","VN","VNM","704","VND",704,"Vietnamese Dong"]
["Virgin Islands, US","VI","VIR","850","USD",840,"United States dollar"]
["Wallis and Futuna Islands","WF","WLF","876"]
["Western Sahara","EH","ESH","732"]
["Yemen","YE","YEM","887","YER",886,"Yemeni Rial"]
["Zambia","ZM","ZMB","894","ZMW",967,"Zambian Kwacha"]
["Zimbabwe","ZW","ZWE","716","USD",840,"United States dollar"]